Workbook

Sheet AER only (hidden)
B1: Data in these columns used for data validation and database purposes.
B2: Date last modified:
AC4: FOR ELECTRICITY BUSINESSES ONLY
AC5: Feeder Types | AG5: TasNetworks (D) | AH5: MAIFI flag | AI5: Feeder Names
AC6: CBD | AD6: Urban | AE6: Short rural | AF6: long rural | AG6: EXTRA
B7: dms_TradingName_List | C7: dms_TradingNameFull_List | D7: dms_ABN_List | E7: dms_JurisdictionList | F7: dms_Sector_List | G7: dms_Segment_List | H7: dms_FormControl_List | I7: dms_RPT_List | J7: dms_RPTMonth_List | K7: dms_CRCPlength_List | L7: dms_FRCPlength_List | M7: dms_663_List | N7: dms_DeterminationRef_List | P7: dms_Addr1_List | Q7: dms_Addr2_List | R7: dms_Suburb_List | S7: dms_State_List | T7: dms_PostCode_List | U7: dms_PAddr1_List | V7: dms_PAddr2_List | W7: dms_PSuburb_List | X7: dms_PState_List | Y7: dms_PPostCode_List | Z7: dms_ContactName1_List | AA7: dms_ContactPh1_List | AB7: dms_ContactEmail_List | AC7: dms_CBD_flag | AD7: dms_Urban_flag | AE7: dms_ShortRural_flag | AF7: dms_LongRural_flag | AG7: dms_FeederType_5_flag | AH7: dms_MAIFI_flag_List | AI7: dms_FeederName_1 | AJ7: dms_FeederName_2 | AK7: dms_FeederName_3 | AL7: dms_FeederName_4 | AM7: dms_FeederName_5
B8: ActewAGL Distribution | C8: ActewAGL Distribution | D8: 76670568688 | E8: ACT | F8: Electricity | G8: Distribution | H8: Revenue cap | I8: Financial | J8: June | K8: 5 | L8: 5 | M8: 5 | N8: 2014-19 Distribution Determination | P8: 40 Bunda Street | R8: CANBERRA | S8: ACT | T8: 2600 | U8: GPO BOX 366 | W8: CANBERRA | X8: ACT | Y8: 2601 | Z8: Robert Walker | AA8: 02 6248 3847 | AB8: robert.walker@actewagle.com.au | AC8: NO | AD8: YES | AE8: YES | AF8: NO | AG8: NO | AI8: CBD | AJ8: Urban | AK8: Short rural | AL8: Long rural | AN8: ActewAGL Distribution
B9: ActewAGL Distribution (Tx Assets) | C9: ActewAGL Distribution (Tx Assets) | D9: 76670568688 | E9: ACT | F9: Electricity | G9: Distribution | H9: Revenue cap | I9: Financial | J9: June | K9: 5 | L9: 5 | M9: 5 | N9: distribution determination | P9: 40 Bunda Street | R9: CANBERRA | S9: ACT | T9: 2600 | U9: GPO BOX 366 | W9: CANBERRA | X9: ACT | Y9: 2601 | Z9: Robert Walker | AA9: 02 6248 3847 | AB9: robert.walker@actewagle.com.au | AI9: CBD | AJ9: Urban | AK9: Short rural | AL9: Long rural | AN9: ActewAGL Distribution (Tx Assets)
B10: ActewAGL Gas | C10: ActewAGL Gas | D10: 76670568688 | E10: ACT | F10: Gas | G10: Distribution | H10: Weighted average price cap | I10: Financial | J10: June | K10: 6 | L10: 5 | M10: x | P10: 40 Bunda Street | R10: CANBERRA | S10: ACT | T10: 2600 | U10: GPO BOX 366 | W10: CANBERRA | X10: ACT | Y10: 2601 | Z10: Philip Deamer | AA10: 02 6248 3438 | AB10: GasAAReview@actewagl.com.au | AN10: ActewAGL Gas
B11: AGN (SA) | C11: AGN | D11: 78551685 | E11: SA | F11: Gas | G11: Distribution | H11: Weighted average price cap | I11: Financial | J11: June | K11: 5 | L11: 5 | M11: 5 | N11: distribution determination | P11: please input | R11: please input | S11: SA | U11: please input | W11: please input | Z11: please input | AI11: CBD | AJ11: Urban | AK11: Short rural | AL11: Long rural | AN11: AGN
B12: Amadeus | C12: APT Pipelines (NT) Pty Ltd | D12: 39009737393 | E12: NT | F12: Gas | G12: Transmission | H12: Weighted average price cap | I12: Financial | J12: June | K12: 5 | L12: 5 | M12: x | N12: n/a | P12: Level 19, HSBC Building | Q12: 580 George Street | R12: SYDNEY | S12: NSW | T12: 2000 | U12: Level 19, HSBC Building | V12: 580 George Street | W12: SYDNEY | X12: NSW | Y12: 2000 | Z12: Alexandra Curran | AA12: 02 9275 0020 | AB12: alexandra.curran@apa.com.au | AN12: Amadeus
B13: APA GasNet | C13: APA VTS Australia Limited | D13: 79096457868 | E13: Vic | F13: Gas | G13: Transmission | H13: Weighted average price cap | I13: Calendar | J13: December | K13: 5 | L13: 5 | M13: x | P13: Level 19, HSBC Building | Q13: 580 George Street | R13: SYDNEY | S13: NSW | T13: 2000 | U13: PO Box R41 | W13: ROYAL EXCHANGE | X13: NSW | Y13: 1225 | Z13: please input | AA13: 02 9693 0000 | AB13: please input | AN13: APA GasNet
B14: Ausgrid | C14: Ausgrid | D14: 67505337385 | E14: NSW | F14: Electricity | G14: Distribution | H14: Revenue cap | I14: Financial | J14: June | K14: 5 | L14: 5 | M14: 5 | N14: 2014-19 Distribution Determination | P14: 570 George St | R14: SYDNEY | S14: NSW | T14: 2000 | U14: please input | W14: please input | Z14: John Thomson | AA14: (02) 9269 2312 | AB14: john.thomson@ausgrid.com.au | AC14: YES | AD14: YES | AE14: YES | AF14: YES | AG14: NO | AI14: CBD | AJ14: Urban | AK14: Short rural | AL14: Long rural | AN14: Ausgrid
B15: Ausgrid (Tx Assets) | C15: Ausgrid (Tx Assets) | D15: 67505337385 | E15: NSW | F15: Electricity | G15: Distribution | H15: Revenue cap | I15: Financial | J15: June | K15: 5 | L15: 5 | M15: 5 | N15: distribution determination | P15: please input | R15: please input | S15: NSW | U15: please input | W15: please input | Z15: please input | AA15: please input | AB15: please input | AI15: CBD | AJ15: Urban | AK15: Short rural | AL15: Long rural | AN15: Ausgrid (Tx Assets)
B16: AusNet (D) | C16: AusNet Electricity Services (D) | D16: 91064651118 | E16: Vic | F16: Electricity | G16: Distribution | H16: Revenue cap | I16: Calendar | J16: December | K16: 5 | L16: 5 | M16: 2 | N16: 2016-20 Distribution Determination | P16: Level 32 | Q16: 2 Southbank Boulevard | R16: SOUTHBANK | S16: Vic | T16: 3006 | U16: Locked Bag 14051 | W16: MELBOURNE CITY MAIL CENTRE | X16: VIC | Y16: 8001 | Z16: Hannah Williams | AA16: 03 9683 4088 | AB16: hwilliams@powercor.com.au | AD16: YES | AE16: YES | AF16: YES | AG16: NO | AI16: CBD | AJ16: Urban | AK16: Short rural | AL16: Long rural | AN16: AusNet (D)
B17: AusNet (Gas) | C17: AusNet Gas Services | E17: Vic | F17: Gas | G17: Distribution | H17: Weighted average price cap | I17: Calendar | J17: December | K17: 5 | L17: 5 | M17: X | P17: please input | R17: please input | S17: Vic | U17: please input | W17: please input | Z17: please input | AA17: please input | AB17: please input | AN17: AusNet (Gas)
B18: AusNet (T) | C18: AusNet (T) | D18: 48116124362 | E18: Vic | F18: Electricity | G18: Transmission | H18: Revenue cap | I18: Financial | J18: March | K18: 5 | L18: 5 | M18: 2 | N18: transmission determination | P18: Level 32 | Q18: 2 Southbank Boulevard | R18: SOUTHBANK | S18: Vic | T18: 3006 | U18: please input | W18: please input | Z18: Tom Hallam | AA18: 03 9695 6617 | AB18: Thomas.hallam@SP-Ausnet.com.au | AI18: CBD | AJ18: Urban | AK18: Short rural | AL18: Long rural | AN18: AusNet (T)
B19: Australian Distribution Co. | C19: Australian Distribution Co. | D19: 11222333444 | E19: - | F19: Electricity | G19: Distribution | H19: Revenue cap | I19: Financial | J19: June | K19: 5 | L19: 5 | M19: 2 | N19: distribution determination | P19: 123 Straight Street | R19: SYDNEY | S19: NSW | T19: 2000 | U19: PO Box 123 | W19: SYDNEY | X19: NSW | Y19: 2000 | Z19: Bob Smith | AA19: 02 1234 5678 | AB19: bob@auselec.net.au | AI19: CBD | AJ19: Urban | AK19: Short rural | AL19: Long rural | AN19: Australian Distribution Co.
B20: Australian Transmission Co. | C20: Australian Transmission Co. | D20: 11222333444 | E20: - | F20: Electricity | G20: Transmission | H20: Revenue cap | I20: Financial | J20: June | K20: 5 | L20: 5 | M20: 5 | N20: transmission determination | P20: 123 Straight Street | R20: SYDNEY | S20: NSW | T20: 2000 | U20: PO Box 123 | W20: SYDNEY | X20: NSW | Y20: 2000 | Z20: Bob Smith | AA20: 02 1234 5678 | AB20: bob@auselec.net.au | AI20: CBD | AJ20: Urban | AK20: Short rural | AL20: Long rural | AN20: Australian Transmission Co.
B21: CitiPower | C21: CitiPower | D21: 76064651056 | E21: Vic | F21: Electricity | G21: Distribution | H21: Revenue cap | I21: Calendar | J21: December | K21: 5 | L21: 5 | M21: 2 | N21: 2016-20 Distribution Determination | P21: 40 Market Street | R21: MELBOURNE | S21: Vic | T21: 3000 | U21: Locked Bag 14090 | W21: MELBOURNE | X21: VIC | Y21: 8001 | Z21: Hannah Williams | AA21: 03 9683 4088 | AB21: hwilliams@powercor.com.au | AC21: YES | AD21: YES | AE21: NO | AF21: NO | AG21: NO | AI21: CBD | AJ21: Urban | AK21: Short rural | AL21: Long rural | AN21: CitiPower
B22: Directlink | C22: Directlink | D22: 16779340889 | E22: Qld | F22: Electricity | G22: Transmission | H22: Revenue cap | I22: Financial | J22: June | K22: 9 | L22: 5 | M22: 5 | N22: transmission determination | P22: please input | R22: please input | S22: NSW | U22: please input | W22: please input | Z22: please input | AA22: please input | AB22: please input | AI22: CBD | AJ22: Urban | AK22: Short rural | AL22: Long rural | AN22: Directlink
B23: ElectraNet | C23: ElectraNet | D23: 41094482416 | E23: SA | F23: Electricity | G23: Transmission | H23: Revenue cap | I23: Financial | J23: June | K23: 5 | L23: 5 | M23: 5 | N23: transmission determination | P23: 52-55 East Terrace | Q23: Rymill Park | R23: ADELAIDE | S23: SA | T23: 5000 | U23: PO Box 7096 | V23: Hutt Street Post Office | W23: ADELAIDE | X23: SA | Z23: Bill Jackson | AA23: 08 8404 7969 | AB23: jackson.bill@electranet.com.au | AI23: CBD | AJ23: Urban | AK23: Short rural | AL23: Long rural | AN23: ElectraNet
B24: Endeavour Energy | C24: Endeavour Energy | D24: 59253130878 | E24: NSW | F24: Electricity | G24: Distribution | H24: Revenue cap | I24: Financial | J24: June | K24: 5 | L24: 5 | M24: 5 | N24: 2014-19 Distribution Determination | P24: 51 Huntingwood Drive | R24: HUNTINGWOOD | S24: NSW | T24: 2148 | U24: PO Box 811 | W24: SEVEN HILLS | X24: NSW | Z24: Jon Hocking | AA24: 02 9853 4386 / 0407 348 156 | AB24: Jon.Hocking@Endeavourenergy.com.au | AC24: NO | AD24: YES | AE24: YES | AF24: YES | AG24: NO | AI24: CBD | AJ24: Urban | AK24: Short rural | AL24: Long rural | AN24: Endeavour Energy
B25: Energex | C25: Energex | D25: 40078849055 | E25: Qld | F25: Electricity | G25: Distribution | H25: Revenue cap | I25: Financial | J25: June | K25: 5 | L25: 5 | M25: 5 | N25: 2015-20 Distribution Determination | P25: 26 Reddacliff Street | R25: NEWSTEAD | S25: Qld | T25: 4006 | U25: 26 Reddacliff Street | W25: NEWSTEAD | X25: QLD | Y25: 4006 | Z25: Nicola Roscoe | AA25: 07 3664 5891 | AB25: nicolaroscoe@energex.com.au | AC25: YES | AD25: YES | AE25: YES | AF25: NO | AG25: NO | AI25: CBD | AJ25: Urban | AK25: Short rural | AL25: Long rural | AN25: Energex
B26: Ergon Energy | C26: Ergon Energy | D26: 50087646062 | E26: Qld | F26: Electricity | G26: Distribution | H26: Revenue cap | I26: Financial | J26: June | K26: 5 | L26: 5 | M26: 5 | N26: 2015-20 Distribution Determination | P26: 22 Walker Street | R26: TOWNSVILLE | S26: Qld | T26: 4810 | U26: Po Box 264 | W26: FORTITUDE VALLEY | X26: QLD | Y26: 4006 | Z26: Jenny Doyle, Group Manager Regulatory Affairs | AA26: (07) 3851 6416 | AB26: jenny.doyle@ergon.com.au | AC26: NO | AD26: YES | AE26: YES | AF26: YES | AG26: NO | AI26: CBD | AJ26: Urban | AK26: Short rural | AL26: Long rural | AN26: Ergon Energy
B27: AGN (Victoria) | C27: Australian Gas Networks Limited | D27: 19078551685 | E27: Vic | F27: Gas | G27: Distribution | H27: Weighted average price cap | I27: Calendar | J27: December | K27: 5 | L27: 5 | M27: x | P27: Level 10 | Q27: 81 Flinders Street | R27: ADELAIDE | S27: SA | T27: 5000 | U27: please input | W27: please input | AA27: 08 8227 1500 | AN27: Envestra (Victoria and Albury)
B28: Essential Energy | C28: Essential Energy | D28: 37428185226 | E28: NSW | F28: Electricity | G28: Distribution | H28: Revenue cap | I28: Financial | J28: June | K28: 5 | L28: 5 | M28: 5 | N28: 2014-19 Distribution Determination | P28: 8 Buller Street | R28: PORT MACQUARIE | S28: NSW | U28: PO Box 5730 | W28: PORT MACQUARIE | X28: NSW | Z28: Catherine Waddell | AA28: 02 6338 3553 | AB28: catherine.waddell@essentialenergy.com.au | AE28: YES | AF28: YES | AG28: NO | AI28: CBD | AJ28: Urban | AK28: Short rural | AL28: Long rural | AN28: Essential Energy
B29: Jemena Electricity | C29: Jemena Electricity | D29: 82064651083 | E29: Vic | F29: Electricity | G29: Distribution | H29: Revenue cap | I29: Calendar | J29: December | K29: 5 | L29: 5 | M29: 2 | N29: 2016-20 Distribution Determination | P29: Level 16 | Q29: 567 Collins Street | R29: MELBOURNE | S29: VIC | T29: 3000 | U29: PO Box 16182 | W29: MELBOURNE | X29: VIC | Y29: 8001 | Z29: Robert McMillan | AA29: 03 9173 7000 | AB29: robert.mcmillan@jemena.com.au | AE29: YES | AF29: NO | AG29: NO | AI29: CBD | AJ29: Urban | AK29: Short rural | AL29: Long rural | AN29: Jemena Electricity
B30: JGN | C30: Jemena Gas Networks | E30: NSW | F30: Gas | G30: Distribution | H30: Weighted average price cap | I30: Financial | J30: June | K30: 5 | L30: 5 | P30: please input | R30: please input | S30: NSW | U30: please input | W30: please input | Z30: please input | AA30: please input | AB30: please input
B31: Multinet Gas | C31: Multinet Gas (DB No.1) Pty Ltd (ACN 086 026 986), Multinet Gas (DB No.2) Pty Ltd (ACN 086 230 122) | D31: 86026986 | E31: Vic | F31: Gas | G31: Distribution | H31: Weighted average price cap | I31: Calendar | J31: December | K31: 5 | L31: 5 | M31: x | P31: please input | R31: please input | S31: Vic | U31: please input | W31: please input | Z31: please input | AA31: please input | AB31: please input | AN31: Multinet Gas
B32: Murraylink | C32: Murraylink | D32: 79181207909 | E32: SA | F32: Electricity | G32: Transmission | H32: Revenue cap | I32: Financial | J32: June | K32: 5 | L32: 5 | M32: 5 | N32: transmission determination | P32: please input | S32: SA | U32: please input | Z32: please input | AI32: CBD | AJ32: Urban | AK32: Short rural | AL32: Long rural | AN32: Murraylink
B33: Powercor Australia | C33: Powercor Australia | D33: 89064651109 | E33: Vic | F33: Electricity | G33: Distribution | H33: Revenue cap | I33: Calendar | J33: December | K33: 5 | L33: 5 | M33: 2 | N33: 2016-20 Distribution Determination | P33: 40 Market Street | R33: MELBOURNE | S33: Vic | T33: 3000 | U33: Locked bag 14090 | W33: MELBOURNE | X33: VIC | Y33: 8001 | Z33: Hannah Williams | AA33: 03 9683 4088 | AB33: hwilliams@powercor.com.au | AE33: YES | AF33: YES | AG33: NO | AI33: CBD | AJ33: Urban | AK33: Short rural | AL33: Long rural | AN33: Powercor Australia
B34: Powerlink | C34: Queensland Electricity Transmission Corporation Limited trading as Powerlink Queensland | D34: 82078849233 | E34: Qld | F34: Electricity | G34: Transmission | H34: Revenue cap | I34: Financial | J34: June | K34: 5 | L34: 5 | M34: 5 | N34: transmission determination | P34: 33 Harold St | R34: VIRGINIA | S34: Qld | T34: 4014 | U34: PO Box 1193 | W34: VIRGINIA | X34: QLD | Y34: 4014 | Z34: Jennifer Harris | AA34: 07 3860 2667 | AB34: jharris@powerlink.com.au | AI34: CBD | AJ34: Urban | AK34: Short rural | AL34: Long rural | AN34: Powerlink
B35: Roma to Brisbane Pipeline | C35: APT Petroleum Pipelines Limited t/a Roma to Brisbane Pipeline | D35: 009 737 393 | E35: Qld | F35: Gas | G35: Transmission | H35: Revenue cap | I35: Financial | J35: June | K35: 5 | L35: 5 | M35: x | N35: n/a | P35: please input | R35: please input | S35: Qld | U35: please input | W35: please input | Z35: please input | AA35: please input | AB35: please input | AI35: CBD | AJ35: Urban | AK35: Short rural | AL35: Long rural | AN35: Roma to Brisbane Pipeline
B36: SA Power Networks | C36: SA Power Networks | D36: 13332330749 | E36: SA | F36: Electricity | G36: Distribution | H36: Revenue cap | I36: Financial | J36: June | K36: 5 | L36: 5 | M36: 5 | N36: 2015-20 Distribution Determination | P36: 1 Anzac Highway | R36: KESWICK | S36: SA | T36: 5035 | U36: GPO Box 77 | W36: ADELAIDE | X36: SA | Z36: Damien O'Connor | AA36: 08 8404 5066 | AB36: damien.oconnor@sapowernetworks.com.au | AE36: YES | AF36: YES | AG36: NO | AI36: CBD | AJ36: Urban | AK36: Short rural | AL36: Long rural | AN36: SA Power Networks
B37: TasNetworks (D) | C37: TasNetworks (D) | D37: 24167357299 | E37: Tas | F37: Electricity | G37: Distribution | H37: Revenue cap | I37: Financial | J37: June | K37: 5 | L37: 5 | M37: 5 | N37: distribution determination | P37: 21 Kirksway Place | R37: HOBART | S37: Tas | T37: 7000 | U37: GPO Box 191 | W37: HOBART | X37: Tas | Z37: Leigh Mayne | AA37: 03 6270 3691 | AB37: rrp2012@auroraenergy.com.au | AE37: YES | AF37: YES | AG37: YES | AI37: Critical Infrastructure | AJ37: High density commercial | AK37: Urban | AL37: High density rural | AM37: Low density rural | AN37: TasNetworks (D)
B38: TasNetworks (T) | C38: TasNetworks (T) | D38: 24167357299 | E38: Tas | F38: Electricity | G38: Transmission | H38: Revenue cap | I38: Financial | J38: March | K38: 5 | L38: 5 | M38: 5 | N38: transmission determination | P38: 1-7 Maria Street | R38: LENAH VALLEY | S38: Tas | T38: 7008 | U38: PO Box 606 | W38: MOONAH | X38: Tas | Z38: Heath Dillon | AA38: 03 6274 3664 | AB38: heath.dillon@transend.com.au | AI38: CBD | AJ38: Urban | AK38: Short rural | AL38: Long rural | AN38: TasNetworks (T)
B39: TransGrid | C39: TransGrid | D39: 19622755774 | E39: NSW | F39: Electricity | G39: Transmission | H39: Revenue cap | I39: Financial | J39: June | K39: 5 | L39: 4 | M39: 5 | N39: transmission determination | P39: 180 Thomas Street | R39: HAYMARKET | S39: NSW | T39: 2000 | U39: PO Box A1000 | W39: SYDNEY SOUTH | X39: NSW | Z39: Andrew Kingsmill | AA39: 02 9284 3149 | AB39: andrew.kingsmill@transgrid.com.au | AI39: CBD | AJ39: Urban | AK39: Short rural | AL39: Long rural | AN39: TransGrid
B40: United Energy | C40: United Energy | D40: 70064651029 | E40: Vic | F40: Electricity | G40: Distribution | H40: Revenue cap | I40: Calendar | J40: December | K40: 5 | L40: 5 | M40: 2 | N40: 2016-20 Distribution Determination | P40: Level 3 | Q40: 6 Nexus Court | R40: MULGRAVE | S40: Vic | T40: 3149 | U40: PO Box 449 | W40: MOUNT WAVERLEY | X40: VIC | Y40: 3170 | Z40: Mathew Abraham | AA40: 03 8846 9758 | AB40: mathew.abraham@ue.com.au | AE40: YES | AF40: NO | AG40: NO | AI40: CBD | AJ40: Urban | AK40: Short rural | AL40: Long rural | AN40: United Energy
B41: Western Power (D) | C41: Western Power (D) | D41: 18540492861 | E41: WA | F41: Electricity | G41: Distribution | H41: Revenue cap | I41: Financial | J41: June | K41: 12 | L41: 4 | M41: x | N41: distribution determination | P41: 363 Wellington Street | R41: PERTH | S41: WA | T41: 6000 | U41: GPO Box L921 | W41: PERTH | X41: WA | Y41: 6842 | Z41: Judy Hunter | AA41: 08 9326 6239 | AB41: judy.hunter@westernpower.com.au | AE41: YES | AF41: YES | AG41: NO | AH41: NO | AI41: CBD | AJ41: Urban | AK41: Short rural | AL41: Long rural | AN41: Western Power (D)
B42: Western Power (T) | C42: Western Power (T) | D42: 18540492861 | E42: WA | F42: Electricity | G42: Transmission | H42: Revenue cap | I42: Financial | J42: June | K42: 12 | L42: 4 | M42: x | N42: transmission determination | P42: 363 Wellington Street | R42: PERTH | S42: WA | T42: 6000 | U42: GPO Box L921 | W42: PERTH | X42: WA | Y42: 6842 | Z42: Judy Hunter | AA42: 08 9326 6239 | AB42: judy.hunter@westernpower.com.au | AE42: YES | AF42: YES | AG42: NO | AI42: CBD | AJ42: Urban | AK42: Short rural | AL42: Long rural | AN42: Western Power (T)
X45: For EB & Reset RINs only
B46: The Reg Year Ending (dms_RYE) must be set to the last year of the regulatory period. For forecast data is is usually (FRCP_y5) for actual it is a single year (CRY). For historical actual data the RYE will need to be set manually in the business details sheet by setting the dms_Multiyear_flag to 1 and putting the correct value in 'dms_Specified_FinalYear. See cells C67:C68 | G46: =IF(dms_RPT="financial",VALUE(LEFT(CRCP_y1,4)-1)&"-"&TEXT(VALUE(RIGHT(CRCP_y1,2)-1),"00"),VALUE(LEFT(CRCP_y1,4)-1)) -> 2012-13 | N46: Drop down selector box for CA & Reset RINs. | P46: For CA & Reset RINs only | X46: for DNSP only | AI46: Reason for interruption | AJ46: dms_Reason_Interruption_Detailed | AK46: dms_Reason_Interruption
B47: dms_Model_List | C47: DELETE NR 'CRY' IF NOT AN ANNUAL RIN (EB, CA , ARR) | E47: dms_RYE_Formula_Result | N47: dms_0203_ProjectType | P47: dms_020303_01_UOM | Q47: dms_020501_01_UOM | R47: dms_020501_02_UOM | S47: dms_020501_03_UOM | T47: dms_020501_04_UOM | U47: dms_020603_01_UOM | V47: dms_040102_01_UOM | W47: dms_040102_04_UOM | X47: dms_030601_01_UOM | Y47: dms_030601_02_UOM | Z47: dms_030701_01_UOM | AA47: dms_030702_01_UOM | AB47: dms_030703_01_UOM | AI47: Animal | AJ47: Animal impact | AK47: Animal
B48: ARR | C48: ANNUAL REPORTING STATEMENT | E48: =LEFT(dms_SingleYear_FinalYear_Result,2)&RIGHT(dms_SingleYear_FinalYear_Result,2) ->  | F48: =LEFT(dms_SingleYear_FinalYear_Result,2)&RIGHT(dms_SingleYear_FinalYear_Result,2) | H48: Formula errors are OK | N48: New line on new route - single circuit | P48: Circuit line length in km | Q48: 0's | R48: 0's | S48: 0's | T48: 0's | U48: 0's | V48: 0's | W48: days | X48: minutes/customer | Y48: minutes/customer | Z48: Customer / km | AA48: % | AB48: km | AJ48: Animal nesting/burrowing, etc and other | AK48: Asset failure
B49: CA | C49: CATEGORY ANALYSIS | E49: =LEFT(dms_SingleYear_FinalYear_Result,2)&RIGHT(dms_SingleYear_FinalYear_Result,2) ->  | F49: =LEFT(dms_SingleYear_FinalYear_Result,2)&RIGHT(dms_SingleYear_FinalYear_Result,2) | H49: Formula errors are OK | N49: New line on new route - dual circuit | P49: Circuit line length in km | Q49: 0's | R49: 0's | S49: 0's | T49: 0's | U49: 0's | V49: 0's | W49: 0's | X49: minutes/customer | Y49: minutes/customer | Z49: MWh/customer | AA49: Number of spans | AJ49: Other | AK49: Other
B50: CPI | C50: CPI | N50: New line on new route - other | P50: Circuit line length in km | Q50: MVA added | R50: MVA added | S50: MVA added | T50: MVA added | U50: 0's | V50: 0's | W50: $0s | X50: interruptions/customer | Y50: interruptions/customer | Z50: kVA / customer | AA50: Number of spans | AI50: Asset failure | AJ50: LV | AK50: Overloads
B51: EB | C51: ECONOMIC BENCHMARKING | E51: =LEFT(dms_SingleYear_FinalYear_Result,2)&RIGHT(dms_SingleYear_FinalYear_Result,2) ->  | F51: =LEFT(dms_SingleYear_FinalYear_Result,2)&RIGHT(dms_SingleYear_FinalYear_Result,2) | H51: Formula errors are OK | N51: Line rebuild over existing route - single circuit | P51: Circuit line length in km | Q51: 0's | R51: 0's | S51: 0's | T51: 0's | U51: 0's | V51: $0s | W51: 0's | X51: interruptions/customer | Y51: interruptions/customer | AA51: Number of spans | AJ51: Distribution substation | AK51: Planned
B52: PTRM | C52: POST TAX REVENUE MODEL | E52: =LEFT(dms_MultiYear_FinalYear_Result,2)&RIGHT(dms_MultiYear_FinalYear_Result,2) -> 2023 | F52: =LEFT(dms_MultiYear_FinalYear_Result,2)&RIGHT(dms_MultiYear_FinalYear_Result,2) | N52: Line rebuild over existing route - dual circuit | P52: Number | Q52: total spend $0s | R52: total spend $0s | S52: total spend $0s | T52: total spend $0s | U52: (per cent) | AA52: Number of spans | AJ52: HV | AK52: Network business
B53: Reset | C53: REGULATORY REPORTING STATEMENT | E53: =LEFT(dms_MultiYear_FinalYear_Result,2)&RIGHT(dms_MultiYear_FinalYear_Result,2) -> 2023 | F53: =LEFT(dms_MultiYear_FinalYear_Result,2)&RIGHT(dms_MultiYear_FinalYear_Result,2) | H53: Formula errors are OK | N53: Reconductor - Single circuit | P53: Number | Q53: net circuit km added | R53: net circuit km added | S53: net circuit km added | T53: net circuit km added | AA53: Years | AJ53: Zone substation | AK53: Third party
B54: RFM | C54: ROLL FORWARD MODEL | E54: =LEFT(dms_CRCP_FinalYear_Result,2)&RIGHT(dms_CRCP_FinalYear_Result,2) -> 2018 | F54: =LEFT(dms_CRCP_FinalYear_Result,2)&RIGHT(dms_CRCP_FinalYear_Result,2) | N54: Reconductor - Dual circuit | P54: Number | Q54: total spend $0s | R54: total spend $0s | S54: total spend $0s | T54: total spend $0s | AA54: Years | AJ54: Subtransmission | AK54: Unknown
B55: WACC | C55: WEIGHTED AVERAGE COST OF CAPITAL | E55: =LEFT(dms_MultiYear_FinalYear_Result,2)&RIGHT(dms_MultiYear_FinalYear_Result,2) -> 2023 | F55: =LEFT(dms_MultiYear_FinalYear_Result,2)&RIGHT(dms_MultiYear_FinalYear_Result,2) | N55: Other | Q55: net circuit km added | R55: net circuit km added | S55: net circuit km added | T55: net circuit km added | AA55: Trees | AI55: Other | AJ55: insert description of 'other' | AK55: Vegetation
Q56: total spend $0s | R56: total spend $0s | S56: total spend $0s | T56: total spend $0s | AA56: Trees | AI56: Overloads | AJ56: - | AK56: Weather
Q57: 0's | S57: $0s | AA57: Defects | AI57: Planned | AJ57: - | AK57: 2 - STPIS Exclusion (3.3)(a)
Q58: 0's | AA58: Defects | AI58: Network business | AJ58: Network error | AK58: 3 - STPIS Exclusion (3.3)(a)
Q59: 0's | AA59: Spans | AJ59: Switching and protection error | AK59: 4 - STPIS Exclusion (3.3)(a)
Q60: $0s | AA60: km | AI60: Third party | AJ60: Fire | AK60: 5 - STPIS Exclusion (3.3)(a)
AA61: Spans | AJ61: Other | AK61: 6 - STPIS Exclusion (3.3)(a)
AJ62: Dig-in | AK62: 7 - STPIS Exclusion (3.3)(a)
AJ63: Unauthorised access
B64: For all files either AER or business needs to be able to specify the type of submission | C64: For PTRM & RFM templates we must provide a choice in case they change their form of control - otherwise it is drawn from the business specific lookup table above. | E64: These are indeces and lookup values for various dates. All step from the value placed in FRCP_y1 on the business and other details worksheet | X64: for TNSP only | AJ64: Vehicle impact
B65: dms_SourceList | C65: dms_FormControl_Choices | E65: dms_FRCPlength_Num_List | F65: dms_FinalYear_List | G65: dms_CRCPlength_Num_List | H65: dms_CFinalYear_List | I65: dms_FRCP_years | K65: dms_CRCP_years | M65: dms_CRCP_index | X65: dms_030601_01_UOM | Z65: dms_030701_01_UOM | AA65: dms_030702_01_UOM | AI65: Unknown | AJ65: Unknown
B66: After appeal | C66: Revenue cap | E66: 1 | F66: dms_FRCP_y1 | G66: 1 | H66: CRCP_y1 | I66: =FRCP_y1 -> 2018-19 | J66: dms_FRCP_y1 | K66: =IF(dms_RPT="financial",VALUE(LEFT(dms_FRCP_y1,4)-1)&"-"&TEXT(VALUE(MID(dms_FRCP_y1,3,2)),"00"),VALUE(LEFT(dms_FRCP_y1,4)-1)) -> 2017-18 | L66: dms_CRCP_yZ | M66: 1 | X66: % | Z66: Number of spans | AA66: km | AI66: Vegetation | AJ66: Blow-in/Fall-in - NSP responsibility
B67: Draft decision | C67: Revenue yield | E67: 2 | F67: dms_FRCP_y2 | G67: 2 | H67: CRCP_y2 | I67: =IF(dms_RPT="financial",VALUE(LEFT(dms_FRCP_y1,4)+1)&"-"&TEXT(VALUE(RIGHT(dms_FRCP_y1,2)+1),"00"),VALUE(LEFT(dms_FRCP_y1,4)+1)) -> 2019-20 | J67: dms_FRCP_y2 | K67: =IF(dms_RPT="financial",VALUE(LEFT(dms_CRCP_yZ,4)-1)&"-"&TEXT(VALUE(MID(dms_CRCP_yZ,3,2)),"00"),VALUE(LEFT(dms_CRCP_yZ,4)-1)) -> 2016-17 | L67: dms_CRCP_yY | M67: 2 | X67: number | Z67: Years | AA67: % | AJ67: Grow-in - NSP responsibility
B68: Final decision | C68: Weighted average price cap | E68: 3 | F68: dms_FRCP_y3 | G68: 3 | H68: CRCP_y3 | I68: =IF(dms_RPT="financial",VALUE(LEFT(dms_FRCP_y2,4)+1)&"-"&TEXT(VALUE(RIGHT(dms_FRCP_y2,2)+1),"00"),VALUE(LEFT(dms_FRCP_y2,4)+1)) -> 2020-21 | J68: dms_FRCP_y3 | K68: =IF(dms_RPT="financial",VALUE(LEFT(dms_CRCP_yY,4)-1)&"-"&TEXT(VALUE(MID(dms_CRCP_yY,3,2)),"00"),VALUE(LEFT(dms_CRCP_yY,4)-1)) -> 2015-16 | L68: dms_CRCP_yX | M68: 3 | X68: number | Z68: Trees | AA68: km | AJ68: Blow-in/Fall-in - Other responsible party
B69: PTRM update 1 | E69: 4 | F69: dms_FRCP_y4 | G69: 4 | H69: CRCP_y4 | I69: =IF(dms_RPT="financial",VALUE(LEFT(dms_FRCP_y3,4)+1)&"-"&TEXT(VALUE(RIGHT(dms_FRCP_y3,2)+1),"00"),VALUE(LEFT(dms_FRCP_y3,4)+1)) -> 2021-22 | J69: dms_FRCP_y4 | K69: =IF(dms_RPT="financial",VALUE(LEFT(dms_CRCP_yX,4)-1)&"-"&TEXT(VALUE(MID(dms_CRCP_yX,3,2)),"00"),VALUE(LEFT(dms_CRCP_yX,4)-1)) -> 2014-15 | L69: dms_CRCP_yW | M69: 4 | X69: % | Z69: Defects | AA69: number | AJ69: Grow-in - Other responsible party
B70: PTRM update 2 | E70: 5 | F70: dms_FRCP_y5 | G70: 5 | H70: CRCP_y5 | I70: =IF(dms_RPT="financial",VALUE(LEFT(dms_FRCP_y4,4)+1)&"-"&TEXT(VALUE(RIGHT(dms_FRCP_y4,2)+1),"00"),VALUE(LEFT(dms_FRCP_y4,4)+1)) -> 2022-23 | J70: dms_FRCP_y5 | K70: =IF(dms_RPT="financial",VALUE(LEFT(dms_CRCP_yW,4)-1)&"-"&TEXT(VALUE(MID(dms_CRCP_yW,3,2)),"00"),VALUE(LEFT(dms_CRCP_yW,4)-1)) -> 2013-14 | L70: dms_CRCP_yV | M70: 5 | X70: number | Z70: Number of spans | AI70: Weather
B71: PTRM update 3 | E71: 6 | F71: dms_FRCP_y6 | G71: 6 | H71: CRCP_y6 | I71: =IF(dms_RPT="financial",VALUE(LEFT(dms_FRCP_y5,4)+1)&"-"&TEXT(VALUE(RIGHT(dms_FRCP_y5,2)+1),"00"),VALUE(LEFT(dms_FRCP_y5,4)+1)) -> 2023-24 | J71: dms_FRCP_y6 | K71: =IF(dms_RPT="financial",VALUE(LEFT(dms_CRCP_yV,4)-1)&"-"&TEXT(VALUE(MID(dms_CRCP_yV,3,2)),"00"),VALUE(LEFT(dms_CRCP_yV,4)-1)) -> 2012-13 | L71: dms_CRCP_yU | M71: 6 | X71: number | Z71: km | AI71: 2 - STPIS Exclusion (3.3)(a)
B72: PTRM update 4 | E72: 7 | F72: dms_FRCP_y7 | G72: 7 | H72: CRCP_y7 | I72: =IF(dms_RPT="financial",VALUE(LEFT(dms_FRCP_y6,4)+1)&"-"&TEXT(VALUE(RIGHT(dms_FRCP_y6,2)+1),"00"),VALUE(LEFT(dms_FRCP_y6,4)+1)) -> 2024-25 | J72: dms_FRCP_y7 | K72: =IF(dms_RPT="financial",VALUE(LEFT(dms_CRCP_yU,4)-1)&"-"&TEXT(VALUE(MID(dms_CRCP_yU,3,2)),"00"),VALUE(LEFT(dms_CRCP_yU,4)-1)) -> 2011-12 | L72: dms_CRCP_yT | M72: 7 | X72: % | Z72: km | AI72: 3 - STPIS Exclusion (3.3)(a)
B73: PTRM update 5 | E73: 8 | F73: dms_FRCP_y8 | G73: 8 | H73: CRCP_y8 | I73: =IF(dms_RPT="financial",VALUE(LEFT(dms_FRCP_y7,4)+1)&"-"&TEXT(VALUE(RIGHT(dms_FRCP_y7,2)+1),"00"),VALUE(LEFT(dms_FRCP_y7,4)+1)) -> 2025-26 | J73: dms_FRCP_y8 | K73: =IF(dms_RPT="financial",VALUE(LEFT(dms_CRCP_yT,4)-1)&"-"&TEXT(VALUE(MID(dms_CRCP_yT,3,2)),"00"),VALUE(LEFT(dms_CRCP_yT,4)-1)) -> 2010-11 | L73: dms_CRCP_yS | M73: 8 | X73: number | Z73: Number of spans | AI73: 4 - STPIS Exclusion (3.3)(a)
B74: PTRM update 6 | E74: 9 | F74: dms_FRCP_y9 | G74: 9 | H74: CRCP_y9 | I74: =IF(dms_RPT="financial",VALUE(LEFT(dms_FRCP_y8,4)+1)&"-"&TEXT(VALUE(RIGHT(dms_FRCP_y8,2)+1),"00"),VALUE(LEFT(dms_FRCP_y8,4)+1)) -> 2026-27 | J74: dms_FRCP_y9 | K74: =IF(dms_RPT="financial",VALUE(LEFT(dms_CRCP_yS,4)-1)&"-"&TEXT(VALUE(MID(dms_CRCP_yS,3,2)),"00"),VALUE(LEFT(dms_CRCP_yS,4)-1)) -> 2009-10 | L74: dms_CRCP_yR | M74: 9 | X74: number | AI74: 5 - STPIS Exclusion (3.3)(a)
B75: PTRM update 7 | E75: 10 | F75: dms_FRCP_y10 | G75: 10 | H75: CRCP_y10 | I75: =IF(dms_RPT="financial",VALUE(LEFT(dms_FRCP_y9,4)+1)&"-"&TEXT(VALUE(RIGHT(dms_FRCP_y9,2)+1),"00"),VALUE(LEFT(dms_FRCP_y9,4)+1)) -> 2027-28 | J75: dms_FRCP_y10 | K75: =IF(dms_RPT="financial",VALUE(LEFT(dms_CRCP_yR,4)-1)&"-"&TEXT(VALUE(MID(dms_CRCP_yR,3,2)),"00"),VALUE(LEFT(dms_CRCP_yR,4)-1)) -> 2008-09 | L75: dms_CRCP_yQ | M75: 10 | X75: % | AI75: 6 - STPIS Exclusion (3.3)(a)
B76: Regulatory proposal | E76: 11 | F76: dms_FRCP_y11 | G76: 11 | H76: CRCP_y11 | I76: =IF(dms_RPT="financial",VALUE(LEFT(dms_FRCP_y10,4)+1)&"-"&TEXT(VALUE(RIGHT(dms_FRCP_y10,2)+1),"00"),VALUE(LEFT(dms_FRCP_y10,4)+1)) -> 2028-29 | J76: dms_FRCP_y11 | K76: =IF(dms_RPT="financial",VALUE(LEFT(dms_CRCP_yQ,4)-1)&"-"&TEXT(VALUE(MID(dms_CRCP_yQ,3,2)),"00"),VALUE(LEFT(dms_CRCP_yQ,4)-1)) -> 2007-08 | L76: dms_CRCP_yP | M76: 11 | X76: number | AI76: 7 - STPIS Exclusion (3.3)(a)
B77: Reporting | E77: 12 | F77: dms_FRCP_y12 | G77: 12 | H77: CRCP_y12 | I77: =IF(dms_RPT="financial",VALUE(LEFT(dms_FRCP_y11,4)+1)&"-"&TEXT(VALUE(RIGHT(dms_FRCP_y11,2)+1),"00"),VALUE(LEFT(dms_FRCP_y11,4)+1)) -> 2029-30 | J77: dms_FRCP_y12 | K77: =IF(dms_RPT="financial",VALUE(LEFT(dms_CRCP_yP,4)-1)&"-"&TEXT(VALUE(MID(dms_CRCP_yP,3,2)),"00"),VALUE(LEFT(dms_CRCP_yP,4)-1)) -> 2006-07 | L77: dms_CRCP_yO | M77: 12 | X77: %
B78: Revised regulatory proposal | E78: 13 | F78: dms_FRCP_y13 | G78: 13 | H78: CRCP_y13 | I78: =IF(dms_RPT="financial",VALUE(LEFT(dms_FRCP_y12,4)+1)&"-"&TEXT(VALUE(RIGHT(dms_FRCP_y12,2)+1),"00"),VALUE(LEFT(dms_FRCP_y12,4)+1)) -> 2030-31 | J78: dms_FRCP_y13 | K78: =IF(dms_RPT="financial",VALUE(LEFT(dms_CRCP_yO,4)-1)&"-"&TEXT(VALUE(MID(dms_CRCP_yO,3,2)),"00"),VALUE(LEFT(dms_CRCP_yO,4)-1)) -> 2005-06 | L78: dms_CRCP_yN | M78: 13 | X78: number
E79: 14 | F79: dms_FRCP_y14 | G79: 14 | H79: CRCP_y14 | I79: =IF(dms_RPT="financial",VALUE(LEFT(dms_FRCP_y13,4)+1)&"-"&TEXT(VALUE(RIGHT(dms_FRCP_y13,2)+1),"00"),VALUE(LEFT(dms_FRCP_y13,4)+1)) -> 2031-32 | J79: dms_FRCP_y14 | K79: =IF(dms_RPT="financial",VALUE(LEFT(dms_CRCP_yN,4)-1)&"-"&TEXT(VALUE(MID(dms_CRCP_yN,3,2)),"00"),VALUE(LEFT(dms_CRCP_yN,4)-1)) -> 2004-05 | L79: dms_CRCP_yM | M79: 14 | X79: %
E80: 15 | F80: dms_FRCP_y15 | G80: 15 | H80: CRCP_y15 | I80: =IF(dms_RPT="financial",VALUE(LEFT(dms_FRCP_y14,4)+1)&"-"&TEXT(VALUE(RIGHT(dms_FRCP_y14,2)+1),"00"),VALUE(LEFT(dms_FRCP_y14,4)+1)) -> 2032-33 | J80: dms_FRCP_y15 | K80: =IF(dms_RPT="financial",VALUE(LEFT(dms_CRCP_yM,4)-1)&"-"&TEXT(VALUE(MID(dms_CRCP_yM,3,2)),"00"),VALUE(LEFT(dms_CRCP_yM,4)-1)) -> 2003-04 | L80: dms_CRCP_yL | M80: 15 | X80: number
B82: dms_DataQuality_List | E82: These are drop down lists for businesses to select the correct FRCP_y1 on the business and other details worksheet. This also populates the column headings in the worksheets
B83: Actual | E83: dms_RCP_fyear_list | F83: dms_CRY_ListF | G83: dms_CRY_ListC | H83: dms_RCP_cyear_list | I83: dms_FRCP_fyear_list | J83: dms_FRCP_ListF | K83: dms_FRCP_ListC | L83: dms_FRCP_cyear_list
B84: Estimate | E84: dms_fy1 | F84: 2006-07 | G84: 2007 | H84: dms_cy1 | I84: dms_frcp_fy1 | J84: 2016-17 | K84: 2017 | L84: dms_crcp_cy1
B85: Consolidated | E85: dms_fy2 | F85: 2007-08 | G85: 2008 | H85: dms_cy2 | I85: dms_frcp_fy2 | J85: 2017-18 | K85: 2018 | L85: dms_crcp_cy2
B86: Recast | E86: dms_fy3 | F86: 2008-09 | G86: 2009 | H86: dms_cy3 | I86: dms_frcp_fy3 | J86: 2018-19 | K86: 2019 | L86: dms_crcp_cy3
B87: Public | E87: dms_fy4 | F87: 2009-10 | G87: 2010 | H87: dms_cy4 | I87: dms_frcp_fy4 | J87: 2019-20 | K87: 2020 | L87: dms_crcp_cy4
E88: dms_fy5 | F88: 2010-11 | G88: 2011 | H88: dms_cy5 | I88: dms_frcp_fy5 | J88: 2020-21 | K88: 2021 | L88: dms_crcp_cy5
E89: dms_fy6 | F89: 2011-12 | G89: 2012 | H89: dms_cy6 | I89: dms_frcp_fy6 | J89: 2021-22 | K89: 2022 | L89: dms_crcp_cy6
E90: dms_fy7 | F90: 2012-13 | G90: 2013 | H90: dms_cy7 | I90: dms_frcp_fy7 | J90: 2022-23 | K90: 2023 | L90: dms_crcp_cy7
E91: dms_fy8 | F91: 2013-14 | G91: 2014 | H91: dms_cy8 | I91: dms_frcp_fy8 | J91: 2023-24 | K91: 2024 | L91: dms_crcp_cy8
E92: dms_fy9 | F92: 2014-15 | G92: 2015 | H92: dms_cy9 | I92: dms_frcp_fy9 | J92: 2024-25 | K92: 2025 | L92: dms_crcp_cy9
E93: dms_fy10 | F93: 2015-16 | G93: 2016 | H93: dms_cy10 | I93: dms_frcp_fy10 | J93: 2025-26 | K93: 2026 | L93: dms_crcp_cy10
E94: dms_fy11 | F94: 2016-17 | G94: 2017 | H94: dms_cy11 | I94: dms_frcp_fy11 | J94: 2026-27 | K94: 2027 | L94: dms_crcp_cy11
E95: dms_fy12 | F95: 2017-18 | G95: 2018 | H95: dms_cy12 | I95: dms_frcp_fy12 | J95: 2027-28 | K95: 2028 | L95: dms_crcp_cy12
E96: dms_fy13 | F96: 2018-19 | G96: 2019 | H96: dms_cy13 | I96: dms_frcp_fy13 | J96: 2028-29 | K96: 2029 | L96: dms_crcp_cy13
E97: dms_fy14 | F97: 2019-20 | G97: 2020 | H97: dms_cy14 | I97: dms_frcp_fy14 | J97: 2029-30 | K97: 2030 | L97: dms_crcp_cy14
E98: dms_fy15 | F98: 2020-21 | G98: 2021 | H98: dms_cy15 | I98: dms_frcp_fy15 | J98: 2030-31 | K98: 2031 | L98: dms_crcp_cy15

Sheet Business & other details (hidden)
B1: =IF(dms_DataQuality="backcast",INDEX(dms_Worksheet_List,MATCH(dms_Model,dms_Model_List))&" BACKCAST",INDEX(dms_Worksheet_List,MATCH(dms_Model,dms_Model_List))) -> ROLL FORWARD MODEL
B2: =INDEX(dms_TradingNameFull_List,MATCH(dms_TradingName,dms_TradingName_List)) -> SA Power Networks
B3: =IF(SUM(dms_SingleYear_Model)>0,CRY,CONCATENATE(FRCP_y1," to ",dms_MultiYear_FinalYear_Result)) -> 2018-19 to 2022-23
B4: BUSINESS & OTHER DETAILS
B7: Instructions
B8: Complete the following business details regulatory template before entering data or values in any other regulatory template. This regulatory template is linked to other cells within the spreadsheet and automatically generates column headings and conditional formatting to distinguish business specific input and non-input cells.
B10: SUBMISSION PARTICULARS INPUT SHEETS
B12: ENTITY DETAILS
B14: Short name | C14: ='DMS input'!C14 -> Tasmanian Networks Pty Ltd
B15: ACN / ABN | C15: =INDEX(dms_ABN_List,MATCH(dms_TradingName,dms_TradingName_List)) -> 13332330749
B18: Business address | C18: Address 1 | E18: =INDEX(dms_Addr1_List,MATCH(dms_TradingName,dms_TradingName_List)) -> 1 Anzac Highway
D19: Address 2 | E19: =IF(ISBLANK(INDEX(dms_Addr2_List,MATCH(dms_TradingName,dms_TradingName_List))),"",INDEX(dms_Addr2_List,MATCH(dms_TradingName,dms_TradingName_List))) -> 
C20: Suburb | E20: =INDEX(dms_Suburb_List,MATCH(dms_TradingName,dms_TradingName_List)) -> KESWICK
D21: State | E21: =INDEX(dms_State_List,MATCH(dms_TradingName,dms_TradingName_List)) -> SA | F21: p/code | G21: =IF(ISBLANK(INDEX(dms_PostCode_List,MATCH(dms_TradingName,dms_TradingName_List))),"",INDEX(dms_PostCode_List,MATCH(dms_TradingName,dms_TradingName_List))) -> 5035
B23: Postal address | C23: Address 1 | E23: =INDEX(dms_PAddr1_List,MATCH(dms_TradingName,dms_TradingName_List)) -> GPO Box 77
D24: Address 2 | E24: =IF(ISBLANK(INDEX(dms_PAddr2_List,MATCH(dms_TradingName,dms_TradingName_List))),"",INDEX(dms_PAddr2_List,MATCH(dms_TradingName,dms_TradingName_List))) -> 
C25: Suburb | E25: =INDEX(dms_PSuburb_List,MATCH(dms_TradingName,dms_TradingName_List)) -> ADELAIDE
D26: State | E26: =IF(ISBLANK(INDEX(dms_PState_List,MATCH(dms_TradingName,dms_TradingName_List))),"",INDEX(dms_PState_List,MATCH(dms_TradingName,dms_TradingName_List))) -> SA | F26: p/code | G26: =IF(ISBLANK(INDEX(dms_PPostCode_List,MATCH(dms_TradingName,dms_TradingName_List))),"",INDEX(dms_PPostCode_List,MATCH(dms_TradingName,dms_TradingName_List))) -> 
B29: Contact name/s | C29: =INDEX(dms_ContactName1_List,MATCH(dms_TradingName,dms_TradingName_List)) -> Damien O'Connor
B30: Contact phone/s | C30: =INDEX(dms_ContactPh1_List,MATCH(dms_TradingName,dms_TradingName_List)) -> 08 8404 5066
B31: Contact email address/s | C31: =INDEX(dms_ContactEmail_List,MATCH(dms_TradingName,dms_TradingName_List)) -> damien.oconnor@sapowernetworks.com.au
B33: REGULATORY CONTROL PERIODS
B35: Forthcoming regulatory control period | C35: 2018-19 | D35: =dms_FRCP_y2 -> 2019-20 | E35: =dms_FRCP_y3 -> 2020-21 | F35: =dms_FRCP_y4 -> 2021-22 | G35: =dms_FRCP_y5 -> 2022-23 | H35: =dms_FRCP_y6 -> 2023-24 | I35: =dms_FRCP_y7 -> 2024-25 | J35: =dms_FRCP_y8 -> 2025-26 | K35: =dms_FRCP_y9 -> 2026-27 | L35: =dms_FRCP_y10 -> 2027-28
B38: Current regulatory control period | C38: =dms_CRCP_FirstYear_Result -> 2013-14 | D38: =IF(dms_RPT="financial",VALUE(LEFT(CRCP_y1,4)+1)&"-"&TEXT(MID(CRCP_y1,3,2)+2,"00"),VALUE(LEFT(CRCP_y1,4)+1)) -> 2014-15 | E38: =IF(dms_RPT="financial",VALUE(LEFT(CRCP_y2,4)+1)&"-"&TEXT(VALUE(MID(CRCP_y2,3,2)+2),"00"),VALUE(LEFT(CRCP_y2,4)+1)) -> 2015-16 | F38: =IF(dms_RPT="financial",VALUE(LEFT(CRCP_y3,4)+1)&"-"&TEXT(VALUE(MID(CRCP_y3,3,2)+2),"00"),VALUE(LEFT(CRCP_y3,4)+1)) -> 2016-17 | G38: =IF(dms_RPT="financial",VALUE(LEFT(CRCP_y4,4)+1)&"-"&TEXT(VALUE(MID(CRCP_y4,3,2)+2),"00"),VALUE(LEFT(CRCP_y4,4)+1)) -> 2017-18 | H38: =IF(dms_RPT="financial",VALUE(LEFT(CRCP_y5,4)+1)&"-"&TEXT(VALUE(MID(CRCP_y5,3,2)+2),"00"),VALUE(LEFT(CRCP_y5,4)+1)) -> 2018-19 | I38: =IF(dms_RPT="financial",VALUE(LEFT(CRCP_y6,4)+1)&"-"&TEXT(VALUE(MID(CRCP_y6,3,2)+2),"00"),VALUE(LEFT(CRCP_y6,4)+1)) -> 2019-20 | J38: =IF(dms_RPT="financial",VALUE(LEFT(CRCP_y7,4)+1)&"-"&TEXT(VALUE(MID(CRCP_y7,3,2)+2),"00"),VALUE(LEFT(CRCP_y7,4)+1)) -> 2020-21 | K38: =IF(dms_RPT="financial",VALUE(LEFT(CRCP_y8,4)+1)&"-"&TEXT(VALUE(MID(CRCP_y8,3,2)+2),"00"),VALUE(LEFT(CRCP_y8,4)+1)) -> 2021-22 | L38: =IF(dms_RPT="financial",VALUE(LEFT(CRCP_y9,4)+1)&"-"&TEXT(VALUE(MID(CRCP_y9,3,2)+2),"00"),VALUE(LEFT(CRCP_y9,4)+1)) -> 2022-23
B41: Previous regulatory control period | C41: =IF(dms_RPT="financial",VALUE(LEFT(PRCP_y2,4)-1)&"-"&TEXT(VALUE(MID(PRCP_y2,3,2)),"00"),VALUE(LEFT(PRCP_y2,4)-1)) -> 2008-09 | D41: =IF(dms_RPT="financial",VALUE(LEFT(PRCP_y3,4)-1)&"-"&TEXT(VALUE(MID(PRCP_y3,3,2)),"00"),VALUE(LEFT(PRCP_y3,4)-1)) -> 2009-10 | E41: =IF(dms_RPT="financial",VALUE(LEFT(PRCP_y4,4)-1)&"-"&TEXT(VALUE(MID(PRCP_y4,3,2)),"00"),VALUE(LEFT(PRCP_y4,4)-1)) -> 2010-11 | F41: =IF(dms_RPT="financial",VALUE(LEFT(PRCP_y5,4)-1)&"-"&TEXT(VALUE(RIGHT(PRCP_y5,2)-1),"00"),VALUE(LEFT(PRCP_y5,4)-1)) -> 2011-12 | G41: =IF(dms_RPT="financial",VALUE(LEFT(CRCP_y1,4)-1)&"-"&TEXT(VALUE(RIGHT(CRCP_y1,2)-1),"00"),VALUE(LEFT(CRCP_y1,4)-1)) -> 2012-13
B44: Current regulatory year | C44: 2005-06 | D44: CRY
C47: DELETE NR 'CRY' IF NOT AN ANNUAL RIN (EB, CA , ARR)
C48: APPLY NR 'CRY' IF AN ANNUAL RIN (EB, CA , ARR) - including multi year annual RINs eg. Recast CA. EB
B50: Source | C50: ='DMS input'!C36 -> Draft decision | E50: Please select the correct submission type from the dropdown list.
B51: Data quality (actual, estimate, public, consolidated) | C51: Consolidated
B52: Amended RIN submission - amendment reason | C52: =IF(ISBLANK('DMS input'!C37:I37),"",'DMS input'!C37:I37) -> 
B53: Submission Date | C53: dd/mm/yyyy | D53: dms_SubmissionDate | E53: Please enter date this file submitted to AER (dd/mm/yyyy)
B54: EBSS - First application of scheme in forthcoming period? | C54: No
B55: Sector | C55: =INDEX(dms_Sector_List,MATCH(dms_TradingName,dms_TradingName_List)) -> Electricity | D55: dms_Sector | E55: =INDEX(dms_Sector_List,MATCH(dms_TradingName,dms_TradingName_List))
B56: Segment | C56: =INDEX(dms_Segment_List,MATCH(dms_TradingName,dms_TradingName_List)) -> Distribution | D56: dms_Segment | E56: =INDEX(dms_Segment_List,MATCH(dms_TradingName,dms_TradingName_List))
B57: Regulatory Year Ending | C57: =IF(dms_MultiYear_Flag=1,LEFT(dms_Specified_FinalYear,2)&RIGHT(dms_Specified_FinalYear,2),INDEX(dms_RYE_Formula_Result,MATCH(dms_Model,dms_Model_List))) -> 2018 | D57: dms_RYE | E57: =IF(dms_MultiYear_Flag=1,LEFT(dms_Specified_FinalYear,2)&RIGHT(dms_Specified_FinalYear,2),INDEX(dms_RYE_Formula_Result,MATCH(dms_Model,dms_Model_List)))
B58: Reporting Period Type | C58: =INDEX(dms_RPT_List,MATCH(dms_TradingName,dms_TradingName_List)) -> Financial | D58: dms_RPT | E58: =INDEX(dms_RPT_List,MATCH(dms_TradingName,dms_TradingName_List))
B59: Model or RIN Type | C59: RFM | D59: dms_Model | E59: Drop down selection
B60: Security Classification | C60: Public | D60: dms_Classification | E60: Always Public
B61: Template - version no. | C61: 5 | D61: dms_TemplateNumber
B62: Dollar $ real month | C62: =INDEX(dms_RPTMonth_List,MATCH(dms_TradingName,dms_TradingName_List)) -> June | D62: dms_RPTMonth | E62: =INDEX(dms_RPTMonth_List,MATCH(dms_TradingName,dms_TradingName_List))
B63: Dollar $ real (the last month before the FRCP_y1) | C63: =CONCATENATE(dms_RPTMonth)&" "&VALUE((LEFT(dms_CRCP_FinalYear_Result,2)&RIGHT(dms_CRCP_FinalYear_Result,2))) -> June 2018 | D63: dms_DollarReal | E63: =IF(SUM(dms_SingleYear_Model)>0,CONCATENATE(dms_RPTMonth)&" "&VALUE((LEFT(CRY,2))&RIGHT(CRY,2)),CONCATENATE(dms_RPTMonth)&" "&VALUE((LEFT(dms_CRCP_FinalYear_Result,2)&RIGHT(dms_CRCP_FinalYear_Result,2))))
B64: Form of control | C64: =INDEX(dms_FormControl_List,MATCH(dms_TradingName,dms_TradingName_List)) -> Revenue cap | D64: dms_FormControl | E64: =INDEX(dms_FormControl_List,MATCH(dms_TradingName,dms_TradingName_List))
B65: RIN response - version no. | C65: 1 | D65: dms_RINversion
B66: Jurisdiction | C66: =INDEX(dms_JurisdictionList,MATCH(dms_TradingName,dms_TradingName_List)) -> SA | D66: dms_Jurisdiction | E66: =INDEX(dms_JurisdictionList,MATCH(dms_TradingName,dms_TradingName_List))
B67: Backcast Multiyear EB, CA or ARR? | C67: 0 | D67: dms_MultiYear_Flag | E67: 1=y, 0-n
C68: 2013 | D68: dms_Specified_FinalYear | E68: The result here is returned to dms_CRCP_FinalYear_Result if dms_MultiYear_Flag is set to 1
B69: Single Year Model T/F | C69: =IF(dms_Model="EB",1,0) -> 0 | D69: dms_EB
C70: =IF(dms_Model="CA",1,0) -> 0 | D70: dms_CA | E70: =dms_SingleYear_Model
C71: =IF(dms_Model="ARR",1,0) -> 0 | D71: dms_ARR
B72: Single Year Final Year Reference | C72: CRY | D72: dms_SingleYear_FinalYear_Ref | E72: This is the reference for EB, CA & ARR RINs
B73: Single Year Final Year Result | C73: =INDIRECT(dms_SingleYear_FinalYear_Ref) ->  | D73: dms_SingleYear_FinalYear_Result | E73: =INDIRECT(dms_SingleYear_FinalYear_Ref) | I73: Formula errors OK
B74: FRCP length in years | C74: =INDEX(dms_FRCPlength_List,MATCH(dms_TradingName,dms_TradingName_List)) -> 5 | D74: dms_FRCPlength_Num | E74: =INDEX(dms_FRCPlength_List,MATCH(dms_TradingName,dms_TradingName_List))
B75: Multi Year Final Year Reference | C75: =INDEX(dms_FinalYear_List,MATCH(dms_FRCPlength_Num,dms_FRCPlength_Num_List)) -> dms_FRCP_y5 | D75: dms_MultiYear_FinalYear_Ref | E75: =INDEX(dms_FinalYear_List,MATCH(dms_FRCPlength_Num,dms_FRCPlength_Num_List))
B76: Multi Year Final Year Result | C76: =IF(dms_MultiYear_Flag=0,INDIRECT(dms_MultiYear_FinalYear_Ref),dms_Specified_FinalYear) -> 2022-23 | D76: dms_MultiYear_FinalYear_Result | E76: =IF(dms_MultiYear_Flag=0,INDIRECT(dms_MultiYear_FinalYear_Ref),dms_Specified_FinalYear) | I76: Formula errors OK
B77: CRCP length in years | C77: =INDEX(dms_CRCPlength_List,MATCH(dms_TradingName,dms_TradingName_List)) -> 5 | D77: dms_CRCPlength_Num | E77: =INDEX(dms_CRCPlength_List,MATCH(dms_TradingName,dms_TradingName_List))
B78: CRCP Final Year Reference | C78: =INDEX(dms_CFinalYear_List,MATCH(dms_CRCPlength_Num,dms_CRCPlength_Num_List)) -> CRCP_y5 | D78: dms_CRCP_FinalYear_Ref | E78: =INDEX(dms_CFinalYear_List,MATCH(dms_CRCPlength_Num,dms_CRCPlength_Num_List))
B79: CRCP First Year Result | C79: =INDEX(dms_CRCP_years,MATCH(dms_CRCPlength_Num,dms_CRCP_index)) -> 2013-14 | D79: dms_CRCP_FirstYear_Result | E79: =INDEX(dms_CRCP_years,MATCH(dms_CRCPlength_Num,dms_CRCP_index))
B80: CRCP Final Year Result | C80: =IF(dms_MultiYear_Flag=0,(IF(SUM(dms_SingleYear_Model)>0,CRY,dms_CRCP_yZ)),dms_Specified_FinalYear) -> 2017-18 | D80: dms_CRCP_FinalYear_Result | E80: =IF(dms_MultiYear_Flag=0,(IF(SUM(dms_SingleYear_Model)>0,CRY,dms_CRCP_yZ)),dms_Specified_FinalYear)
B81: Table 6.6.3 - Public lighting repair - no. business days | C81: =INDEX(dms_663_List,MATCH(dms_TradingName,dms_TradingName_List)) -> 5 | D81: dms_663
B82: Distribution Determination Reference | C82: =INDEX(dms_DeterminationRef_List,MATCH(dms_TradingName,dms_TradingName_List)) -> 2015-20 Distribution Determination
B83: Backcast templates only - unit of measure | C83: $0s | D83: dms_Backcast_UOM | E83: If the cover sheet is for Backcast data ensure to apply dms_Backcast_UOM named range to this field. Otherwise, do not apply this named range.
B84: EB/CA Unit of Measure for Monetary Values | C84: $0s | D84: dms_dollar_nom_UOM | E84: If the cover sheet is attached to an EB files make sure this field is set
B86: discard this record? | C86: NO | D86: dms_DISCARD | E86: If record is to be discarded from DB set this flag to YES
B88: USES NAMED RANGES FLAG | C88: yes | D88: dms_Defined_Names_Used

Sheet Intro
G2: Electricity Distribution Network Service Provider
I3: Roll Forward Model
L4: Version: | M4: 2
L5: Date: | M5: December 2016
B8: Introduction | J8: Electricity Distribution Module
C14: This model is used by the AER to determine the opening regulatory and tax asset bases for a distribution network service provider. It also calculates the weighted average remaining asset lives for regulatory and tax purposes using the asset values as weights.
C15: The roll forward of the asset base is undertaken in nominal terms.
C17: INSTRUCTIONS FOR USE
C18: The RFM handbook is available on the AER website at http://www.aer.gov.au
C20: a. Fill out input cells on the 'DMS Input' sheet. These input cells are highlighted blue.
C21: This provides information on the service provider submitting the RFM and the context for the RFM preparation.
C22: This information also controls the automatic import of the RFM into the AER's Data Management System (DMS).
C24: b. Fill out input cells on the 'RFM Input' sheet. These input cells are highlighted blue.
C25: This provides the data for the RFM calculations.
C26: In general, input expenditure data should be valued in nominal dollar terms of the year indicated, as at the end of that year.
C27: Units and basis for entry are specified where required for each data table.
C29: c. The values in the 'PTRM input summary' sheet
C30: This sheet summarises the key outputs of the RFM. These include the opening regulatory and tax asset values, and remaining asset lives. They become the inputs to the PTRM.
C33: VERSION RECORD
C35: Version | D35: Date | F35: Description
C36: 1 | D36: June 2008 | F36: Initial model
C38: 2 | D38: December 2016 | F38: Added new input sections for end of period adjustments, and removed redundant inputs
F39: Built-in option to select actual or forecast depreciation approach for the RAB roll forward
F40: Adjusted depreciation calculation formula in the RAB roll forward and TAB roll forward period start date
F41: Updated inputs to handle different annual WACCs due to time-varying return on debt
F42: Added calculations of weighted average remaining lives for RAB and TAB to individually track capex over multiple periods
F43: Enabled automatic import into AER DMS

Sheet DMS input
B2: =$C$16&" - DMS Input"&" - DNSP RFM - version "&Intro!$M$4 -> TasNetworks - DMS Input - DNSP RFM - version 2 | G2: Input cells are in blue
B6: This sheet requests information that allows the AER to automatically import the RFM into our data management system (DMS).
B7: This sheet's metadata relates to the business and context for the RFM (rather than the RFM itself).
B8: Some of this data is automatically populated based on data entered on the RFM input sheet. Only change blue input cells.
B9: Some rows are hidden. To facilitate the automatic import, please do not delete or add rows on this sheet.
B10: Throughout the rest of the workbook, defined name ranges are used to identify data that is imported into the DMS.
B12: Entity details
B14: Trading name | C14: Tasmanian Networks Pty Ltd
B15: ACN / ABN | C15: 24167357299
B16: Business short name | C16: TasNetworks
B18: Business address | C18: Address 1 | E18: 1-7 Maria Street
D19: Address 2 | E19: =dms_Addr2 -> 
C20: Suburb | E20: Lenah Valley
D21: State | E21: Tas | F21: Postcode | G21: 7008
B23: Postal address | C23: Address 1 | E23: PO Box 606
D24: Address 2
C25: Suburb | E25: Moonah
D26: State | E26: Tas | F26: Postcode | G26: 7009
B29: Contact name/s | C29: Shaun Leaman | F29: John Sayers
B30: Contact phone/s | C30: (03) 6271 6301 | F30: (03) 6271 6469
B31: Contact email address/s | C31: shaun.leaman@tasnetworks.com.au | F31: john.sayers@tasnetworks.com.au
B33: Regulatory process details
B36: Source | C36: Draft decision
B37: Amended model submission - reason

Sheet RFM input
F2: ='DMS input'!$C$16&" - RFM Input"&" - DNSP RFM - version "&Intro!$M$4 -> TasNetworks - RFM Input - DNSP RFM - version 2 | G2: Input cells are in blue | J2: AER amendments
F5: ="Opening Regulatory Asset Base for "&IF(LEN($V$7)>4,CONCATENATE(LEFT($V$7,4)-1&"-"&IF($V$7>"2009-10",,"0")&RIGHT($V$7,2)-1),$V$7-1)&" and Opening Tax Asset Base for "&$V$7&" ($m Nominal)" -> Opening Regulatory Asset Base for 2016-17 and Opening Tax Asset Base for 2017-18 ($m Nominal)
G6: Asset Class Name | J6: Opening Asset Value | K6: Average Remaining Life (Year) | L6: Standard Life (Year) | M6: Forecast Net Capex | N6: Forecast Regulatory Depreciation | O6: Forecast Customer Contributions | P6: Difference in Final Year Capex | Q6: Return on Difference in Final Year Capex | R6: Other Final Year Adjustments | S6: Opening Tax Asset Value | T6: Average Tax Remaining Life (Year) | U6: Tax Standard Life (Year) | V6: Base Regulatory Year | W6: Length of Regulatory Control Period (Year) | Z6: 2016-17 Forecast Net Capex | AA6: 2017 Shared Asset Adjustment ($June 2017) from RFM | AB6: 2016-17 Forecast Net Capex after Shared Asset Adjustment | AD6: Tax Remaining Life as at 1 July 2017 (as per 2018-19 PTRM) | AE6: Tax Remaining Life as at 1 July 2016
F7: Asset Class 1 | G7: Overhead Subtransmission Lines (Urban) | J7: 13.03347588 | K7: n/a | L7: 50 | M7: =AB7 -> 0.24163424 | N7: 0.2004902548 | O7: 0.02787660188 | P7: -0.6359886329 | Q7: -0.2848220656 | S7: 6.079125222 | T7: n/a | U7: 44.54902923 | V7: 2017-18 | W7: 2 | Z7: 0.24163424 | AB7: =Z7+AA7 -> 0.24163424 | AD7: n/a | AE7: =IF(AD7=0,0,IF(AD7="n/a","n/a",AD7+1)) -> n/a
F8: Asset Class 2 | G8: Underground Subtransmission Lines (Urban) | J8: 10.54214219 | K8: n/a | L8: 60 | M8: =AB8 -> 0 | N8: 0.09255093376 | O8: 0 | P8: -0.3954233314 | Q8: -0.1770869544 | S8: 2.00060237 | T8: n/a | U8: 50 | Z8: 0 | AB8: =Z8+AA8 -> 0 | AD8: n/a | AE8: =IF(AD8=0,0,IF(AD8="n/a","n/a",AD8+1)) -> n/a
F9: Asset Class 3 | G9: Urban Zone Substations | J9: 50.41033036 | K9: n/a | L9: 40 | M9: 0.1692395019 | N9: 0.7244187024 | O9: 0.003197256827 | P9: -4.10712065 | Q9: -1.839338829 | S9: 34.87665991 | T9: n/a | U9: 32.77302044 | Z9: 0.1692395019 | AB9: 0.1692395019 | AD9: n/a | AE9: n/a
F10: Asset Class 4 | G10: Rural Zone Substations | J10: 4.258710785 | K10: n/a | L10: 40 | M10: 0.1549322431 | N10: 0.05377694111 | O10: 0 | P10: -1.187396744 | Q10: -0.5317654685 | S10: 2.432850998 | T10: n/a | U10: 32.77 | Z10: 0.1549322431 | AB10: 0.1549322431 | AD10: n/a | AE10: n/a
F11: Asset Class 5 | G11: SCADA | J11: 22.66979127 | K11: n/a | L11: 10 | M11: 18.84004945 | N11: 1.94657924 | O11: 0.006394513655 | P11: -0.4930436897 | Q11: -0.2208053963 | S11: 43.3048558 | T11: n/a | U11: 32.77302044 | Z11: 18.84004945 | AB11: 18.84004945 | AD11: n/a | AE11: n/a
F12: Asset Class 6 | G12: Distribution Switching Stations (Ground) | J12: 15.06493555 | K12: n/a | L12: 40 | M12: 0.4508322588 | N12: 0.2222085704 | O12: 0.02238079779 | P12: -1.29925463 | Q12: -0.5818600653 | S12: 21.14465178 | T12: n/a | U12: 36.27603974 | Z12: 0.4508322588 | AB12: 0.4508322588 | AD12: n/a | AE12: n/a
F13: Asset Class 7 | G13: Overhead High Voltage Lines Urban | J13: 100.3384754 | K13: n/a | L13: 35 | M13: 7.446192121 | N13: 2.510104213 | O13: 0.3635147028 | P13: -2.113488631 | Q13: -0.9465077932 | S13: 105.2674504 | T13: n/a | U13: 34.89077975 | Z13: 7.446192121 | AB13: 7.446192121 | AD13: n/a | AE13: n/a
F14: Asset Class 8 | G14: Overhead High Voltage Lines Rural | J14: 347.8305591 | K14: n/a | L14: 35 | M14: 23.14881506 | N14: 11.8995635 | O14: 1.680170742 | P14: -7.547582476 | Q14: -3.380120209 | S14: 285.4184638 | T14: n/a | U14: 33.39579155 | Z14: 23.14881506 | AB14: 23.14881506 | AD14: n/a | AE14: n/a
F15: Asset Class 9 | G15: Voltage Regulators on Distribution Feeders | J15: 13.28225341 | K15: n/a | L15: 40 | M15: 0.8131860161 | N15: 0.3472238055 | O15: 0 | P15: -0.5271350779 | Q15: -0.2360729327 | S15: 5.408285243 | T15: n/a | U15: 45.45454545 | Z15: 0.8131860161 | AB15: 0.8131860161 | AD15: n/a | AE15: n/a
F16: Asset Class 10 | G16: Underground High Voltage Lines | J16: 236.8940693 | K16: n/a | L16: 60 | M16: 8.030816938 | N16: 1.264949374 | O16: 2.414223379 | P16: -7.027001019 | Q16: -3.14698226 | S16: 122.1625362 | T16: n/a | U16: 31.36816174 | Z16: 8.030816938 | AB16: 8.030816938 | AD16: n/a | AE16: n/a
F17: Asset Class 11 | G17: Underground High Voltage Lines SWER | J17: 0.5842175756 | K17: n/a | L17: 60 | M17: 0 | N17: 8.619161567e-05 | O17: 0 | P17: 0 | Q17: 0 | S17: 0.1933032385 | T17: n/a | U17: 31.37 | Z17: 0 | AB17: 0 | AD17: n/a | AE17: n/a
F18: Asset Class 12 | G18: Distribution Substations HV (Pole) | J18: 1.6299545 | K18: n/a | L18: 40 | M18: 0.1660974762 | N18: 0.01843386143 | O18: 0.05304383778 | P18: -0.05229124357 | Q18: -0.02341818585 | S18: 1.714365191 | T18: n/a | U18: 37.60772006 | Z18: 0.1660974762 | AB18: 0.1660974762 | AD18: n/a | AE18: n/a
F19: Asset Class 13 | G19: Distribution Substations HV (Ground) | J19: 24.6880909 | K19: n/a | L19: 40 | M19: 3.689214295 | N19: 0.9173809013 | O19: 0.2327374874 | P19: -0.08973086571 | Q19: -0.04018520016 | S19: 19.23226282 | T19: n/a | U19: 33.24966682 | Z19: 3.689214295 | AB19: 3.689214295 | AD19: n/a | AE19: n/a
F20: Asset Class 14 | G20: Distribution Substations LV (Pole) | J20: 153.2134324 | K20: n/a | L20: 40 | M20: 6.622842123 | N20: 4.391389438 | O20: 0.4903354897 | P20: -3.738005071 | Q20: -1.674033576 | S20: 93.17633264 | T20: n/a | U20: 36.60668588 | Z20: 6.622842123 | AB20: 6.622842123 | AD20: n/a | AE20: n/a
F21: Asset Class 15 | G21: Distribution Substations LV (Ground) | J21: 65.04398835 | K21: n/a | L21: 40 | M21: 6.139149526 | N21: 1.636971623 | O21: 1.229685276 | P21: -2.051039353 | Q21: -0.9185404186 | S21: 52.82617783 | T21: n/a | U21: 34.14917279 | Z21: 6.139149526 | AB21: 6.139149526 | AD21: n/a | AE21: n/a
F22: Asset Class 16 | G22: Overhead Low Voltage Lines Underbuilt Urban | J22: 40.69789946 | K22: n/a | L22: 35 | M22: 3.469996109 | N22: 0.9642012875 | O22: 0.01153226437 | P22: -0.2082897705 | Q22: -0.09328079086 | S22: 50.38216614 | T22: n/a | U22: 37.40751673 | Z22: 3.469996109 | AB22: 3.469996109 | AD22: n/a | AE22: n/a
F23: Asset Class 17 | G23: Overhead Low Voltage Lines Underbuilt Rural | J23: 45.18606087 | K23: n/a | L23: 35 | M23: 2.595235454 | N23: 1.976169327 | O23: 0.222537429 | P23: -1.340609793 | Q23: -0.6003806211 | S23: 28.20563707 | T23: n/a | U23: 38.68883157 | Z23: 2.595235454 | AB23: 2.595235454 | AD23: n/a | AE23: n/a
F24: Asset Class 18 | G24: Overhead Low Voltage Lines Urban | J24: 64.44143312 | K24: n/a | L24: 35 | M24: 4.024575985 | N24: 2.793129192 | O24: 0.2647513465 | P24: 0.2264437264 | Q24: 0.1014108846 | S24: 57.6537674 | T24: n/a | U24: 35.27529741 | Z24: 4.024575985 | AB24: 4.024575985 | AD24: n/a | AE24: n/a
F25: Asset Class 19 | G25: Overhead Low Voltage Lines Rural | J25: 80.14908942 | K25: n/a | L25: 35 | M25: 6.377615947 | N25: 1.689496837 | O25: 0.6256704757 | P25: -1.971067607 | Q25: -0.8827257567 | S25: 65.59164255 | T25: n/a | U25: 36.7118578 | Z25: 6.377615947 | AB25: 6.377615947 | AD25: n/a | AE25: n/a
F26: Asset Class 20 | G26: Underground Low Voltage Lines | J26: 102.9095858 | K26: n/a | L26: 60 | M26: 4.648183395 | N26: 0.7934785412 | O26: 1.209480598 | P26: -1.692027319 | Q26: -0.757759952 | S26: 46.13863437 | T26: n/a | U26: 42.48439204 | Z26: 4.648183395 | AB26: 4.648183395 | AD26: n/a | AE26: n/a
F27: Asset Class 21 | G27: Underground Low Voltage Common Trench | J27: 45.41198047 | K27: n/a | L27: 60 | M27: 1.030413071 | N27: 0.1039102271 | O27: 1.209480598 | P27: -1.39041369 | Q27: -0.6226848701 | S27: 25.20042647 | T27: n/a | U27: 43.06548311 | Z27: 1.030413071 | AB27: 1.030413071 | AD27: n/a | AE27: n/a
F28: Asset Class 22 | G28: HVST Service Connections | J28: -1.278802483e-05 | K28: n/a | L28: 40 | M28: 0 | N28: 2.718341692e-07 | O28: 0 | P28: 0 | Q28: 0 | S28: 0 | T28: n/a | U28: 36.4 | Z28: 0 | AB28: 0 | AD28: n/a | AE28: n/a
F29: Asset Class 23 | G29: HV Service Connections | J29: 2.4984824 | K29: n/a | L29: 40 | M29: 0.1432310628 | N29: 0.04715639895 | O29: 0 | P29: -0.03783239504 | Q29: -0.01694291429 | S29: 1.310228723 | T29: n/a | U29: 36.39646802 | Z29: 0.1432310628 | AB29: 0.1432310628 | AD29: n/a | AE29: n/a
F30: Asset Class 24 | G30: HV Metering CA Service Connections | J30: 0.6181156197 | K30: n/a | L30: 40 | M30: 0.02462526713 | N30: 0.07576854976 | O30: 0 | P30: 0.5166708204 | Q30: 0.2313866045 | S30: 0.5635694634 | T30: n/a | U30: 36.4 | Z30: 0.02462526713 | AB30: 0.02462526713 | AD30: n/a | AE30: n/a
F31: Asset Class 25 | G31: HV/LV Service Connections | J31: 4.254946918 | K31: n/a | L31: 40 | M31: 0.259066343 | N31: 0.08703785722 | O31: 0 | P31: -0.06842859388 | Q31: -0.03064516006 | S31: 2.342281144 | T31: n/a | U31: 36.41241774 | Z31: 0.259066343 | AB31: 0.259066343 | AD31: n/a | AE31: n/a
F32: Asset Class 26 | G32: Business LV Service Connections | J32: 8.36419523 | K32: n/a | L32: 35 | M32: 0.6887855108 | N32: 0.6065807411 | O32: 0 | P32: -0.1844833349 | Q32: -0.08261928246 | S32: 6.615939232 | T32: n/a | U32: 36.34318994 | Z32: 0.6887855108 | AB32: 0.6887855108 | AD32: n/a | AE32: n/a
F33: Asset Class 27 | G33: Business LV Metering CA Service Connections | J33: 4.704254338 | K33: n/a | L33: 25 | M33: 0.7156300342 | N33: 1.386470084 | O33: 0 | P33: -0.3877486384 | Q33: -0.1736499088 | S33: 4.721784006 | T33: n/a | U33: 36.4 | Z33: 0.7156300342 | AB33: 0.7156300342 | AD33: n/a | AE33: n/a
F34: Asset Class 28 | G34: Domestic LV Service Connections | J34: 63.72279167 | K34: n/a | L34: 35 | M34: 5.472924037 | N34: 1.87716381 | O34: 0 | P34: -1.453245098 | Q34: -0.6508233782 | S34: 57.39336435 | T34: n/a | U34: 36.41241774 | Z34: 5.472924037 | AB34: 5.472924037 | AD34: n/a | AE34: n/a
F35: Asset Class 29 | G35: Domestic LV Metering CA Service Connections | J35: 1.377785373 | K35: n/a | L35: 20 | M35: 0.5362592264 | N35: 0.05467411701 | O35: 0 | P35: 0.3922338775 | Q35: 0.1756585847 | S35: 4.834138412 | T35: n/a | U35: 36.4 | Z35: 0.5362592264 | AB35: 0.5362592264 | AD35: n/a | AE35: n/a
F36: Asset Class 30 | G36: Wholesale Metering | J36: 0 | K36: n/a | L36: n/a | M36: 0 | N36: 0 | O36: 0 | P36: 0 | Q36: 0 | S36: 0 | T36: n/a | U36: n/a | Z36: 0 | AB36: 0 | AD36: n/a | AE36: n/a
F37: Asset Class 31 | G37: HV Metering | J37: 0 | K37: n/a | L37: n/a | M37: 0 | N37: 0 | O37: 0 | P37: 0 | Q37: 0 | S37: 0 | T37: n/a | U37: n/a | Z37: 0 | AB37: 0 | AD37: n/a | AE37: n/a
F38: Asset Class 32 | G38: HV/LV Metering | J38: 0 | K38: n/a | L38: n/a | M38: 0 | N38: 0 | O38: 0 | P38: 0 | Q38: 0 | S38: 0 | T38: n/a | U38: n/a | Z38: 0 | AB38: 0 | AD38: n/a | AE38: n/a
F39: Asset Class 33 | G39: Business LV Metering | J39: 0 | K39: n/a | L39: n/a | M39: 0 | N39: 0 | O39: 0 | P39: 0 | Q39: 0 | S39: 0 | T39: n/a | U39: n/a | Z39: 0 | AB39: 0 | AD39: n/a | AE39: n/a
F40: Asset Class 34 | G40: Domestic LV Metering | J40: 0 | K40: n/a | L40: n/a | M40: 0 | N40: 0 | O40: 0 | P40: 0 | Q40: 0 | S40: 0 | T40: n/a | U40: n/a | Z40: 0 | AB40: 0 | AD40: n/a | AE40: n/a
F41: Asset Class 35 | G41: Off Peak Metering | J41: 0 | K41: n/a | L41: n/a | M41: 0 | N41: 0 | O41: 0 | P41: 0 | Q41: 0 | S41: 0 | T41: n/a | U41: n/a | Z41: 0 | AB41: 0 | AD41: n/a | AE41: n/a
F42: Asset Class 36 | G42: Emergency Network Spares | J42: 2.49147406 | K42: n/a | L42: n/a | M42: 0 | N42: -0.05296109369 | O42: 0 | P42: 0 | Q42: 0 | S42: 0 | T42: n/a | U42: n/a | Z42: 0 | AB42: 0 | AD42: n/a | AE42: n/a
F43: Asset Class 37 | G43: Motor Vehicles | J43: 7.363629622 | K43: n/a | L43: 6 | M43: 1.71417431 | N43: 1.680690126 | O43: 0 | P43: -7.119243184 | Q43: -3.188292124 | S43: 7.7126917 | T43: n/a | U43: 9.233642409 | Z43: 1.71417431 | AB43: 1.71417431 | AD43: n/a | AE43: n/a
F44: Asset Class 38 | G44: Minor Assets | J44: 23.66105507 | K44: n/a | L44: 5 | M44: 16.30981175 | N44: 6.501434133 | O44: 0 | P44: -5.791215069 | Q44: -2.593546099 | S44: 32.75812512 | T44: n/a | U44: 5.218420866 | Z44: 16.30981175 | AB44: 16.30981175 | AD44: n/a | AE44: n/a
F45: Asset Class 39 | G45: Non-System Property | J45: 12.31686254 | K45: n/a | L45: 40 | M45: 1.497117578 | N45: 0.8795703296 | O45: 0 | P45: 10.55923039 | Q45: 4.72886095 | S45: 25.76381361 | T45: n/a | U45: 34.54468091 | Z45: 1.497117578 | AB45: 1.497117578 | AD45: n/a | AE45: n/a
F46: Asset Class 40 | G46: Spare Parts | J46: 11.76715628 | K46: n/a | L46: n/a | M46: 0 | N46: -0.2501336363 | O46: 0 | P46: 0.8570780533 | Q46: 0.3838350701 | S46: 0.815515677 | T46: n/a | U46: n/a | Z46: 0 | AB46: 0 | AD46: n/a | AE46: n/a
F47: Asset Class 41 | G47: NEM Assets | J47: 12.87687339 | K47: n/a | L47: 5 | M47: 0 | N47: 4.892653245 | O47: 0 | P47: 2.392005261 | Q47: 1.071239082 | S47: 0.1112174612 | T47: n/a | U47: 3.024058996 | Z47: 0 | AB47: 0 | AD47: n/a | AE47: n/a
F48: Asset Class 42 | G48: Business Management Systems | J48: 0 | K48: n/a | L48: 10 | M48: 0 | N48: 0 | O48: 0 | P48: 0 | Q48: 0 | S48: 0 | T48: n/a | U48: 5 | Z48: 0 | AB48: 0 | AD48: n/a | AE48: n/a
F49: Asset Class 43 | G49: Land | J49: 1.316238928 | K49: n/a | L49: n/a | M49: 0 | N49: -0.02797920087 | O49: 0 | P49: 0 | Q49: 0 | S49: 1.214822186 | T49: n/a | U49: n/a | Z49: 0 | AB49: 0 | AD49: n/a | AE49: n/a
F50: Asset Class 44 | G50: Easements | J50: 1.362787641 | K50: n/a | L50: n/a | M50: 0 | N50: -0.02896868369 | O50: 0 | P50: 0 | Q50: 0 | S50: 1.775501405 | T50: n/a | U50: n/a | Z50: 0 | AB50: 0 | AD50: n/a | AE50: n/a
F51: Asset Class 45
F52: Asset Class 46
F53: Asset Class 47
F54: Asset Class 48
F55: Asset Class 49
F56: Asset Class 50 | G56: Equity raising costs | J56: 0 | K56: n/a | L56: 41.08664015 | M56: 0 | N56: 0 | O56: 0 | P56: 0 | Q56: 0 | S56: 0 | T56: n/a | U56: 5 | Z56: 0 | AB56: =Z56+AA56 -> 0 | AD56: n/a | AE56: n/a
F57: Total | J57: =SUM(J7:J56) -> 1596.977112 | M57: =SUM(M7:M56) -> 125.4206463 | N57: 52.27567002 | O57: =SUM(O7:O56) -> 10.0670128 | P57: =SUM(P7:P56) -> -37.96544378 | Q57: =SUM(Q7:Q56) -> -17.00249904 | R57: =SUM(R7:R56) -> 0 | S57: =SUM(S7:S56) -> 1216.34319 | Z57: =SUM(Z7:Z56) -> 125.4206463 | AA57: =SUM(AA7:AA56) -> 0 | AB57: =SUM(AB7:AB56) -> 125.4206463
F59: Actual Capital Expenditure – As Incurred ($m Nominal)
F60: Year | G60: =IF(LEN(H60)>4,CONCATENATE(LEFT(H60,4)-1&"-"&IF(H60>"2009-10",,"0")&RIGHT(H60,2)-1),H60-1) -> 2016-17 | H60: =V7 -> 2017-18 | I60: =IF(LEN(H60)>4,CONCATENATE(LEFT(H60,4)+1&"-"&IF(H60>"2007-08",,"0")&RIGHT(H60,2)+1),H60+1) -> 2018-19 | J60: =IF(LEN(I60)>4,CONCATENATE(LEFT(I60,4)+1&"-"&IF(I60>"2007-08",,"0")&RIGHT(I60,2)+1),I60+1) -> 2019-20 | K60: =IF(LEN(J60)>4,CONCATENATE(LEFT(J60,4)+1&"-"&IF(J60>"2007-08",,"0")&RIGHT(J60,2)+1),J60+1) -> 2020-21 | L60: =IF(LEN(K60)>4,CONCATENATE(LEFT(K60,4)+1&"-"&IF(K60>"2007-08",,"0")&RIGHT(K60,2)+1),K60+1) -> 2021-22 | M60: =IF(LEN(L60)>4,CONCATENATE(LEFT(L60,4)+1&"-"&IF(L60>"2007-08",,"0")&RIGHT(L60,2)+1),L60+1) -> 2022-23 | N60: =IF(LEN(M60)>4,CONCATENATE(LEFT(M60,4)+1&"-"&IF(M60>"2007-08",,"0")&RIGHT(M60,2)+1),M60+1) -> 2023-24 | O60: =IF(LEN(N60)>4,CONCATENATE(LEFT(N60,4)+1&"-"&IF(N60>"2007-08",,"0")&RIGHT(N60,2)+1),N60+1) -> 2024-25 | P60: =IF(LEN(O60)>4,CONCATENATE(LEFT(O60,4)+1&"-"&IF(O60>"2007-08",,"0")&RIGHT(O60,2)+1),O60+1) -> 2025-26 | Q60: =IF(LEN(P60)>4,CONCATENATE(LEFT(P60,4)+1&"-"&IF(P60>"2007-08",,"0")&RIGHT(P60,2)+1),P60+1) -> 2026-27
F61: =Asset1 -> Overhead Subtransmission Lines (Urban) | G61: ='Adjustment for provisions'!L9 -> 0.2353217333 | H61: 0.2082108665 | I61: 0.2189053587
F62: =Asset2 -> Underground Subtransmission Lines (Urban) | G62: ='Adjustment for provisions'!L10 -> 0.0076727205 | H62: 0 | I62: 0
F63: =Asset3 -> Urban Zone Substations | G63: ='Adjustment for provisions'!L11 -> 1.471329508 | H63: 0.834107509 | I63: 4.457947653
F64: =Asset4 -> Rural Zone Substations | G64: ='Adjustment for provisions'!L12 -> 0.409860404 | H64: 1.150227464 | I64: 2.171897523
F65: =Asset5 -> SCADA | G65: ='Adjustment for provisions'!L13 -> 14.73192247 | H65: 3.413300853 | I65: 2.156530278
F66: =Asset6 -> Distribution Switching Stations (Ground) | G66: ='Adjustment for provisions'!L14 -> 0.2673950115 | H66: 0.2930121697 | I66: 0.2470775564
F67: =Asset7 -> Overhead High Voltage Lines Urban | G67: ='Adjustment for provisions'!L15 -> 10.35369897 | H67: 6.560757105 | I67: 6.789226622
F68: =Asset8 -> Overhead High Voltage Lines Rural | G68: ='Adjustment for provisions'!L16 -> 31.83184459 | H68: 21.61224468 | I68: 21.52157601
F69: =Asset9 -> Voltage Regulators on Distribution Feeders | G69: ='Adjustment for provisions'!L17 -> 0.6811826682 | H69: 1.608324444 | I69: 0.8240887727
F70: =Asset10 -> Underground High Voltage Lines | G70: ='Adjustment for provisions'!L18 -> 6.245550592 | H70: 9.199595254 | I70: 8.753419332
F71: =Asset11 -> Underground High Voltage Lines SWER | G71: ='Adjustment for provisions'!L19 -> 0 | H71: 0 | I71: 0
F72: =Asset12 -> Distribution Substations HV (Pole) | G72: ='Adjustment for provisions'!L20 -> 0.0894306986 | H72: 0.2222908405 | I72: 0.2300419696
F73: =Asset13 -> Distribution Substations HV (Ground) | G73: ='Adjustment for provisions'!L21 -> 4.775982949 | H73: 3.827205681 | I73: 3.782199285
F74: =Asset14 -> Distribution Substations LV (Pole) | G74: ='Adjustment for provisions'!L22 -> 7.289208969 | H74: 7.314324896 | I74: 7.560378107
F75: =Asset15 -> Distribution Substations LV (Ground) | G75: ='Adjustment for provisions'!L23 -> 6.15629734 | H75: 7.429447878 | I75: 7.433223944
F76: =Asset16 -> Overhead Low Voltage Lines Underbuilt Urban | G76: ='Adjustment for provisions'!L24 -> 5.085733364 | H76: 3.576449969 | I76: 3.692174727
F77: =Asset17 -> Overhead Low Voltage Lines Underbuilt Rural | G77: ='Adjustment for provisions'!L25 -> 4.840973945 | H77: 3.304684673 | I77: 3.376911374
F78: =Asset18 -> Overhead Low Voltage Lines Urban | G78: ='Adjustment for provisions'!L26 -> 6.157772617 | H78: 4.314011907 | I78: 4.460910515
F79: =Asset19 -> Overhead Low Voltage Lines Rural | G79: ='Adjustment for provisions'!L27 -> 10.20440051 | H79: 7.029079222 | I79: 7.219379838
F80: =Asset20 -> Underground Low Voltage Lines | G80: ='Adjustment for provisions'!L28 -> 4.479286801 | H80: 5.871242612 | I80: 5.972882782
F81: =Asset21 -> Underground Low Voltage Common Trench | G81: ='Adjustment for provisions'!L29 -> 1.623609863 | H81: 2.27404626 | I81: 2.300704252
F82: =Asset22 -> HVST Service Connections | G82: ='Adjustment for provisions'!L30 -> 0 | H82: 0 | I82: 0
F83: =Asset23 -> HV Service Connections | G83: ='Adjustment for provisions'!L31 -> 0.1245674287 | H83: 0.08094937191 | I83: 0.07969500425
F84: =Asset24 -> HV Metering CA Service Connections | G84: ='Adjustment for provisions'!L32 -> 0.0049156634 | H84: 0.02449123343 | I84: 0.02496258749
F85: =Asset25 -> HV/LV Service Connections | G85: ='Adjustment for provisions'!L33 -> 0.2253088651 | H85: 0.1464155703 | I85: 0.1441467577
F86: =Asset26 -> Business LV Service Connections | G86: ='Adjustment for provisions'!L34 -> 0.5900767179 | H86: 0.393694062 | I86: 0.387942709
F87: =Asset27 -> Business LV Metering CA Service Connections | G87: ='Adjustment for provisions'!L35 -> 0.2112501636 | H87: 0.7116616082 | I87: 0.7258357049
F88: =Asset28 -> Domestic LV Service Connections | G88: ='Adjustment for provisions'!L36 -> 4.732907008 | H88: 3.106359388 | I88: 3.059271799
F89: =Asset29 -> Domestic LV Metering CA Service Connections | G89: ='Adjustment for provisions'!L37 -> 0.4013618921 | H89: 0.5330249956 | I89: 0.545338543
F90: =Asset30 -> Wholesale Metering | G90: ='Adjustment for provisions'!L38 -> 0 | H90: 0 | I90: 0
F91: =Asset31 -> HV Metering | G91: ='Adjustment for provisions'!L39 -> 0 | H91: 0 | I91: 0
F92: =Asset32 -> HV/LV Metering | G92: ='Adjustment for provisions'!L40 -> 0 | H92: 0 | I92: 0
F93: =Asset33 -> Business LV Metering | G93: ='Adjustment for provisions'!L41 -> 0 | H93: 0 | I93: 0
F94: =Asset34 -> Domestic LV Metering | G94: ='Adjustment for provisions'!L42 -> 0 | H94: 0 | I94: 0
F95: =Asset35 -> Off Peak Metering | G95: ='Adjustment for provisions'!L43 -> 0 | H95: 0 | I95: 0
F96: =Asset36 -> Emergency Network Spares | G96: ='Adjustment for provisions'!L44 -> 0 | H96: 0 | I96: 0
F97: =Asset37 -> Motor Vehicles | G97: ='Adjustment for provisions'!L45 -> 1.808728868 | H97: 2.517579388 | I97: 2.584870205
F98: =Asset38 -> Minor Assets | G98: ='Adjustment for provisions'!L46 -> 14.28294192 | H98: 15.69834078 | I98: 15.24947826
F99: =Asset39 -> Non-System Property | G99: ='Adjustment for provisions'!L47 -> 0 | H99: 1.343128603 | I99: 1.282095622
F100: =Asset40 -> Spare Parts | G100: ='Adjustment for provisions'!L48 -> 0 | H100: 0 | I100: 0
F101: =Asset41 -> NEM Assets | G101: ='Adjustment for provisions'!L49 -> 0 | H101: 0 | I101: 0
F102: =Asset42 -> Business Management Systems | G102: ='Adjustment for provisions'!L50 -> 0 | H102: 11.62124606 | I102: 0
F103: =Asset43 -> Land | G103: ='Adjustment for provisions'!L51 -> 0 | H103: 0 | I103: 0.919073023
F104: =Asset44 -> Easements | G104: ='Adjustment for provisions'!L52 -> 0.9300047709 | H104: 0 | I104: 0
F105: =Asset45 -> 0
F106: =Asset46 -> 0
F107: =Asset47 -> 0
F108: =Asset48 -> 0
F109: =Asset49 -> 0
F110: =Asset50 -> Equity raising costs | G110: ='Adjustment for provisions'!L53 -> 0 | H110: 0.2062028001 | I110: 0
F111: Total | G111: =SUM(G61:G110) -> 140.250539 | H111: 126.4256581 | I111: 118.1721861 | J111: 0 | K111: 0 | L111: 0 | M111: 0 | N111: 0 | O111: 0 | P111: 0 | Q111: 0
R112: =SUM(G111:Q111) -> 384.8483833
F113: Actual Asset Disposal – As Incurred ($m Nominal)
F114: Year | G114: =G$60 -> 2016-17 | H114: =H$60 -> 2017-18 | I114: 2018-19 | J114: 2019-20 | K114: 2020-21 | L114: 2021-22 | M114: 2022-23 | N114: 2023-24 | O114: 2024-25 | P114: 2025-26 | Q114: 2026-27
F115: =Asset1 -> Overhead Subtransmission Lines (Urban)
F116: =Asset2 -> Underground Subtransmission Lines (Urban)
F117: =Asset3 -> Urban Zone Substations
F118: =Asset4 -> Rural Zone Substations
F119: =Asset5 -> SCADA
F120: =Asset6 -> Distribution Switching Stations (Ground)
F121: =Asset7 -> Overhead High Voltage Lines Urban
F122: =Asset8 -> Overhead High Voltage Lines Rural
F123: =Asset9 -> Voltage Regulators on Distribution Feeders
F124: =Asset10 -> Underground High Voltage Lines
F125: =Asset11 -> Underground High Voltage Lines SWER
F126: =Asset12 -> Distribution Substations HV (Pole)
F127: =Asset13 -> Distribution Substations HV (Ground)
F128: =Asset14 -> Distribution Substations LV (Pole)
F129: =Asset15 -> Distribution Substations LV (Ground)
F130: =Asset16 -> Overhead Low Voltage Lines Underbuilt Urban
F131: =Asset17 -> Overhead Low Voltage Lines Underbuilt Rural
F132: =Asset18 -> Overhead Low Voltage Lines Urban
F133: =Asset19 -> Overhead Low Voltage Lines Rural
F134: =Asset20 -> Underground Low Voltage Lines
F135: =Asset21 -> Underground Low Voltage Common Trench
F136: =Asset22 -> HVST Service Connections
F137: =Asset23 -> HV Service Connections
F138: =Asset24 -> HV Metering CA Service Connections
F139: =Asset25 -> HV/LV Service Connections
F140: =Asset26 -> Business LV Service Connections
F141: =Asset27 -> Business LV Metering CA Service Connections
F142: =Asset28 -> Domestic LV Service Connections
F143: =Asset29 -> Domestic LV Metering CA Service Connections
F144: =Asset30 -> Wholesale Metering
F145: =Asset31 -> HV Metering
F146: =Asset32 -> HV/LV Metering
F147: =Asset33 -> Business LV Metering
F148: =Asset34 -> Domestic LV Metering
F149: =Asset35 -> Off Peak Metering
F150: =Asset36 -> Emergency Network Spares
F151: =Asset37 -> Motor Vehicles | G151: 0.3669361928 | H151: 0.7734549824 | I151: 0.7927913569
F152: =Asset38 -> Minor Assets
F153: =Asset39 -> Non-System Property
F154: =Asset40 -> Spare Parts
F155: =Asset41 -> NEM Assets
F156: =Asset42 -> Business Management Systems
F157: =Asset43 -> Land
F158: =Asset44 -> Easements
F159: =Asset45 -> 0
F160: =Asset46 -> 0
F161: =Asset47 -> 0
F162: =Asset48 -> 0
F163: =Asset49 -> 0
F164: =Asset50 -> Equity raising costs
F165: Total | G165: =SUM(G115:G164) -> 0.3669361928 | H165: 0.7734549824 | I165: 0.7927913569 | J165: 0 | K165: 0 | L165: 0 | M165: 0 | N165: 0 | O165: 0 | P165: 0 | Q165: 0
R166: =SUM(G165:Q165) -> 1.933182532
F167: Actual Customer Contributions – As Incurred ($m Nominal)
F168: Year | G168: =G$60 -> 2016-17 | H168: =H$60 -> 2017-18 | I168: 2018-19 | J168: 2019-20 | K168: 2020-21 | L168: 2021-22 | M168: 2022-23 | N168: 2023-24 | O168: 2024-25 | P168: 2025-26 | Q168: 2026-27
F169: =Asset1 -> Overhead Subtransmission Lines (Urban) | G169: 0 | H169: 0.03169524585 | I169: 0.03310333586
F170: =Asset2 -> Underground Subtransmission Lines (Urban) | G170: 0 | H170: 0 | I170: 0
F171: =Asset3 -> Urban Zone Substations | G171: 0 | H171: 0.003635229346 | I171: 0.003762149222
F172: =Asset4 -> Rural Zone Substations | G172: 0 | H172: 0 | I172: 0
F173: =Asset5 -> SCADA | G173: 0 | H173: 0.007270458691 | I173: 0.007524298443
F174: =Asset6 -> Distribution Switching Stations (Ground) | G174: 0 | H174: 0.02544660542 | I174: 0.02633504455
F175: =Asset7 -> Overhead High Voltage Lines Urban | G175: 0.1798519849 | H175: 0.4133103428 | I175: 0.4265984808
F176: =Asset8 -> Overhead High Voltage Lines Rural | G176: 1.369234655 | H176: 1.910326983 | I176: 1.944119478
F177: =Asset9 -> Voltage Regulators on Distribution Feeders | G177: 0 | H177: 0 | I177: 0
F178: =Asset10 -> Underground High Voltage Lines | G178: 0.8360871742 | H178: 2.744932968 | I178: 2.795687824
F179: =Asset11 -> Underground High Voltage Lines SWER | G179: 0 | H179: 0 | I179: 0
F180: =Asset12 -> Distribution Substations HV (Pole) | G180: 0 | H180: 0.06030998638 | I180: 0.06241564059
F181: =Asset13 -> Distribution Substations HV (Ground) | G181: 0.1715245088 | H181: 0.2646187622 | I181: 0.2722401336
F182: =Asset14 -> Distribution Substations LV (Pole) | G182: 0.4818025776 | H182: 0.5575035281 | I182: 0.5689643904
F183: =Asset15 -> Distribution Substations LV (Ground) | G183: 4.784601204 | H183: 1.398132288 | I183: 1.409753529
F184: =Asset16 -> Overhead Low Voltage Lines Underbuilt Urban | G184: 0.003330990468 | H184: 0.01311199822 | I184: 0.01375993669
F185: =Asset17 -> Overhead Low Voltage Lines Underbuilt Rural | G185: 0.1859243203 | H185: 0.2530214606 | I185: 0.2544265714
F186: =Asset18 -> Overhead Low Voltage Lines Urban | G186: 0.1717517788 | H186: 0.3010180026 | I186: 0.3117499759
F187: =Asset19 -> Overhead Low Voltage Lines Rural | G187: 0.4526140554 | H187: 0.7113772201 | I187: 0.7251807698
F188: =Asset20 -> Underground Low Voltage Lines | G188: 0.2550468403 | H188: 1.375159895 | I188: 1.376252001
F189: =Asset21 -> Underground Low Voltage Common Trench | G189: 0.2550468403 | H189: 1.375159895 | I189: 1.376252001
F190: =Asset22 -> HVST Service Connections | G190: 0 | H190: 0 | I190: 0
F191: =Asset23 -> HV Service Connections | G191: 0.03720975395 | H191: 0 | I191: 0
F192: =Asset24 -> HV Metering CA Service Connections | G192: 0 | H192: 0 | I192: 0
F193: =Asset25 -> HV/LV Service Connections | G193: 0.06730240416 | H193: 0 | I193: 0
F194: =Asset26 -> Business LV Service Connections | G194: 0.1762628459 | H194: 0 | I194: 0
F195: =Asset27 -> Business LV Metering CA Service Connections | G195: 0 | H195: 0 | I195: 0
F196: =Asset28 -> Domestic LV Service Connections | G196: 1.41377491 | H196: 0 | I196: 0
F197: =Asset29 -> Domestic LV Metering CA Service Connections | G197: 0 | H197: 0 | I197: 0
F198: =Asset30 -> Wholesale Metering | G198: 0 | H198: 0 | I198: 0
F199: =Asset31 -> HV Metering | G199: 0 | H199: 0 | I199: 0
F200: =Asset32 -> HV/LV Metering | G200: 0 | H200: 0 | I200: 0
F201: =Asset33 -> Business LV Metering | G201: 0 | H201: 0 | I201: 0
F202: =Asset34 -> Domestic LV Metering | G202: 0 | H202: 0 | I202: 0
F203: =Asset35 -> Off Peak Metering | G203: 0 | H203: 0 | I203: 0
F204: =Asset36 -> Emergency Network Spares | G204: 0 | H204: 0 | I204: 0
... 193 more rows

Sheet Adjustment for previous period
B2: ='DMS input'!$C$16&" - Adjustment For Previous Period"&" - DNSP RFM - version "&Intro!$M$4 -> TasNetworks - Adjustment For Previous Period - DNSP RFM - version 2
B4: Year | G4: ='RFM input'!G60 -> 2016-17 | H4: ='RFM input'!H60 -> 2017-18 | I4: ='RFM input'!I60 -> 2018-19 | J4: ='RFM input'!J60 -> 2019-20 | K4: ='RFM input'!K60 -> 2020-21 | L4: ='RFM input'!L60 -> 2021-22 | M4: ='RFM input'!M60 -> 2022-23 | N4: ='RFM input'!N60 -> 2023-24 | O4: ='RFM input'!O60 -> 2024-25 | P4: ='RFM input'!P60 -> 2025-26 | Q4: ='RFM input'!Q60 -> 2026-27
B6: Nominal Vanilla WACC (fixed real time varying) | H6: =vanilla1 -> 0.05458084161 | I6: =vanilla2 -> 0.05985118164 | J6: =vanilla3 -> -0.0239130555 | K6: =vanilla4 -> -0.0239130555 | L6: =vanilla5 -> -0.0239130555 | M6: =vanilla6 -> -0.0239130555 | N6: =vanilla7 -> -0.0239130555 | O6: =vanilla8 -> -0.0239130555 | P6: =vanilla9 -> -0.0239130555 | Q6: =vanilla10 -> -0.0239130555
B8: Nominal Adjustments for Difference Between Forecast and Actual Net Capex
B10: Nominal Forecast Net Capex (previous regulatory control period) | G10: =SUM(G11:G60) -> 125.4206463
C11: =Asset1 -> Overhead Subtransmission Lines (Urban) | G11: ='RFM input'!M7 -> 0.24163424
C12: =Asset2 -> Underground Subtransmission Lines (Urban) | G12: ='RFM input'!M8 -> 0
C13: =Asset3 -> Urban Zone Substations | G13: ='RFM input'!M9 -> 0.1692395019
C14: =Asset4 -> Rural Zone Substations | G14: ='RFM input'!M10 -> 0.1549322431
C15: =Asset5 -> SCADA | G15: ='RFM input'!M11 -> 18.84004945
C16: =Asset6 -> Distribution Switching Stations (Ground) | G16: ='RFM input'!M12 -> 0.4508322588
C17: =Asset7 -> Overhead High Voltage Lines Urban | G17: ='RFM input'!M13 -> 7.446192121
C18: =Asset8 -> Overhead High Voltage Lines Rural | G18: ='RFM input'!M14 -> 23.14881506
C19: =Asset9 -> Voltage Regulators on Distribution Feeders | G19: ='RFM input'!M15 -> 0.8131860161
C20: =Asset10 -> Underground High Voltage Lines | G20: ='RFM input'!M16 -> 8.030816938
C21: =Asset11 -> Underground High Voltage Lines SWER | G21: ='RFM input'!M17 -> 0
C22: =Asset12 -> Distribution Substations HV (Pole) | G22: ='RFM input'!M18 -> 0.1660974762
C23: =Asset13 -> Distribution Substations HV (Ground) | G23: ='RFM input'!M19 -> 3.689214295
C24: =Asset14 -> Distribution Substations LV (Pole) | G24: ='RFM input'!M20 -> 6.622842123
C25: =Asset15 -> Distribution Substations LV (Ground) | G25: ='RFM input'!M21 -> 6.139149526
C26: =Asset16 -> Overhead Low Voltage Lines Underbuilt Urban | G26: ='RFM input'!M22 -> 3.469996109
C27: =Asset17 -> Overhead Low Voltage Lines Underbuilt Rural | G27: ='RFM input'!M23 -> 2.595235454
C28: =Asset18 -> Overhead Low Voltage Lines Urban | G28: ='RFM input'!M24 -> 4.024575985
C29: =Asset19 -> Overhead Low Voltage Lines Rural | G29: ='RFM input'!M25 -> 6.377615947
C30: =Asset20 -> Underground Low Voltage Lines | G30: ='RFM input'!M26 -> 4.648183395
C31: =Asset21 -> Underground Low Voltage Common Trench | G31: ='RFM input'!M27 -> 1.030413071
C32: =Asset22 -> HVST Service Connections | G32: ='RFM input'!M28 -> 0
C33: =Asset23 -> HV Service Connections | G33: ='RFM input'!M29 -> 0.1432310628
C34: =Asset24 -> HV Metering CA Service Connections | G34: ='RFM input'!M30 -> 0.02462526713
C35: =Asset25 -> HV/LV Service Connections | G35: ='RFM input'!M31 -> 0.259066343
C36: =Asset26 -> Business LV Service Connections | G36: ='RFM input'!M32 -> 0.6887855108
C37: =Asset27 -> Business LV Metering CA Service Connections | G37: ='RFM input'!M33 -> 0.7156300342
C38: =Asset28 -> Domestic LV Service Connections | G38: ='RFM input'!M34 -> 5.472924037
C39: =Asset29 -> Domestic LV Metering CA Service Connections | G39: ='RFM input'!M35 -> 0.5362592264
C40: =Asset30 -> Wholesale Metering | G40: ='RFM input'!M36 -> 0
C41: =Asset31 -> HV Metering | G41: ='RFM input'!M37 -> 0
C42: =Asset32 -> HV/LV Metering | G42: ='RFM input'!M38 -> 0
C43: =Asset33 -> Business LV Metering | G43: ='RFM input'!M39 -> 0
C44: =Asset34 -> Domestic LV Metering | G44: ='RFM input'!M40 -> 0
C45: =Asset35 -> Off Peak Metering | G45: ='RFM input'!M41 -> 0
C46: =Asset36 -> Emergency Network Spares | G46: ='RFM input'!M42 -> 0
C47: =Asset37 -> Motor Vehicles | G47: ='RFM input'!M43 -> 1.71417431
C48: =Asset38 -> Minor Assets | G48: ='RFM input'!M44 -> 16.30981175
C49: =Asset39 -> Non-System Property | G49: ='RFM input'!M45 -> 1.497117578
C50: =Asset40 -> Spare Parts | G50: ='RFM input'!M46 -> 0
C51: =Asset41 -> NEM Assets | G51: ='RFM input'!M47 -> 0
C52: =Asset42 -> Business Management Systems | G52: ='RFM input'!M48 -> 0
C53: =Asset43 -> Land | G53: ='RFM input'!M49 -> 0
C54: =Asset44 -> Easements | G54: ='RFM input'!M50 -> 0
C55: =Asset45 -> 0 | G55: ='RFM input'!M51 -> 0
C56: =Asset46 -> 0 | G56: ='RFM input'!M52 -> 0
C57: =Asset47 -> 0 | G57: ='RFM input'!M53 -> 0
C58: =Asset48 -> 0 | G58: ='RFM input'!M54 -> 0
C59: =Asset49 -> 0 | G59: ='RFM input'!M55 -> 0
C60: =Asset50 -> Equity raising costs | G60: ='RFM input'!M56 -> 0
B62: Nominal Actual Net Capex | G62: =SUM(G63:G112) -> 133.7592309
C63: =Asset1 -> Overhead Subtransmission Lines (Urban) | G63: ='RFM input'!G223*(1+previous_vanilla)^0.5 -> 0.2442991571
C64: =Asset2 -> Underground Subtransmission Lines (Urban) | G64: ='RFM input'!G224*(1+previous_vanilla)^0.5 -> 0.007965431516
C65: =Asset3 -> Urban Zone Substations | G65: ='RFM input'!G225*(1+previous_vanilla)^0.5 -> 1.527460102
C66: =Asset4 -> Rural Zone Substations | G66: ='RFM input'!G226*(1+previous_vanilla)^0.5 -> 0.4254964037
C67: =Asset5 -> SCADA | G67: ='RFM input'!G227*(1+previous_vanilla)^0.5 -> 15.29393903
C68: =Asset6 -> Distribution Switching Stations (Ground) | G68: ='RFM input'!G228*(1+previous_vanilla)^0.5 -> 0.2775960172
C69: =Asset7 -> Overhead High Voltage Lines Urban | G69: ='RFM input'!G229*(1+previous_vanilla)^0.5 -> 10.56197491
C70: =Asset8 -> Overhead High Voltage Lines Rural | G70: ='RFM input'!G230*(1+previous_vanilla)^0.5 -> 31.62474552
C71: =Asset9 -> Voltage Regulators on Distribution Feeders | G71: ='RFM input'!G231*(1+previous_vanilla)^0.5 -> 0.7071694966
C72: =Asset10 -> Underground High Voltage Lines | G72: ='RFM input'!G232*(1+previous_vanilla)^0.5 -> 5.615832141
C73: =Asset11 -> Underground High Voltage Lines SWER | G73: ='RFM input'!G233*(1+previous_vanilla)^0.5 -> 0
C74: =Asset12 -> Distribution Substations HV (Pole) | G74: ='RFM input'!G234*(1+previous_vanilla)^0.5 -> 0.09284244162
C75: =Asset13 -> Distribution Substations HV (Ground) | G75: ='RFM input'!G235*(1+previous_vanilla)^0.5 -> 4.780116566
C76: =Asset14 -> Distribution Substations LV (Pole) | G76: ='RFM input'!G236*(1+previous_vanilla)^0.5 -> 7.067106043
C77: =Asset15 -> Distribution Substations LV (Ground) | G77: ='RFM input'!G237*(1+previous_vanilla)^0.5 -> 1.424025759
C78: =Asset16 -> Overhead Low Voltage Lines Underbuilt Urban | G78: ='RFM input'!G238*(1+previous_vanilla)^0.5 -> 5.276293857
C79: =Asset17 -> Overhead Low Voltage Lines Underbuilt Rural | G79: ='RFM input'!G239*(1+previous_vanilla)^0.5 -> 4.832637783
C80: =Asset18 -> Overhead Low Voltage Lines Urban | G80: ='RFM input'!G240*(1+previous_vanilla)^0.5 -> 6.214384981
C81: =Asset19 -> Overhead Low Voltage Lines Rural | G81: ='RFM input'!G241*(1+previous_vanilla)^0.5 -> 10.12381295
C82: =Asset20 -> Underground Low Voltage Lines | G82: ='RFM input'!G242*(1+previous_vanilla)^0.5 -> 4.385392914
C83: =Asset21 -> Underground Low Voltage Common Trench | G83: ='RFM input'!G243*(1+previous_vanilla)^0.5 -> 1.420773119
C84: =Asset22 -> HVST Service Connections | G84: ='RFM input'!G244*(1+previous_vanilla)^0.5 -> 0
C85: =Asset23 -> HV Service Connections | G85: ='RFM input'!G245*(1+previous_vanilla)^0.5 -> 0.09069033278
C86: =Asset24 -> HV Metering CA Service Connections | G86: ='RFM input'!G246*(1+previous_vanilla)^0.5 -> 0.005103193863
C87: =Asset25 -> HV/LV Service Connections | G87: ='RFM input'!G247*(1+previous_vanilla)^0.5 -> 0.16403434
C88: =Asset26 -> Business LV Service Connections | G88: ='RFM input'!G248*(1+previous_vanilla)^0.5 -> 0.4296006948
C89: =Asset27 -> Business LV Metering CA Service Connections | G89: ='RFM input'!G249*(1+previous_vanilla)^0.5 -> 0.2193092673
C90: =Asset28 -> Domestic LV Service Connections | G90: ='RFM input'!G250*(1+previous_vanilla)^0.5 -> 3.445755573
C91: =Asset29 -> Domestic LV Metering CA Service Connections | G91: ='RFM input'!G251*(1+previous_vanilla)^0.5 -> 0.4166736772
C92: =Asset30 -> Wholesale Metering | G92: ='RFM input'!G252*(1+previous_vanilla)^0.5 -> 0
C93: =Asset31 -> HV Metering | G93: ='RFM input'!G253*(1+previous_vanilla)^0.5 -> 0
C94: =Asset32 -> HV/LV Metering | G94: ='RFM input'!G254*(1+previous_vanilla)^0.5 -> 0
C95: =Asset33 -> Business LV Metering | G95: ='RFM input'!G255*(1+previous_vanilla)^0.5 -> 0
C96: =Asset34 -> Domestic LV Metering | G96: ='RFM input'!G256*(1+previous_vanilla)^0.5 -> 0
C97: =Asset35 -> Off Peak Metering | G97: ='RFM input'!G257*(1+previous_vanilla)^0.5 -> 0
C98: =Asset36 -> Emergency Network Spares | G98: ='RFM input'!G258*(1+previous_vanilla)^0.5 -> 0
C99: =Asset37 -> Motor Vehicles | G99: ='RFM input'!G259*(1+previous_vanilla)^0.5 -> 1.496796451
C100: =Asset38 -> Minor Assets | G100: ='RFM input'!G260*(1+previous_vanilla)^0.5 -> 14.82783006
C101: =Asset39 -> Non-System Property | G101: ='RFM input'!G261*(1+previous_vanilla)^0.5 -> 0
C102: =Asset40 -> Spare Parts | G102: ='RFM input'!G262*(1+previous_vanilla)^0.5 -> 0
C103: =Asset41 -> NEM Assets | G103: ='RFM input'!G263*(1+previous_vanilla)^0.5 -> 0
C104: =Asset42 -> Business Management Systems | G104: ='RFM input'!G264*(1+previous_vanilla)^0.5 -> 0
C105: =Asset43 -> Land | G105: ='RFM input'!G265*(1+previous_vanilla)^0.5 -> 0
C106: =Asset44 -> Easements | G106: ='RFM input'!G266*(1+previous_vanilla)^0.5 -> 0.7595727186
C107: =Asset45 -> 0 | G107: ='RFM input'!G267*(1+previous_vanilla)^0.5 -> 0
C108: =Asset46 -> 0 | G108: ='RFM input'!G268*(1+previous_vanilla)^0.5 -> 0
C109: =Asset47 -> 0 | G109: ='RFM input'!G269*(1+previous_vanilla)^0.5 -> 0
C110: =Asset48 -> 0 | G110: ='RFM input'!G270*(1+previous_vanilla)^0.5 -> 0
C111: =Asset49 -> 0 | G111: ='RFM input'!G271*(1+previous_vanilla)^0.5 -> 0
C112: =Asset50 -> Equity raising costs | G112: ='RFM input'!G272*(1+previous_vanilla)^0.5 -> 0
B114: Nominal Difference Between Actual and Forecast Net Capex | G114: =SUM(G115:G164) -> 8.338584589
C115: =Asset1 -> Overhead Subtransmission Lines (Urban) | G115: =G63-G11 -> 0.00266491714
C116: =Asset2 -> Underground Subtransmission Lines (Urban) | G116: 0.007965431516
C117: =Asset3 -> Urban Zone Substations | G117: 1.3582206
C118: =Asset4 -> Rural Zone Substations | G118: 0.2705641606
C119: =Asset5 -> SCADA | G119: -3.546110419
C120: =Asset6 -> Distribution Switching Stations (Ground) | G120: -0.1732362416
C121: =Asset7 -> Overhead High Voltage Lines Urban | G121: 3.115782785
C122: =Asset8 -> Overhead High Voltage Lines Rural | G122: 8.475930456
C123: =Asset9 -> Voltage Regulators on Distribution Feeders | G123: -0.1060165195
C124: =Asset10 -> Underground High Voltage Lines | G124: -2.414984797
C125: =Asset11 -> Underground High Voltage Lines SWER | G125: 0
C126: =Asset12 -> Distribution Substations HV (Pole) | G126: -0.07325503458
C127: =Asset13 -> Distribution Substations HV (Ground) | G127: 1.090902271
C128: =Asset14 -> Distribution Substations LV (Pole) | G128: 0.4442639198
C129: =Asset15 -> Distribution Substations LV (Ground) | G129: -4.715123766
C130: =Asset16 -> Overhead Low Voltage Lines Underbuilt Urban | G130: 1.806297748
C131: =Asset17 -> Overhead Low Voltage Lines Underbuilt Rural | G131: 2.237402329
C132: =Asset18 -> Overhead Low Voltage Lines Urban | G132: 2.189808997
C133: =Asset19 -> Overhead Low Voltage Lines Rural | G133: 3.746196998
C134: =Asset20 -> Underground Low Voltage Lines | G134: =G82-G30 -> -0.2627904808
C135: =Asset21 -> Underground Low Voltage Common Trench | G135: 0.390360048
C136: =Asset22 -> HVST Service Connections | G136: 0
C137: =Asset23 -> HV Service Connections | G137: -0.05254073003
C138: =Asset24 -> HV Metering CA Service Connections | G138: -0.01952207327
C139: =Asset25 -> HV/LV Service Connections | G139: -0.09503200297
C140: =Asset26 -> Business LV Service Connections | G140: -0.2591848159
C141: =Asset27 -> Business LV Metering CA Service Connections | G141: -0.4963207669
C142: =Asset28 -> Domestic LV Service Connections | G142: -2.027168464
C143: =Asset29 -> Domestic LV Metering CA Service Connections | G143: -0.1195855493
C144: =Asset30 -> Wholesale Metering | G144: 0
C145: =Asset31 -> HV Metering | G145: 0
C146: =Asset32 -> HV/LV Metering | G146: 0
C147: =Asset33 -> Business LV Metering | G147: 0
C148: =Asset34 -> Domestic LV Metering | G148: 0
C149: =Asset35 -> Off Peak Metering | G149: 0
C150: =Asset36 -> Emergency Network Spares | G150: 0
C151: =Asset37 -> Motor Vehicles | G151: -0.2173778588
C152: =Asset38 -> Minor Assets | G152: -1.481981692
C153: =Asset39 -> Non-System Property | G153: -1.497117578
C154: =Asset40 -> Spare Parts | G154: 0
C155: =Asset41 -> NEM Assets | G155: 0
C156: =Asset42 -> Business Management Systems | G156: 0
C157: =Asset43 -> Land | G157: 0
C158: =Asset44 -> Easements | G158: 0.7595727186
C159: =Asset45 -> 0 | G159: 0
C160: =Asset46 -> 0 | G160: 0
C161: =Asset47 -> 0 | G161: 0
C162: =Asset48 -> 0 | G162: 0
C163: =Asset49 -> 0 | G163: 0
C164: =Asset50 -> Equity raising costs | G164: =G112-G60 -> 0
B166: Compounded Nominal Return on Difference - Net Capex | H166: =SUM(H167,H169,H171,H173,H175,H177,H179,H181,H183,H185,H187,H189,H191,H193,H195,H197,H199,H201,H203,H205,H207,H209,H211,H213,H215,H217,H219,H221,H223,H265,H225,H227,H229,H231,H233,H235,H237,H239,H241,H243,H245,H247,H249,H251,H253,H255,H257,H259,H261,H263) -> 0.4551269647 | I166: =SUM(I167,I169,I171,I173,I175,I177,I179,I181,I183,I185,I187,I189,I191,I193,I195,I197,I199,I201,I203,I205,I207,I209,I211,I213,I215,I217,I219,I221,I223,I265,I225,I227,I229,I231,I233,I235,I237,I239,I241,I243,I245,I247,I249,I251,I253,I255,I257,I259,I261,I263) -> 0.5263140275 | J166: 0 | K166: 0 | L166: 0 | M166: 0 | N166: 0 | O166: 0 | P166: 0 | Q166: 0
C167: =Asset1 -> Overhead Subtransmission Lines (Urban) | H167: =($G115+(SUM($G167:G167)))*H$6 -> 0.0001454534203 | I167: =($G115+(SUM($G167:H167)))*I$6 -> 0.0001682039989 | J167: =IF(COUNT($H167:I167)>='RFM input'!$W$7,0,($G115+(SUM($G167:I167)))*J$6) -> 0 | K167: =IF(COUNT($H167:J167)>='RFM input'!$W$7,0,($G115+(SUM($G167:J167)))*K$6) -> 0 | L167: =IF(COUNT($H167:K167)>='RFM input'!$W$7,0,($G115+(SUM($G167:K167)))*L$6) -> 0 | M167: =IF(COUNT($H167:L167)>='RFM input'!$W$7,0,($G115+(SUM($G167:L167)))*M$6) -> 0 | N167: =IF(COUNT($H167:M167)>='RFM input'!$W$7,0,($G115+(SUM($G167:M167)))*N$6) -> 0 | O167: =IF(COUNT($H167:N167)>='RFM input'!$W$7,0,($G115+(SUM($G167:N167)))*O$6) -> 0 | P167: =IF(COUNT($H167:O167)>='RFM input'!$W$7,0,($G115+(SUM($G167:O167)))*P$6) -> 0 | Q167: =IF(COUNT($H167:P167)>='RFM input'!$W$7,0,($G115+(SUM($G167:P167)))*Q$6) -> 0
C168: Sub-total | I168: =IF(COUNT($H167:I167)='RFM input'!$W$7,SUM($G167:I167),0) -> 0.0003136574192 | J168: =IF(COUNT($H167:J167)='RFM input'!$W$7,SUM($G167:J167),0) -> 0 | K168: =IF(COUNT($H167:K167)='RFM input'!$W$7,SUM($G167:K167),0) -> 0 | L168: =IF(COUNT($H167:L167)='RFM input'!$W$7,SUM($G167:L167),0) -> 0 | M168: =IF(COUNT($H167:M167)='RFM input'!$W$7,SUM($G167:M167),0) -> 0 | N168: =IF(COUNT($H167:N167)='RFM input'!$W$7,SUM($G167:N167),0) -> 0 | O168: =IF(COUNT($H167:O167)='RFM input'!$W$7,SUM($G167:O167),0) -> 0 | P168: =IF(COUNT($H167:P167)='RFM input'!$W$7,SUM($G167:P167),0) -> 0 | Q168: =IF(COUNT($H167:Q167)='RFM input'!$W$7,SUM($G167:Q167),0) -> 0
C169: =Asset2 -> Underground Subtransmission Lines (Urban) | H169: =($G116+(SUM($G169:G169)))*H$6 -> 0.000434759956 | I169: =($G116+(SUM($G169:H169)))*I$6 -> 0.0005027613856 | J169: =IF(COUNT($H169:I169)>='RFM input'!$W$7,0,($G116+(SUM($G169:I169)))*J$6) -> 0 | K169: =IF(COUNT($H169:J169)>='RFM input'!$W$7,0,($G116+(SUM($G169:J169)))*K$6) -> 0 | L169: =IF(COUNT($H169:K169)>='RFM input'!$W$7,0,($G116+(SUM($G169:K169)))*L$6) -> 0 | M169: =IF(COUNT($H169:L169)>='RFM input'!$W$7,0,($G116+(SUM($G169:L169)))*M$6) -> 0 | N169: =IF(COUNT($H169:M169)>='RFM input'!$W$7,0,($G116+(SUM($G169:M169)))*N$6) -> 0 | O169: =IF(COUNT($H169:N169)>='RFM input'!$W$7,0,($G116+(SUM($G169:N169)))*O$6) -> 0 | P169: =IF(COUNT($H169:O169)>='RFM input'!$W$7,0,($G116+(SUM($G169:O169)))*P$6) -> 0 | Q169: =IF(COUNT($H169:P169)>='RFM input'!$W$7,0,($G116+(SUM($G169:P169)))*Q$6) -> 0
C170: Sub-total | I170: =IF(COUNT($H169:I169)='RFM input'!$W$7,SUM($G169:I169),0) -> 0.0009375213416 | J170: =IF(COUNT($H169:J169)='RFM input'!$W$7,SUM($G169:J169),0) -> 0 | K170: =IF(COUNT($H169:K169)='RFM input'!$W$7,SUM($G169:K169),0) -> 0 | L170: =IF(COUNT($H169:L169)='RFM input'!$W$7,SUM($G169:L169),0) -> 0 | M170: =IF(COUNT($H169:M169)='RFM input'!$W$7,SUM($G169:M169),0) -> 0 | N170: =IF(COUNT($H169:N169)='RFM input'!$W$7,SUM($G169:N169),0) -> 0 | O170: =IF(COUNT($H169:O169)='RFM input'!$W$7,SUM($G169:O169),0) -> 0 | P170: =IF(COUNT($H169:P169)='RFM input'!$W$7,SUM($G169:P169),0) -> 0 | Q170: =IF(COUNT($H169:Q169)='RFM input'!$W$7,SUM($G169:Q169),0) -> 0
C171: =Asset3 -> Urban Zone Substations | H171: =($G117+(SUM($G171:G171)))*H$6 -> 0.07413282345 | I171: =($G117+(SUM($G171:H171)))*I$6 -> 0.08572804493 | J171: =IF(COUNT($H171:I171)>='RFM input'!$W$7,0,($G117+(SUM($G171:I171)))*J$6) -> 0 | K171: =IF(COUNT($H171:J171)>='RFM input'!$W$7,0,($G117+(SUM($G171:J171)))*K$6) -> 0 | L171: =IF(COUNT($H171:K171)>='RFM input'!$W$7,0,($G117+(SUM($G171:K171)))*L$6) -> 0 | M171: =IF(COUNT($H171:L171)>='RFM input'!$W$7,0,($G117+(SUM($G171:L171)))*M$6) -> 0 | N171: =IF(COUNT($H171:M171)>='RFM input'!$W$7,0,($G117+(SUM($G171:M171)))*N$6) -> 0 | O171: =IF(COUNT($H171:N171)>='RFM input'!$W$7,0,($G117+(SUM($G171:N171)))*O$6) -> 0 | P171: =IF(COUNT($H171:O171)>='RFM input'!$W$7,0,($G117+(SUM($G171:O171)))*P$6) -> 0 | Q171: =IF(COUNT($H171:P171)>='RFM input'!$W$7,0,($G117+(SUM($G171:P171)))*Q$6) -> 0
C172: Sub-total | I172: =IF(COUNT($H171:I171)='RFM input'!$W$7,SUM($G171:I171),0) -> 0.1598608684 | J172: =IF(COUNT($H171:J171)='RFM input'!$W$7,SUM($G171:J171),0) -> 0 | K172: =IF(COUNT($H171:K171)='RFM input'!$W$7,SUM($G171:K171),0) -> 0 | L172: =IF(COUNT($H171:L171)='RFM input'!$W$7,SUM($G171:L171),0) -> 0 | M172: =IF(COUNT($H171:M171)='RFM input'!$W$7,SUM($G171:M171),0) -> 0 | N172: =IF(COUNT($H171:N171)='RFM input'!$W$7,SUM($G171:N171),0) -> 0 | O172: =IF(COUNT($H171:O171)='RFM input'!$W$7,SUM($G171:O171),0) -> 0 | P172: =IF(COUNT($H171:P171)='RFM input'!$W$7,SUM($G171:P171),0) -> 0 | Q172: =IF(COUNT($H171:Q171)='RFM input'!$W$7,SUM($G171:Q171),0) -> 0
C173: =Asset4 -> Rural Zone Substations | H173: =($G118+(SUM($G173:G173)))*H$6 -> 0.01476761959 | I173: =($G118+(SUM($G173:H173)))*I$6 -> 0.0170774442 | J173: =IF(COUNT($H173:I173)>='RFM input'!$W$7,0,($G118+(SUM($G173:I173)))*J$6) -> 0 | K173: =IF(COUNT($H173:J173)>='RFM input'!$W$7,0,($G118+(SUM($G173:J173)))*K$6) -> 0 | L173: =IF(COUNT($H173:K173)>='RFM input'!$W$7,0,($G118+(SUM($G173:K173)))*L$6) -> 0 | M173: =IF(COUNT($H173:L173)>='RFM input'!$W$7,0,($G118+(SUM($G173:L173)))*M$6) -> 0 | N173: =IF(COUNT($H173:M173)>='RFM input'!$W$7,0,($G118+(SUM($G173:M173)))*N$6) -> 0 | O173: =IF(COUNT($H173:N173)>='RFM input'!$W$7,0,($G118+(SUM($G173:N173)))*O$6) -> 0 | P173: =IF(COUNT($H173:O173)>='RFM input'!$W$7,0,($G118+(SUM($G173:O173)))*P$6) -> 0 | Q173: =IF(COUNT($H173:P173)>='RFM input'!$W$7,0,($G118+(SUM($G173:P173)))*Q$6) -> 0
C174: Sub-total | I174: =IF(COUNT($H173:I173)='RFM input'!$W$7,SUM($G173:I173),0) -> 0.0318450638 | J174: =IF(COUNT($H173:J173)='RFM input'!$W$7,SUM($G173:J173),0) -> 0 | K174: =IF(COUNT($H173:K173)='RFM input'!$W$7,SUM($G173:K173),0) -> 0 | L174: =IF(COUNT($H173:L173)='RFM input'!$W$7,SUM($G173:L173),0) -> 0 | M174: =IF(COUNT($H173:M173)='RFM input'!$W$7,SUM($G173:M173),0) -> 0 | N174: =IF(COUNT($H173:N173)='RFM input'!$W$7,SUM($G173:N173),0) -> 0 | O174: =IF(COUNT($H173:O173)='RFM input'!$W$7,SUM($G173:O173),0) -> 0 | P174: =IF(COUNT($H173:P173)='RFM input'!$W$7,SUM($G173:P173),0) -> 0 | Q174: =IF(COUNT($H173:Q173)='RFM input'!$W$7,SUM($G173:Q173),0) -> 0
C175: =Asset5 -> SCADA | H175: =($G119+(SUM($G175:G175)))*H$6 -> -0.1935496911 | I175: =($G119+(SUM($G175:H175)))*I$6 -> -0.2238230765 | J175: =IF(COUNT($H175:I175)>='RFM input'!$W$7,0,($G119+(SUM($G175:I175)))*J$6) -> 0 | K175: =IF(COUNT($H175:J175)>='RFM input'!$W$7,0,($G119+(SUM($G175:J175)))*K$6) -> 0 | L175: =IF(COUNT($H175:K175)>='RFM input'!$W$7,0,($G119+(SUM($G175:K175)))*L$6) -> 0 | M175: =IF(COUNT($H175:L175)>='RFM input'!$W$7,0,($G119+(SUM($G175:L175)))*M$6) -> 0 | N175: =IF(COUNT($H175:M175)>='RFM input'!$W$7,0,($G119+(SUM($G175:M175)))*N$6) -> 0 | O175: =IF(COUNT($H175:N175)>='RFM input'!$W$7,0,($G119+(SUM($G175:N175)))*O$6) -> 0 | P175: =IF(COUNT($H175:O175)>='RFM input'!$W$7,0,($G119+(SUM($G175:O175)))*P$6) -> 0 | Q175: =IF(COUNT($H175:P175)>='RFM input'!$W$7,0,($G119+(SUM($G175:P175)))*Q$6) -> 0
C176: Sub-total | I176: =IF(COUNT($H175:I175)='RFM input'!$W$7,SUM($G175:I175),0) -> -0.4173727677 | J176: =IF(COUNT($H175:J175)='RFM input'!$W$7,SUM($G175:J175),0) -> 0 | K176: =IF(COUNT($H175:K175)='RFM input'!$W$7,SUM($G175:K175),0) -> 0 | L176: =IF(COUNT($H175:L175)='RFM input'!$W$7,SUM($G175:L175),0) -> 0 | M176: =IF(COUNT($H175:M175)='RFM input'!$W$7,SUM($G175:M175),0) -> 0 | N176: =IF(COUNT($H175:N175)='RFM input'!$W$7,SUM($G175:N175),0) -> 0 | O176: =IF(COUNT($H175:O175)='RFM input'!$W$7,SUM($G175:O175),0) -> 0 | P176: =IF(COUNT($H175:P175)='RFM input'!$W$7,SUM($G175:P175),0) -> 0 | Q176: =IF(COUNT($H175:Q175)='RFM input'!$W$7,SUM($G175:Q175),0) -> 0
C177: =Asset6 -> Distribution Switching Stations (Ground) | H177: =($G120+(SUM($G177:G177)))*H$6 -> -0.009455379867 | I177: =($G120+(SUM($G177:H177)))*I$6 -> -0.01093430942 | J177: =IF(COUNT($H177:I177)>='RFM input'!$W$7,0,($G120+(SUM($G177:I177)))*J$6) -> 0 | K177: =IF(COUNT($H177:J177)>='RFM input'!$W$7,0,($G120+(SUM($G177:J177)))*K$6) -> 0 | L177: =IF(COUNT($H177:K177)>='RFM input'!$W$7,0,($G120+(SUM($G177:K177)))*L$6) -> 0 | M177: =IF(COUNT($H177:L177)>='RFM input'!$W$7,0,($G120+(SUM($G177:L177)))*M$6) -> 0 | N177: =IF(COUNT($H177:M177)>='RFM input'!$W$7,0,($G120+(SUM($G177:M177)))*N$6) -> 0 | O177: =IF(COUNT($H177:N177)>='RFM input'!$W$7,0,($G120+(SUM($G177:N177)))*O$6) -> 0 | P177: =IF(COUNT($H177:O177)>='RFM input'!$W$7,0,($G120+(SUM($G177:O177)))*P$6) -> 0 | Q177: =IF(COUNT($H177:P177)>='RFM input'!$W$7,0,($G120+(SUM($G177:P177)))*Q$6) -> 0
C178: Sub-total | I178: =IF(COUNT($H177:I177)='RFM input'!$W$7,SUM($G177:I177),0) -> -0.02038968929 | J178: =IF(COUNT($H177:J177)='RFM input'!$W$7,SUM($G177:J177),0) -> 0 | K178: =IF(COUNT($H177:K177)='RFM input'!$W$7,SUM($G177:K177),0) -> 0 | L178: =IF(COUNT($H177:L177)='RFM input'!$W$7,SUM($G177:L177),0) -> 0 | M178: =IF(COUNT($H177:M177)='RFM input'!$W$7,SUM($G177:M177),0) -> 0 | N178: =IF(COUNT($H177:N177)='RFM input'!$W$7,SUM($G177:N177),0) -> 0 | O178: =IF(COUNT($H177:O177)='RFM input'!$W$7,SUM($G177:O177),0) -> 0 | P178: =IF(COUNT($H177:P177)='RFM input'!$W$7,SUM($G177:P177),0) -> 0 | Q178: =IF(COUNT($H177:Q177)='RFM input'!$W$7,SUM($G177:Q177),0) -> 0
C179: =Asset7 -> Overhead High Voltage Lines Urban | H179: =($G121+(SUM($G179:G179)))*H$6 -> 0.1700620467 | I179: =($G121+(SUM($G179:H179)))*I$6 -> 0.1966616959 | J179: =IF(COUNT($H179:I179)>='RFM input'!$W$7,0,($G121+(SUM($G179:I179)))*J$6) -> 0 | K179: =IF(COUNT($H179:J179)>='RFM input'!$W$7,0,($G121+(SUM($G179:J179)))*K$6) -> 0 | L179: =IF(COUNT($H179:K179)>='RFM input'!$W$7,0,($G121+(SUM($G179:K179)))*L$6) -> 0 | M179: =IF(COUNT($H179:L179)>='RFM input'!$W$7,0,($G121+(SUM($G179:L179)))*M$6) -> 0 | N179: =IF(COUNT($H179:M179)>='RFM input'!$W$7,0,($G121+(SUM($G179:M179)))*N$6) -> 0 | O179: =IF(COUNT($H179:N179)>='RFM input'!$W$7,0,($G121+(SUM($G179:N179)))*O$6) -> 0 | P179: =IF(COUNT($H179:O179)>='RFM input'!$W$7,0,($G121+(SUM($G179:O179)))*P$6) -> 0 | Q179: =IF(COUNT($H179:P179)>='RFM input'!$W$7,0,($G121+(SUM($G179:P179)))*Q$6) -> 0
C180: Sub-total | I180: =IF(COUNT($H179:I179)='RFM input'!$W$7,SUM($G179:I179),0) -> 0.3667237426 | J180: =IF(COUNT($H179:J179)='RFM input'!$W$7,SUM($G179:J179),0) -> 0 | K180: =IF(COUNT($H179:K179)='RFM input'!$W$7,SUM($G179:K179),0) -> 0 | L180: =IF(COUNT($H179:L179)='RFM input'!$W$7,SUM($G179:L179),0) -> 0 | M180: =IF(COUNT($H179:M179)='RFM input'!$W$7,SUM($G179:M179),0) -> 0 | N180: =IF(COUNT($H179:N179)='RFM input'!$W$7,SUM($G179:N179),0) -> 0 | O180: =IF(COUNT($H179:O179)='RFM input'!$W$7,SUM($G179:O179),0) -> 0 | P180: =IF(COUNT($H179:P179)='RFM input'!$W$7,SUM($G179:P179),0) -> 0 | Q180: =IF(COUNT($H179:Q179)='RFM input'!$W$7,SUM($G179:Q179),0) -> 0
C181: =Asset8 -> Overhead High Voltage Lines Rural | H181: =($G122+(SUM($G181:G181)))*H$6 -> 0.4626234177 | I181: =($G122+(SUM($G181:H181)))*I$6 -> 0.5349830115 | J181: =IF(COUNT($H181:I181)>='RFM input'!$W$7,0,($G122+(SUM($G181:I181)))*J$6) -> 0 | K181: =IF(COUNT($H181:J181)>='RFM input'!$W$7,0,($G122+(SUM($G181:J181)))*K$6) -> 0 | L181: =IF(COUNT($H181:K181)>='RFM input'!$W$7,0,($G122+(SUM($G181:K181)))*L$6) -> 0 | M181: =IF(COUNT($H181:L181)>='RFM input'!$W$7,0,($G122+(SUM($G181:L181)))*M$6) -> 0 | N181: =IF(COUNT($H181:M181)>='RFM input'!$W$7,0,($G122+(SUM($G181:M181)))*N$6) -> 0 | O181: =IF(COUNT($H181:N181)>='RFM input'!$W$7,0,($G122+(SUM($G181:N181)))*O$6) -> 0 | P181: =IF(COUNT($H181:O181)>='RFM input'!$W$7,0,($G122+(SUM($G181:O181)))*P$6) -> 0 | Q181: =IF(COUNT($H181:P181)>='RFM input'!$W$7,0,($G122+(SUM($G181:P181)))*Q$6) -> 0
C182: Sub-total | I182: =IF(COUNT($H181:I181)='RFM input'!$W$7,SUM($G181:I181),0) -> 0.9976064292 | J182: =IF(COUNT($H181:J181)='RFM input'!$W$7,SUM($G181:J181),0) -> 0 | K182: =IF(COUNT($H181:K181)='RFM input'!$W$7,SUM($G181:K181),0) -> 0 | L182: =IF(COUNT($H181:L181)='RFM input'!$W$7,SUM($G181:L181),0) -> 0 | M182: =IF(COUNT($H181:M181)='RFM input'!$W$7,SUM($G181:M181),0) -> 0 | N182: =IF(COUNT($H181:N181)='RFM input'!$W$7,SUM($G181:N181),0) -> 0 | O182: =IF(COUNT($H181:O181)='RFM input'!$W$7,SUM($G181:O181),0) -> 0 | P182: =IF(COUNT($H181:P181)='RFM input'!$W$7,SUM($G181:P181),0) -> 0 | Q182: =IF(COUNT($H181:Q181)='RFM input'!$W$7,SUM($G181:Q181),0) -> 0
C183: =Asset9 -> Voltage Regulators on Distribution Feeders | H183: =($G123+(SUM($G183:G183)))*H$6 -> -0.005786470861 | I183: =($G123+(SUM($G183:H183)))*I$6 -> -0.006691541086 | J183: =IF(COUNT($H183:I183)>='RFM input'!$W$7,0,($G123+(SUM($G183:I183)))*J$6) -> 0 | K183: =IF(COUNT($H183:J183)>='RFM input'!$W$7,0,($G123+(SUM($G183:J183)))*K$6) -> 0 | L183: =IF(COUNT($H183:K183)>='RFM input'!$W$7,0,($G123+(SUM($G183:K183)))*L$6) -> 0 | M183: =IF(COUNT($H183:L183)>='RFM input'!$W$7,0,($G123+(SUM($G183:L183)))*M$6) -> 0 | N183: =IF(COUNT($H183:M183)>='RFM input'!$W$7,0,($G123+(SUM($G183:M183)))*N$6) -> 0 | O183: =IF(COUNT($H183:N183)>='RFM input'!$W$7,0,($G123+(SUM($G183:N183)))*O$6) -> 0 | P183: =IF(COUNT($H183:O183)>='RFM input'!$W$7,0,($G123+(SUM($G183:O183)))*P$6) -> 0 | Q183: =IF(COUNT($H183:P183)>='RFM input'!$W$7,0,($G123+(SUM($G183:P183)))*Q$6) -> 0
C184: Sub-total | I184: =IF(COUNT($H183:I183)='RFM input'!$W$7,SUM($G183:I183),0) -> -0.01247801195 | J184: =IF(COUNT($H183:J183)='RFM input'!$W$7,SUM($G183:J183),0) -> 0 | K184: =IF(COUNT($H183:K183)='RFM input'!$W$7,SUM($G183:K183),0) -> 0 | L184: =IF(COUNT($H183:L183)='RFM input'!$W$7,SUM($G183:L183),0) -> 0 | M184: =IF(COUNT($H183:M183)='RFM input'!$W$7,SUM($G183:M183),0) -> 0 | N184: =IF(COUNT($H183:N183)='RFM input'!$W$7,SUM($G183:N183),0) -> 0 | O184: =IF(COUNT($H183:O183)='RFM input'!$W$7,SUM($G183:O183),0) -> 0 | P184: =IF(COUNT($H183:P183)='RFM input'!$W$7,SUM($G183:P183),0) -> 0 | Q184: =IF(COUNT($H183:Q183)='RFM input'!$W$7,SUM($G183:Q183),0) -> 0
C185: =Asset10 -> Underground High Voltage Lines | H185: =($G124+(SUM($G185:G185)))*H$6 -> -0.1318119027 | I185: =($G124+(SUM($G185:H185)))*I$6 -> -0.1524287919 | J185: =IF(COUNT($H185:I185)>='RFM input'!$W$7,0,($G124+(SUM($G185:I185)))*J$6) -> 0 | K185: =IF(COUNT($H185:J185)>='RFM input'!$W$7,0,($G124+(SUM($G185:J185)))*K$6) -> 0 | L185: =IF(COUNT($H185:K185)>='RFM input'!$W$7,0,($G124+(SUM($G185:K185)))*L$6) -> 0 | M185: =IF(COUNT($H185:L185)>='RFM input'!$W$7,0,($G124+(SUM($G185:L185)))*M$6) -> 0 | N185: =IF(COUNT($H185:M185)>='RFM input'!$W$7,0,($G124+(SUM($G185:M185)))*N$6) -> 0 | O185: =IF(COUNT($H185:N185)>='RFM input'!$W$7,0,($G124+(SUM($G185:N185)))*O$6) -> 0 | P185: =IF(COUNT($H185:O185)>='RFM input'!$W$7,0,($G124+(SUM($G185:O185)))*P$6) -> 0 | Q185: =IF(COUNT($H185:P185)>='RFM input'!$W$7,0,($G124+(SUM($G185:P185)))*Q$6) -> 0
C186: Sub-total | I186: =IF(COUNT($H185:I185)='RFM input'!$W$7,SUM($G185:I185),0) -> -0.2842406946 | J186: =IF(COUNT($H185:J185)='RFM input'!$W$7,SUM($G185:J185),0) -> 0 | K186: =IF(COUNT($H185:K185)='RFM input'!$W$7,SUM($G185:K185),0) -> 0 | L186: =IF(COUNT($H185:L185)='RFM input'!$W$7,SUM($G185:L185),0) -> 0 | M186: =IF(COUNT($H185:M185)='RFM input'!$W$7,SUM($G185:M185),0) -> 0 | N186: =IF(COUNT($H185:N185)='RFM input'!$W$7,SUM($G185:N185),0) -> 0 | O186: =IF(COUNT($H185:O185)='RFM input'!$W$7,SUM($G185:O185),0) -> 0 | P186: =IF(COUNT($H185:P185)='RFM input'!$W$7,SUM($G185:P185),0) -> 0 | Q186: =IF(COUNT($H185:Q185)='RFM input'!$W$7,SUM($G185:Q185),0) -> 0
C187: =Asset11 -> Underground High Voltage Lines SWER | H187: =($G125+(SUM($G187:G187)))*H$6 -> 0 | I187: =($G125+(SUM($G187:H187)))*I$6 -> 0 | J187: =IF(COUNT($H187:I187)>='RFM input'!$W$7,0,($G125+(SUM($G187:I187)))*J$6) -> 0 | K187: =IF(COUNT($H187:J187)>='RFM input'!$W$7,0,($G125+(SUM($G187:J187)))*K$6) -> 0 | L187: =IF(COUNT($H187:K187)>='RFM input'!$W$7,0,($G125+(SUM($G187:K187)))*L$6) -> 0 | M187: =IF(COUNT($H187:L187)>='RFM input'!$W$7,0,($G125+(SUM($G187:L187)))*M$6) -> 0 | N187: =IF(COUNT($H187:M187)>='RFM input'!$W$7,0,($G125+(SUM($G187:M187)))*N$6) -> 0 | O187: =IF(COUNT($H187:N187)>='RFM input'!$W$7,0,($G125+(SUM($G187:N187)))*O$6) -> 0 | P187: =IF(COUNT($H187:O187)>='RFM input'!$W$7,0,($G125+(SUM($G187:O187)))*P$6) -> 0 | Q187: =IF(COUNT($H187:P187)>='RFM input'!$W$7,0,($G125+(SUM($G187:P187)))*Q$6) -> 0
C188: Sub-total | I188: =IF(COUNT($H187:I187)='RFM input'!$W$7,SUM($G187:I187),0) -> 0 | J188: =IF(COUNT($H187:J187)='RFM input'!$W$7,SUM($G187:J187),0) -> 0 | K188: =IF(COUNT($H187:K187)='RFM input'!$W$7,SUM($G187:K187),0) -> 0 | L188: =IF(COUNT($H187:L187)='RFM input'!$W$7,SUM($G187:L187),0) -> 0 | M188: =IF(COUNT($H187:M187)='RFM input'!$W$7,SUM($G187:M187),0) -> 0 | N188: =IF(COUNT($H187:N187)='RFM input'!$W$7,SUM($G187:N187),0) -> 0 | O188: =IF(COUNT($H187:O187)='RFM input'!$W$7,SUM($G187:O187),0) -> 0 | P188: =IF(COUNT($H187:P187)='RFM input'!$W$7,SUM($G187:P187),0) -> 0 | Q188: =IF(COUNT($H187:Q187)='RFM input'!$W$7,SUM($G187:Q187),0) -> 0
C189: =Asset12 -> Distribution Substations HV (Pole) | H189: =($G126+(SUM($G189:G189)))*H$6 -> -0.00399832144 | I189: =($G126+(SUM($G189:H189)))*I$6 -> -0.004623704644 | J189: =IF(COUNT($H189:I189)>='RFM input'!$W$7,0,($G126+(SUM($G189:I189)))*J$6) -> 0 | K189: =IF(COUNT($H189:J189)>='RFM input'!$W$7,0,($G126+(SUM($G189:J189)))*K$6) -> 0 | L189: =IF(COUNT($H189:K189)>='RFM input'!$W$7,0,($G126+(SUM($G189:K189)))*L$6) -> 0 | M189: =IF(COUNT($H189:L189)>='RFM input'!$W$7,0,($G126+(SUM($G189:L189)))*M$6) -> 0 | N189: =IF(COUNT($H189:M189)>='RFM input'!$W$7,0,($G126+(SUM($G189:M189)))*N$6) -> 0 | O189: =IF(COUNT($H189:N189)>='RFM input'!$W$7,0,($G126+(SUM($G189:N189)))*O$6) -> 0 | P189: =IF(COUNT($H189:O189)>='RFM input'!$W$7,0,($G126+(SUM($G189:O189)))*P$6) -> 0 | Q189: =IF(COUNT($H189:P189)>='RFM input'!$W$7,0,($G126+(SUM($G189:P189)))*Q$6) -> 0
C190: Sub-total | I190: =IF(COUNT($H189:I189)='RFM input'!$W$7,SUM($G189:I189),0) -> -0.008622026084 | J190: =IF(COUNT($H189:J189)='RFM input'!$W$7,SUM($G189:J189),0) -> 0 | K190: =IF(COUNT($H189:K189)='RFM input'!$W$7,SUM($G189:K189),0) -> 0 | L190: =IF(COUNT($H189:L189)='RFM input'!$W$7,SUM($G189:L189),0) -> 0 | M190: =IF(COUNT($H189:M189)='RFM input'!$W$7,SUM($G189:M189),0) -> 0 | N190: =IF(COUNT($H189:N189)='RFM input'!$W$7,SUM($G189:N189),0) -> 0 | O190: =IF(COUNT($H189:O189)='RFM input'!$W$7,SUM($G189:O189),0) -> 0 | P190: =IF(COUNT($H189:P189)='RFM input'!$W$7,SUM($G189:P189),0) -> 0 | Q190: =IF(COUNT($H189:Q189)='RFM input'!$W$7,SUM($G189:Q189),0) -> 0
C191: =Asset13 -> Distribution Substations HV (Ground) | H191: =($G127+(SUM($G191:G191)))*H$6 -> 0.05954236409 | I191: =($G127+(SUM($G191:H191)))*I$6 -> 0.06885547084 | J191: =IF(COUNT($H191:I191)>='RFM input'!$W$7,0,($G127+(SUM($G191:I191)))*J$6) -> 0 | K191: =IF(COUNT($H191:J191)>='RFM input'!$W$7,0,($G127+(SUM($G191:J191)))*K$6) -> 0 | L191: =IF(COUNT($H191:K191)>='RFM input'!$W$7,0,($G127+(SUM($G191:K191)))*L$6) -> 0 | M191: =IF(COUNT($H191:L191)>='RFM input'!$W$7,0,($G127+(SUM($G191:L191)))*M$6) -> 0 | N191: =IF(COUNT($H191:M191)>='RFM input'!$W$7,0,($G127+(SUM($G191:M191)))*N$6) -> 0 | O191: =IF(COUNT($H191:N191)>='RFM input'!$W$7,0,($G127+(SUM($G191:N191)))*O$6) -> 0 | P191: =IF(COUNT($H191:O191)>='RFM input'!$W$7,0,($G127+(SUM($G191:O191)))*P$6) -> 0 | Q191: =IF(COUNT($H191:P191)>='RFM input'!$W$7,0,($G127+(SUM($G191:P191)))*Q$6) -> 0
C192: Sub-total | I192: =IF(COUNT($H191:I191)='RFM input'!$W$7,SUM($G191:I191),0) -> 0.1283978349 | J192: =IF(COUNT($H191:J191)='RFM input'!$W$7,SUM($G191:J191),0) -> 0 | K192: =IF(COUNT($H191:K191)='RFM input'!$W$7,SUM($G191:K191),0) -> 0 | L192: =IF(COUNT($H191:L191)='RFM input'!$W$7,SUM($G191:L191),0) -> 0 | M192: =IF(COUNT($H191:M191)='RFM input'!$W$7,SUM($G191:M191),0) -> 0 | N192: =IF(COUNT($H191:N191)='RFM input'!$W$7,SUM($G191:N191),0) -> 0 | O192: =IF(COUNT($H191:O191)='RFM input'!$W$7,SUM($G191:O191),0) -> 0 | P192: =IF(COUNT($H191:P191)='RFM input'!$W$7,SUM($G191:P191),0) -> 0 | Q192: =IF(COUNT($H191:Q191)='RFM input'!$W$7,SUM($G191:Q191),0) -> 0
C193: =Asset14 -> Distribution Substations LV (Pole) | H193: =($G128+(SUM($G193:G193)))*H$6 -> 0.02424829864 | I193: =($G128+(SUM($G193:H193)))*I$6 -> 0.02804100989 | J193: =IF(COUNT($H193:I193)>='RFM input'!$W$7,0,($G128+(SUM($G193:I193)))*J$6) -> 0 | K193: =IF(COUNT($H193:J193)>='RFM input'!$W$7,0,($G128+(SUM($G193:J193)))*K$6) -> 0 | L193: =IF(COUNT($H193:K193)>='RFM input'!$W$7,0,($G128+(SUM($G193:K193)))*L$6) -> 0 | M193: =IF(COUNT($H193:L193)>='RFM input'!$W$7,0,($G128+(SUM($G193:L193)))*M$6) -> 0 | N193: =IF(COUNT($H193:M193)>='RFM input'!$W$7,0,($G128+(SUM($G193:M193)))*N$6) -> 0 | O193: =IF(COUNT($H193:N193)>='RFM input'!$W$7,0,($G128+(SUM($G193:N193)))*O$6) -> 0 | P193: =IF(COUNT($H193:O193)>='RFM input'!$W$7,0,($G128+(SUM($G193:O193)))*P$6) -> 0 | Q193: =IF(COUNT($H193:P193)>='RFM input'!$W$7,0,($G128+(SUM($G193:P193)))*Q$6) -> 0
C194: Sub-total | I194: =IF(COUNT($H193:I193)='RFM input'!$W$7,SUM($G193:I193),0) -> 0.05228930853 | J194: =IF(COUNT($H193:J193)='RFM input'!$W$7,SUM($G193:J193),0) -> 0 | K194: =IF(COUNT($H193:K193)='RFM input'!$W$7,SUM($G193:K193),0) -> 0 | L194: =IF(COUNT($H193:L193)='RFM input'!$W$7,SUM($G193:L193),0) -> 0 | M194: =IF(COUNT($H193:M193)='RFM input'!$W$7,SUM($G193:M193),0) -> 0 | N194: =IF(COUNT($H193:N193)='RFM input'!$W$7,SUM($G193:N193),0) -> 0 | O194: =IF(COUNT($H193:O193)='RFM input'!$W$7,SUM($G193:O193),0) -> 0 | P194: =IF(COUNT($H193:P193)='RFM input'!$W$7,SUM($G193:P193),0) -> 0 | Q194: =IF(COUNT($H193:Q193)='RFM input'!$W$7,SUM($G193:Q193),0) -> 0
C195: =Asset15 -> Distribution Substations LV (Ground) | H195: =($G129+(SUM($G195:G195)))*H$6 -> -0.2573554235 | I195: =($G129+(SUM($G195:H195)))*I$6 -> -0.2976087552 | J195: =IF(COUNT($H195:I195)>='RFM input'!$W$7,0,($G129+(SUM($G195:I195)))*J$6) -> 0 | K195: =IF(COUNT($H195:J195)>='RFM input'!$W$7,0,($G129+(SUM($G195:J195)))*K$6) -> 0 | L195: =IF(COUNT($H195:K195)>='RFM input'!$W$7,0,($G129+(SUM($G195:K195)))*L$6) -> 0 | M195: =IF(COUNT($H195:L195)>='RFM input'!$W$7,0,($G129+(SUM($G195:L195)))*M$6) -> 0 | N195: =IF(COUNT($H195:M195)>='RFM input'!$W$7,0,($G129+(SUM($G195:M195)))*N$6) -> 0 | O195: =IF(COUNT($H195:N195)>='RFM input'!$W$7,0,($G129+(SUM($G195:N195)))*O$6) -> 0 | P195: =IF(COUNT($H195:O195)>='RFM input'!$W$7,0,($G129+(SUM($G195:O195)))*P$6) -> 0 | Q195: =IF(COUNT($H195:P195)>='RFM input'!$W$7,0,($G129+(SUM($G195:P195)))*Q$6) -> 0
C196: Sub-total | I196: =IF(COUNT($H195:I195)='RFM input'!$W$7,SUM($G195:I195),0) -> -0.5549641787 | J196: =IF(COUNT($H195:J195)='RFM input'!$W$7,SUM($G195:J195),0) -> 0 | K196: =IF(COUNT($H195:K195)='RFM input'!$W$7,SUM($G195:K195),0) -> 0 | L196: =IF(COUNT($H195:L195)='RFM input'!$W$7,SUM($G195:L195),0) -> 0 | M196: =IF(COUNT($H195:M195)='RFM input'!$W$7,SUM($G195:M195),0) -> 0 | N196: =IF(COUNT($H195:N195)='RFM input'!$W$7,SUM($G195:N195),0) -> 0 | O196: =IF(COUNT($H195:O195)='RFM input'!$W$7,SUM($G195:O195),0) -> 0 | P196: =IF(COUNT($H195:P195)='RFM input'!$W$7,SUM($G195:P195),0) -> 0 | Q196: =IF(COUNT($H195:Q195)='RFM input'!$W$7,SUM($G195:Q195),0) -> 0
C197: =Asset16 -> Overhead Low Voltage Lines Underbuilt Urban | H197: =($G130+(SUM($G197:G197)))*H$6 -> 0.09858925129 | I197: =($G130+(SUM($G197:H197)))*I$6 -> 0.1140097378 | J197: =IF(COUNT($H197:I197)>='RFM input'!$W$7,0,($G130+(SUM($G197:I197)))*J$6) -> 0 | K197: =IF(COUNT($H197:J197)>='RFM input'!$W$7,0,($G130+(SUM($G197:J197)))*K$6) -> 0 | L197: =IF(COUNT($H197:K197)>='RFM input'!$W$7,0,($G130+(SUM($G197:K197)))*L$6) -> 0 | M197: =IF(COUNT($H197:L197)>='RFM input'!$W$7,0,($G130+(SUM($G197:L197)))*M$6) -> 0 | N197: =IF(COUNT($H197:M197)>='RFM input'!$W$7,0,($G130+(SUM($G197:M197)))*N$6) -> 0 | O197: =IF(COUNT($H197:N197)>='RFM input'!$W$7,0,($G130+(SUM($G197:N197)))*O$6) -> 0 | P197: =IF(COUNT($H197:O197)>='RFM input'!$W$7,0,($G130+(SUM($G197:O197)))*P$6) -> 0 | Q197: =IF(COUNT($H197:P197)>='RFM input'!$W$7,0,($G130+(SUM($G197:P197)))*Q$6) -> 0
C198: Sub-total | I198: =IF(COUNT($H197:I197)='RFM input'!$W$7,SUM($G197:I197),0) -> 0.2125989891 | J198: =IF(COUNT($H197:J197)='RFM input'!$W$7,SUM($G197:J197),0) -> 0 | K198: =IF(COUNT($H197:K197)='RFM input'!$W$7,SUM($G197:K197),0) -> 0 | L198: =IF(COUNT($H197:L197)='RFM input'!$W$7,SUM($G197:L197),0) -> 0 | M198: =IF(COUNT($H197:M197)='RFM input'!$W$7,SUM($G197:M197),0) -> 0 | N198: =IF(COUNT($H197:N197)='RFM input'!$W$7,SUM($G197:N197),0) -> 0 | O198: =IF(COUNT($H197:O197)='RFM input'!$W$7,SUM($G197:O197),0) -> 0 | P198: =IF(COUNT($H197:P197)='RFM input'!$W$7,SUM($G197:P197),0) -> 0 | Q198: =IF(COUNT($H197:Q197)='RFM input'!$W$7,SUM($G197:Q197),0) -> 0
C199: =Asset17 -> Overhead Low Voltage Lines Underbuilt Rural | H199: =($G131+(SUM($G199:G199)))*H$6 -> 0.1221193021 | I199: =($G131+(SUM($G199:H199)))*I$6 -> 0.1412201577 | J199: =IF(COUNT($H199:I199)>='RFM input'!$W$7,0,($G131+(SUM($G199:I199)))*J$6) -> 0 | K199: =IF(COUNT($H199:J199)>='RFM input'!$W$7,0,($G131+(SUM($G199:J199)))*K$6) -> 0 | L199: =IF(COUNT($H199:K199)>='RFM input'!$W$7,0,($G131+(SUM($G199:K199)))*L$6) -> 0 | M199: =IF(COUNT($H199:L199)>='RFM input'!$W$7,0,($G131+(SUM($G199:L199)))*M$6) -> 0 | N199: =IF(COUNT($H199:M199)>='RFM input'!$W$7,0,($G131+(SUM($G199:M199)))*N$6) -> 0 | O199: =IF(COUNT($H199:N199)>='RFM input'!$W$7,0,($G131+(SUM($G199:N199)))*O$6) -> 0 | P199: =IF(COUNT($H199:O199)>='RFM input'!$W$7,0,($G131+(SUM($G199:O199)))*P$6) -> 0 | Q199: =IF(COUNT($H199:P199)>='RFM input'!$W$7,0,($G131+(SUM($G199:P199)))*Q$6) -> 0
C200: Sub-total | I200: =IF(COUNT($H199:I199)='RFM input'!$W$7,SUM($G199:I199),0) -> 0.2633394599 | J200: =IF(COUNT($H199:J199)='RFM input'!$W$7,SUM($G199:J199),0) -> 0 | K200: =IF(COUNT($H199:K199)='RFM input'!$W$7,SUM($G199:K199),0) -> 0 | L200: =IF(COUNT($H199:L199)='RFM input'!$W$7,SUM($G199:L199),0) -> 0 | M200: =IF(COUNT($H199:M199)='RFM input'!$W$7,SUM($G199:M199),0) -> 0 | N200: =IF(COUNT($H199:N199)='RFM input'!$W$7,SUM($G199:N199),0) -> 0 | O200: =IF(COUNT($H199:O199)='RFM input'!$W$7,SUM($G199:O199),0) -> 0 | P200: =IF(COUNT($H199:P199)='RFM input'!$W$7,SUM($G199:P199),0) -> 0 | Q200: =IF(COUNT($H199:Q199)='RFM input'!$W$7,SUM($G199:Q199),0) -> 0
C201: =Asset18 -> Overhead Low Voltage Lines Urban | H201: =($G132+(SUM($G201:G201)))*H$6 -> 0.119521618 | I201: =($G132+(SUM($G201:H201)))*I$6 -> 0.1382161661 | J201: =IF(COUNT($H201:I201)>='RFM input'!$W$7,0,($G132+(SUM($G201:I201)))*J$6) -> 0 | K201: =IF(COUNT($H201:J201)>='RFM input'!$W$7,0,($G132+(SUM($G201:J201)))*K$6) -> 0 | L201: =IF(COUNT($H201:K201)>='RFM input'!$W$7,0,($G132+(SUM($G201:K201)))*L$6) -> 0 | M201: =IF(COUNT($H201:L201)>='RFM input'!$W$7,0,($G132+(SUM($G201:L201)))*M$6) -> 0 | N201: =IF(COUNT($H201:M201)>='RFM input'!$W$7,0,($G132+(SUM($G201:M201)))*N$6) -> 0 | O201: =IF(COUNT($H201:N201)>='RFM input'!$W$7,0,($G132+(SUM($G201:N201)))*O$6) -> 0 | P201: =IF(COUNT($H201:O201)>='RFM input'!$W$7,0,($G132+(SUM($G201:O201)))*P$6) -> 0 | Q201: =IF(COUNT($H201:P201)>='RFM input'!$W$7,0,($G132+(SUM($G201:P201)))*Q$6) -> 0
C202: Sub-total | I202: =IF(COUNT($H201:I201)='RFM input'!$W$7,SUM($G201:I201),0) -> 0.2577377841 | J202: =IF(COUNT($H201:J201)='RFM input'!$W$7,SUM($G201:J201),0) -> 0 | K202: =IF(COUNT($H201:K201)='RFM input'!$W$7,SUM($G201:K201),0) -> 0 | L202: =IF(COUNT($H201:L201)='RFM input'!$W$7,SUM($G201:L201),0) -> 0 | M202: =IF(COUNT($H201:M201)='RFM input'!$W$7,SUM($G201:M201),0) -> 0 | N202: =IF(COUNT($H201:N201)='RFM input'!$W$7,SUM($G201:N201),0) -> 0 | O202: =IF(COUNT($H201:O201)='RFM input'!$W$7,SUM($G201:O201),0) -> 0 | P202: =IF(COUNT($H201:P201)='RFM input'!$W$7,SUM($G201:P201),0) -> 0 | Q202: =IF(COUNT($H201:Q201)='RFM input'!$W$7,SUM($G201:Q201),0) -> 0
C203: =Asset19 -> Overhead Low Voltage Lines Rural | H203: =($G133+(SUM($G203:G203)))*H$6 -> 0.204470585 | I203: =($G133+(SUM($G203:H203)))*I$6 -> 0.2364521231 | J203: =IF(COUNT($H203:I203)>='RFM input'!$W$7,0,($G133+(SUM($G203:I203)))*J$6) -> 0 | K203: =IF(COUNT($H203:J203)>='RFM input'!$W$7,0,($G133+(SUM($G203:J203)))*K$6) -> 0 | L203: =IF(COUNT($H203:K203)>='RFM input'!$W$7,0,($G133+(SUM($G203:K203)))*L$6) -> 0 | M203: =IF(COUNT($H203:L203)>='RFM input'!$W$7,0,($G133+(SUM($G203:L203)))*M$6) -> 0 | N203: =IF(COUNT($H203:M203)>='RFM input'!$W$7,0,($G133+(SUM($G203:M203)))*N$6) -> 0 | O203: =IF(COUNT($H203:N203)>='RFM input'!$W$7,0,($G133+(SUM($G203:N203)))*O$6) -> 0 | P203: =IF(COUNT($H203:O203)>='RFM input'!$W$7,0,($G133+(SUM($G203:O203)))*P$6) -> 0 | Q203: =IF(COUNT($H203:P203)>='RFM input'!$W$7,0,($G133+(SUM($G203:P203)))*Q$6) -> 0
C204: Sub-total | I204: =IF(COUNT($H203:I203)='RFM input'!$W$7,SUM($G203:I203),0) -> 0.4409227082 | J204: =IF(COUNT($H203:J203)='RFM input'!$W$7,SUM($G203:J203),0) -> 0 | K204: =IF(COUNT($H203:K203)='RFM input'!$W$7,SUM($G203:K203),0) -> 0 | L204: =IF(COUNT($H203:L203)='RFM input'!$W$7,SUM($G203:L203),0) -> 0 | M204: =IF(COUNT($H203:M203)='RFM input'!$W$7,SUM($G203:M203),0) -> 0 | N204: =IF(COUNT($H203:N203)='RFM input'!$W$7,SUM($G203:N203),0) -> 0 | O204: =IF(COUNT($H203:O203)='RFM input'!$W$7,SUM($G203:O203),0) -> 0 | P204: =IF(COUNT($H203:P203)='RFM input'!$W$7,SUM($G203:P203),0) -> 0 | Q204: =IF(COUNT($H203:Q203)='RFM input'!$W$7,SUM($G203:Q203),0) -> 0
C205: =Asset20 -> Underground Low Voltage Lines | H205: =($G134+(SUM($G205:G205)))*H$6 -> -0.01434332561 | I205: =($G134+(SUM($G205:H205)))*I$6 -> -0.01658678578 | J205: =IF(COUNT($H205:I205)>='RFM input'!$W$7,0,($G134+(SUM($G205:I205)))*J$6) -> 0 | K205: =IF(COUNT($H205:J205)>='RFM input'!$W$7,0,($G134+(SUM($G205:J205)))*K$6) -> 0 | L205: =IF(COUNT($H205:K205)>='RFM input'!$W$7,0,($G134+(SUM($G205:K205)))*L$6) -> 0 | M205: =IF(COUNT($H205:L205)>='RFM input'!$W$7,0,($G134+(SUM($G205:L205)))*M$6) -> 0 | N205: =IF(COUNT($H205:M205)>='RFM input'!$W$7,0,($G134+(SUM($G205:M205)))*N$6) -> 0 | O205: =IF(COUNT($H205:N205)>='RFM input'!$W$7,0,($G134+(SUM($G205:N205)))*O$6) -> 0 | P205: =IF(COUNT($H205:O205)>='RFM input'!$W$7,0,($G134+(SUM($G205:O205)))*P$6) -> 0 | Q205: =IF(COUNT($H205:P205)>='RFM input'!$W$7,0,($G134+(SUM($G205:P205)))*Q$6) -> 0
C206: Sub-total | I206: =IF(COUNT($H205:I205)='RFM input'!$W$7,SUM($G205:I205),0) -> -0.03093011139 | J206: =IF(COUNT($H205:J205)='RFM input'!$W$7,SUM($G205:J205),0) -> 0 | K206: =IF(COUNT($H205:K205)='RFM input'!$W$7,SUM($G205:K205),0) -> 0 | L206: =IF(COUNT($H205:L205)='RFM input'!$W$7,SUM($G205:L205),0) -> 0 | M206: =IF(COUNT($H205:M205)='RFM input'!$W$7,SUM($G205:M205),0) -> 0 | N206: =IF(COUNT($H205:N205)='RFM input'!$W$7,SUM($G205:N205),0) -> 0 | O206: =IF(COUNT($H205:O205)='RFM input'!$W$7,SUM($G205:O205),0) -> 0 | P206: =IF(COUNT($H205:P205)='RFM input'!$W$7,SUM($G205:P205),0) -> 0 | Q206: =IF(COUNT($H205:Q205)='RFM input'!$W$7,SUM($G205:Q205),0) -> 0
C207: =Asset21 -> Underground Low Voltage Common Trench | H207: =($G135+(SUM($G207:G207)))*H$6 -> 0.02130617995 | I207: =($G135+(SUM($G207:H207)))*I$6 -> 0.02463871018 | J207: =IF(COUNT($H207:I207)>='RFM input'!$W$7,0,($G135+(SUM($G207:I207)))*J$6) -> 0 | K207: =IF(COUNT($H207:J207)>='RFM input'!$W$7,0,($G135+(SUM($G207:J207)))*K$6) -> 0 | L207: =IF(COUNT($H207:K207)>='RFM input'!$W$7,0,($G135+(SUM($G207:K207)))*L$6) -> 0 | M207: =IF(COUNT($H207:L207)>='RFM input'!$W$7,0,($G135+(SUM($G207:L207)))*M$6) -> 0 | N207: =IF(COUNT($H207:M207)>='RFM input'!$W$7,0,($G135+(SUM($G207:M207)))*N$6) -> 0 | O207: =IF(COUNT($H207:N207)>='RFM input'!$W$7,0,($G135+(SUM($G207:N207)))*O$6) -> 0 | P207: =IF(COUNT($H207:O207)>='RFM input'!$W$7,0,($G135+(SUM($G207:O207)))*P$6) -> 0 | Q207: =IF(COUNT($H207:P207)>='RFM input'!$W$7,0,($G135+(SUM($G207:P207)))*Q$6) -> 0
C208: Sub-total | I208: =IF(COUNT($H207:I207)='RFM input'!$W$7,SUM($G207:I207),0) -> 0.04594489014 | J208: =IF(COUNT($H207:J207)='RFM input'!$W$7,SUM($G207:J207),0) -> 0 | K208: =IF(COUNT($H207:K207)='RFM input'!$W$7,SUM($G207:K207),0) -> 0 | L208: =IF(COUNT($H207:L207)='RFM input'!$W$7,SUM($G207:L207),0) -> 0 | M208: =IF(COUNT($H207:M207)='RFM input'!$W$7,SUM($G207:M207),0) -> 0 | N208: =IF(COUNT($H207:N207)='RFM input'!$W$7,SUM($G207:N207),0) -> 0 | O208: =IF(COUNT($H207:O207)='RFM input'!$W$7,SUM($G207:O207),0) -> 0 | P208: =IF(COUNT($H207:P207)='RFM input'!$W$7,SUM($G207:P207),0) -> 0 | Q208: =IF(COUNT($H207:Q207)='RFM input'!$W$7,SUM($G207:Q207),0) -> 0
... 59 more rows

Sheet RAB roll forward
C2: ='DMS input'!$C$16&" - Asset Roll Forward"&" - DNSP RFM - version "&Intro!$M$4 -> TasNetworks - Asset Roll Forward - DNSP RFM - version 2
G3: 0 | H3: =G3+1 -> 1 | I3: 2 | J3: 3 | K3: 4 | L3: 5 | M3: 6 | N3: 7 | O3: 8 | P3: 9 | Q3: 10 | R3: 11
C4: Year | G4: ='RFM input'!G60 -> 2016-17 | H4: ='RFM input'!H60 -> 2017-18 | I4: ='RFM input'!I60 -> 2018-19 | J4: ='RFM input'!J60 -> 2019-20 | K4: ='RFM input'!K60 -> 2020-21 | L4: ='RFM input'!L60 -> 2021-22 | M4: ='RFM input'!M60 -> 2022-23 | N4: ='RFM input'!N60 -> 2023-24 | O4: ='RFM input'!O60 -> 2024-25 | P4: ='RFM input'!P60 -> 2025-26 | Q4: ='RFM input'!Q60 -> 2026-27 | R4: =IF(LEN(Q4)>4,CONCATENATE(LEFT(Q4, 4)+1 &"-" &IF(Q4>"2007-08",,"0") &RIGHT(Q4,2)+1),Q4+1) -> 2027-28
C6: ='RFM input'!F282 -> Actual CPI Inflation Rate | G6: ='RFM input'!G282 -> 0.02125693161 | H6: ='RFM input'!H282 -> 0.01909090909 | I6: ='RFM input'!I282 -> 0.0245 | J6: ='RFM input'!J282 -> 0 | K6: ='RFM input'!K282 -> 0 | L6: ='RFM input'!L282 -> 0 | M6: ='RFM input'!M282 -> 0 | N6: ='RFM input'!N282 -> 0 | O6: ='RFM input'!O282 -> 0 | P6: ='RFM input'!P282 -> 0 | Q6: ='RFM input'!Q282 -> 0
C7: Actual CPI (one year lagged) | G7: ='RFM input'!G283 -> 1 | H7: ='RFM input'!H283 -> 1.021256932 | I7: ='RFM input'!I283 -> 1.040753655 | J7: ='RFM input'!J283 -> 1.066252119 | K7: ='RFM input'!K283 -> 1.066252119 | L7: ='RFM input'!L283 -> 1.066252119 | M7: ='RFM input'!M283 -> 1.066252119 | N7: ='RFM input'!N283 -> 1.066252119 | O7: ='RFM input'!O283 -> 1.066252119 | P7: ='RFM input'!P283 -> 1.066252119 | Q7: ='RFM input'!Q283 -> 1.066252119
C9: ="Asset Values ($m Real "&G4&")" -> Asset Values ($m Real 2016-17)
C11: Real Actual Net Capex - As Incurred | H11: =SUM(H12:H61) -> 114.8403474 | I11: 104.6266247 | J11: 0 | K11: 0 | L11: 0 | M11: 0 | N11: 0 | O11: 0 | P11: 0 | Q11: 0
D12: =Asset1 -> Overhead Subtransmission Lines (Urban) | H12: ='RFM input'!H223*(1+vanilla1)^0.5 -> 0.1774957936 | I12: ='RFM input'!I223*(1+vanilla2)^0.5 -> 0.1837912948 | J12: ='RFM input'!J223*(1+vanilla3)^0.5 -> 0 | K12: ='RFM input'!K223*(1+vanilla4)^0.5 -> 0 | L12: ='RFM input'!L223*(1+vanilla5)^0.5 -> 0 | M12: ='RFM input'!M223*(1+vanilla6)^0.5 -> 0 | N12: ='RFM input'!N223*(1+vanilla7)^0.5 -> 0 | O12: ='RFM input'!O223*(1+vanilla8)^0.5 -> 0 | P12: ='RFM input'!P223*(1+vanilla9)^0.5 -> 0 | Q12: ='RFM input'!Q223*(1+vanilla10)^0.5 -> 0
D13: =Asset2 -> Underground Subtransmission Lines (Urban) | H13: ='RFM input'!H224*(1+vanilla1)^0.5 -> 0 | I13: ='RFM input'!I224*(1+vanilla2)^0.5 -> 0 | J13: ='RFM input'!J224*(1+vanilla3)^0.5 -> 0 | K13: ='RFM input'!K224*(1+vanilla4)^0.5 -> 0 | L13: ='RFM input'!L224*(1+vanilla5)^0.5 -> 0 | M13: ='RFM input'!M224*(1+vanilla6)^0.5 -> 0 | N13: ='RFM input'!N224*(1+vanilla7)^0.5 -> 0 | O13: ='RFM input'!O224*(1+vanilla8)^0.5 -> 0 | P13: ='RFM input'!P224*(1+vanilla9)^0.5 -> 0 | Q13: ='RFM input'!Q224*(1+vanilla10)^0.5 -> 0
D14: =Asset3 -> Urban Zone Substations | H14: ='RFM input'!H225*(1+vanilla1)^0.5 -> 0.8350838064 | I14: ='RFM input'!I225*(1+vanilla2)^0.5 -> 4.405982823 | J14: ='RFM input'!J225*(1+vanilla3)^0.5 -> 0 | K14: ='RFM input'!K225*(1+vanilla4)^0.5 -> 0 | L14: ='RFM input'!L225*(1+vanilla5)^0.5 -> 0 | M14: ='RFM input'!M225*(1+vanilla6)^0.5 -> 0 | N14: ='RFM input'!N225*(1+vanilla7)^0.5 -> 0 | O14: ='RFM input'!O225*(1+vanilla8)^0.5 -> 0 | P14: ='RFM input'!P225*(1+vanilla9)^0.5 -> 0 | Q14: ='RFM input'!Q225*(1+vanilla10)^0.5 -> 0
D15: =Asset4 -> Rural Zone Substations | H15: ='RFM input'!H226*(1+vanilla1)^0.5 -> 1.156614558 | I15: ='RFM input'!I226*(1+vanilla2)^0.5 -> 2.148393498 | J15: ='RFM input'!J226*(1+vanilla3)^0.5 -> 0 | K15: ='RFM input'!K226*(1+vanilla4)^0.5 -> 0 | L15: ='RFM input'!L226*(1+vanilla5)^0.5 -> 0 | M15: ='RFM input'!M226*(1+vanilla6)^0.5 -> 0 | N15: ='RFM input'!N226*(1+vanilla7)^0.5 -> 0 | O15: ='RFM input'!O226*(1+vanilla8)^0.5 -> 0 | P15: ='RFM input'!P226*(1+vanilla9)^0.5 -> 0 | Q15: ='RFM input'!Q226*(1+vanilla10)^0.5 -> 0
D16: =Asset5 -> SCADA | H16: ='RFM input'!H227*(1+vanilla1)^0.5 -> 3.424943729 | I16: ='RFM input'!I227*(1+vanilla2)^0.5 -> 2.125749685 | J16: ='RFM input'!J227*(1+vanilla3)^0.5 -> 0 | K16: ='RFM input'!K227*(1+vanilla4)^0.5 -> 0 | L16: ='RFM input'!L227*(1+vanilla5)^0.5 -> 0 | M16: ='RFM input'!M227*(1+vanilla6)^0.5 -> 0 | N16: ='RFM input'!N227*(1+vanilla7)^0.5 -> 0 | O16: ='RFM input'!O227*(1+vanilla8)^0.5 -> 0 | P16: ='RFM input'!P227*(1+vanilla9)^0.5 -> 0 | Q16: ='RFM input'!Q227*(1+vanilla10)^0.5 -> 0
D17: =Asset6 -> Distribution Switching Stations (Ground) | H17: ='RFM input'!H228*(1+vanilla1)^0.5 -> 0.2690513282 | I17: ='RFM input'!I228*(1+vanilla2)^0.5 -> 0.2183536619 | J17: ='RFM input'!J228*(1+vanilla3)^0.5 -> 0 | K17: ='RFM input'!K228*(1+vanilla4)^0.5 -> 0 | L17: ='RFM input'!L228*(1+vanilla5)^0.5 -> 0 | M17: ='RFM input'!M228*(1+vanilla6)^0.5 -> 0 | N17: ='RFM input'!N228*(1+vanilla7)^0.5 -> 0 | O17: ='RFM input'!O228*(1+vanilla8)^0.5 -> 0 | P17: ='RFM input'!P228*(1+vanilla9)^0.5 -> 0 | Q17: ='RFM input'!Q228*(1+vanilla10)^0.5 -> 0
D18: =Asset7 -> Overhead High Voltage Lines Urban | H18: ='RFM input'!H229*(1+vanilla1)^0.5 -> 6.181582899 | I18: ='RFM input'!I229*(1+vanilla2)^0.5 -> 6.293772514 | J18: ='RFM input'!J229*(1+vanilla3)^0.5 -> 0 | K18: ='RFM input'!K229*(1+vanilla4)^0.5 -> 0 | L18: ='RFM input'!L229*(1+vanilla5)^0.5 -> 0 | M18: ='RFM input'!M229*(1+vanilla6)^0.5 -> 0 | N18: ='RFM input'!N229*(1+vanilla7)^0.5 -> 0 | O18: ='RFM input'!O229*(1+vanilla8)^0.5 -> 0 | P18: ='RFM input'!P229*(1+vanilla9)^0.5 -> 0 | Q18: ='RFM input'!Q229*(1+vanilla10)^0.5 -> 0
D19: =Asset8 -> Overhead High Voltage Lines Rural | H19: ='RFM input'!H230*(1+vanilla1)^0.5 -> 19.81132041 | I19: ='RFM input'!I230*(1+vanilla2)^0.5 -> 19.36559156 | J19: ='RFM input'!J230*(1+vanilla3)^0.5 -> 0 | K19: ='RFM input'!K230*(1+vanilla4)^0.5 -> 0 | L19: ='RFM input'!L230*(1+vanilla5)^0.5 -> 0 | M19: ='RFM input'!M230*(1+vanilla6)^0.5 -> 0 | N19: ='RFM input'!N230*(1+vanilla7)^0.5 -> 0 | O19: ='RFM input'!O230*(1+vanilla8)^0.5 -> 0 | P19: ='RFM input'!P230*(1+vanilla9)^0.5 -> 0 | Q19: ='RFM input'!Q230*(1+vanilla10)^0.5 -> 0
D20: =Asset9 -> Voltage Regulators on Distribution Feeders | H20: ='RFM input'!H231*(1+vanilla1)^0.5 -> 1.617255303 | I20: ='RFM input'!I231*(1+vanilla2)^0.5 -> 0.8151705792 | J20: ='RFM input'!J231*(1+vanilla3)^0.5 -> 0 | K20: ='RFM input'!K231*(1+vanilla4)^0.5 -> 0 | L20: ='RFM input'!L231*(1+vanilla5)^0.5 -> 0 | M20: ='RFM input'!M231*(1+vanilla6)^0.5 -> 0 | N20: ='RFM input'!N231*(1+vanilla7)^0.5 -> 0 | O20: ='RFM input'!O231*(1+vanilla8)^0.5 -> 0 | P20: ='RFM input'!P231*(1+vanilla9)^0.5 -> 0 | Q20: ='RFM input'!Q231*(1+vanilla10)^0.5 -> 0
D21: =Asset10 -> Underground High Voltage Lines | H21: ='RFM input'!H232*(1+vanilla1)^0.5 -> 6.490504359 | I21: ='RFM input'!I232*(1+vanilla2)^0.5 -> 5.893257626 | J21: ='RFM input'!J232*(1+vanilla3)^0.5 -> 0 | K21: ='RFM input'!K232*(1+vanilla4)^0.5 -> 0 | L21: ='RFM input'!L232*(1+vanilla5)^0.5 -> 0 | M21: ='RFM input'!M232*(1+vanilla6)^0.5 -> 0 | N21: ='RFM input'!N232*(1+vanilla7)^0.5 -> 0 | O21: ='RFM input'!O232*(1+vanilla8)^0.5 -> 0 | P21: ='RFM input'!P232*(1+vanilla9)^0.5 -> 0 | Q21: ='RFM input'!Q232*(1+vanilla10)^0.5 -> 0
D22: =Asset11 -> Underground High Voltage Lines SWER | H22: ='RFM input'!H233*(1+vanilla1)^0.5 -> 0 | I22: ='RFM input'!I233*(1+vanilla2)^0.5 -> 0 | J22: ='RFM input'!J233*(1+vanilla3)^0.5 -> 0 | K22: ='RFM input'!K233*(1+vanilla4)^0.5 -> 0 | L22: ='RFM input'!L233*(1+vanilla5)^0.5 -> 0 | M22: ='RFM input'!M233*(1+vanilla6)^0.5 -> 0 | N22: ='RFM input'!N233*(1+vanilla7)^0.5 -> 0 | O22: ='RFM input'!O233*(1+vanilla8)^0.5 -> 0 | P22: ='RFM input'!P233*(1+vanilla9)^0.5 -> 0 | Q22: ='RFM input'!Q233*(1+vanilla10)^0.5 -> 0
D23: =Asset12 -> Distribution Substations HV (Pole) | H23: ='RFM input'!H234*(1+vanilla1)^0.5 -> 0.1628803171 | I23: ='RFM input'!I234*(1+vanilla2)^0.5 -> 0.1658122963 | J23: ='RFM input'!J234*(1+vanilla3)^0.5 -> 0 | K23: ='RFM input'!K234*(1+vanilla4)^0.5 -> 0 | L23: ='RFM input'!L234*(1+vanilla5)^0.5 -> 0 | M23: ='RFM input'!M234*(1+vanilla6)^0.5 -> 0 | N23: ='RFM input'!N234*(1+vanilla7)^0.5 -> 0 | O23: ='RFM input'!O234*(1+vanilla8)^0.5 -> 0 | P23: ='RFM input'!P234*(1+vanilla9)^0.5 -> 0 | Q23: ='RFM input'!Q234*(1+vanilla10)^0.5 -> 0
D24: =Asset13 -> Distribution Substations HV (Ground) | H24: ='RFM input'!H235*(1+vanilla1)^0.5 -> 3.582369596 | I24: ='RFM input'!I235*(1+vanilla2)^0.5 -> 3.471974779 | J24: ='RFM input'!J235*(1+vanilla3)^0.5 -> 0 | K24: ='RFM input'!K235*(1+vanilla4)^0.5 -> 0 | L24: ='RFM input'!L235*(1+vanilla5)^0.5 -> 0 | M24: ='RFM input'!M235*(1+vanilla6)^0.5 -> 0 | N24: ='RFM input'!N235*(1+vanilla7)^0.5 -> 0 | O24: ='RFM input'!O235*(1+vanilla8)^0.5 -> 0 | P24: ='RFM input'!P235*(1+vanilla9)^0.5 -> 0 | Q24: ='RFM input'!Q235*(1+vanilla10)^0.5 -> 0
D25: =Asset14 -> Distribution Substations LV (Pole) | H25: ='RFM input'!H236*(1+vanilla1)^0.5 -> 6.794341299 | I25: ='RFM input'!I236*(1+vanilla2)^0.5 -> 6.915753444 | J25: ='RFM input'!J236*(1+vanilla3)^0.5 -> 0 | K25: ='RFM input'!K236*(1+vanilla4)^0.5 -> 0 | L25: ='RFM input'!L236*(1+vanilla5)^0.5 -> 0 | M25: ='RFM input'!M236*(1+vanilla6)^0.5 -> 0 | N25: ='RFM input'!N236*(1+vanilla7)^0.5 -> 0 | O25: ='RFM input'!O236*(1+vanilla8)^0.5 -> 0 | P25: ='RFM input'!P236*(1+vanilla9)^0.5 -> 0 | Q25: ='RFM input'!Q236*(1+vanilla10)^0.5 -> 0
D26: =Asset15 -> Distribution Substations LV (Ground) | H26: ='RFM input'!H237*(1+vanilla1)^0.5 -> 6.064806863 | I26: ='RFM input'!I237*(1+vanilla2)^0.5 -> 5.958285114 | J26: ='RFM input'!J237*(1+vanilla3)^0.5 -> 0 | K26: ='RFM input'!K237*(1+vanilla4)^0.5 -> 0 | L26: ='RFM input'!L237*(1+vanilla5)^0.5 -> 0 | M26: ='RFM input'!M237*(1+vanilla6)^0.5 -> 0 | N26: ='RFM input'!N237*(1+vanilla7)^0.5 -> 0 | O26: ='RFM input'!O237*(1+vanilla8)^0.5 -> 0 | P26: ='RFM input'!P237*(1+vanilla9)^0.5 -> 0 | Q26: ='RFM input'!Q237*(1+vanilla10)^0.5 -> 0
D27: =Asset16 -> Overhead Low Voltage Lines Underbuilt Urban | H27: ='RFM input'!H238*(1+vanilla1)^0.5 -> 3.583124819 | I27: ='RFM input'!I238*(1+vanilla2)^0.5 -> 3.638607411 | J27: ='RFM input'!J238*(1+vanilla3)^0.5 -> 0 | K27: ='RFM input'!K238*(1+vanilla4)^0.5 -> 0 | L27: ='RFM input'!L238*(1+vanilla5)^0.5 -> 0 | M27: ='RFM input'!M238*(1+vanilla6)^0.5 -> 0 | N27: ='RFM input'!N238*(1+vanilla7)^0.5 -> 0 | O27: ='RFM input'!O238*(1+vanilla8)^0.5 -> 0 | P27: ='RFM input'!P238*(1+vanilla9)^0.5 -> 0 | Q27: ='RFM input'!Q238*(1+vanilla10)^0.5 -> 0
D28: =Asset17 -> Overhead Low Voltage Lines Underbuilt Rural | H28: ='RFM input'!H239*(1+vanilla1)^0.5 -> 3.068608783 | I28: ='RFM input'!I239*(1+vanilla2)^0.5 -> 3.088693633 | J28: ='RFM input'!J239*(1+vanilla3)^0.5 -> 0 | K28: ='RFM input'!K239*(1+vanilla4)^0.5 -> 0 | L28: ='RFM input'!L239*(1+vanilla5)^0.5 -> 0 | M28: ='RFM input'!M239*(1+vanilla6)^0.5 -> 0 | N28: ='RFM input'!N239*(1+vanilla7)^0.5 -> 0 | O28: ='RFM input'!O239*(1+vanilla8)^0.5 -> 0 | P28: ='RFM input'!P239*(1+vanilla9)^0.5 -> 0 | Q28: ='RFM input'!Q239*(1+vanilla10)^0.5 -> 0
D29: =Asset18 -> Overhead Low Voltage Lines Urban | H29: ='RFM input'!H240*(1+vanilla1)^0.5 -> 4.035277645 | I29: ='RFM input'!I240*(1+vanilla2)^0.5 -> 4.104258803 | J29: ='RFM input'!J240*(1+vanilla3)^0.5 -> 0 | K29: ='RFM input'!K240*(1+vanilla4)^0.5 -> 0 | L29: ='RFM input'!L240*(1+vanilla5)^0.5 -> 0 | M29: ='RFM input'!M240*(1+vanilla6)^0.5 -> 0 | N29: ='RFM input'!N240*(1+vanilla7)^0.5 -> 0 | O29: ='RFM input'!O240*(1+vanilla8)^0.5 -> 0 | P29: ='RFM input'!P240*(1+vanilla9)^0.5 -> 0 | Q29: ='RFM input'!Q240*(1+vanilla10)^0.5 -> 0
D30: =Asset19 -> Overhead Low Voltage Lines Rural | H30: ='RFM input'!H241*(1+vanilla1)^0.5 -> 6.352783548 | I30: ='RFM input'!I241*(1+vanilla2)^0.5 -> 6.423919596 | J30: ='RFM input'!J241*(1+vanilla3)^0.5 -> 0 | K30: ='RFM input'!K241*(1+vanilla4)^0.5 -> 0 | L30: ='RFM input'!L241*(1+vanilla5)^0.5 -> 0 | M30: ='RFM input'!M241*(1+vanilla6)^0.5 -> 0 | N30: ='RFM input'!N241*(1+vanilla7)^0.5 -> 0 | O30: ='RFM input'!O241*(1+vanilla8)^0.5 -> 0 | P30: ='RFM input'!P241*(1+vanilla9)^0.5 -> 0 | Q30: ='RFM input'!Q241*(1+vanilla10)^0.5 -> 0
D31: =Asset20 -> Underground Low Voltage Lines | H31: ='RFM input'!H242*(1+vanilla1)^0.5 -> 4.521049 | I31: ='RFM input'!I242*(1+vanilla2)^0.5 -> 4.546886573 | J31: ='RFM input'!J242*(1+vanilla3)^0.5 -> 0 | K31: ='RFM input'!K242*(1+vanilla4)^0.5 -> 0 | L31: ='RFM input'!L242*(1+vanilla5)^0.5 -> 0 | M31: ='RFM input'!M242*(1+vanilla6)^0.5 -> 0 | N31: ='RFM input'!N242*(1+vanilla7)^0.5 -> 0 | O31: ='RFM input'!O242*(1+vanilla8)^0.5 -> 0 | P31: ='RFM input'!P242*(1+vanilla9)^0.5 -> 0 | Q31: ='RFM input'!Q242*(1+vanilla10)^0.5 -> 0
D32: =Asset21 -> Underground Low Voltage Common Trench | H32: ='RFM input'!H243*(1+vanilla1)^0.5 -> 0.9038777876 | I32: ='RFM input'!I243*(1+vanilla2)^0.5 -> 0.9144479355 | J32: ='RFM input'!J243*(1+vanilla3)^0.5 -> 0 | K32: ='RFM input'!K243*(1+vanilla4)^0.5 -> 0 | L32: ='RFM input'!L243*(1+vanilla5)^0.5 -> 0 | M32: ='RFM input'!M243*(1+vanilla6)^0.5 -> 0 | N32: ='RFM input'!N243*(1+vanilla7)^0.5 -> 0 | O32: ='RFM input'!O243*(1+vanilla8)^0.5 -> 0 | P32: ='RFM input'!P243*(1+vanilla9)^0.5 -> 0 | Q32: ='RFM input'!Q243*(1+vanilla10)^0.5 -> 0
D33: =Asset22 -> HVST Service Connections | H33: ='RFM input'!H244*(1+vanilla1)^0.5 -> 0 | I33: ='RFM input'!I244*(1+vanilla2)^0.5 -> 0 | J33: ='RFM input'!J244*(1+vanilla3)^0.5 -> 0 | K33: ='RFM input'!K244*(1+vanilla4)^0.5 -> 0 | L33: ='RFM input'!L244*(1+vanilla5)^0.5 -> 0 | M33: ='RFM input'!M244*(1+vanilla6)^0.5 -> 0 | N33: ='RFM input'!N244*(1+vanilla7)^0.5 -> 0 | O33: ='RFM input'!O244*(1+vanilla8)^0.5 -> 0 | P33: ='RFM input'!P244*(1+vanilla9)^0.5 -> 0 | Q33: ='RFM input'!Q244*(1+vanilla10)^0.5 -> 0
D34: =Asset23 -> HV Service Connections | H34: ='RFM input'!H245*(1+vanilla1)^0.5 -> 0.08139887541 | I34: ='RFM input'!I245*(1+vanilla2)^0.5 -> 0.07883255411 | J34: ='RFM input'!J245*(1+vanilla3)^0.5 -> 0 | K34: ='RFM input'!K245*(1+vanilla4)^0.5 -> 0 | L34: ='RFM input'!L245*(1+vanilla5)^0.5 -> 0 | M34: ='RFM input'!M245*(1+vanilla6)^0.5 -> 0 | N34: ='RFM input'!N245*(1+vanilla7)^0.5 -> 0 | O34: ='RFM input'!O245*(1+vanilla8)^0.5 -> 0 | P34: ='RFM input'!P245*(1+vanilla9)^0.5 -> 0 | Q34: ='RFM input'!Q245*(1+vanilla10)^0.5 -> 0
D35: =Asset24 -> HV Metering CA Service Connections | H35: ='RFM input'!H246*(1+vanilla1)^0.5 -> 0.02462723071 | I35: ='RFM input'!I246*(1+vanilla2)^0.5 -> 0.02469244525 | J35: ='RFM input'!J246*(1+vanilla3)^0.5 -> 0 | K35: ='RFM input'!K246*(1+vanilla4)^0.5 -> 0 | L35: ='RFM input'!L246*(1+vanilla5)^0.5 -> 0 | M35: ='RFM input'!M246*(1+vanilla6)^0.5 -> 0 | N35: ='RFM input'!N246*(1+vanilla7)^0.5 -> 0 | O35: ='RFM input'!O246*(1+vanilla8)^0.5 -> 0 | P35: ='RFM input'!P246*(1+vanilla9)^0.5 -> 0 | Q35: ='RFM input'!Q246*(1+vanilla10)^0.5 -> 0
D36: =Asset25 -> HV/LV Service Connections | H36: ='RFM input'!H247*(1+vanilla1)^0.5 -> 0.1472286008 | I36: ='RFM input'!I247*(1+vanilla2)^0.5 -> 0.1425868181 | J36: ='RFM input'!J247*(1+vanilla3)^0.5 -> 0 | K36: ='RFM input'!K247*(1+vanilla4)^0.5 -> 0 | L36: ='RFM input'!L247*(1+vanilla5)^0.5 -> 0 | M36: ='RFM input'!M247*(1+vanilla6)^0.5 -> 0 | N36: ='RFM input'!N247*(1+vanilla7)^0.5 -> 0 | O36: ='RFM input'!O247*(1+vanilla8)^0.5 -> 0 | P36: ='RFM input'!P247*(1+vanilla9)^0.5 -> 0 | Q36: ='RFM input'!Q247*(1+vanilla10)^0.5 -> 0
D37: =Asset26 -> Business LV Service Connections | H37: ='RFM input'!H248*(1+vanilla1)^0.5 -> 0.3958802045 | I37: ='RFM input'!I248*(1+vanilla2)^0.5 -> 0.3837444378 | J37: ='RFM input'!J248*(1+vanilla3)^0.5 -> 0 | K37: ='RFM input'!K248*(1+vanilla4)^0.5 -> 0 | L37: ='RFM input'!L248*(1+vanilla5)^0.5 -> 0 | M37: ='RFM input'!M248*(1+vanilla6)^0.5 -> 0 | N37: ='RFM input'!N248*(1+vanilla7)^0.5 -> 0 | O37: ='RFM input'!O248*(1+vanilla8)^0.5 -> 0 | P37: ='RFM input'!P248*(1+vanilla9)^0.5 -> 0 | Q37: ='RFM input'!Q248*(1+vanilla10)^0.5 -> 0
D38: =Asset27 -> Business LV Metering CA Service Connections | H38: ='RFM input'!H249*(1+vanilla1)^0.5 -> 0.7156133916 | I38: ='RFM input'!I249*(1+vanilla2)^0.5 -> 0.7179807947 | J38: ='RFM input'!J249*(1+vanilla3)^0.5 -> 0 | K38: ='RFM input'!K249*(1+vanilla4)^0.5 -> 0 | L38: ='RFM input'!L249*(1+vanilla5)^0.5 -> 0 | M38: ='RFM input'!M249*(1+vanilla6)^0.5 -> 0 | N38: ='RFM input'!N249*(1+vanilla7)^0.5 -> 0 | O38: ='RFM input'!O249*(1+vanilla8)^0.5 -> 0 | P38: ='RFM input'!P249*(1+vanilla9)^0.5 -> 0 | Q38: ='RFM input'!Q249*(1+vanilla10)^0.5 -> 0
D39: =Asset28 -> Domestic LV Service Connections | H39: ='RFM input'!H250*(1+vanilla1)^0.5 -> 3.123608681 | I39: ='RFM input'!I250*(1+vanilla2)^0.5 -> 3.026164713 | J39: ='RFM input'!J250*(1+vanilla3)^0.5 -> 0 | K39: ='RFM input'!K250*(1+vanilla4)^0.5 -> 0 | L39: ='RFM input'!L250*(1+vanilla5)^0.5 -> 0 | M39: ='RFM input'!M250*(1+vanilla6)^0.5 -> 0 | N39: ='RFM input'!N250*(1+vanilla7)^0.5 -> 0 | O39: ='RFM input'!O250*(1+vanilla8)^0.5 -> 0 | P39: ='RFM input'!P250*(1+vanilla9)^0.5 -> 0 | Q39: ='RFM input'!Q250*(1+vanilla10)^0.5 -> 0
D40: =Asset29 -> Domestic LV Metering CA Service Connections | H40: ='RFM input'!H251*(1+vanilla1)^0.5 -> 0.5359848283 | I40: ='RFM input'!I251*(1+vanilla2)^0.5 -> 0.5394369523 | J40: ='RFM input'!J251*(1+vanilla3)^0.5 -> 0 | K40: ='RFM input'!K251*(1+vanilla4)^0.5 -> 0 | L40: ='RFM input'!L251*(1+vanilla5)^0.5 -> 0 | M40: ='RFM input'!M251*(1+vanilla6)^0.5 -> 0 | N40: ='RFM input'!N251*(1+vanilla7)^0.5 -> 0 | O40: ='RFM input'!O251*(1+vanilla8)^0.5 -> 0 | P40: ='RFM input'!P251*(1+vanilla9)^0.5 -> 0 | Q40: ='RFM input'!Q251*(1+vanilla10)^0.5 -> 0
D41: =Asset30 -> Wholesale Metering | H41: ='RFM input'!H252*(1+vanilla1)^0.5 -> 0 | I41: ='RFM input'!I252*(1+vanilla2)^0.5 -> 0 | J41: ='RFM input'!J252*(1+vanilla3)^0.5 -> 0 | K41: ='RFM input'!K252*(1+vanilla4)^0.5 -> 0 | L41: ='RFM input'!L252*(1+vanilla5)^0.5 -> 0 | M41: ='RFM input'!M252*(1+vanilla6)^0.5 -> 0 | N41: ='RFM input'!N252*(1+vanilla7)^0.5 -> 0 | O41: ='RFM input'!O252*(1+vanilla8)^0.5 -> 0 | P41: ='RFM input'!P252*(1+vanilla9)^0.5 -> 0 | Q41: ='RFM input'!Q252*(1+vanilla10)^0.5 -> 0
D42: =Asset31 -> HV Metering | H42: ='RFM input'!H253*(1+vanilla1)^0.5 -> 0 | I42: ='RFM input'!I253*(1+vanilla2)^0.5 -> 0 | J42: ='RFM input'!J253*(1+vanilla3)^0.5 -> 0 | K42: ='RFM input'!K253*(1+vanilla4)^0.5 -> 0 | L42: ='RFM input'!L253*(1+vanilla5)^0.5 -> 0 | M42: ='RFM input'!M253*(1+vanilla6)^0.5 -> 0 | N42: ='RFM input'!N253*(1+vanilla7)^0.5 -> 0 | O42: ='RFM input'!O253*(1+vanilla8)^0.5 -> 0 | P42: ='RFM input'!P253*(1+vanilla9)^0.5 -> 0 | Q42: ='RFM input'!Q253*(1+vanilla10)^0.5 -> 0
D43: =Asset32 -> HV/LV Metering | H43: ='RFM input'!H254*(1+vanilla1)^0.5 -> 0 | I43: ='RFM input'!I254*(1+vanilla2)^0.5 -> 0 | J43: ='RFM input'!J254*(1+vanilla3)^0.5 -> 0 | K43: ='RFM input'!K254*(1+vanilla4)^0.5 -> 0 | L43: ='RFM input'!L254*(1+vanilla5)^0.5 -> 0 | M43: ='RFM input'!M254*(1+vanilla6)^0.5 -> 0 | N43: ='RFM input'!N254*(1+vanilla7)^0.5 -> 0 | O43: ='RFM input'!O254*(1+vanilla8)^0.5 -> 0 | P43: ='RFM input'!P254*(1+vanilla9)^0.5 -> 0 | Q43: ='RFM input'!Q254*(1+vanilla10)^0.5 -> 0
D44: =Asset33 -> Business LV Metering | H44: ='RFM input'!H255*(1+vanilla1)^0.5 -> 0 | I44: ='RFM input'!I255*(1+vanilla2)^0.5 -> 0 | J44: ='RFM input'!J255*(1+vanilla3)^0.5 -> 0 | K44: ='RFM input'!K255*(1+vanilla4)^0.5 -> 0 | L44: ='RFM input'!L255*(1+vanilla5)^0.5 -> 0 | M44: ='RFM input'!M255*(1+vanilla6)^0.5 -> 0 | N44: ='RFM input'!N255*(1+vanilla7)^0.5 -> 0 | O44: ='RFM input'!O255*(1+vanilla8)^0.5 -> 0 | P44: ='RFM input'!P255*(1+vanilla9)^0.5 -> 0 | Q44: ='RFM input'!Q255*(1+vanilla10)^0.5 -> 0
D45: =Asset34 -> Domestic LV Metering | H45: ='RFM input'!H256*(1+vanilla1)^0.5 -> 0 | I45: ='RFM input'!I256*(1+vanilla2)^0.5 -> 0 | J45: ='RFM input'!J256*(1+vanilla3)^0.5 -> 0 | K45: ='RFM input'!K256*(1+vanilla4)^0.5 -> 0 | L45: ='RFM input'!L256*(1+vanilla5)^0.5 -> 0 | M45: ='RFM input'!M256*(1+vanilla6)^0.5 -> 0 | N45: ='RFM input'!N256*(1+vanilla7)^0.5 -> 0 | O45: ='RFM input'!O256*(1+vanilla8)^0.5 -> 0 | P45: ='RFM input'!P256*(1+vanilla9)^0.5 -> 0 | Q45: ='RFM input'!Q256*(1+vanilla10)^0.5 -> 0
D46: =Asset35 -> Off Peak Metering | H46: ='RFM input'!H257*(1+vanilla1)^0.5 -> 0 | I46: ='RFM input'!I257*(1+vanilla2)^0.5 -> 0 | J46: ='RFM input'!J257*(1+vanilla3)^0.5 -> 0 | K46: ='RFM input'!K257*(1+vanilla4)^0.5 -> 0 | L46: ='RFM input'!L257*(1+vanilla5)^0.5 -> 0 | M46: ='RFM input'!M257*(1+vanilla6)^0.5 -> 0 | N46: ='RFM input'!N257*(1+vanilla7)^0.5 -> 0 | O46: ='RFM input'!O257*(1+vanilla8)^0.5 -> 0 | P46: ='RFM input'!P257*(1+vanilla9)^0.5 -> 0 | Q46: ='RFM input'!Q257*(1+vanilla10)^0.5 -> 0
D47: =Asset36 -> Emergency Network Spares | H47: ='RFM input'!H258*(1+vanilla1)^0.5 -> 0 | I47: ='RFM input'!I258*(1+vanilla2)^0.5 -> 0 | J47: ='RFM input'!J258*(1+vanilla3)^0.5 -> 0 | K47: ='RFM input'!K258*(1+vanilla4)^0.5 -> 0 | L47: ='RFM input'!L258*(1+vanilla5)^0.5 -> 0 | M47: ='RFM input'!M258*(1+vanilla6)^0.5 -> 0 | N47: ='RFM input'!N258*(1+vanilla7)^0.5 -> 0 | O47: ='RFM input'!O258*(1+vanilla8)^0.5 -> 0 | P47: ='RFM input'!P258*(1+vanilla9)^0.5 -> 0 | Q47: ='RFM input'!Q258*(1+vanilla10)^0.5 -> 0
D48: =Asset37 -> Motor Vehicles | H48: ='RFM input'!H259*(1+vanilla1)^0.5 -> 1.753809348 | I48: ='RFM input'!I259*(1+vanilla2)^0.5 -> 1.772685178 | J48: ='RFM input'!J259*(1+vanilla3)^0.5 -> 0 | K48: ='RFM input'!K259*(1+vanilla4)^0.5 -> 0 | L48: ='RFM input'!L259*(1+vanilla5)^0.5 -> 0 | M48: ='RFM input'!M259*(1+vanilla6)^0.5 -> 0 | N48: ='RFM input'!N259*(1+vanilla7)^0.5 -> 0 | O48: ='RFM input'!O259*(1+vanilla8)^0.5 -> 0 | P48: ='RFM input'!P259*(1+vanilla9)^0.5 -> 0 | Q48: ='RFM input'!Q259*(1+vanilla10)^0.5 -> 0
D49: =Asset38 -> Minor Assets | H49: ='RFM input'!H260*(1+vanilla1)^0.5 -> 15.78551204 | I49: ='RFM input'!I260*(1+vanilla2)^0.5 -> 15.08445016 | J49: ='RFM input'!J260*(1+vanilla3)^0.5 -> 0 | K49: ='RFM input'!K260*(1+vanilla4)^0.5 -> 0 | L49: ='RFM input'!L260*(1+vanilla5)^0.5 -> 0 | M49: ='RFM input'!M260*(1+vanilla6)^0.5 -> 0 | N49: ='RFM input'!N260*(1+vanilla7)^0.5 -> 0 | O49: ='RFM input'!O260*(1+vanilla8)^0.5 -> 0 | P49: ='RFM input'!P260*(1+vanilla9)^0.5 -> 0 | Q49: ='RFM input'!Q260*(1+vanilla10)^0.5 -> 0
D50: =Asset39 -> Non-System Property | H50: ='RFM input'!H261*(1+vanilla1)^0.5 -> 1.350586858 | I50: ='RFM input'!I261*(1+vanilla2)^0.5 -> 1.268220931 | J50: ='RFM input'!J261*(1+vanilla3)^0.5 -> 0 | K50: ='RFM input'!K261*(1+vanilla4)^0.5 -> 0 | L50: ='RFM input'!L261*(1+vanilla5)^0.5 -> 0 | M50: ='RFM input'!M261*(1+vanilla6)^0.5 -> 0 | N50: ='RFM input'!N261*(1+vanilla7)^0.5 -> 0 | O50: ='RFM input'!O261*(1+vanilla8)^0.5 -> 0 | P50: ='RFM input'!P261*(1+vanilla9)^0.5 -> 0 | Q50: ='RFM input'!Q261*(1+vanilla10)^0.5 -> 0
D51: =Asset40 -> Spare Parts | H51: ='RFM input'!H262*(1+vanilla1)^0.5 -> 0 | I51: ='RFM input'!I262*(1+vanilla2)^0.5 -> 0 | J51: ='RFM input'!J262*(1+vanilla3)^0.5 -> 0 | K51: ='RFM input'!K262*(1+vanilla4)^0.5 -> 0 | L51: ='RFM input'!L262*(1+vanilla5)^0.5 -> 0 | M51: ='RFM input'!M262*(1+vanilla6)^0.5 -> 0 | N51: ='RFM input'!N262*(1+vanilla7)^0.5 -> 0 | O51: ='RFM input'!O262*(1+vanilla8)^0.5 -> 0 | P51: ='RFM input'!P262*(1+vanilla9)^0.5 -> 0 | Q51: ='RFM input'!Q262*(1+vanilla10)^0.5 -> 0
D52: =Asset41 -> NEM Assets | H52: ='RFM input'!H263*(1+vanilla1)^0.5 -> 0 | I52: ='RFM input'!I263*(1+vanilla2)^0.5 -> 0 | J52: ='RFM input'!J263*(1+vanilla3)^0.5 -> 0 | K52: ='RFM input'!K263*(1+vanilla4)^0.5 -> 0 | L52: ='RFM input'!L263*(1+vanilla5)^0.5 -> 0 | M52: ='RFM input'!M263*(1+vanilla6)^0.5 -> 0 | N52: ='RFM input'!N263*(1+vanilla7)^0.5 -> 0 | O52: ='RFM input'!O263*(1+vanilla8)^0.5 -> 0 | P52: ='RFM input'!P263*(1+vanilla9)^0.5 -> 0 | Q52: ='RFM input'!Q263*(1+vanilla10)^0.5 -> 0
D53: =Asset42 -> Business Management Systems | H53: ='RFM input'!H264*(1+vanilla1)^0.5 -> 11.68577764 | I53: ='RFM input'!I264*(1+vanilla2)^0.5 -> 0 | J53: ='RFM input'!J264*(1+vanilla3)^0.5 -> 0 | K53: ='RFM input'!K264*(1+vanilla4)^0.5 -> 0 | L53: ='RFM input'!L264*(1+vanilla5)^0.5 -> 0 | M53: ='RFM input'!M264*(1+vanilla6)^0.5 -> 0 | N53: ='RFM input'!N264*(1+vanilla7)^0.5 -> 0 | O53: ='RFM input'!O264*(1+vanilla8)^0.5 -> 0 | P53: ='RFM input'!P264*(1+vanilla9)^0.5 -> 0 | Q53: ='RFM input'!Q264*(1+vanilla10)^0.5 -> 0
D54: =Asset43 -> Land | H54: ='RFM input'!H265*(1+vanilla1)^0.5 -> 0 | I54: ='RFM input'!I265*(1+vanilla2)^0.5 -> 0.9091269209 | J54: ='RFM input'!J265*(1+vanilla3)^0.5 -> 0 | K54: ='RFM input'!K265*(1+vanilla4)^0.5 -> 0 | L54: ='RFM input'!L265*(1+vanilla5)^0.5 -> 0 | M54: ='RFM input'!M265*(1+vanilla6)^0.5 -> 0 | N54: ='RFM input'!N265*(1+vanilla7)^0.5 -> 0 | O54: ='RFM input'!O265*(1+vanilla8)^0.5 -> 0 | P54: ='RFM input'!P265*(1+vanilla9)^0.5 -> 0 | Q54: ='RFM input'!Q265*(1+vanilla10)^0.5 -> 0
D55: =Asset44 -> Easements | H55: ='RFM input'!H266*(1+vanilla1)^0.5 -> 0 | I55: ='RFM input'!I266*(1+vanilla2)^0.5 -> 0 | J55: ='RFM input'!J266*(1+vanilla3)^0.5 -> 0 | K55: ='RFM input'!K266*(1+vanilla4)^0.5 -> 0 | L55: ='RFM input'!L266*(1+vanilla5)^0.5 -> 0 | M55: ='RFM input'!M266*(1+vanilla6)^0.5 -> 0 | N55: ='RFM input'!N266*(1+vanilla7)^0.5 -> 0 | O55: ='RFM input'!O266*(1+vanilla8)^0.5 -> 0 | P55: ='RFM input'!P266*(1+vanilla9)^0.5 -> 0 | Q55: ='RFM input'!Q266*(1+vanilla10)^0.5 -> 0
D56: =Asset45 -> 0 | H56: ='RFM input'!H267*(1+vanilla1)^0.5 -> 0 | I56: ='RFM input'!I267*(1+vanilla2)^0.5 -> 0 | J56: ='RFM input'!J267*(1+vanilla3)^0.5 -> 0 | K56: ='RFM input'!K267*(1+vanilla4)^0.5 -> 0 | L56: ='RFM input'!L267*(1+vanilla5)^0.5 -> 0 | M56: ='RFM input'!M267*(1+vanilla6)^0.5 -> 0 | N56: ='RFM input'!N267*(1+vanilla7)^0.5 -> 0 | O56: ='RFM input'!O267*(1+vanilla8)^0.5 -> 0 | P56: ='RFM input'!P267*(1+vanilla9)^0.5 -> 0 | Q56: ='RFM input'!Q267*(1+vanilla10)^0.5 -> 0
D57: =Asset46 -> 0 | H57: ='RFM input'!H268*(1+vanilla1)^0.5 -> 0 | I57: ='RFM input'!I268*(1+vanilla2)^0.5 -> 0 | J57: ='RFM input'!J268*(1+vanilla3)^0.5 -> 0 | K57: ='RFM input'!K268*(1+vanilla4)^0.5 -> 0 | L57: ='RFM input'!L268*(1+vanilla5)^0.5 -> 0 | M57: ='RFM input'!M268*(1+vanilla6)^0.5 -> 0 | N57: ='RFM input'!N268*(1+vanilla7)^0.5 -> 0 | O57: ='RFM input'!O268*(1+vanilla8)^0.5 -> 0 | P57: ='RFM input'!P268*(1+vanilla9)^0.5 -> 0 | Q57: ='RFM input'!Q268*(1+vanilla10)^0.5 -> 0
D58: =Asset47 -> 0 | H58: ='RFM input'!H269*(1+vanilla1)^0.5 -> 0 | I58: ='RFM input'!I269*(1+vanilla2)^0.5 -> 0 | J58: ='RFM input'!J269*(1+vanilla3)^0.5 -> 0 | K58: ='RFM input'!K269*(1+vanilla4)^0.5 -> 0 | L58: ='RFM input'!L269*(1+vanilla5)^0.5 -> 0 | M58: ='RFM input'!M269*(1+vanilla6)^0.5 -> 0 | N58: ='RFM input'!N269*(1+vanilla7)^0.5 -> 0 | O58: ='RFM input'!O269*(1+vanilla8)^0.5 -> 0 | P58: ='RFM input'!P269*(1+vanilla9)^0.5 -> 0 | Q58: ='RFM input'!Q269*(1+vanilla10)^0.5 -> 0
D59: =Asset48 -> 0 | H59: ='RFM input'!H270*(1+vanilla1)^0.5 -> 0 | I59: ='RFM input'!I270*(1+vanilla2)^0.5 -> 0 | J59: ='RFM input'!J270*(1+vanilla3)^0.5 -> 0 | K59: ='RFM input'!K270*(1+vanilla4)^0.5 -> 0 | L59: ='RFM input'!L270*(1+vanilla5)^0.5 -> 0 | M59: ='RFM input'!M270*(1+vanilla6)^0.5 -> 0 | N59: ='RFM input'!N270*(1+vanilla7)^0.5 -> 0 | O59: ='RFM input'!O270*(1+vanilla8)^0.5 -> 0 | P59: ='RFM input'!P270*(1+vanilla9)^0.5 -> 0 | Q59: ='RFM input'!Q270*(1+vanilla10)^0.5 -> 0
D60: =Asset49 -> 0 | H60: ='RFM input'!H271*(1+vanilla1)^0.5 -> 0 | I60: ='RFM input'!I271*(1+vanilla2)^0.5 -> 0 | J60: ='RFM input'!J271*(1+vanilla3)^0.5 -> 0 | K60: ='RFM input'!K271*(1+vanilla4)^0.5 -> 0 | L60: ='RFM input'!L271*(1+vanilla5)^0.5 -> 0 | M60: ='RFM input'!M271*(1+vanilla6)^0.5 -> 0 | N60: ='RFM input'!N271*(1+vanilla7)^0.5 -> 0 | O60: ='RFM input'!O271*(1+vanilla8)^0.5 -> 0 | P60: ='RFM input'!P271*(1+vanilla9)^0.5 -> 0 | Q60: ='RFM input'!Q271*(1+vanilla10)^0.5 -> 0
D61: =Asset50 -> Equity raising costs | H61: ='RFM input'!H272*(1+vanilla1)^0.5 -> 0.2073478229 | I61: ='RFM input'!I272*(1+vanilla2)^0.5 -> 0 | J61: ='RFM input'!J272*(1+vanilla3)^0.5 -> 0 | K61: ='RFM input'!K272*(1+vanilla4)^0.5 -> 0 | L61: ='RFM input'!L272*(1+vanilla5)^0.5 -> 0 | M61: ='RFM input'!M272*(1+vanilla6)^0.5 -> 0 | N61: ='RFM input'!N272*(1+vanilla7)^0.5 -> 0 | O61: ='RFM input'!O272*(1+vanilla8)^0.5 -> 0 | P61: ='RFM input'!P272*(1+vanilla9)^0.5 -> 0 | Q61: ='RFM input'!Q272*(1+vanilla10)^0.5 -> 0
C63: ="Real "&'RFM input'!$H$294& " Straight-line Depreciation" -> Real Forecast Straight-line Depreciation | H63: =H76+H89+H102+H115+H128+H141+H154+H167+H180+H193+H206+H219+H232+H245+H258+H271+H284+H297+H310+H323+H336+H349+H362+H375+H388+H401+H414+H427+H440+H713+H453+H466+H479+H492+H505+H518+H531+H544+H557+H570+H583+H596+H609+H622+H635+H648+H661+H674+H687+H700 -> -75.88235159 | I63: =I76+I89+I102+I115+I128+I141+I154+I167+I180+I193+I206+I219+I232+I245+I258+I271+I284+I297+I310+I323+I336+I349+I362+I375+I388+I401+I414+I427+I440+I713+I453+I466+I479+I492+I505+I518+I531+I544+I557+I570+I583+I596+I609+I622+I635+I648+I661+I674+I687+I700 -> -94.43695678 | J63: 0 | K63: 0 | L63: 0 | M63: 0 | N63: 0 | O63: 0 | P63: 0 | Q63: 0
C64: =Asset1 -> Overhead Subtransmission Lines (Urban) | E64: Opening RAB | H64: =IF(H$3>A1remlife,A1value-SUM($G64:G64),IF(A1remlife="N/A","n/a",A1value/A1remlife)) -> n/a | I64: =IF(I$3>A1remlife,A1value-SUM($G64:H64),IF(A1remlife="N/A","n/a",A1value/A1remlife)) -> n/a | J64: =IF(J$3>A1remlife,A1value-SUM($G64:I64),IF(A1remlife="N/A","n/a",A1value/A1remlife)) -> n/a | K64: =IF(K$3>A1remlife,A1value-SUM($G64:J64),IF(A1remlife="N/A","n/a",A1value/A1remlife)) -> n/a | L64: =IF(L$3>A1remlife,A1value-SUM($G64:K64),IF(A1remlife="N/A","n/a",A1value/A1remlife)) -> n/a | M64: =IF(M$3>A1remlife,A1value-SUM($G64:L64),IF(A1remlife="N/A","n/a",A1value/A1remlife)) -> n/a | N64: =IF(N$3>A1remlife,A1value-SUM($G64:M64),IF(A1remlife="N/A","n/a",A1value/A1remlife)) -> n/a | O64: =IF(O$3>A1remlife,A1value-SUM($G64:N64),IF(A1remlife="N/A","n/a",A1value/A1remlife)) -> n/a | P64: =IF(P$3>A1remlife,A1value-SUM($G64:O64),IF(A1remlife="N/A","n/a",A1value/A1remlife)) -> n/a | Q64: =IF(Q$3>A1remlife,A1value-SUM($G64:P64),IF(A1remlife="N/A","n/a",A1value/A1remlife)) -> n/a
E65: Capex in year
F66: 1 | I66: =IF(A1stdlife="n/a","n/a",IF(I$3>(A1stdlife+$F66),('RFM input'!$H$223*(1+vanilla1)^0.5)-SUM($H66:H66),('RFM input'!$H$223*(1+vanilla1)^0.5)/A1stdlife)) -> 0.003549915873 | J66: =IF(A1stdlife="n/a","n/a",IF(J$3>(A1stdlife+$F66),('RFM input'!$H$223*(1+vanilla1)^0.5)-SUM($H66:I66),('RFM input'!$H$223*(1+vanilla1)^0.5)/A1stdlife)) -> 0.003549915873 | K66: =IF(A1stdlife="n/a","n/a",IF(K$3>(A1stdlife+$F66),('RFM input'!$H$223*(1+vanilla1)^0.5)-SUM($H66:J66),('RFM input'!$H$223*(1+vanilla1)^0.5)/A1stdlife)) -> 0.003549915873 | L66: =IF(A1stdlife="n/a","n/a",IF(L$3>(A1stdlife+$F66),('RFM input'!$H$223*(1+vanilla1)^0.5)-SUM($H66:K66),('RFM input'!$H$223*(1+vanilla1)^0.5)/A1stdlife)) -> 0.003549915873 | M66: =IF(A1stdlife="n/a","n/a",IF(M$3>(A1stdlife+$F66),('RFM input'!$H$223*(1+vanilla1)^0.5)-SUM($H66:L66),('RFM input'!$H$223*(1+vanilla1)^0.5)/A1stdlife)) -> 0.003549915873 | N66: =IF(A1stdlife="n/a","n/a",IF(N$3>(A1stdlife+$F66),('RFM input'!$H$223*(1+vanilla1)^0.5)-SUM($H66:M66),('RFM input'!$H$223*(1+vanilla1)^0.5)/A1stdlife)) -> 0.003549915873 | O66: =IF(A1stdlife="n/a","n/a",IF(O$3>(A1stdlife+$F66),('RFM input'!$H$223*(1+vanilla1)^0.5)-SUM($H66:N66),('RFM input'!$H$223*(1+vanilla1)^0.5)/A1stdlife)) -> 0.003549915873 | P66: =IF(A1stdlife="n/a","n/a",IF(P$3>(A1stdlife+$F66),('RFM input'!$H$223*(1+vanilla1)^0.5)-SUM($H66:O66),('RFM input'!$H$223*(1+vanilla1)^0.5)/A1stdlife)) -> 0.003549915873 | Q66: =IF(A1stdlife="n/a","n/a",IF(Q$3>(A1stdlife+$F66),('RFM input'!$H$223*(1+vanilla1)^0.5)-SUM($H66:P66),('RFM input'!$H$223*(1+vanilla1)^0.5)/A1stdlife)) -> 0.003549915873
F67: 2 | J67: =IF(A1stdlife="n/a","n/a",IF(J$3>(A1stdlife+$F67),('RFM input'!$I$223*(1+vanilla2)^0.5)-SUM($I67:I67),('RFM input'!$I$223*(1+vanilla2)^0.5)/A1stdlife)) -> 0.003675825896 | K67: =IF(A1stdlife="n/a","n/a",IF(K$3>(A1stdlife+$F67),('RFM input'!$I$223*(1+vanilla2)^0.5)-SUM($I67:J67),('RFM input'!$I$223*(1+vanilla2)^0.5)/A1stdlife)) -> 0.003675825896 | L67: =IF(A1stdlife="n/a","n/a",IF(L$3>(A1stdlife+$F67),('RFM input'!$I$223*(1+vanilla2)^0.5)-SUM($I67:K67),('RFM input'!$I$223*(1+vanilla2)^0.5)/A1stdlife)) -> 0.003675825896 | M67: =IF(A1stdlife="n/a","n/a",IF(M$3>(A1stdlife+$F67),('RFM input'!$I$223*(1+vanilla2)^0.5)-SUM($I67:L67),('RFM input'!$I$223*(1+vanilla2)^0.5)/A1stdlife)) -> 0.003675825896 | N67: =IF(A1stdlife="n/a","n/a",IF(N$3>(A1stdlife+$F67),('RFM input'!$I$223*(1+vanilla2)^0.5)-SUM($I67:M67),('RFM input'!$I$223*(1+vanilla2)^0.5)/A1stdlife)) -> 0.003675825896 | O67: =IF(A1stdlife="n/a","n/a",IF(O$3>(A1stdlife+$F67),('RFM input'!$I$223*(1+vanilla2)^0.5)-SUM($I67:N67),('RFM input'!$I$223*(1+vanilla2)^0.5)/A1stdlife)) -> 0.003675825896 | P67: =IF(A1stdlife="n/a","n/a",IF(P$3>(A1stdlife+$F67),('RFM input'!$I$223*(1+vanilla2)^0.5)-SUM($I67:O67),('RFM input'!$I$223*(1+vanilla2)^0.5)/A1stdlife)) -> 0.003675825896 | Q67: =IF(A1stdlife="n/a","n/a",IF(Q$3>(A1stdlife+$F67),('RFM input'!$I$223*(1+vanilla2)^0.5)-SUM($I67:P67),('RFM input'!$I$223*(1+vanilla2)^0.5)/A1stdlife)) -> 0.003675825896
F68: 3 | K68: =IF(A1stdlife="n/a","n/a",IF(K$3>(A1stdlife+$F68),('RFM input'!$J$223*(1+vanilla3)^0.5)-SUM($J68:J68),('RFM input'!$J$223*(1+vanilla3)^0.5)/A1stdlife)) -> 0 | L68: =IF(A1stdlife="n/a","n/a",IF(L$3>(A1stdlife+$F68),('RFM input'!$J$223*(1+vanilla3)^0.5)-SUM($J68:K68),('RFM input'!$J$223*(1+vanilla3)^0.5)/A1stdlife)) -> 0 | M68: =IF(A1stdlife="n/a","n/a",IF(M$3>(A1stdlife+$F68),('RFM input'!$J$223*(1+vanilla3)^0.5)-SUM($J68:L68),('RFM input'!$J$223*(1+vanilla3)^0.5)/A1stdlife)) -> 0 | N68: =IF(A1stdlife="n/a","n/a",IF(N$3>(A1stdlife+$F68),('RFM input'!$J$223*(1+vanilla3)^0.5)-SUM($J68:M68),('RFM input'!$J$223*(1+vanilla3)^0.5)/A1stdlife)) -> 0 | O68: =IF(A1stdlife="n/a","n/a",IF(O$3>(A1stdlife+$F68),('RFM input'!$J$223*(1+vanilla3)^0.5)-SUM($J68:N68),('RFM input'!$J$223*(1+vanilla3)^0.5)/A1stdlife)) -> 0 | P68: =IF(A1stdlife="n/a","n/a",IF(P$3>(A1stdlife+$F68),('RFM input'!$J$223*(1+vanilla3)^0.5)-SUM($J68:O68),('RFM input'!$J$223*(1+vanilla3)^0.5)/A1stdlife)) -> 0 | Q68: =IF(A1stdlife="n/a","n/a",IF(Q$3>(A1stdlife+$F68),('RFM input'!$J$223*(1+vanilla3)^0.5)-SUM($J68:P68),('RFM input'!$J$223*(1+vanilla3)^0.5)/A1stdlife)) -> 0
F69: 4 | L69: =IF(A1stdlife="n/a","n/a",IF(L$3>(A1stdlife+$F69),('RFM input'!$K$223*(1+vanilla4)^0.5)-SUM($K69:K69),('RFM input'!$K$223*(1+vanilla4)^0.5)/A1stdlife)) -> 0 | M69: =IF(A1stdlife="n/a","n/a",IF(M$3>(A1stdlife+$F69),('RFM input'!$K$223*(1+vanilla4)^0.5)-SUM($K69:L69),('RFM input'!$K$223*(1+vanilla4)^0.5)/A1stdlife)) -> 0 | N69: =IF(A1stdlife="n/a","n/a",IF(N$3>(A1stdlife+$F69),('RFM input'!$K$223*(1+vanilla4)^0.5)-SUM($K69:M69),('RFM input'!$K$223*(1+vanilla4)^0.5)/A1stdlife)) -> 0 | O69: =IF(A1stdlife="n/a","n/a",IF(O$3>(A1stdlife+$F69),('RFM input'!$K$223*(1+vanilla4)^0.5)-SUM($K69:N69),('RFM input'!$K$223*(1+vanilla4)^0.5)/A1stdlife)) -> 0 | P69: =IF(A1stdlife="n/a","n/a",IF(P$3>(A1stdlife+$F69),('RFM input'!$K$223*(1+vanilla4)^0.5)-SUM($K69:O69),('RFM input'!$K$223*(1+vanilla4)^0.5)/A1stdlife)) -> 0 | Q69: =IF(A1stdlife="n/a","n/a",IF(Q$3>(A1stdlife+$F69),('RFM input'!$K$223*(1+vanilla4)^0.5)-SUM($K69:P69),('RFM input'!$K$223*(1+vanilla4)^0.5)/A1stdlife)) -> 0
F70: 5 | M70: =IF(A1stdlife="n/a","n/a",IF(M$3>(A1stdlife+$F70),('RFM input'!$L$223*(1+vanilla5)^0.5)-SUM($L70:L70),('RFM input'!$L$223*(1+vanilla5)^0.5)/A1stdlife)) -> 0 | N70: =IF(A1stdlife="n/a","n/a",IF(N$3>(A1stdlife+$F70),('RFM input'!$L$223*(1+vanilla5)^0.5)-SUM($L70:M70),('RFM input'!$L$223*(1+vanilla5)^0.5)/A1stdlife)) -> 0 | O70: =IF(A1stdlife="n/a","n/a",IF(O$3>(A1stdlife+$F70),('RFM input'!$L$223*(1+vanilla5)^0.5)-SUM($L70:N70),('RFM input'!$L$223*(1+vanilla5)^0.5)/A1stdlife)) -> 0 | P70: =IF(A1stdlife="n/a","n/a",IF(P$3>(A1stdlife+$F70),('RFM input'!$L$223*(1+vanilla5)^0.5)-SUM($L70:O70),('RFM input'!$L$223*(1+vanilla5)^0.5)/A1stdlife)) -> 0 | Q70: =IF(A1stdlife="n/a","n/a",IF(Q$3>(A1stdlife+$F70),('RFM input'!$L$223*(1+vanilla5)^0.5)-SUM($L70:P70),('RFM input'!$L$223*(1+vanilla5)^0.5)/A1stdlife)) -> 0
F71: 6 | N71: =IF(A1stdlife="n/a","n/a",IF(N$3>(A1stdlife+$F71),('RFM input'!$M$223*(1+vanilla6)^0.5)-SUM($M71:M71),('RFM input'!$M$223*(1+vanilla6)^0.5)/A1stdlife)) -> 0 | O71: =IF(A1stdlife="n/a","n/a",IF(O$3>(A1stdlife+$F71),('RFM input'!$M$223*(1+vanilla6)^0.5)-SUM($M71:N71),('RFM input'!$M$223*(1+vanilla6)^0.5)/A1stdlife)) -> 0 | P71: =IF(A1stdlife="n/a","n/a",IF(P$3>(A1stdlife+$F71),('RFM input'!$M$223*(1+vanilla6)^0.5)-SUM($M71:O71),('RFM input'!$M$223*(1+vanilla6)^0.5)/A1stdlife)) -> 0 | Q71: =IF(A1stdlife="n/a","n/a",IF(Q$3>(A1stdlife+$F71),('RFM input'!$M$223*(1+vanilla6)^0.5)-SUM($M71:P71),('RFM input'!$M$223*(1+vanilla6)^0.5)/A1stdlife)) -> 0
F72: 7 | O72: =IF(A1stdlife="n/a","n/a",IF(O$3>(A1stdlife+$F72),('RFM input'!$N$223*(1+vanilla7)^0.5)-SUM($N72:N72),('RFM input'!$N$223*(1+vanilla7)^0.5)/A1stdlife)) -> 0 | P72: =IF(A1stdlife="n/a","n/a",IF(P$3>(A1stdlife+$F72),('RFM input'!$N$223*(1+vanilla7)^0.5)-SUM($N72:O72),('RFM input'!$N$223*(1+vanilla7)^0.5)/A1stdlife)) -> 0 | Q72: =IF(A1stdlife="n/a","n/a",IF(Q$3>(A1stdlife+$F72),('RFM input'!$N$223*(1+vanilla7)^0.5)-SUM($N72:P72),('RFM input'!$N$223*(1+vanilla7)^0.5)/A1stdlife)) -> 0
F73: 8 | P73: =IF(A1stdlife="n/a","n/a",IF(P$3>(A1stdlife+$F73),('RFM input'!$O$223*(1+vanilla8)^0.5)-SUM($O73:O73),('RFM input'!$O$223*(1+vanilla8)^0.5)/A1stdlife)) -> 0 | Q73: =IF(A1stdlife="n/a","n/a",IF(Q$3>(A1stdlife+$F73),('RFM input'!$O$223*(1+vanilla8)^0.5)-SUM($O73:P73),('RFM input'!$O$223*(1+vanilla8)^0.5)/A1stdlife)) -> 0
F74: 9 | Q74: =IF(A1stdlife="n/a","n/a",IF(Q$3>(A1stdlife+$F74),('RFM input'!$P$223*(1+vanilla9)^0.5)-SUM($P74:P74),('RFM input'!$P$223*(1+vanilla9)^0.5)/A1stdlife)) -> 0
F75: 10
D76: =Asset1 -> Overhead Subtransmission Lines (Urban) | H76: =IF('RFM input'!$F$293='RFM input'!$H$292,-'RFM input'!H298,-SUM(H64:H75)) -> -0.4572538022 | I76: =IF('RFM input'!$F$293='RFM input'!$H$292,-'RFM input'!I298,-SUM(I64:I75)) -> -0.4607574686 | J76: =IF(COUNT($H76:I76)>='RFM input'!$W$7,0,IF('RFM input'!$F$293='RFM input'!$H$292,-'RFM input'!J298,-SUM(J64:J75))) -> 0 | K76: =IF(COUNT($H76:J76)>='RFM input'!$W$7,0,IF('RFM input'!$F$293='RFM input'!$H$292,-'RFM input'!K298,-SUM(K64:K75))) -> 0 | L76: =IF(COUNT($H76:K76)>='RFM input'!$W$7,0,IF('RFM input'!$F$293='RFM input'!$H$292,-'RFM input'!L298,-SUM(L64:L75))) -> 0 | M76: =IF(COUNT($H76:L76)>='RFM input'!$W$7,0,IF('RFM input'!$F$293='RFM input'!$H$292,-'RFM input'!M298,-SUM(M64:M75))) -> 0 | N76: =IF(COUNT($H76:M76)>='RFM input'!$W$7,0,IF('RFM input'!$F$293='RFM input'!$H$292,-'RFM input'!N298,-SUM(N64:N75))) -> 0 | O76: =IF(COUNT($H76:N76)>='RFM input'!$W$7,0,IF('RFM input'!$F$293='RFM input'!$H$292,-'RFM input'!O298,-SUM(O64:O75))) -> 0 | P76: =IF(COUNT($H76:O76)>='RFM input'!$W$7,0,IF('RFM input'!$F$293='RFM input'!$H$292,-'RFM input'!P298,-SUM(P64:P75))) -> 0 | Q76: =IF(COUNT($H76:P76)>='RFM input'!$W$7,0,IF('RFM input'!$F$293='RFM input'!$H$292,-'RFM input'!Q298,-SUM(Q64:Q75))) -> 0
C77: =Asset2 -> Underground Subtransmission Lines (Urban) | E77: Opening RAB | H77: =IF(H$3>A2remlife,A2value-SUM($G77:G77),IF(A2remlife="N/A","n/a",A2value/A2remlife)) -> n/a | I77: =IF(I$3>A2remlife,A2value-SUM($G77:H77),IF(A2remlife="N/A","n/a",A2value/A2remlife)) -> n/a | J77: =IF(J$3>A2remlife,A2value-SUM($G77:I77),IF(A2remlife="N/A","n/a",A2value/A2remlife)) -> n/a | K77: =IF(K$3>A2remlife,A2value-SUM($G77:J77),IF(A2remlife="N/A","n/a",A2value/A2remlife)) -> n/a | L77: =IF(L$3>A2remlife,A2value-SUM($G77:K77),IF(A2remlife="N/A","n/a",A2value/A2remlife)) -> n/a | M77: =IF(M$3>A2remlife,A2value-SUM($G77:L77),IF(A2remlife="N/A","n/a",A2value/A2remlife)) -> n/a | N77: =IF(N$3>A2remlife,A2value-SUM($G77:M77),IF(A2remlife="N/A","n/a",A2value/A2remlife)) -> n/a | O77: =IF(O$3>A2remlife,A2value-SUM($G77:N77),IF(A2remlife="N/A","n/a",A2value/A2remlife)) -> n/a | P77: =IF(P$3>A2remlife,A2value-SUM($G77:O77),IF(A2remlife="N/A","n/a",A2value/A2remlife)) -> n/a | Q77: =IF(Q$3>A2remlife,A2value-SUM($G77:P77),IF(A2remlife="N/A","n/a",A2value/A2remlife)) -> n/a
E78: Capex in year
F79: 1 | I79: =IF(A2stdlife="n/a","n/a",IF(I$3>(A2stdlife+$F79),('RFM input'!$H$224*(1+vanilla1)^0.5)-SUM($H79:H79),('RFM input'!$H$224*(1+vanilla1)^0.5)/A2stdlife)) -> 0 | J79: =IF(A2stdlife="n/a","n/a",IF(J$3>(A2stdlife+$F79),('RFM input'!$H$224*(1+vanilla1)^0.5)-SUM($H79:I79),('RFM input'!$H$224*(1+vanilla1)^0.5)/A2stdlife)) -> 0 | K79: =IF(A2stdlife="n/a","n/a",IF(K$3>(A2stdlife+$F79),('RFM input'!$H$224*(1+vanilla1)^0.5)-SUM($H79:J79),('RFM input'!$H$224*(1+vanilla1)^0.5)/A2stdlife)) -> 0 | L79: =IF(A2stdlife="n/a","n/a",IF(L$3>(A2stdlife+$F79),('RFM input'!$H$224*(1+vanilla1)^0.5)-SUM($H79:K79),('RFM input'!$H$224*(1+vanilla1)^0.5)/A2stdlife)) -> 0 | M79: =IF(A2stdlife="n/a","n/a",IF(M$3>(A2stdlife+$F79),('RFM input'!$H$224*(1+vanilla1)^0.5)-SUM($H79:L79),('RFM input'!$H$224*(1+vanilla1)^0.5)/A2stdlife)) -> 0 | N79: =IF(A2stdlife="n/a","n/a",IF(N$3>(A2stdlife+$F79),('RFM input'!$H$224*(1+vanilla1)^0.5)-SUM($H79:M79),('RFM input'!$H$224*(1+vanilla1)^0.5)/A2stdlife)) -> 0 | O79: =IF(A2stdlife="n/a","n/a",IF(O$3>(A2stdlife+$F79),('RFM input'!$H$224*(1+vanilla1)^0.5)-SUM($H79:N79),('RFM input'!$H$224*(1+vanilla1)^0.5)/A2stdlife)) -> 0 | P79: =IF(A2stdlife="n/a","n/a",IF(P$3>(A2stdlife+$F79),('RFM input'!$H$224*(1+vanilla1)^0.5)-SUM($H79:O79),('RFM input'!$H$224*(1+vanilla1)^0.5)/A2stdlife)) -> 0 | Q79: =IF(A2stdlife="n/a","n/a",IF(Q$3>(A2stdlife+$F79),('RFM input'!$H$224*(1+vanilla1)^0.5)-SUM($H79:P79),('RFM input'!$H$224*(1+vanilla1)^0.5)/A2stdlife)) -> 0
F80: 2 | J80: =IF(A2stdlife="n/a","n/a",IF(J$3>(A2stdlife+$F80),('RFM input'!$I$224*(1+vanilla2)^0.5)-SUM($I80:I80),('RFM input'!$I$224*(1+vanilla2)^0.5)/A2stdlife)) -> 0 | K80: =IF(A2stdlife="n/a","n/a",IF(K$3>(A2stdlife+$F80),('RFM input'!$I$224*(1+vanilla2)^0.5)-SUM($I80:J80),('RFM input'!$I$224*(1+vanilla2)^0.5)/A2stdlife)) -> 0 | L80: =IF(A2stdlife="n/a","n/a",IF(L$3>(A2stdlife+$F80),('RFM input'!$I$224*(1+vanilla2)^0.5)-SUM($I80:K80),('RFM input'!$I$224*(1+vanilla2)^0.5)/A2stdlife)) -> 0 | M80: =IF(A2stdlife="n/a","n/a",IF(M$3>(A2stdlife+$F80),('RFM input'!$I$224*(1+vanilla2)^0.5)-SUM($I80:L80),('RFM input'!$I$224*(1+vanilla2)^0.5)/A2stdlife)) -> 0 | N80: =IF(A2stdlife="n/a","n/a",IF(N$3>(A2stdlife+$F80),('RFM input'!$I$224*(1+vanilla2)^0.5)-SUM($I80:M80),('RFM input'!$I$224*(1+vanilla2)^0.5)/A2stdlife)) -> 0 | O80: =IF(A2stdlife="n/a","n/a",IF(O$3>(A2stdlife+$F80),('RFM input'!$I$224*(1+vanilla2)^0.5)-SUM($I80:N80),('RFM input'!$I$224*(1+vanilla2)^0.5)/A2stdlife)) -> 0 | P80: =IF(A2stdlife="n/a","n/a",IF(P$3>(A2stdlife+$F80),('RFM input'!$I$224*(1+vanilla2)^0.5)-SUM($I80:O80),('RFM input'!$I$224*(1+vanilla2)^0.5)/A2stdlife)) -> 0 | Q80: =IF(A2stdlife="n/a","n/a",IF(Q$3>(A2stdlife+$F80),('RFM input'!$I$224*(1+vanilla2)^0.5)-SUM($I80:P80),('RFM input'!$I$224*(1+vanilla2)^0.5)/A2stdlife)) -> 0
F81: 3 | K81: =IF(A2stdlife="n/a","n/a",IF(K$3>(A2stdlife+$F81),('RFM input'!$J$224*(1+vanilla3)^0.5)-SUM($J81:J81),('RFM input'!$J$224*(1+vanilla3)^0.5)/A2stdlife)) -> 0 | L81: =IF(A2stdlife="n/a","n/a",IF(L$3>(A2stdlife+$F81),('RFM input'!$J$224*(1+vanilla3)^0.5)-SUM($J81:K81),('RFM input'!$J$224*(1+vanilla3)^0.5)/A2stdlife)) -> 0 | M81: =IF(A2stdlife="n/a","n/a",IF(M$3>(A2stdlife+$F81),('RFM input'!$J$224*(1+vanilla3)^0.5)-SUM($J81:L81),('RFM input'!$J$224*(1+vanilla3)^0.5)/A2stdlife)) -> 0 | N81: =IF(A2stdlife="n/a","n/a",IF(N$3>(A2stdlife+$F81),('RFM input'!$J$224*(1+vanilla3)^0.5)-SUM($J81:M81),('RFM input'!$J$224*(1+vanilla3)^0.5)/A2stdlife)) -> 0 | O81: =IF(A2stdlife="n/a","n/a",IF(O$3>(A2stdlife+$F81),('RFM input'!$J$224*(1+vanilla3)^0.5)-SUM($J81:N81),('RFM input'!$J$224*(1+vanilla3)^0.5)/A2stdlife)) -> 0 | P81: =IF(A2stdlife="n/a","n/a",IF(P$3>(A2stdlife+$F81),('RFM input'!$J$224*(1+vanilla3)^0.5)-SUM($J81:O81),('RFM input'!$J$224*(1+vanilla3)^0.5)/A2stdlife)) -> 0 | Q81: =IF(A2stdlife="n/a","n/a",IF(Q$3>(A2stdlife+$F81),('RFM input'!$J$224*(1+vanilla3)^0.5)-SUM($J81:P81),('RFM input'!$J$224*(1+vanilla3)^0.5)/A2stdlife)) -> 0
F82: 4 | L82: =IF(A2stdlife="n/a","n/a",IF(L$3>(A2stdlife+$F82),('RFM input'!$K$224*(1+vanilla4)^0.5)-SUM($K82:K82),('RFM input'!$K$224*(1+vanilla4)^0.5)/A2stdlife)) -> 0 | M82: =IF(A2stdlife="n/a","n/a",IF(M$3>(A2stdlife+$F82),('RFM input'!$K$224*(1+vanilla4)^0.5)-SUM($K82:L82),('RFM input'!$K$224*(1+vanilla4)^0.5)/A2stdlife)) -> 0 | N82: =IF(A2stdlife="n/a","n/a",IF(N$3>(A2stdlife+$F82),('RFM input'!$K$224*(1+vanilla4)^0.5)-SUM($K82:M82),('RFM input'!$K$224*(1+vanilla4)^0.5)/A2stdlife)) -> 0 | O82: =IF(A2stdlife="n/a","n/a",IF(O$3>(A2stdlife+$F82),('RFM input'!$K$224*(1+vanilla4)^0.5)-SUM($K82:N82),('RFM input'!$K$224*(1+vanilla4)^0.5)/A2stdlife)) -> 0 | P82: =IF(A2stdlife="n/a","n/a",IF(P$3>(A2stdlife+$F82),('RFM input'!$K$224*(1+vanilla4)^0.5)-SUM($K82:O82),('RFM input'!$K$224*(1+vanilla4)^0.5)/A2stdlife)) -> 0 | Q82: =IF(A2stdlife="n/a","n/a",IF(Q$3>(A2stdlife+$F82),('RFM input'!$K$224*(1+vanilla4)^0.5)-SUM($K82:P82),('RFM input'!$K$224*(1+vanilla4)^0.5)/A2stdlife)) -> 0
F83: 5 | M83: =IF(A2stdlife="n/a","n/a",IF(M$3>(A2stdlife+$F83),('RFM input'!$L$224*(1+vanilla5)^0.5)-SUM($L83:L83),('RFM input'!$L$224*(1+vanilla5)^0.5)/A2stdlife)) -> 0 | N83: =IF(A2stdlife="n/a","n/a",IF(N$3>(A2stdlife+$F83),('RFM input'!$L$224*(1+vanilla5)^0.5)-SUM($L83:M83),('RFM input'!$L$224*(1+vanilla5)^0.5)/A2stdlife)) -> 0 | O83: =IF(A2stdlife="n/a","n/a",IF(O$3>(A2stdlife+$F83),('RFM input'!$L$224*(1+vanilla5)^0.5)-SUM($L83:N83),('RFM input'!$L$224*(1+vanilla5)^0.5)/A2stdlife)) -> 0 | P83: =IF(A2stdlife="n/a","n/a",IF(P$3>(A2stdlife+$F83),('RFM input'!$L$224*(1+vanilla5)^0.5)-SUM($L83:O83),('RFM input'!$L$224*(1+vanilla5)^0.5)/A2stdlife)) -> 0 | Q83: =IF(A2stdlife="n/a","n/a",IF(Q$3>(A2stdlife+$F83),('RFM input'!$L$224*(1+vanilla5)^0.5)-SUM($L83:P83),('RFM input'!$L$224*(1+vanilla5)^0.5)/A2stdlife)) -> 0
F84: 6 | N84: =IF(A2stdlife="n/a","n/a",IF(N$3>(A2stdlife+$F84),('RFM input'!$M$224*(1+vanilla6)^0.5)-SUM($M84:M84),('RFM input'!$M$224*(1+vanilla6)^0.5)/A2stdlife)) -> 0 | O84: =IF(A2stdlife="n/a","n/a",IF(O$3>(A2stdlife+$F84),('RFM input'!$M$224*(1+vanilla6)^0.5)-SUM($M84:N84),('RFM input'!$M$224*(1+vanilla6)^0.5)/A2stdlife)) -> 0 | P84: =IF(A2stdlife="n/a","n/a",IF(P$3>(A2stdlife+$F84),('RFM input'!$M$224*(1+vanilla6)^0.5)-SUM($M84:O84),('RFM input'!$M$224*(1+vanilla6)^0.5)/A2stdlife)) -> 0 | Q84: =IF(A2stdlife="n/a","n/a",IF(Q$3>(A2stdlife+$F84),('RFM input'!$M$224*(1+vanilla6)^0.5)-SUM($M84:P84),('RFM input'!$M$224*(1+vanilla6)^0.5)/A2stdlife)) -> 0
F85: 7 | O85: =IF(A2stdlife="n/a","n/a",IF(O$3>(A2stdlife+$F85),('RFM input'!$N$224*(1+vanilla7)^0.5)-SUM($N85:N85),('RFM input'!$N$224*(1+vanilla7)^0.5)/A2stdlife)) -> 0 | P85: =IF(A2stdlife="n/a","n/a",IF(P$3>(A2stdlife+$F85),('RFM input'!$N$224*(1+vanilla7)^0.5)-SUM($N85:O85),('RFM input'!$N$224*(1+vanilla7)^0.5)/A2stdlife)) -> 0 | Q85: =IF(A2stdlife="n/a","n/a",IF(Q$3>(A2stdlife+$F85),('RFM input'!$N$224*(1+vanilla7)^0.5)-SUM($N85:P85),('RFM input'!$N$224*(1+vanilla7)^0.5)/A2stdlife)) -> 0
F86: 8 | P86: =IF(A2stdlife="n/a","n/a",IF(P$3>(A2stdlife+$F86),('RFM input'!$O$224*(1+vanilla8)^0.5)-SUM($O86:O86),('RFM input'!$O$224*(1+vanilla8)^0.5)/A2stdlife)) -> 0 | Q86: =IF(A2stdlife="n/a","n/a",IF(Q$3>(A2stdlife+$F86),('RFM input'!$O$224*(1+vanilla8)^0.5)-SUM($O86:P86),('RFM input'!$O$224*(1+vanilla8)^0.5)/A2stdlife)) -> 0
F87: 9 | Q87: =IF(A2stdlife="n/a","n/a",IF(Q$3>(A2stdlife+$F87),('RFM input'!$P$224*(1+vanilla9)^0.5)-SUM($P87:P87),('RFM input'!$P$224*(1+vanilla9)^0.5)/A2stdlife)) -> 0
F88: 10
D89: =Asset2 -> Underground Subtransmission Lines (Urban) | H89: =IF('RFM input'!$F$293='RFM input'!$H$292,-'RFM input'!H299,-SUM(H77:H88)) -> -0.3027247429 | I89: =IF('RFM input'!$F$293='RFM input'!$H$292,-'RFM input'!I299,-SUM(I77:I88)) -> -0.3027247429 | J89: =IF(COUNT($H89:I89)>='RFM input'!$W$7,0,IF('RFM input'!$F$293='RFM input'!$H$292,-'RFM input'!J299,-SUM(J77:J88))) -> 0 | K89: =IF(COUNT($H89:J89)>='RFM input'!$W$7,0,IF('RFM input'!$F$293='RFM input'!$H$292,-'RFM input'!K299,-SUM(K77:K88))) -> 0 | L89: =IF(COUNT($H89:K89)>='RFM input'!$W$7,0,IF('RFM input'!$F$293='RFM input'!$H$292,-'RFM input'!L299,-SUM(L77:L88))) -> 0 | M89: =IF(COUNT($H89:L89)>='RFM input'!$W$7,0,IF('RFM input'!$F$293='RFM input'!$H$292,-'RFM input'!M299,-SUM(M77:M88))) -> 0 | N89: =IF(COUNT($H89:M89)>='RFM input'!$W$7,0,IF('RFM input'!$F$293='RFM input'!$H$292,-'RFM input'!N299,-SUM(N77:N88))) -> 0 | O89: =IF(COUNT($H89:N89)>='RFM input'!$W$7,0,IF('RFM input'!$F$293='RFM input'!$H$292,-'RFM input'!O299,-SUM(O77:O88))) -> 0 | P89: =IF(COUNT($H89:O89)>='RFM input'!$W$7,0,IF('RFM input'!$F$293='RFM input'!$H$292,-'RFM input'!P299,-SUM(P77:P88))) -> 0 | Q89: =IF(COUNT($H89:P89)>='RFM input'!$W$7,0,IF('RFM input'!$F$293='RFM input'!$H$292,-'RFM input'!Q299,-SUM(Q77:Q88))) -> 0
C90: =Asset3 -> Urban Zone Substations | E90: Opening RAB | H90: =IF(H$3>A3remlife,A3value-SUM($G90:G90),IF(A3remlife="N/A","n/a",A3value/A3remlife)) -> n/a | I90: =IF(I$3>A3remlife,A3value-SUM($G90:H90),IF(A3remlife="N/A","n/a",A3value/A3remlife)) -> n/a | J90: =IF(J$3>A3remlife,A3value-SUM($G90:I90),IF(A3remlife="N/A","n/a",A3value/A3remlife)) -> n/a | K90: =IF(K$3>A3remlife,A3value-SUM($G90:J90),IF(A3remlife="N/A","n/a",A3value/A3remlife)) -> n/a | L90: =IF(L$3>A3remlife,A3value-SUM($G90:K90),IF(A3remlife="N/A","n/a",A3value/A3remlife)) -> n/a | M90: =IF(M$3>A3remlife,A3value-SUM($G90:L90),IF(A3remlife="N/A","n/a",A3value/A3remlife)) -> n/a | N90: =IF(N$3>A3remlife,A3value-SUM($G90:M90),IF(A3remlife="N/A","n/a",A3value/A3remlife)) -> n/a | O90: =IF(O$3>A3remlife,A3value-SUM($G90:N90),IF(A3remlife="N/A","n/a",A3value/A3remlife)) -> n/a | P90: =IF(P$3>A3remlife,A3value-SUM($G90:O90),IF(A3remlife="N/A","n/a",A3value/A3remlife)) -> n/a | Q90: =IF(Q$3>A3remlife,A3value-SUM($G90:P90),IF(A3remlife="N/A","n/a",A3value/A3remlife)) -> n/a
E91: Capex in year
F92: 1 | I92: =IF(A3stdlife="n/a","n/a",IF(I$3>(A3stdlife+$F92),('RFM input'!$H$225*(1+vanilla1)^0.5)-SUM($H92:H92),('RFM input'!$H$225*(1+vanilla1)^0.5)/A3stdlife)) -> 0.02087709516 | J92: =IF(A3stdlife="n/a","n/a",IF(J$3>(A3stdlife+$F92),('RFM input'!$H$225*(1+vanilla1)^0.5)-SUM($H92:I92),('RFM input'!$H$225*(1+vanilla1)^0.5)/A3stdlife)) -> 0.02087709516 | K92: =IF(A3stdlife="n/a","n/a",IF(K$3>(A3stdlife+$F92),('RFM input'!$H$225*(1+vanilla1)^0.5)-SUM($H92:J92),('RFM input'!$H$225*(1+vanilla1)^0.5)/A3stdlife)) -> 0.02087709516 | L92: =IF(A3stdlife="n/a","n/a",IF(L$3>(A3stdlife+$F92),('RFM input'!$H$225*(1+vanilla1)^0.5)-SUM($H92:K92),('RFM input'!$H$225*(1+vanilla1)^0.5)/A3stdlife)) -> 0.02087709516 | M92: =IF(A3stdlife="n/a","n/a",IF(M$3>(A3stdlife+$F92),('RFM input'!$H$225*(1+vanilla1)^0.5)-SUM($H92:L92),('RFM input'!$H$225*(1+vanilla1)^0.5)/A3stdlife)) -> 0.02087709516 | N92: =IF(A3stdlife="n/a","n/a",IF(N$3>(A3stdlife+$F92),('RFM input'!$H$225*(1+vanilla1)^0.5)-SUM($H92:M92),('RFM input'!$H$225*(1+vanilla1)^0.5)/A3stdlife)) -> 0.02087709516 | O92: =IF(A3stdlife="n/a","n/a",IF(O$3>(A3stdlife+$F92),('RFM input'!$H$225*(1+vanilla1)^0.5)-SUM($H92:N92),('RFM input'!$H$225*(1+vanilla1)^0.5)/A3stdlife)) -> 0.02087709516 | P92: =IF(A3stdlife="n/a","n/a",IF(P$3>(A3stdlife+$F92),('RFM input'!$H$225*(1+vanilla1)^0.5)-SUM($H92:O92),('RFM input'!$H$225*(1+vanilla1)^0.5)/A3stdlife)) -> 0.02087709516 | Q92: =IF(A3stdlife="n/a","n/a",IF(Q$3>(A3stdlife+$F92),('RFM input'!$H$225*(1+vanilla1)^0.5)-SUM($H92:P92),('RFM input'!$H$225*(1+vanilla1)^0.5)/A3stdlife)) -> 0.02087709516
F93: 2 | J93: =IF(A3stdlife="n/a","n/a",IF(J$3>(A3stdlife+$F93),('RFM input'!$I$225*(1+vanilla2)^0.5)-SUM($I93:I93),('RFM input'!$I$225*(1+vanilla2)^0.5)/A3stdlife)) -> 0.1101495706 | K93: =IF(A3stdlife="n/a","n/a",IF(K$3>(A3stdlife+$F93),('RFM input'!$I$225*(1+vanilla2)^0.5)-SUM($I93:J93),('RFM input'!$I$225*(1+vanilla2)^0.5)/A3stdlife)) -> 0.1101495706 | L93: =IF(A3stdlife="n/a","n/a",IF(L$3>(A3stdlife+$F93),('RFM input'!$I$225*(1+vanilla2)^0.5)-SUM($I93:K93),('RFM input'!$I$225*(1+vanilla2)^0.5)/A3stdlife)) -> 0.1101495706 | M93: =IF(A3stdlife="n/a","n/a",IF(M$3>(A3stdlife+$F93),('RFM input'!$I$225*(1+vanilla2)^0.5)-SUM($I93:L93),('RFM input'!$I$225*(1+vanilla2)^0.5)/A3stdlife)) -> 0.1101495706 | N93: =IF(A3stdlife="n/a","n/a",IF(N$3>(A3stdlife+$F93),('RFM input'!$I$225*(1+vanilla2)^0.5)-SUM($I93:M93),('RFM input'!$I$225*(1+vanilla2)^0.5)/A3stdlife)) -> 0.1101495706 | O93: =IF(A3stdlife="n/a","n/a",IF(O$3>(A3stdlife+$F93),('RFM input'!$I$225*(1+vanilla2)^0.5)-SUM($I93:N93),('RFM input'!$I$225*(1+vanilla2)^0.5)/A3stdlife)) -> 0.1101495706 | P93: =IF(A3stdlife="n/a","n/a",IF(P$3>(A3stdlife+$F93),('RFM input'!$I$225*(1+vanilla2)^0.5)-SUM($I93:O93),('RFM input'!$I$225*(1+vanilla2)^0.5)/A3stdlife)) -> 0.1101495706 | Q93: =IF(A3stdlife="n/a","n/a",IF(Q$3>(A3stdlife+$F93),('RFM input'!$I$225*(1+vanilla2)^0.5)-SUM($I93:P93),('RFM input'!$I$225*(1+vanilla2)^0.5)/A3stdlife)) -> 0.1101495706
F94: 3 | K94: =IF(A3stdlife="n/a","n/a",IF(K$3>(A3stdlife+$F94),('RFM input'!$J$225*(1+vanilla3)^0.5)-SUM($J94:J94),('RFM input'!$J$225*(1+vanilla3)^0.5)/A3stdlife)) -> 0 | L94: =IF(A3stdlife="n/a","n/a",IF(L$3>(A3stdlife+$F94),('RFM input'!$J$225*(1+vanilla3)^0.5)-SUM($J94:K94),('RFM input'!$J$225*(1+vanilla3)^0.5)/A3stdlife)) -> 0 | M94: =IF(A3stdlife="n/a","n/a",IF(M$3>(A3stdlife+$F94),('RFM input'!$J$225*(1+vanilla3)^0.5)-SUM($J94:L94),('RFM input'!$J$225*(1+vanilla3)^0.5)/A3stdlife)) -> 0 | N94: =IF(A3stdlife="n/a","n/a",IF(N$3>(A3stdlife+$F94),('RFM input'!$J$225*(1+vanilla3)^0.5)-SUM($J94:M94),('RFM input'!$J$225*(1+vanilla3)^0.5)/A3stdlife)) -> 0 | O94: =IF(A3stdlife="n/a","n/a",IF(O$3>(A3stdlife+$F94),('RFM input'!$J$225*(1+vanilla3)^0.5)-SUM($J94:N94),('RFM input'!$J$225*(1+vanilla3)^0.5)/A3stdlife)) -> 0 | P94: =IF(A3stdlife="n/a","n/a",IF(P$3>(A3stdlife+$F94),('RFM input'!$J$225*(1+vanilla3)^0.5)-SUM($J94:O94),('RFM input'!$J$225*(1+vanilla3)^0.5)/A3stdlife)) -> 0 | Q94: =IF(A3stdlife="n/a","n/a",IF(Q$3>(A3stdlife+$F94),('RFM input'!$J$225*(1+vanilla3)^0.5)-SUM($J94:P94),('RFM input'!$J$225*(1+vanilla3)^0.5)/A3stdlife)) -> 0
F95: 4 | L95: =IF(A3stdlife="n/a","n/a",IF(L$3>(A3stdlife+$F95),('RFM input'!$K$225*(1+vanilla4)^0.5)-SUM($K95:K95),('RFM input'!$K$225*(1+vanilla4)^0.5)/A3stdlife)) -> 0 | M95: =IF(A3stdlife="n/a","n/a",IF(M$3>(A3stdlife+$F95),('RFM input'!$K$225*(1+vanilla4)^0.5)-SUM($K95:L95),('RFM input'!$K$225*(1+vanilla4)^0.5)/A3stdlife)) -> 0 | N95: =IF(A3stdlife="n/a","n/a",IF(N$3>(A3stdlife+$F95),('RFM input'!$K$225*(1+vanilla4)^0.5)-SUM($K95:M95),('RFM input'!$K$225*(1+vanilla4)^0.5)/A3stdlife)) -> 0 | O95: =IF(A3stdlife="n/a","n/a",IF(O$3>(A3stdlife+$F95),('RFM input'!$K$225*(1+vanilla4)^0.5)-SUM($K95:N95),('RFM input'!$K$225*(1+vanilla4)^0.5)/A3stdlife)) -> 0 | P95: =IF(A3stdlife="n/a","n/a",IF(P$3>(A3stdlife+$F95),('RFM input'!$K$225*(1+vanilla4)^0.5)-SUM($K95:O95),('RFM input'!$K$225*(1+vanilla4)^0.5)/A3stdlife)) -> 0 | Q95: =IF(A3stdlife="n/a","n/a",IF(Q$3>(A3stdlife+$F95),('RFM input'!$K$225*(1+vanilla4)^0.5)-SUM($K95:P95),('RFM input'!$K$225*(1+vanilla4)^0.5)/A3stdlife)) -> 0
F96: 5 | M96: =IF(A3stdlife="n/a","n/a",IF(M$3>(A3stdlife+$F96),('RFM input'!$L$225*(1+vanilla5)^0.5)-SUM($L96:L96),('RFM input'!$L$225*(1+vanilla5)^0.5)/A3stdlife)) -> 0 | N96: =IF(A3stdlife="n/a","n/a",IF(N$3>(A3stdlife+$F96),('RFM input'!$L$225*(1+vanilla5)^0.5)-SUM($L96:M96),('RFM input'!$L$225*(1+vanilla5)^0.5)/A3stdlife)) -> 0 | O96: =IF(A3stdlife="n/a","n/a",IF(O$3>(A3stdlife+$F96),('RFM input'!$L$225*(1+vanilla5)^0.5)-SUM($L96:N96),('RFM input'!$L$225*(1+vanilla5)^0.5)/A3stdlife)) -> 0 | P96: =IF(A3stdlife="n/a","n/a",IF(P$3>(A3stdlife+$F96),('RFM input'!$L$225*(1+vanilla5)^0.5)-SUM($L96:O96),('RFM input'!$L$225*(1+vanilla5)^0.5)/A3stdlife)) -> 0 | Q96: =IF(A3stdlife="n/a","n/a",IF(Q$3>(A3stdlife+$F96),('RFM input'!$L$225*(1+vanilla5)^0.5)-SUM($L96:P96),('RFM input'!$L$225*(1+vanilla5)^0.5)/A3stdlife)) -> 0
F97: 6 | N97: =IF(A3stdlife="n/a","n/a",IF(N$3>(A3stdlife+$F97),('RFM input'!$M$225*(1+vanilla6)^0.5)-SUM($M97:M97),('RFM input'!$M$225*(1+vanilla6)^0.5)/A3stdlife)) -> 0 | O97: =IF(A3stdlife="n/a","n/a",IF(O$3>(A3stdlife+$F97),('RFM input'!$M$225*(1+vanilla6)^0.5)-SUM($M97:N97),('RFM input'!$M$225*(1+vanilla6)^0.5)/A3stdlife)) -> 0 | P97: =IF(A3stdlife="n/a","n/a",IF(P$3>(A3stdlife+$F97),('RFM input'!$M$225*(1+vanilla6)^0.5)-SUM($M97:O97),('RFM input'!$M$225*(1+vanilla6)^0.5)/A3stdlife)) -> 0 | Q97: =IF(A3stdlife="n/a","n/a",IF(Q$3>(A3stdlife+$F97),('RFM input'!$M$225*(1+vanilla6)^0.5)-SUM($M97:P97),('RFM input'!$M$225*(1+vanilla6)^0.5)/A3stdlife)) -> 0
F98: 7 | O98: =IF(A3stdlife="n/a","n/a",IF(O$3>(A3stdlife+$F98),('RFM input'!$N$225*(1+vanilla7)^0.5)-SUM($N98:N98),('RFM input'!$N$225*(1+vanilla7)^0.5)/A3stdlife)) -> 0 | P98: =IF(A3stdlife="n/a","n/a",IF(P$3>(A3stdlife+$F98),('RFM input'!$N$225*(1+vanilla7)^0.5)-SUM($N98:O98),('RFM input'!$N$225*(1+vanilla7)^0.5)/A3stdlife)) -> 0 | Q98: =IF(A3stdlife="n/a","n/a",IF(Q$3>(A3stdlife+$F98),('RFM input'!$N$225*(1+vanilla7)^0.5)-SUM($N98:P98),('RFM input'!$N$225*(1+vanilla7)^0.5)/A3stdlife)) -> 0
F99: 8 | P99: =IF(A3stdlife="n/a","n/a",IF(P$3>(A3stdlife+$F99),('RFM input'!$O$225*(1+vanilla8)^0.5)-SUM($O99:O99),('RFM input'!$O$225*(1+vanilla8)^0.5)/A3stdlife)) -> 0 | Q99: =IF(A3stdlife="n/a","n/a",IF(Q$3>(A3stdlife+$F99),('RFM input'!$O$225*(1+vanilla8)^0.5)-SUM($O99:P99),('RFM input'!$O$225*(1+vanilla8)^0.5)/A3stdlife)) -> 0
F100: 9 | Q100: =IF(A3stdlife="n/a","n/a",IF(Q$3>(A3stdlife+$F100),('RFM input'!$P$225*(1+vanilla9)^0.5)-SUM($P100:P100),('RFM input'!$P$225*(1+vanilla9)^0.5)/A3stdlife)) -> 0
F101: 10
D102: =Asset3 -> Urban Zone Substations | H102: =IF('RFM input'!$F$293='RFM input'!$H$292,-'RFM input'!H300,-SUM(H90:H101)) -> -1.613628766 | I102: =IF('RFM input'!$F$293='RFM input'!$H$292,-'RFM input'!I300,-SUM(I90:I101)) -> -1.634233868 | J102: =IF(COUNT($H102:I102)>='RFM input'!$W$7,0,IF('RFM input'!$F$293='RFM input'!$H$292,-'RFM input'!J300,-SUM(J90:J101))) -> 0 | K102: =IF(COUNT($H102:J102)>='RFM input'!$W$7,0,IF('RFM input'!$F$293='RFM input'!$H$292,-'RFM input'!K300,-SUM(K90:K101))) -> 0 | L102: =IF(COUNT($H102:K102)>='RFM input'!$W$7,0,IF('RFM input'!$F$293='RFM input'!$H$292,-'RFM input'!L300,-SUM(L90:L101))) -> 0 | M102: =IF(COUNT($H102:L102)>='RFM input'!$W$7,0,IF('RFM input'!$F$293='RFM input'!$H$292,-'RFM input'!M300,-SUM(M90:M101))) -> 0 | N102: =IF(COUNT($H102:M102)>='RFM input'!$W$7,0,IF('RFM input'!$F$293='RFM input'!$H$292,-'RFM input'!N300,-SUM(N90:N101))) -> 0 | O102: =IF(COUNT($H102:N102)>='RFM input'!$W$7,0,IF('RFM input'!$F$293='RFM input'!$H$292,-'RFM input'!O300,-SUM(O90:O101))) -> 0 | P102: =IF(COUNT($H102:O102)>='RFM input'!$W$7,0,IF('RFM input'!$F$293='RFM input'!$H$292,-'RFM input'!P300,-SUM(P90:P101))) -> 0 | Q102: =IF(COUNT($H102:P102)>='RFM input'!$W$7,0,IF('RFM input'!$F$293='RFM input'!$H$292,-'RFM input'!Q300,-SUM(Q90:Q101))) -> 0
C103: =Asset4 -> Rural Zone Substations | E103: Opening RAB | H103: =IF(H$3>A4remlife,A4value-SUM($G103:G103),IF(A4remlife="N/A","n/a",A4value/A4remlife)) -> n/a | I103: =IF(I$3>A4remlife,A4value-SUM($G103:H103),IF(A4remlife="N/A","n/a",A4value/A4remlife)) -> n/a | J103: =IF(J$3>A4remlife,A4value-SUM($G103:I103),IF(A4remlife="N/A","n/a",A4value/A4remlife)) -> n/a | K103: =IF(K$3>A4remlife,A4value-SUM($G103:J103),IF(A4remlife="N/A","n/a",A4value/A4remlife)) -> n/a | L103: =IF(L$3>A4remlife,A4value-SUM($G103:K103),IF(A4remlife="N/A","n/a",A4value/A4remlife)) -> n/a | M103: =IF(M$3>A4remlife,A4value-SUM($G103:L103),IF(A4remlife="N/A","n/a",A4value/A4remlife)) -> n/a | N103: =IF(N$3>A4remlife,A4value-SUM($G103:M103),IF(A4remlife="N/A","n/a",A4value/A4remlife)) -> n/a | O103: =IF(O$3>A4remlife,A4value-SUM($G103:N103),IF(A4remlife="N/A","n/a",A4value/A4remlife)) -> n/a | P103: =IF(P$3>A4remlife,A4value-SUM($G103:O103),IF(A4remlife="N/A","n/a",A4value/A4remlife)) -> n/a | Q103: =IF(Q$3>A4remlife,A4value-SUM($G103:P103),IF(A4remlife="N/A","n/a",A4value/A4remlife)) -> n/a
E104: Capex in year
F105: 1 | I105: =IF(A4stdlife="n/a","n/a",IF(I$3>(A4stdlife+$F105),('RFM input'!$H$226*(1+vanilla1)^0.5)-SUM($H105:H105),('RFM input'!$H$226*(1+vanilla1)^0.5)/A4stdlife)) -> 0.02891536395 | J105: =IF(A4stdlife="n/a","n/a",IF(J$3>(A4stdlife+$F105),('RFM input'!$H$226*(1+vanilla1)^0.5)-SUM($H105:I105),('RFM input'!$H$226*(1+vanilla1)^0.5)/A4stdlife)) -> 0.02891536395 | K105: =IF(A4stdlife="n/a","n/a",IF(K$3>(A4stdlife+$F105),('RFM input'!$H$226*(1+vanilla1)^0.5)-SUM($H105:J105),('RFM input'!$H$226*(1+vanilla1)^0.5)/A4stdlife)) -> 0.02891536395 | L105: =IF(A4stdlife="n/a","n/a",IF(L$3>(A4stdlife+$F105),('RFM input'!$H$226*(1+vanilla1)^0.5)-SUM($H105:K105),('RFM input'!$H$226*(1+vanilla1)^0.5)/A4stdlife)) -> 0.02891536395 | M105: =IF(A4stdlife="n/a","n/a",IF(M$3>(A4stdlife+$F105),('RFM input'!$H$226*(1+vanilla1)^0.5)-SUM($H105:L105),('RFM input'!$H$226*(1+vanilla1)^0.5)/A4stdlife)) -> 0.02891536395 | N105: =IF(A4stdlife="n/a","n/a",IF(N$3>(A4stdlife+$F105),('RFM input'!$H$226*(1+vanilla1)^0.5)-SUM($H105:M105),('RFM input'!$H$226*(1+vanilla1)^0.5)/A4stdlife)) -> 0.02891536395 | O105: =IF(A4stdlife="n/a","n/a",IF(O$3>(A4stdlife+$F105),('RFM input'!$H$226*(1+vanilla1)^0.5)-SUM($H105:N105),('RFM input'!$H$226*(1+vanilla1)^0.5)/A4stdlife)) -> 0.02891536395 | P105: =IF(A4stdlife="n/a","n/a",IF(P$3>(A4stdlife+$F105),('RFM input'!$H$226*(1+vanilla1)^0.5)-SUM($H105:O105),('RFM input'!$H$226*(1+vanilla1)^0.5)/A4stdlife)) -> 0.02891536395 | Q105: =IF(A4stdlife="n/a","n/a",IF(Q$3>(A4stdlife+$F105),('RFM input'!$H$226*(1+vanilla1)^0.5)-SUM($H105:P105),('RFM input'!$H$226*(1+vanilla1)^0.5)/A4stdlife)) -> 0.02891536395
F106: 2 | J106: =IF(A4stdlife="n/a","n/a",IF(J$3>(A4stdlife+$F106),('RFM input'!$I$226*(1+vanilla2)^0.5)-SUM($I106:I106),('RFM input'!$I$226*(1+vanilla2)^0.5)/A4stdlife)) -> 0.05370983746 | K106: =IF(A4stdlife="n/a","n/a",IF(K$3>(A4stdlife+$F106),('RFM input'!$I$226*(1+vanilla2)^0.5)-SUM($I106:J106),('RFM input'!$I$226*(1+vanilla2)^0.5)/A4stdlife)) -> 0.05370983746 | L106: =IF(A4stdlife="n/a","n/a",IF(L$3>(A4stdlife+$F106),('RFM input'!$I$226*(1+vanilla2)^0.5)-SUM($I106:K106),('RFM input'!$I$226*(1+vanilla2)^0.5)/A4stdlife)) -> 0.05370983746 | M106: =IF(A4stdlife="n/a","n/a",IF(M$3>(A4stdlife+$F106),('RFM input'!$I$226*(1+vanilla2)^0.5)-SUM($I106:L106),('RFM input'!$I$226*(1+vanilla2)^0.5)/A4stdlife)) -> 0.05370983746 | N106: =IF(A4stdlife="n/a","n/a",IF(N$3>(A4stdlife+$F106),('RFM input'!$I$226*(1+vanilla2)^0.5)-SUM($I106:M106),('RFM input'!$I$226*(1+vanilla2)^0.5)/A4stdlife)) -> 0.05370983746 | O106: =IF(A4stdlife="n/a","n/a",IF(O$3>(A4stdlife+$F106),('RFM input'!$I$226*(1+vanilla2)^0.5)-SUM($I106:N106),('RFM input'!$I$226*(1+vanilla2)^0.5)/A4stdlife)) -> 0.05370983746 | P106: =IF(A4stdlife="n/a","n/a",IF(P$3>(A4stdlife+$F106),('RFM input'!$I$226*(1+vanilla2)^0.5)-SUM($I106:O106),('RFM input'!$I$226*(1+vanilla2)^0.5)/A4stdlife)) -> 0.05370983746 | Q106: =IF(A4stdlife="n/a","n/a",IF(Q$3>(A4stdlife+$F106),('RFM input'!$I$226*(1+vanilla2)^0.5)-SUM($I106:P106),('RFM input'!$I$226*(1+vanilla2)^0.5)/A4stdlife)) -> 0.05370983746
F107: 3 | K107: =IF(A4stdlife="n/a","n/a",IF(K$3>(A4stdlife+$F107),('RFM input'!$J$226*(1+vanilla3)^0.5)-SUM($J107:J107),('RFM input'!$J$226*(1+vanilla3)^0.5)/A4stdlife)) -> 0 | L107: =IF(A4stdlife="n/a","n/a",IF(L$3>(A4stdlife+$F107),('RFM input'!$J$226*(1+vanilla3)^0.5)-SUM($J107:K107),('RFM input'!$J$226*(1+vanilla3)^0.5)/A4stdlife)) -> 0 | M107: =IF(A4stdlife="n/a","n/a",IF(M$3>(A4stdlife+$F107),('RFM input'!$J$226*(1+vanilla3)^0.5)-SUM($J107:L107),('RFM input'!$J$226*(1+vanilla3)^0.5)/A4stdlife)) -> 0 | N107: =IF(A4stdlife="n/a","n/a",IF(N$3>(A4stdlife+$F107),('RFM input'!$J$226*(1+vanilla3)^0.5)-SUM($J107:M107),('RFM input'!$J$226*(1+vanilla3)^0.5)/A4stdlife)) -> 0 | O107: =IF(A4stdlife="n/a","n/a",IF(O$3>(A4stdlife+$F107),('RFM input'!$J$226*(1+vanilla3)^0.5)-SUM($J107:N107),('RFM input'!$J$226*(1+vanilla3)^0.5)/A4stdlife)) -> 0 | P107: =IF(A4stdlife="n/a","n/a",IF(P$3>(A4stdlife+$F107),('RFM input'!$J$226*(1+vanilla3)^0.5)-SUM($J107:O107),('RFM input'!$J$226*(1+vanilla3)^0.5)/A4stdlife)) -> 0 | Q107: =IF(A4stdlife="n/a","n/a",IF(Q$3>(A4stdlife+$F107),('RFM input'!$J$226*(1+vanilla3)^0.5)-SUM($J107:P107),('RFM input'!$J$226*(1+vanilla3)^0.5)/A4stdlife)) -> 0
F108: 4 | L108: =IF(A4stdlife="n/a","n/a",IF(L$3>(A4stdlife+$F108),('RFM input'!$K$226*(1+vanilla4)^0.5)-SUM($K108:K108),('RFM input'!$K$226*(1+vanilla4)^0.5)/A4stdlife)) -> 0 | M108: =IF(A4stdlife="n/a","n/a",IF(M$3>(A4stdlife+$F108),('RFM input'!$K$226*(1+vanilla4)^0.5)-SUM($K108:L108),('RFM input'!$K$226*(1+vanilla4)^0.5)/A4stdlife)) -> 0 | N108: =IF(A4stdlife="n/a","n/a",IF(N$3>(A4stdlife+$F108),('RFM input'!$K$226*(1+vanilla4)^0.5)-SUM($K108:M108),('RFM input'!$K$226*(1+vanilla4)^0.5)/A4stdlife)) -> 0 | O108: =IF(A4stdlife="n/a","n/a",IF(O$3>(A4stdlife+$F108),('RFM input'!$K$226*(1+vanilla4)^0.5)-SUM($K108:N108),('RFM input'!$K$226*(1+vanilla4)^0.5)/A4stdlife)) -> 0 | P108: =IF(A4stdlife="n/a","n/a",IF(P$3>(A4stdlife+$F108),('RFM input'!$K$226*(1+vanilla4)^0.5)-SUM($K108:O108),('RFM input'!$K$226*(1+vanilla4)^0.5)/A4stdlife)) -> 0 | Q108: =IF(A4stdlife="n/a","n/a",IF(Q$3>(A4stdlife+$F108),('RFM input'!$K$226*(1+vanilla4)^0.5)-SUM($K108:P108),('RFM input'!$K$226*(1+vanilla4)^0.5)/A4stdlife)) -> 0
F109: 5 | M109: =IF(A4stdlife="n/a","n/a",IF(M$3>(A4stdlife+$F109),('RFM input'!$L$226*(1+vanilla5)^0.5)-SUM($L109:L109),('RFM input'!$L$226*(1+vanilla5)^0.5)/A4stdlife)) -> 0 | N109: =IF(A4stdlife="n/a","n/a",IF(N$3>(A4stdlife+$F109),('RFM input'!$L$226*(1+vanilla5)^0.5)-SUM($L109:M109),('RFM input'!$L$226*(1+vanilla5)^0.5)/A4stdlife)) -> 0 | O109: =IF(A4stdlife="n/a","n/a",IF(O$3>(A4stdlife+$F109),('RFM input'!$L$226*(1+vanilla5)^0.5)-SUM($L109:N109),('RFM input'!$L$226*(1+vanilla5)^0.5)/A4stdlife)) -> 0 | P109: =IF(A4stdlife="n/a","n/a",IF(P$3>(A4stdlife+$F109),('RFM input'!$L$226*(1+vanilla5)^0.5)-SUM($L109:O109),('RFM input'!$L$226*(1+vanilla5)^0.5)/A4stdlife)) -> 0 | Q109: =IF(A4stdlife="n/a","n/a",IF(Q$3>(A4stdlife+$F109),('RFM input'!$L$226*(1+vanilla5)^0.5)-SUM($L109:P109),('RFM input'!$L$226*(1+vanilla5)^0.5)/A4stdlife)) -> 0
F110: 6 | N110: =IF(A4stdlife="n/a","n/a",IF(N$3>(A4stdlife+$F110),('RFM input'!$M$226*(1+vanilla6)^0.5)-SUM($M110:M110),('RFM input'!$M$226*(1+vanilla6)^0.5)/A4stdlife)) -> 0 | O110: =IF(A4stdlife="n/a","n/a",IF(O$3>(A4stdlife+$F110),('RFM input'!$M$226*(1+vanilla6)^0.5)-SUM($M110:N110),('RFM input'!$M$226*(1+vanilla6)^0.5)/A4stdlife)) -> 0 | P110: =IF(A4stdlife="n/a","n/a",IF(P$3>(A4stdlife+$F110),('RFM input'!$M$226*(1+vanilla6)^0.5)-SUM($M110:O110),('RFM input'!$M$226*(1+vanilla6)^0.5)/A4stdlife)) -> 0 | Q110: =IF(A4stdlife="n/a","n/a",IF(Q$3>(A4stdlife+$F110),('RFM input'!$M$226*(1+vanilla6)^0.5)-SUM($M110:P110),('RFM input'!$M$226*(1+vanilla6)^0.5)/A4stdlife)) -> 0
F111: 7 | O111: =IF(A4stdlife="n/a","n/a",IF(O$3>(A4stdlife+$F111),('RFM input'!$N$226*(1+vanilla7)^0.5)-SUM($N111:N111),('RFM input'!$N$226*(1+vanilla7)^0.5)/A4stdlife)) -> 0 | P111: =IF(A4stdlife="n/a","n/a",IF(P$3>(A4stdlife+$F111),('RFM input'!$N$226*(1+vanilla7)^0.5)-SUM($N111:O111),('RFM input'!$N$226*(1+vanilla7)^0.5)/A4stdlife)) -> 0 | Q111: =IF(A4stdlife="n/a","n/a",IF(Q$3>(A4stdlife+$F111),('RFM input'!$N$226*(1+vanilla7)^0.5)-SUM($N111:P111),('RFM input'!$N$226*(1+vanilla7)^0.5)/A4stdlife)) -> 0
F112: 8 | P112: =IF(A4stdlife="n/a","n/a",IF(P$3>(A4stdlife+$F112),('RFM input'!$O$226*(1+vanilla8)^0.5)-SUM($O112:O112),('RFM input'!$O$226*(1+vanilla8)^0.5)/A4stdlife)) -> 0 | Q112: =IF(A4stdlife="n/a","n/a",IF(Q$3>(A4stdlife+$F112),('RFM input'!$O$226*(1+vanilla8)^0.5)-SUM($O112:P112),('RFM input'!$O$226*(1+vanilla8)^0.5)/A4stdlife)) -> 0
F113: 9 | Q113: =IF(A4stdlife="n/a","n/a",IF(Q$3>(A4stdlife+$F113),('RFM input'!$P$226*(1+vanilla9)^0.5)-SUM($P113:P113),('RFM input'!$P$226*(1+vanilla9)^0.5)/A4stdlife)) -> 0
F114: 10
D115: =Asset4 -> Rural Zone Substations | H115: =IF('RFM input'!$F$293='RFM input'!$H$292,-'RFM input'!H301,-SUM(H103:H114)) -> -0.09790356811 | I115: =IF('RFM input'!$F$293='RFM input'!$H$292,-'RFM input'!I301,-SUM(I103:I114)) -> -0.1264422132 | J115: =IF(COUNT($H115:I115)>='RFM input'!$W$7,0,IF('RFM input'!$F$293='RFM input'!$H$292,-'RFM input'!J301,-SUM(J103:J114))) -> 0 | K115: =IF(COUNT($H115:J115)>='RFM input'!$W$7,0,IF('RFM input'!$F$293='RFM input'!$H$292,-'RFM input'!K301,-SUM(K103:K114))) -> 0 | L115: =IF(COUNT($H115:K115)>='RFM input'!$W$7,0,IF('RFM input'!$F$293='RFM input'!$H$292,-'RFM input'!L301,-SUM(L103:L114))) -> 0 | M115: =IF(COUNT($H115:L115)>='RFM input'!$W$7,0,IF('RFM input'!$F$293='RFM input'!$H$292,-'RFM input'!M301,-SUM(M103:M114))) -> 0 | N115: =IF(COUNT($H115:M115)>='RFM input'!$W$7,0,IF('RFM input'!$F$293='RFM input'!$H$292,-'RFM input'!N301,-SUM(N103:N114))) -> 0 | O115: =IF(COUNT($H115:N115)>='RFM input'!$W$7,0,IF('RFM input'!$F$293='RFM input'!$H$292,-'RFM input'!O301,-SUM(O103:O114))) -> 0 | P115: =IF(COUNT($H115:O115)>='RFM input'!$W$7,0,IF('RFM input'!$F$293='RFM input'!$H$292,-'RFM input'!P301,-SUM(P103:P114))) -> 0 | Q115: =IF(COUNT($H115:P115)>='RFM input'!$W$7,0,IF('RFM input'!$F$293='RFM input'!$H$292,-'RFM input'!Q301,-SUM(Q103:Q114))) -> 0
C116: =Asset5 -> SCADA | E116: Opening RAB | H116: =IF(H$3>A5remlife,A5value-SUM($G116:G116),IF(A5remlife="N/A","n/a",A5value/A5remlife)) -> n/a | I116: =IF(I$3>A5remlife,A5value-SUM($G116:H116),IF(A5remlife="N/A","n/a",A5value/A5remlife)) -> n/a | J116: =IF(J$3>A5remlife,A5value-SUM($G116:I116),IF(A5remlife="N/A","n/a",A5value/A5remlife)) -> n/a | K116: =IF(K$3>A5remlife,A5value-SUM($G116:J116),IF(A5remlife="N/A","n/a",A5value/A5remlife)) -> n/a | L116: =IF(L$3>A5remlife,A5value-SUM($G116:K116),IF(A5remlife="N/A","n/a",A5value/A5remlife)) -> n/a | M116: =IF(M$3>A5remlife,A5value-SUM($G116:L116),IF(A5remlife="N/A","n/a",A5value/A5remlife)) -> n/a | N116: =IF(N$3>A5remlife,A5value-SUM($G116:M116),IF(A5remlife="N/A","n/a",A5value/A5remlife)) -> n/a | O116: =IF(O$3>A5remlife,A5value-SUM($G116:N116),IF(A5remlife="N/A","n/a",A5value/A5remlife)) -> n/a | P116: =IF(P$3>A5remlife,A5value-SUM($G116:O116),IF(A5remlife="N/A","n/a",A5value/A5remlife)) -> n/a | Q116: =IF(Q$3>A5remlife,A5value-SUM($G116:P116),IF(A5remlife="N/A","n/a",A5value/A5remlife)) -> n/a
E117: Capex in year
F118: 1 | I118: =IF(A5stdlife="n/a","n/a",IF(I$3>(A5stdlife+$F118),('RFM input'!$H$227*(1+vanilla1)^0.5)-SUM($H118:H118),('RFM input'!$H$227*(1+vanilla1)^0.5)/A5stdlife)) -> 0.3424943729 | J118: =IF(A5stdlife="n/a","n/a",IF(J$3>(A5stdlife+$F118),('RFM input'!$H$227*(1+vanilla1)^0.5)-SUM($H118:I118),('RFM input'!$H$227*(1+vanilla1)^0.5)/A5stdlife)) -> 0.3424943729 | K118: =IF(A5stdlife="n/a","n/a",IF(K$3>(A5stdlife+$F118),('RFM input'!$H$227*(1+vanilla1)^0.5)-SUM($H118:J118),('RFM input'!$H$227*(1+vanilla1)^0.5)/A5stdlife)) -> 0.3424943729 | L118: =IF(A5stdlife="n/a","n/a",IF(L$3>(A5stdlife+$F118),('RFM input'!$H$227*(1+vanilla1)^0.5)-SUM($H118:K118),('RFM input'!$H$227*(1+vanilla1)^0.5)/A5stdlife)) -> 0.3424943729 | M118: =IF(A5stdlife="n/a","n/a",IF(M$3>(A5stdlife+$F118),('RFM input'!$H$227*(1+vanilla1)^0.5)-SUM($H118:L118),('RFM input'!$H$227*(1+vanilla1)^0.5)/A5stdlife)) -> 0.3424943729 | N118: =IF(A5stdlife="n/a","n/a",IF(N$3>(A5stdlife+$F118),('RFM input'!$H$227*(1+vanilla1)^0.5)-SUM($H118:M118),('RFM input'!$H$227*(1+vanilla1)^0.5)/A5stdlife)) -> 0.3424943729 | O118: =IF(A5stdlife="n/a","n/a",IF(O$3>(A5stdlife+$F118),('RFM input'!$H$227*(1+vanilla1)^0.5)-SUM($H118:N118),('RFM input'!$H$227*(1+vanilla1)^0.5)/A5stdlife)) -> 0.3424943729 | P118: =IF(A5stdlife="n/a","n/a",IF(P$3>(A5stdlife+$F118),('RFM input'!$H$227*(1+vanilla1)^0.5)-SUM($H118:O118),('RFM input'!$H$227*(1+vanilla1)^0.5)/A5stdlife)) -> 0.3424943729 | Q118: =IF(A5stdlife="n/a","n/a",IF(Q$3>(A5stdlife+$F118),('RFM input'!$H$227*(1+vanilla1)^0.5)-SUM($H118:P118),('RFM input'!$H$227*(1+vanilla1)^0.5)/A5stdlife)) -> 0.3424943729
F119: 2 | J119: =IF(A5stdlife="n/a","n/a",IF(J$3>(A5stdlife+$F119),('RFM input'!$I$227*(1+vanilla2)^0.5)-SUM($I119:I119),('RFM input'!$I$227*(1+vanilla2)^0.5)/A5stdlife)) -> 0.2125749685 | K119: =IF(A5stdlife="n/a","n/a",IF(K$3>(A5stdlife+$F119),('RFM input'!$I$227*(1+vanilla2)^0.5)-SUM($I119:J119),('RFM input'!$I$227*(1+vanilla2)^0.5)/A5stdlife)) -> 0.2125749685 | L119: =IF(A5stdlife="n/a","n/a",IF(L$3>(A5stdlife+$F119),('RFM input'!$I$227*(1+vanilla2)^0.5)-SUM($I119:K119),('RFM input'!$I$227*(1+vanilla2)^0.5)/A5stdlife)) -> 0.2125749685 | M119: =IF(A5stdlife="n/a","n/a",IF(M$3>(A5stdlife+$F119),('RFM input'!$I$227*(1+vanilla2)^0.5)-SUM($I119:L119),('RFM input'!$I$227*(1+vanilla2)^0.5)/A5stdlife)) -> 0.2125749685 | N119: =IF(A5stdlife="n/a","n/a",IF(N$3>(A5stdlife+$F119),('RFM input'!$I$227*(1+vanilla2)^0.5)-SUM($I119:M119),('RFM input'!$I$227*(1+vanilla2)^0.5)/A5stdlife)) -> 0.2125749685 | O119: =IF(A5stdlife="n/a","n/a",IF(O$3>(A5stdlife+$F119),('RFM input'!$I$227*(1+vanilla2)^0.5)-SUM($I119:N119),('RFM input'!$I$227*(1+vanilla2)^0.5)/A5stdlife)) -> 0.2125749685 | P119: =IF(A5stdlife="n/a","n/a",IF(P$3>(A5stdlife+$F119),('RFM input'!$I$227*(1+vanilla2)^0.5)-SUM($I119:O119),('RFM input'!$I$227*(1+vanilla2)^0.5)/A5stdlife)) -> 0.2125749685 | Q119: =IF(A5stdlife="n/a","n/a",IF(Q$3>(A5stdlife+$F119),('RFM input'!$I$227*(1+vanilla2)^0.5)-SUM($I119:P119),('RFM input'!$I$227*(1+vanilla2)^0.5)/A5stdlife)) -> 0.2125749685
F120: 3 | K120: =IF(A5stdlife="n/a","n/a",IF(K$3>(A5stdlife+$F120),('RFM input'!$J$227*(1+vanilla3)^0.5)-SUM($J120:J120),('RFM input'!$J$227*(1+vanilla3)^0.5)/A5stdlife)) -> 0 | L120: =IF(A5stdlife="n/a","n/a",IF(L$3>(A5stdlife+$F120),('RFM input'!$J$227*(1+vanilla3)^0.5)-SUM($J120:K120),('RFM input'!$J$227*(1+vanilla3)^0.5)/A5stdlife)) -> 0 | M120: =IF(A5stdlife="n/a","n/a",IF(M$3>(A5stdlife+$F120),('RFM input'!$J$227*(1+vanilla3)^0.5)-SUM($J120:L120),('RFM input'!$J$227*(1+vanilla3)^0.5)/A5stdlife)) -> 0 | N120: =IF(A5stdlife="n/a","n/a",IF(N$3>(A5stdlife+$F120),('RFM input'!$J$227*(1+vanilla3)^0.5)-SUM($J120:M120),('RFM input'!$J$227*(1+vanilla3)^0.5)/A5stdlife)) -> 0 | O120: =IF(A5stdlife="n/a","n/a",IF(O$3>(A5stdlife+$F120),('RFM input'!$J$227*(1+vanilla3)^0.5)-SUM($J120:N120),('RFM input'!$J$227*(1+vanilla3)^0.5)/A5stdlife)) -> 0 | P120: =IF(A5stdlife="n/a","n/a",IF(P$3>(A5stdlife+$F120),('RFM input'!$J$227*(1+vanilla3)^0.5)-SUM($J120:O120),('RFM input'!$J$227*(1+vanilla3)^0.5)/A5stdlife)) -> 0 | Q120: =IF(A5stdlife="n/a","n/a",IF(Q$3>(A5stdlife+$F120),('RFM input'!$J$227*(1+vanilla3)^0.5)-SUM($J120:P120),('RFM input'!$J$227*(1+vanilla3)^0.5)/A5stdlife)) -> 0
F121: 4 | L121: =IF(A5stdlife="n/a","n/a",IF(L$3>(A5stdlife+$F121),('RFM input'!$K$227*(1+vanilla4)^0.5)-SUM($K121:K121),('RFM input'!$K$227*(1+vanilla4)^0.5)/A5stdlife)) -> 0 | M121: =IF(A5stdlife="n/a","n/a",IF(M$3>(A5stdlife+$F121),('RFM input'!$K$227*(1+vanilla4)^0.5)-SUM($K121:L121),('RFM input'!$K$227*(1+vanilla4)^0.5)/A5stdlife)) -> 0 | N121: =IF(A5stdlife="n/a","n/a",IF(N$3>(A5stdlife+$F121),('RFM input'!$K$227*(1+vanilla4)^0.5)-SUM($K121:M121),('RFM input'!$K$227*(1+vanilla4)^0.5)/A5stdlife)) -> 0 | O121: =IF(A5stdlife="n/a","n/a",IF(O$3>(A5stdlife+$F121),('RFM input'!$K$227*(1+vanilla4)^0.5)-SUM($K121:N121),('RFM input'!$K$227*(1+vanilla4)^0.5)/A5stdlife)) -> 0 | P121: =IF(A5stdlife="n/a","n/a",IF(P$3>(A5stdlife+$F121),('RFM input'!$K$227*(1+vanilla4)^0.5)-SUM($K121:O121),('RFM input'!$K$227*(1+vanilla4)^0.5)/A5stdlife)) -> 0 | Q121: =IF(A5stdlife="n/a","n/a",IF(Q$3>(A5stdlife+$F121),('RFM input'!$K$227*(1+vanilla4)^0.5)-SUM($K121:P121),('RFM input'!$K$227*(1+vanilla4)^0.5)/A5stdlife)) -> 0
F122: 5 | M122: =IF(A5stdlife="n/a","n/a",IF(M$3>(A5stdlife+$F122),('RFM input'!$L$227*(1+vanilla5)^0.5)-SUM($L122:L122),('RFM input'!$L$227*(1+vanilla5)^0.5)/A5stdlife)) -> 0 | N122: =IF(A5stdlife="n/a","n/a",IF(N$3>(A5stdlife+$F122),('RFM input'!$L$227*(1+vanilla5)^0.5)-SUM($L122:M122),('RFM input'!$L$227*(1+vanilla5)^0.5)/A5stdlife)) -> 0 | O122: =IF(A5stdlife="n/a","n/a",IF(O$3>(A5stdlife+$F122),('RFM input'!$L$227*(1+vanilla5)^0.5)-SUM($L122:N122),('RFM input'!$L$227*(1+vanilla5)^0.5)/A5stdlife)) -> 0 | P122: =IF(A5stdlife="n/a","n/a",IF(P$3>(A5stdlife+$F122),('RFM input'!$L$227*(1+vanilla5)^0.5)-SUM($L122:O122),('RFM input'!$L$227*(1+vanilla5)^0.5)/A5stdlife)) -> 0 | Q122: =IF(A5stdlife="n/a","n/a",IF(Q$3>(A5stdlife+$F122),('RFM input'!$L$227*(1+vanilla5)^0.5)-SUM($L122:P122),('RFM input'!$L$227*(1+vanilla5)^0.5)/A5stdlife)) -> 0
F123: 6 | N123: =IF(A5stdlife="n/a","n/a",IF(N$3>(A5stdlife+$F123),('RFM input'!$M$227*(1+vanilla6)^0.5)-SUM($M123:M123),('RFM input'!$M$227*(1+vanilla6)^0.5)/A5stdlife)) -> 0 | O123: =IF(A5stdlife="n/a","n/a",IF(O$3>(A5stdlife+$F123),('RFM input'!$M$227*(1+vanilla6)^0.5)-SUM($M123:N123),('RFM input'!$M$227*(1+vanilla6)^0.5)/A5stdlife)) -> 0 | P123: =IF(A5stdlife="n/a","n/a",IF(P$3>(A5stdlife+$F123),('RFM input'!$M$227*(1+vanilla6)^0.5)-SUM($M123:O123),('RFM input'!$M$227*(1+vanilla6)^0.5)/A5stdlife)) -> 0 | Q123: =IF(A5stdlife="n/a","n/a",IF(Q$3>(A5stdlife+$F123),('RFM input'!$M$227*(1+vanilla6)^0.5)-SUM($M123:P123),('RFM input'!$M$227*(1+vanilla6)^0.5)/A5stdlife)) -> 0
F124: 7 | O124: =IF(A5stdlife="n/a","n/a",IF(O$3>(A5stdlife+$F124),('RFM input'!$N$227*(1+vanilla7)^0.5)-SUM($N124:N124),('RFM input'!$N$227*(1+vanilla7)^0.5)/A5stdlife)) -> 0 | P124: =IF(A5stdlife="n/a","n/a",IF(P$3>(A5stdlife+$F124),('RFM input'!$N$227*(1+vanilla7)^0.5)-SUM($N124:O124),('RFM input'!$N$227*(1+vanilla7)^0.5)/A5stdlife)) -> 0 | Q124: =IF(A5stdlife="n/a","n/a",IF(Q$3>(A5stdlife+$F124),('RFM input'!$N$227*(1+vanilla7)^0.5)-SUM($N124:P124),('RFM input'!$N$227*(1+vanilla7)^0.5)/A5stdlife)) -> 0
F125: 8 | P125: =IF(A5stdlife="n/a","n/a",IF(P$3>(A5stdlife+$F125),('RFM input'!$O$227*(1+vanilla8)^0.5)-SUM($O125:O125),('RFM input'!$O$227*(1+vanilla8)^0.5)/A5stdlife)) -> 0 | Q125: =IF(A5stdlife="n/a","n/a",IF(Q$3>(A5stdlife+$F125),('RFM input'!$O$227*(1+vanilla8)^0.5)-SUM($O125:P125),('RFM input'!$O$227*(1+vanilla8)^0.5)/A5stdlife)) -> 0
F126: 9 | Q126: =IF(A5stdlife="n/a","n/a",IF(Q$3>(A5stdlife+$F126),('RFM input'!$P$227*(1+vanilla9)^0.5)-SUM($P126:P126),('RFM input'!$P$227*(1+vanilla9)^0.5)/A5stdlife)) -> 0
F127: 10
D128: =Asset5 -> SCADA | H128: =IF('RFM input'!$F$293='RFM input'!$H$292,-'RFM input'!H302,-SUM(H116:H127)) -> -4.180997868 | I128: =IF('RFM input'!$F$293='RFM input'!$H$292,-'RFM input'!I302,-SUM(I116:I127)) -> -4.519030112 | J128: =IF(COUNT($H128:I128)>='RFM input'!$W$7,0,IF('RFM input'!$F$293='RFM input'!$H$292,-'RFM input'!J302,-SUM(J116:J127))) -> 0 | K128: =IF(COUNT($H128:J128)>='RFM input'!$W$7,0,IF('RFM input'!$F$293='RFM input'!$H$292,-'RFM input'!K302,-SUM(K116:K127))) -> 0 | L128: =IF(COUNT($H128:K128)>='RFM input'!$W$7,0,IF('RFM input'!$F$293='RFM input'!$H$292,-'RFM input'!L302,-SUM(L116:L127))) -> 0 | M128: =IF(COUNT($H128:L128)>='RFM input'!$W$7,0,IF('RFM input'!$F$293='RFM input'!$H$292,-'RFM input'!M302,-SUM(M116:M127))) -> 0 | N128: =IF(COUNT($H128:M128)>='RFM input'!$W$7,0,IF('RFM input'!$F$293='RFM input'!$H$292,-'RFM input'!N302,-SUM(N116:N127))) -> 0 | O128: =IF(COUNT($H128:N128)>='RFM input'!$W$7,0,IF('RFM input'!$F$293='RFM input'!$H$292,-'RFM input'!O302,-SUM(O116:O127))) -> 0 | P128: =IF(COUNT($H128:O128)>='RFM input'!$W$7,0,IF('RFM input'!$F$293='RFM input'!$H$292,-'RFM input'!P302,-SUM(P116:P127))) -> 0 | Q128: =IF(COUNT($H128:P128)>='RFM input'!$W$7,0,IF('RFM input'!$F$293='RFM input'!$H$292,-'RFM input'!Q302,-SUM(Q116:Q127))) -> 0
C129: =Asset6 -> Distribution Switching Stations (Ground) | E129: Opening RAB | H129: =IF(H$3>A6remlife,A6value-SUM($G129:G129),IF(A6remlife="N/A","n/a",A6value/A6remlife)) -> n/a | I129: =IF(I$3>A6remlife,A6value-SUM($G129:H129),IF(A6remlife="N/A","n/a",A6value/A6remlife)) -> n/a | J129: =IF(J$3>A6remlife,A6value-SUM($G129:I129),IF(A6remlife="N/A","n/a",A6value/A6remlife)) -> n/a | K129: =IF(K$3>A6remlife,A6value-SUM($G129:J129),IF(A6remlife="N/A","n/a",A6value/A6remlife)) -> n/a | L129: =IF(L$3>A6remlife,A6value-SUM($G129:K129),IF(A6remlife="N/A","n/a",A6value/A6remlife)) -> n/a | M129: =IF(M$3>A6remlife,A6value-SUM($G129:L129),IF(A6remlife="N/A","n/a",A6value/A6remlife)) -> n/a | N129: =IF(N$3>A6remlife,A6value-SUM($G129:M129),IF(A6remlife="N/A","n/a",A6value/A6remlife)) -> n/a | O129: =IF(O$3>A6remlife,A6value-SUM($G129:N129),IF(A6remlife="N/A","n/a",A6value/A6remlife)) -> n/a | P129: =IF(P$3>A6remlife,A6value-SUM($G129:O129),IF(A6remlife="N/A","n/a",A6value/A6remlife)) -> n/a | Q129: =IF(Q$3>A6remlife,A6value-SUM($G129:P129),IF(A6remlife="N/A","n/a",A6value/A6remlife)) -> n/a
E130: Capex in year
F131: 1 | I131: =IF(A6stdlife="n/a","n/a",IF(I$3>(A6stdlife+$F131),('RFM input'!$H$228*(1+vanilla1)^0.5)-SUM($H131:H131),('RFM input'!$H$228*(1+vanilla1)^0.5)/A6stdlife)) -> 0.006726283206 | J131: =IF(A6stdlife="n/a","n/a",IF(J$3>(A6stdlife+$F131),('RFM input'!$H$228*(1+vanilla1)^0.5)-SUM($H131:I131),('RFM input'!$H$228*(1+vanilla1)^0.5)/A6stdlife)) -> 0.006726283206 | K131: =IF(A6stdlife="n/a","n/a",IF(K$3>(A6stdlife+$F131),('RFM input'!$H$228*(1+vanilla1)^0.5)-SUM($H131:J131),('RFM input'!$H$228*(1+vanilla1)^0.5)/A6stdlife)) -> 0.006726283206 | L131: =IF(A6stdlife="n/a","n/a",IF(L$3>(A6stdlife+$F131),('RFM input'!$H$228*(1+vanilla1)^0.5)-SUM($H131:K131),('RFM input'!$H$228*(1+vanilla1)^0.5)/A6stdlife)) -> 0.006726283206 | M131: =IF(A6stdlife="n/a","n/a",IF(M$3>(A6stdlife+$F131),('RFM input'!$H$228*(1+vanilla1)^0.5)-SUM($H131:L131),('RFM input'!$H$228*(1+vanilla1)^0.5)/A6stdlife)) -> 0.006726283206 | N131: =IF(A6stdlife="n/a","n/a",IF(N$3>(A6stdlife+$F131),('RFM input'!$H$228*(1+vanilla1)^0.5)-SUM($H131:M131),('RFM input'!$H$228*(1+vanilla1)^0.5)/A6stdlife)) -> 0.006726283206 | O131: =IF(A6stdlife="n/a","n/a",IF(O$3>(A6stdlife+$F131),('RFM input'!$H$228*(1+vanilla1)^0.5)-SUM($H131:N131),('RFM input'!$H$228*(1+vanilla1)^0.5)/A6stdlife)) -> 0.006726283206 | P131: =IF(A6stdlife="n/a","n/a",IF(P$3>(A6stdlife+$F131),('RFM input'!$H$228*(1+vanilla1)^0.5)-SUM($H131:O131),('RFM input'!$H$228*(1+vanilla1)^0.5)/A6stdlife)) -> 0.006726283206 | Q131: =IF(A6stdlife="n/a","n/a",IF(Q$3>(A6stdlife+$F131),('RFM input'!$H$228*(1+vanilla1)^0.5)-SUM($H131:P131),('RFM input'!$H$228*(1+vanilla1)^0.5)/A6stdlife)) -> 0.006726283206
F132: 2 | J132: =IF(A6stdlife="n/a","n/a",IF(J$3>(A6stdlife+$F132),('RFM input'!$I$228*(1+vanilla2)^0.5)-SUM($I132:I132),('RFM input'!$I$228*(1+vanilla2)^0.5)/A6stdlife)) -> 0.005458841548 | K132: =IF(A6stdlife="n/a","n/a",IF(K$3>(A6stdlife+$F132),('RFM input'!$I$228*(1+vanilla2)^0.5)-SUM($I132:J132),('RFM input'!$I$228*(1+vanilla2)^0.5)/A6stdlife)) -> 0.005458841548 | L132: =IF(A6stdlife="n/a","n/a",IF(L$3>(A6stdlife+$F132),('RFM input'!$I$228*(1+vanilla2)^0.5)-SUM($I132:K132),('RFM input'!$I$228*(1+vanilla2)^0.5)/A6stdlife)) -> 0.005458841548 | M132: =IF(A6stdlife="n/a","n/a",IF(M$3>(A6stdlife+$F132),('RFM input'!$I$228*(1+vanilla2)^0.5)-SUM($I132:L132),('RFM input'!$I$228*(1+vanilla2)^0.5)/A6stdlife)) -> 0.005458841548 | N132: =IF(A6stdlife="n/a","n/a",IF(N$3>(A6stdlife+$F132),('RFM input'!$I$228*(1+vanilla2)^0.5)-SUM($I132:M132),('RFM input'!$I$228*(1+vanilla2)^0.5)/A6stdlife)) -> 0.005458841548 | O132: =IF(A6stdlife="n/a","n/a",IF(O$3>(A6stdlife+$F132),('RFM input'!$I$228*(1+vanilla2)^0.5)-SUM($I132:N132),('RFM input'!$I$228*(1+vanilla2)^0.5)/A6stdlife)) -> 0.005458841548 | P132: =IF(A6stdlife="n/a","n/a",IF(P$3>(A6stdlife+$F132),('RFM input'!$I$228*(1+vanilla2)^0.5)-SUM($I132:O132),('RFM input'!$I$228*(1+vanilla2)^0.5)/A6stdlife)) -> 0.005458841548 | Q132: =IF(A6stdlife="n/a","n/a",IF(Q$3>(A6stdlife+$F132),('RFM input'!$I$228*(1+vanilla2)^0.5)-SUM($I132:P132),('RFM input'!$I$228*(1+vanilla2)^0.5)/A6stdlife)) -> 0.005458841548
F133: 3 | K133: =IF(A6stdlife="n/a","n/a",IF(K$3>(A6stdlife+$F133),('RFM input'!$J$228*(1+vanilla3)^0.5)-SUM($J133:J133),('RFM input'!$J$228*(1+vanilla3)^0.5)/A6stdlife)) -> 0 | L133: =IF(A6stdlife="n/a","n/a",IF(L$3>(A6stdlife+$F133),('RFM input'!$J$228*(1+vanilla3)^0.5)-SUM($J133:K133),('RFM input'!$J$228*(1+vanilla3)^0.5)/A6stdlife)) -> 0 | M133: =IF(A6stdlife="n/a","n/a",IF(M$3>(A6stdlife+$F133),('RFM input'!$J$228*(1+vanilla3)^0.5)-SUM($J133:L133),('RFM input'!$J$228*(1+vanilla3)^0.5)/A6stdlife)) -> 0 | N133: =IF(A6stdlife="n/a","n/a",IF(N$3>(A6stdlife+$F133),('RFM input'!$J$228*(1+vanilla3)^0.5)-SUM($J133:M133),('RFM input'!$J$228*(1+vanilla3)^0.5)/A6stdlife)) -> 0 | O133: =IF(A6stdlife="n/a","n/a",IF(O$3>(A6stdlife+$F133),('RFM input'!$J$228*(1+vanilla3)^0.5)-SUM($J133:N133),('RFM input'!$J$228*(1+vanilla3)^0.5)/A6stdlife)) -> 0 | P133: =IF(A6stdlife="n/a","n/a",IF(P$3>(A6stdlife+$F133),('RFM input'!$J$228*(1+vanilla3)^0.5)-SUM($J133:O133),('RFM input'!$J$228*(1+vanilla3)^0.5)/A6stdlife)) -> 0 | Q133: =IF(A6stdlife="n/a","n/a",IF(Q$3>(A6stdlife+$F133),('RFM input'!$J$228*(1+vanilla3)^0.5)-SUM($J133:P133),('RFM input'!$J$228*(1+vanilla3)^0.5)/A6stdlife)) -> 0
F134: 4 | L134: =IF(A6stdlife="n/a","n/a",IF(L$3>(A6stdlife+$F134),('RFM input'!$K$228*(1+vanilla4)^0.5)-SUM($K134:K134),('RFM input'!$K$228*(1+vanilla4)^0.5)/A6stdlife)) -> 0 | M134: =IF(A6stdlife="n/a","n/a",IF(M$3>(A6stdlife+$F134),('RFM input'!$K$228*(1+vanilla4)^0.5)-SUM($K134:L134),('RFM input'!$K$228*(1+vanilla4)^0.5)/A6stdlife)) -> 0 | N134: =IF(A6stdlife="n/a","n/a",IF(N$3>(A6stdlife+$F134),('RFM input'!$K$228*(1+vanilla4)^0.5)-SUM($K134:M134),('RFM input'!$K$228*(1+vanilla4)^0.5)/A6stdlife)) -> 0 | O134: =IF(A6stdlife="n/a","n/a",IF(O$3>(A6stdlife+$F134),('RFM input'!$K$228*(1+vanilla4)^0.5)-SUM($K134:N134),('RFM input'!$K$228*(1+vanilla4)^0.5)/A6stdlife)) -> 0 | P134: =IF(A6stdlife="n/a","n/a",IF(P$3>(A6stdlife+$F134),('RFM input'!$K$228*(1+vanilla4)^0.5)-SUM($K134:O134),('RFM input'!$K$228*(1+vanilla4)^0.5)/A6stdlife)) -> 0 | Q134: =IF(A6stdlife="n/a","n/a",IF(Q$3>(A6stdlife+$F134),('RFM input'!$K$228*(1+vanilla4)^0.5)-SUM($K134:P134),('RFM input'!$K$228*(1+vanilla4)^0.5)/A6stdlife)) -> 0
F135: 5 | M135: =IF(A6stdlife="n/a","n/a",IF(M$3>(A6stdlife+$F135),('RFM input'!$L$228*(1+vanilla5)^0.5)-SUM($L135:L135),('RFM input'!$L$228*(1+vanilla5)^0.5)/A6stdlife)) -> 0 | N135: =IF(A6stdlife="n/a","n/a",IF(N$3>(A6stdlife+$F135),('RFM input'!$L$228*(1+vanilla5)^0.5)-SUM($L135:M135),('RFM input'!$L$228*(1+vanilla5)^0.5)/A6stdlife)) -> 0 | O135: =IF(A6stdlife="n/a","n/a",IF(O$3>(A6stdlife+$F135),('RFM input'!$L$228*(1+vanilla5)^0.5)-SUM($L135:N135),('RFM input'!$L$228*(1+vanilla5)^0.5)/A6stdlife)) -> 0 | P135: =IF(A6stdlife="n/a","n/a",IF(P$3>(A6stdlife+$F135),('RFM input'!$L$228*(1+vanilla5)^0.5)-SUM($L135:O135),('RFM input'!$L$228*(1+vanilla5)^0.5)/A6stdlife)) -> 0 | Q135: =IF(A6stdlife="n/a","n/a",IF(Q$3>(A6stdlife+$F135),('RFM input'!$L$228*(1+vanilla5)^0.5)-SUM($L135:P135),('RFM input'!$L$228*(1+vanilla5)^0.5)/A6stdlife)) -> 0
F136: 6 | N136: =IF(A6stdlife="n/a","n/a",IF(N$3>(A6stdlife+$F136),('RFM input'!$M$228*(1+vanilla6)^0.5)-SUM($M136:M136),('RFM input'!$M$228*(1+vanilla6)^0.5)/A6stdlife)) -> 0 | O136: =IF(A6stdlife="n/a","n/a",IF(O$3>(A6stdlife+$F136),('RFM input'!$M$228*(1+vanilla6)^0.5)-SUM($M136:N136),('RFM input'!$M$228*(1+vanilla6)^0.5)/A6stdlife)) -> 0 | P136: =IF(A6stdlife="n/a","n/a",IF(P$3>(A6stdlife+$F136),('RFM input'!$M$228*(1+vanilla6)^0.5)-SUM($M136:O136),('RFM input'!$M$228*(1+vanilla6)^0.5)/A6stdlife)) -> 0 | Q136: =IF(A6stdlife="n/a","n/a",IF(Q$3>(A6stdlife+$F136),('RFM input'!$M$228*(1+vanilla6)^0.5)-SUM($M136:P136),('RFM input'!$M$228*(1+vanilla6)^0.5)/A6stdlife)) -> 0
F137: 7 | O137: =IF(A6stdlife="n/a","n/a",IF(O$3>(A6stdlife+$F137),('RFM input'!$N$228*(1+vanilla7)^0.5)-SUM($N137:N137),('RFM input'!$N$228*(1+vanilla7)^0.5)/A6stdlife)) -> 0 | P137: =IF(A6stdlife="n/a","n/a",IF(P$3>(A6stdlife+$F137),('RFM input'!$N$228*(1+vanilla7)^0.5)-SUM($N137:O137),('RFM input'!$N$228*(1+vanilla7)^0.5)/A6stdlife)) -> 0 | Q137: =IF(A6stdlife="n/a","n/a",IF(Q$3>(A6stdlife+$F137),('RFM input'!$N$228*(1+vanilla7)^0.5)-SUM($N137:P137),('RFM input'!$N$228*(1+vanilla7)^0.5)/A6stdlife)) -> 0
F138: 8 | P138: =IF(A6stdlife="n/a","n/a",IF(P$3>(A6stdlife+$F138),('RFM input'!$O$228*(1+vanilla8)^0.5)-SUM($O138:O138),('RFM input'!$O$228*(1+vanilla8)^0.5)/A6stdlife)) -> 0 | Q138: =IF(A6stdlife="n/a","n/a",IF(Q$3>(A6stdlife+$F138),('RFM input'!$O$228*(1+vanilla8)^0.5)-SUM($O138:P138),('RFM input'!$O$228*(1+vanilla8)^0.5)/A6stdlife)) -> 0
F139: 9 | Q139: =IF(A6stdlife="n/a","n/a",IF(Q$3>(A6stdlife+$F139),('RFM input'!$P$228*(1+vanilla9)^0.5)-SUM($P139:P139),('RFM input'!$P$228*(1+vanilla9)^0.5)/A6stdlife)) -> 0
F140: 10
D141: =Asset6 -> Distribution Switching Stations (Ground) | H141: =IF('RFM input'!$F$293='RFM input'!$H$292,-'RFM input'!H303,-SUM(H129:H140)) -> -0.494024448 | I141: =IF('RFM input'!$F$293='RFM input'!$H$292,-'RFM input'!I303,-SUM(I129:I140)) -> -0.500663099 | J141: =IF(COUNT($H141:I141)>='RFM input'!$W$7,0,IF('RFM input'!$F$293='RFM input'!$H$292,-'RFM input'!J303,-SUM(J129:J140))) -> 0 | K141: =IF(COUNT($H141:J141)>='RFM input'!$W$7,0,IF('RFM input'!$F$293='RFM input'!$H$292,-'RFM input'!K303,-SUM(K129:K140))) -> 0 | L141: =IF(COUNT($H141:K141)>='RFM input'!$W$7,0,IF('RFM input'!$F$293='RFM input'!$H$292,-'RFM input'!L303,-SUM(L129:L140))) -> 0 | M141: =IF(COUNT($H141:L141)>='RFM input'!$W$7,0,IF('RFM input'!$F$293='RFM input'!$H$292,-'RFM input'!M303,-SUM(M129:M140))) -> 0 | N141: =IF(COUNT($H141:M141)>='RFM input'!$W$7,0,IF('RFM input'!$F$293='RFM input'!$H$292,-'RFM input'!N303,-SUM(N129:N140))) -> 0 | O141: =IF(COUNT($H141:N141)>='RFM input'!$W$7,0,IF('RFM input'!$F$293='RFM input'!$H$292,-'RFM input'!O303,-SUM(O129:O140))) -> 0 | P141: =IF(COUNT($H141:O141)>='RFM input'!$W$7,0,IF('RFM input'!$F$293='RFM input'!$H$292,-'RFM input'!P303,-SUM(P129:P140))) -> 0 | Q141: =IF(COUNT($H141:P141)>='RFM input'!$W$7,0,IF('RFM input'!$F$293='RFM input'!$H$292,-'RFM input'!Q303,-SUM(Q129:Q140))) -> 0
C142: =Asset7 -> Overhead High Voltage Lines Urban | E142: Opening RAB | H142: =IF(H$3>A7remlife,A7value-SUM($G142:G142),IF(A7remlife="N/A","n/a",A7value/A7remlife)) -> n/a | I142: =IF(I$3>A7remlife,A7value-SUM($G142:H142),IF(A7remlife="N/A","n/a",A7value/A7remlife)) -> n/a | J142: =IF(J$3>A7remlife,A7value-SUM($G142:I142),IF(A7remlife="N/A","n/a",A7value/A7remlife)) -> n/a | K142: =IF(K$3>A7remlife,A7value-SUM($G142:J142),IF(A7remlife="N/A","n/a",A7value/A7remlife)) -> n/a | L142: =IF(L$3>A7remlife,A7value-SUM($G142:K142),IF(A7remlife="N/A","n/a",A7value/A7remlife)) -> n/a | M142: =IF(M$3>A7remlife,A7value-SUM($G142:L142),IF(A7remlife="N/A","n/a",A7value/A7remlife)) -> n/a | N142: =IF(N$3>A7remlife,A7value-SUM($G142:M142),IF(A7remlife="N/A","n/a",A7value/A7remlife)) -> n/a | O142: =IF(O$3>A7remlife,A7value-SUM($G142:N142),IF(A7remlife="N/A","n/a",A7value/A7remlife)) -> n/a | P142: =IF(P$3>A7remlife,A7value-SUM($G142:O142),IF(A7remlife="N/A","n/a",A7value/A7remlife)) -> n/a | Q142: =IF(Q$3>A7remlife,A7value-SUM($G142:P142),IF(A7remlife="N/A","n/a",A7value/A7remlife)) -> n/a
E143: Capex in year
F144: 1 | I144: =IF(A7stdlife="n/a","n/a",IF(I$3>(A7stdlife+$F144),('RFM input'!$H$229*(1+vanilla1)^0.5)-SUM($H144:H144),('RFM input'!$H$229*(1+vanilla1)^0.5)/A7stdlife)) -> 0.1766166542 | J144: =IF(A7stdlife="n/a","n/a",IF(J$3>(A7stdlife+$F144),('RFM input'!$H$229*(1+vanilla1)^0.5)-SUM($H144:I144),('RFM input'!$H$229*(1+vanilla1)^0.5)/A7stdlife)) -> 0.1766166542 | K144: =IF(A7stdlife="n/a","n/a",IF(K$3>(A7stdlife+$F144),('RFM input'!$H$229*(1+vanilla1)^0.5)-SUM($H144:J144),('RFM input'!$H$229*(1+vanilla1)^0.5)/A7stdlife)) -> 0.1766166542 | L144: =IF(A7stdlife="n/a","n/a",IF(L$3>(A7stdlife+$F144),('RFM input'!$H$229*(1+vanilla1)^0.5)-SUM($H144:K144),('RFM input'!$H$229*(1+vanilla1)^0.5)/A7stdlife)) -> 0.1766166542 | M144: =IF(A7stdlife="n/a","n/a",IF(M$3>(A7stdlife+$F144),('RFM input'!$H$229*(1+vanilla1)^0.5)-SUM($H144:L144),('RFM input'!$H$229*(1+vanilla1)^0.5)/A7stdlife)) -> 0.1766166542 | N144: =IF(A7stdlife="n/a","n/a",IF(N$3>(A7stdlife+$F144),('RFM input'!$H$229*(1+vanilla1)^0.5)-SUM($H144:M144),('RFM input'!$H$229*(1+vanilla1)^0.5)/A7stdlife)) -> 0.1766166542 | O144: =IF(A7stdlife="n/a","n/a",IF(O$3>(A7stdlife+$F144),('RFM input'!$H$229*(1+vanilla1)^0.5)-SUM($H144:N144),('RFM input'!$H$229*(1+vanilla1)^0.5)/A7stdlife)) -> 0.1766166542 | P144: =IF(A7stdlife="n/a","n/a",IF(P$3>(A7stdlife+$F144),('RFM input'!$H$229*(1+vanilla1)^0.5)-SUM($H144:O144),('RFM input'!$H$229*(1+vanilla1)^0.5)/A7stdlife)) -> 0.1766166542 | Q144: =IF(A7stdlife="n/a","n/a",IF(Q$3>(A7stdlife+$F144),('RFM input'!$H$229*(1+vanilla1)^0.5)-SUM($H144:P144),('RFM input'!$H$229*(1+vanilla1)^0.5)/A7stdlife)) -> 0.1766166542
F145: 2 | J145: =IF(A7stdlife="n/a","n/a",IF(J$3>(A7stdlife+$F145),('RFM input'!$I$229*(1+vanilla2)^0.5)-SUM($I145:I145),('RFM input'!$I$229*(1+vanilla2)^0.5)/A7stdlife)) -> 0.1798220718 | K145: =IF(A7stdlife="n/a","n/a",IF(K$3>(A7stdlife+$F145),('RFM input'!$I$229*(1+vanilla2)^0.5)-SUM($I145:J145),('RFM input'!$I$229*(1+vanilla2)^0.5)/A7stdlife)) -> 0.1798220718 | L145: =IF(A7stdlife="n/a","n/a",IF(L$3>(A7stdlife+$F145),('RFM input'!$I$229*(1+vanilla2)^0.5)-SUM($I145:K145),('RFM input'!$I$229*(1+vanilla2)^0.5)/A7stdlife)) -> 0.1798220718 | M145: =IF(A7stdlife="n/a","n/a",IF(M$3>(A7stdlife+$F145),('RFM input'!$I$229*(1+vanilla2)^0.5)-SUM($I145:L145),('RFM input'!$I$229*(1+vanilla2)^0.5)/A7stdlife)) -> 0.1798220718 | N145: =IF(A7stdlife="n/a","n/a",IF(N$3>(A7stdlife+$F145),('RFM input'!$I$229*(1+vanilla2)^0.5)-SUM($I145:M145),('RFM input'!$I$229*(1+vanilla2)^0.5)/A7stdlife)) -> 0.1798220718 | O145: =IF(A7stdlife="n/a","n/a",IF(O$3>(A7stdlife+$F145),('RFM input'!$I$229*(1+vanilla2)^0.5)-SUM($I145:N145),('RFM input'!$I$229*(1+vanilla2)^0.5)/A7stdlife)) -> 0.1798220718 | P145: =IF(A7stdlife="n/a","n/a",IF(P$3>(A7stdlife+$F145),('RFM input'!$I$229*(1+vanilla2)^0.5)-SUM($I145:O145),('RFM input'!$I$229*(1+vanilla2)^0.5)/A7stdlife)) -> 0.1798220718 | Q145: =IF(A7stdlife="n/a","n/a",IF(Q$3>(A7stdlife+$F145),('RFM input'!$I$229*(1+vanilla2)^0.5)-SUM($I145:P145),('RFM input'!$I$229*(1+vanilla2)^0.5)/A7stdlife)) -> 0.1798220718
F146: 3 | K146: =IF(A7stdlife="n/a","n/a",IF(K$3>(A7stdlife+$F146),('RFM input'!$J$229*(1+vanilla3)^0.5)-SUM($J146:J146),('RFM input'!$J$229*(1+vanilla3)^0.5)/A7stdlife)) -> 0 | L146: =IF(A7stdlife="n/a","n/a",IF(L$3>(A7stdlife+$F146),('RFM input'!$J$229*(1+vanilla3)^0.5)-SUM($J146:K146),('RFM input'!$J$229*(1+vanilla3)^0.5)/A7stdlife)) -> 0 | M146: =IF(A7stdlife="n/a","n/a",IF(M$3>(A7stdlife+$F146),('RFM input'!$J$229*(1+vanilla3)^0.5)-SUM($J146:L146),('RFM input'!$J$229*(1+vanilla3)^0.5)/A7stdlife)) -> 0 | N146: =IF(A7stdlife="n/a","n/a",IF(N$3>(A7stdlife+$F146),('RFM input'!$J$229*(1+vanilla3)^0.5)-SUM($J146:M146),('RFM input'!$J$229*(1+vanilla3)^0.5)/A7stdlife)) -> 0 | O146: =IF(A7stdlife="n/a","n/a",IF(O$3>(A7stdlife+$F146),('RFM input'!$J$229*(1+vanilla3)^0.5)-SUM($J146:N146),('RFM input'!$J$229*(1+vanilla3)^0.5)/A7stdlife)) -> 0 | P146: =IF(A7stdlife="n/a","n/a",IF(P$3>(A7stdlife+$F146),('RFM input'!$J$229*(1+vanilla3)^0.5)-SUM($J146:O146),('RFM input'!$J$229*(1+vanilla3)^0.5)/A7stdlife)) -> 0 | Q146: =IF(A7stdlife="n/a","n/a",IF(Q$3>(A7stdlife+$F146),('RFM input'!$J$229*(1+vanilla3)^0.5)-SUM($J146:P146),('RFM input'!$J$229*(1+vanilla3)^0.5)/A7stdlife)) -> 0
F147: 4 | L147: =IF(A7stdlife="n/a","n/a",IF(L$3>(A7stdlife+$F147),('RFM input'!$K$229*(1+vanilla4)^0.5)-SUM($K147:K147),('RFM input'!$K$229*(1+vanilla4)^0.5)/A7stdlife)) -> 0 | M147: =IF(A7stdlife="n/a","n/a",IF(M$3>(A7stdlife+$F147),('RFM input'!$K$229*(1+vanilla4)^0.5)-SUM($K147:L147),('RFM input'!$K$229*(1+vanilla4)^0.5)/A7stdlife)) -> 0 | N147: =IF(A7stdlife="n/a","n/a",IF(N$3>(A7stdlife+$F147),('RFM input'!$K$229*(1+vanilla4)^0.5)-SUM($K147:M147),('RFM input'!$K$229*(1+vanilla4)^0.5)/A7stdlife)) -> 0 | O147: =IF(A7stdlife="n/a","n/a",IF(O$3>(A7stdlife+$F147),('RFM input'!$K$229*(1+vanilla4)^0.5)-SUM($K147:N147),('RFM input'!$K$229*(1+vanilla4)^0.5)/A7stdlife)) -> 0 | P147: =IF(A7stdlife="n/a","n/a",IF(P$3>(A7stdlife+$F147),('RFM input'!$K$229*(1+vanilla4)^0.5)-SUM($K147:O147),('RFM input'!$K$229*(1+vanilla4)^0.5)/A7stdlife)) -> 0 | Q147: =IF(A7stdlife="n/a","n/a",IF(Q$3>(A7stdlife+$F147),('RFM input'!$K$229*(1+vanilla4)^0.5)-SUM($K147:P147),('RFM input'!$K$229*(1+vanilla4)^0.5)/A7stdlife)) -> 0
F148: 5 | M148: =IF(A7stdlife="n/a","n/a",IF(M$3>(A7stdlife+$F148),('RFM input'!$L$229*(1+vanilla5)^0.5)-SUM($L148:L148),('RFM input'!$L$229*(1+vanilla5)^0.5)/A7stdlife)) -> 0 | N148: =IF(A7stdlife="n/a","n/a",IF(N$3>(A7stdlife+$F148),('RFM input'!$L$229*(1+vanilla5)^0.5)-SUM($L148:M148),('RFM input'!$L$229*(1+vanilla5)^0.5)/A7stdlife)) -> 0 | O148: =IF(A7stdlife="n/a","n/a",IF(O$3>(A7stdlife+$F148),('RFM input'!$L$229*(1+vanilla5)^0.5)-SUM($L148:N148),('RFM input'!$L$229*(1+vanilla5)^0.5)/A7stdlife)) -> 0 | P148: =IF(A7stdlife="n/a","n/a",IF(P$3>(A7stdlife+$F148),('RFM input'!$L$229*(1+vanilla5)^0.5)-SUM($L148:O148),('RFM input'!$L$229*(1+vanilla5)^0.5)/A7stdlife)) -> 0 | Q148: =IF(A7stdlife="n/a","n/a",IF(Q$3>(A7stdlife+$F148),('RFM input'!$L$229*(1+vanilla5)^0.5)-SUM($L148:P148),('RFM input'!$L$229*(1+vanilla5)^0.5)/A7stdlife)) -> 0
F149: 6 | N149: =IF(A7stdlife="n/a","n/a",IF(N$3>(A7stdlife+$F149),('RFM input'!$M$229*(1+vanilla6)^0.5)-SUM($M149:M149),('RFM input'!$M$229*(1+vanilla6)^0.5)/A7stdlife)) -> 0 | O149: =IF(A7stdlife="n/a","n/a",IF(O$3>(A7stdlife+$F149),('RFM input'!$M$229*(1+vanilla6)^0.5)-SUM($M149:N149),('RFM input'!$M$229*(1+vanilla6)^0.5)/A7stdlife)) -> 0 | P149: =IF(A7stdlife="n/a","n/a",IF(P$3>(A7stdlife+$F149),('RFM input'!$M$229*(1+vanilla6)^0.5)-SUM($M149:O149),('RFM input'!$M$229*(1+vanilla6)^0.5)/A7stdlife)) -> 0 | Q149: =IF(A7stdlife="n/a","n/a",IF(Q$3>(A7stdlife+$F149),('RFM input'!$M$229*(1+vanilla6)^0.5)-SUM($M149:P149),('RFM input'!$M$229*(1+vanilla6)^0.5)/A7stdlife)) -> 0
F150: 7 | O150: =IF(A7stdlife="n/a","n/a",IF(O$3>(A7stdlife+$F150),('RFM input'!$N$229*(1+vanilla7)^0.5)-SUM($N150:N150),('RFM input'!$N$229*(1+vanilla7)^0.5)/A7stdlife)) -> 0 | P150: =IF(A7stdlife="n/a","n/a",IF(P$3>(A7stdlife+$F150),('RFM input'!$N$229*(1+vanilla7)^0.5)-SUM($N150:O150),('RFM input'!$N$229*(1+vanilla7)^0.5)/A7stdlife)) -> 0 | Q150: =IF(A7stdlife="n/a","n/a",IF(Q$3>(A7stdlife+$F150),('RFM input'!$N$229*(1+vanilla7)^0.5)-SUM($N150:P150),('RFM input'!$N$229*(1+vanilla7)^0.5)/A7stdlife)) -> 0
F151: 8 | P151: =IF(A7stdlife="n/a","n/a",IF(P$3>(A7stdlife+$F151),('RFM input'!$O$229*(1+vanilla8)^0.5)-SUM($O151:O151),('RFM input'!$O$229*(1+vanilla8)^0.5)/A7stdlife)) -> 0 | Q151: =IF(A7stdlife="n/a","n/a",IF(Q$3>(A7stdlife+$F151),('RFM input'!$O$229*(1+vanilla8)^0.5)-SUM($O151:P151),('RFM input'!$O$229*(1+vanilla8)^0.5)/A7stdlife)) -> 0
F152: 9 | Q152: =IF(A7stdlife="n/a","n/a",IF(Q$3>(A7stdlife+$F152),('RFM input'!$P$229*(1+vanilla9)^0.5)-SUM($P152:P152),('RFM input'!$P$229*(1+vanilla9)^0.5)/A7stdlife)) -> 0
F153: 10
D154: =Asset7 -> Overhead High Voltage Lines Urban | H154: =IF('RFM input'!$F$293='RFM input'!$H$292,-'RFM input'!H304,-SUM(H142:H153)) -> -4.713760954 | I154: =IF('RFM input'!$F$293='RFM input'!$H$292,-'RFM input'!I304,-SUM(I142:I153)) -> -4.888076589 | J154: =IF(COUNT($H154:I154)>='RFM input'!$W$7,0,IF('RFM input'!$F$293='RFM input'!$H$292,-'RFM input'!J304,-SUM(J142:J153))) -> 0 | K154: =IF(COUNT($H154:J154)>='RFM input'!$W$7,0,IF('RFM input'!$F$293='RFM input'!$H$292,-'RFM input'!K304,-SUM(K142:K153))) -> 0 | L154: =IF(COUNT($H154:K154)>='RFM input'!$W$7,0,IF('RFM input'!$F$293='RFM input'!$H$292,-'RFM input'!L304,-SUM(L142:L153))) -> 0 | M154: =IF(COUNT($H154:L154)>='RFM input'!$W$7,0,IF('RFM input'!$F$293='RFM input'!$H$292,-'RFM input'!M304,-SUM(M142:M153))) -> 0 | N154: =IF(COUNT($H154:M154)>='RFM input'!$W$7,0,IF('RFM input'!$F$293='RFM input'!$H$292,-'RFM input'!N304,-SUM(N142:N153))) -> 0 | O154: =IF(COUNT($H154:N154)>='RFM input'!$W$7,0,IF('RFM input'!$F$293='RFM input'!$H$292,-'RFM input'!O304,-SUM(O142:O153))) -> 0 | P154: =IF(COUNT($H154:O154)>='RFM input'!$W$7,0,IF('RFM input'!$F$293='RFM input'!$H$292,-'RFM input'!P304,-SUM(P142:P153))) -> 0 | Q154: =IF(COUNT($H154:P154)>='RFM input'!$W$7,0,IF('RFM input'!$F$293='RFM input'!$H$292,-'RFM input'!Q304,-SUM(Q142:Q153))) -> 0
C155: =Asset8 -> Overhead High Voltage Lines Rural | E155: Opening RAB | H155: =IF(H$3>A8remlife,A8value-SUM($G155:G155),IF(A8remlife="N/A","n/a",A8value/A8remlife)) -> n/a | I155: =IF(I$3>A8remlife,A8value-SUM($G155:H155),IF(A8remlife="N/A","n/a",A8value/A8remlife)) -> n/a | J155: =IF(J$3>A8remlife,A8value-SUM($G155:I155),IF(A8remlife="N/A","n/a",A8value/A8remlife)) -> n/a | K155: =IF(K$3>A8remlife,A8value-SUM($G155:J155),IF(A8remlife="N/A","n/a",A8value/A8remlife)) -> n/a | L155: =IF(L$3>A8remlife,A8value-SUM($G155:K155),IF(A8remlife="N/A","n/a",A8value/A8remlife)) -> n/a | M155: =IF(M$3>A8remlife,A8value-SUM($G155:L155),IF(A8remlife="N/A","n/a",A8value/A8remlife)) -> n/a | N155: =IF(N$3>A8remlife,A8value-SUM($G155:M155),IF(A8remlife="N/A","n/a",A8value/A8remlife)) -> n/a | O155: =IF(O$3>A8remlife,A8value-SUM($G155:N155),IF(A8remlife="N/A","n/a",A8value/A8remlife)) -> n/a | P155: =IF(P$3>A8remlife,A8value-SUM($G155:O155),IF(A8remlife="N/A","n/a",A8value/A8remlife)) -> n/a | Q155: =IF(Q$3>A8remlife,A8value-SUM($G155:P155),IF(A8remlife="N/A","n/a",A8value/A8remlife)) -> n/a
E156: Capex in year
F157: 1 | I157: =IF(A8stdlife="n/a","n/a",IF(I$3>(A8stdlife+$F157),('RFM input'!$H$230*(1+vanilla1)^0.5)-SUM($H157:H157),('RFM input'!$H$230*(1+vanilla1)^0.5)/A8stdlife)) -> 0.566037726 | J157: =IF(A8stdlife="n/a","n/a",IF(J$3>(A8stdlife+$F157),('RFM input'!$H$230*(1+vanilla1)^0.5)-SUM($H157:I157),('RFM input'!$H$230*(1+vanilla1)^0.5)/A8stdlife)) -> 0.566037726 | K157: =IF(A8stdlife="n/a","n/a",IF(K$3>(A8stdlife+$F157),('RFM input'!$H$230*(1+vanilla1)^0.5)-SUM($H157:J157),('RFM input'!$H$230*(1+vanilla1)^0.5)/A8stdlife)) -> 0.566037726 | L157: =IF(A8stdlife="n/a","n/a",IF(L$3>(A8stdlife+$F157),('RFM input'!$H$230*(1+vanilla1)^0.5)-SUM($H157:K157),('RFM input'!$H$230*(1+vanilla1)^0.5)/A8stdlife)) -> 0.566037726 | M157: =IF(A8stdlife="n/a","n/a",IF(M$3>(A8stdlife+$F157),('RFM input'!$H$230*(1+vanilla1)^0.5)-SUM($H157:L157),('RFM input'!$H$230*(1+vanilla1)^0.5)/A8stdlife)) -> 0.566037726 | N157: =IF(A8stdlife="n/a","n/a",IF(N$3>(A8stdlife+$F157),('RFM input'!$H$230*(1+vanilla1)^0.5)-SUM($H157:M157),('RFM input'!$H$230*(1+vanilla1)^0.5)/A8stdlife)) -> 0.566037726 | O157: =IF(A8stdlife="n/a","n/a",IF(O$3>(A8stdlife+$F157),('RFM input'!$H$230*(1+vanilla1)^0.5)-SUM($H157:N157),('RFM input'!$H$230*(1+vanilla1)^0.5)/A8stdlife)) -> 0.566037726 | P157: =IF(A8stdlife="n/a","n/a",IF(P$3>(A8stdlife+$F157),('RFM input'!$H$230*(1+vanilla1)^0.5)-SUM($H157:O157),('RFM input'!$H$230*(1+vanilla1)^0.5)/A8stdlife)) -> 0.566037726 | Q157: =IF(A8stdlife="n/a","n/a",IF(Q$3>(A8stdlife+$F157),('RFM input'!$H$230*(1+vanilla1)^0.5)-SUM($H157:P157),('RFM input'!$H$230*(1+vanilla1)^0.5)/A8stdlife)) -> 0.566037726
F158: 2 | J158: =IF(A8stdlife="n/a","n/a",IF(J$3>(A8stdlife+$F158),('RFM input'!$I$230*(1+vanilla2)^0.5)-SUM($I158:I158),('RFM input'!$I$230*(1+vanilla2)^0.5)/A8stdlife)) -> 0.5533026159 | K158: =IF(A8stdlife="n/a","n/a",IF(K$3>(A8stdlife+$F158),('RFM input'!$I$230*(1+vanilla2)^0.5)-SUM($I158:J158),('RFM input'!$I$230*(1+vanilla2)^0.5)/A8stdlife)) -> 0.5533026159 | L158: =IF(A8stdlife="n/a","n/a",IF(L$3>(A8stdlife+$F158),('RFM input'!$I$230*(1+vanilla2)^0.5)-SUM($I158:K158),('RFM input'!$I$230*(1+vanilla2)^0.5)/A8stdlife)) -> 0.5533026159 | M158: =IF(A8stdlife="n/a","n/a",IF(M$3>(A8stdlife+$F158),('RFM input'!$I$230*(1+vanilla2)^0.5)-SUM($I158:L158),('RFM input'!$I$230*(1+vanilla2)^0.5)/A8stdlife)) -> 0.5533026159 | N158: =IF(A8stdlife="n/a","n/a",IF(N$3>(A8stdlife+$F158),('RFM input'!$I$230*(1+vanilla2)^0.5)-SUM($I158:M158),('RFM input'!$I$230*(1+vanilla2)^0.5)/A8stdlife)) -> 0.5533026159 | O158: =IF(A8stdlife="n/a","n/a",IF(O$3>(A8stdlife+$F158),('RFM input'!$I$230*(1+vanilla2)^0.5)-SUM($I158:N158),('RFM input'!$I$230*(1+vanilla2)^0.5)/A8stdlife)) -> 0.5533026159 | P158: =IF(A8stdlife="n/a","n/a",IF(P$3>(A8stdlife+$F158),('RFM input'!$I$230*(1+vanilla2)^0.5)-SUM($I158:O158),('RFM input'!$I$230*(1+vanilla2)^0.5)/A8stdlife)) -> 0.5533026159 | Q158: =IF(A8stdlife="n/a","n/a",IF(Q$3>(A8stdlife+$F158),('RFM input'!$I$230*(1+vanilla2)^0.5)-SUM($I158:P158),('RFM input'!$I$230*(1+vanilla2)^0.5)/A8stdlife)) -> 0.5533026159
F159: 3 | K159: =IF(A8stdlife="n/a","n/a",IF(K$3>(A8stdlife+$F159),('RFM input'!$J$230*(1+vanilla3)^0.5)-SUM($J159:J159),('RFM input'!$J$230*(1+vanilla3)^0.5)/A8stdlife)) -> 0 | L159: =IF(A8stdlife="n/a","n/a",IF(L$3>(A8stdlife+$F159),('RFM input'!$J$230*(1+vanilla3)^0.5)-SUM($J159:K159),('RFM input'!$J$230*(1+vanilla3)^0.5)/A8stdlife)) -> 0 | M159: =IF(A8stdlife="n/a","n/a",IF(M$3>(A8stdlife+$F159),('RFM input'!$J$230*(1+vanilla3)^0.5)-SUM($J159:L159),('RFM input'!$J$230*(1+vanilla3)^0.5)/A8stdlife)) -> 0 | N159: =IF(A8stdlife="n/a","n/a",IF(N$3>(A8stdlife+$F159),('RFM input'!$J$230*(1+vanilla3)^0.5)-SUM($J159:M159),('RFM input'!$J$230*(1+vanilla3)^0.5)/A8stdlife)) -> 0 | O159: =IF(A8stdlife="n/a","n/a",IF(O$3>(A8stdlife+$F159),('RFM input'!$J$230*(1+vanilla3)^0.5)-SUM($J159:N159),('RFM input'!$J$230*(1+vanilla3)^0.5)/A8stdlife)) -> 0 | P159: =IF(A8stdlife="n/a","n/a",IF(P$3>(A8stdlife+$F159),('RFM input'!$J$230*(1+vanilla3)^0.5)-SUM($J159:O159),('RFM input'!$J$230*(1+vanilla3)^0.5)/A8stdlife)) -> 0 | Q159: =IF(A8stdlife="n/a","n/a",IF(Q$3>(A8stdlife+$F159),('RFM input'!$J$230*(1+vanilla3)^0.5)-SUM($J159:P159),('RFM input'!$J$230*(1+vanilla3)^0.5)/A8stdlife)) -> 0
F160: 4 | L160: =IF(A8stdlife="n/a","n/a",IF(L$3>(A8stdlife+$F160),('RFM input'!$K$230*(1+vanilla4)^0.5)-SUM($K160:K160),('RFM input'!$K$230*(1+vanilla4)^0.5)/A8stdlife)) -> 0 | M160: =IF(A8stdlife="n/a","n/a",IF(M$3>(A8stdlife+$F160),('RFM input'!$K$230*(1+vanilla4)^0.5)-SUM($K160:L160),('RFM input'!$K$230*(1+vanilla4)^0.5)/A8stdlife)) -> 0 | N160: =IF(A8stdlife="n/a","n/a",IF(N$3>(A8stdlife+$F160),('RFM input'!$K$230*(1+vanilla4)^0.5)-SUM($K160:M160),('RFM input'!$K$230*(1+vanilla4)^0.5)/A8stdlife)) -> 0 | O160: =IF(A8stdlife="n/a","n/a",IF(O$3>(A8stdlife+$F160),('RFM input'!$K$230*(1+vanilla4)^0.5)-SUM($K160:N160),('RFM input'!$K$230*(1+vanilla4)^0.5)/A8stdlife)) -> 0 | P160: =IF(A8stdlife="n/a","n/a",IF(P$3>(A8stdlife+$F160),('RFM input'!$K$230*(1+vanilla4)^0.5)-SUM($K160:O160),('RFM input'!$K$230*(1+vanilla4)^0.5)/A8stdlife)) -> 0 | Q160: =IF(A8stdlife="n/a","n/a",IF(Q$3>(A8stdlife+$F160),('RFM input'!$K$230*(1+vanilla4)^0.5)-SUM($K160:P160),('RFM input'!$K$230*(1+vanilla4)^0.5)/A8stdlife)) -> 0
F161: 5 | M161: =IF(A8stdlife="n/a","n/a",IF(M$3>(A8stdlife+$F161),('RFM input'!$L$230*(1+vanilla5)^0.5)-SUM($L161:L161),('RFM input'!$L$230*(1+vanilla5)^0.5)/A8stdlife)) -> 0 | N161: =IF(A8stdlife="n/a","n/a",IF(N$3>(A8stdlife+$F161),('RFM input'!$L$230*(1+vanilla5)^0.5)-SUM($L161:M161),('RFM input'!$L$230*(1+vanilla5)^0.5)/A8stdlife)) -> 0 | O161: =IF(A8stdlife="n/a","n/a",IF(O$3>(A8stdlife+$F161),('RFM input'!$L$230*(1+vanilla5)^0.5)-SUM($L161:N161),('RFM input'!$L$230*(1+vanilla5)^0.5)/A8stdlife)) -> 0 | P161: =IF(A8stdlife="n/a","n/a",IF(P$3>(A8stdlife+$F161),('RFM input'!$L$230*(1+vanilla5)^0.5)-SUM($L161:O161),('RFM input'!$L$230*(1+vanilla5)^0.5)/A8stdlife)) -> 0 | Q161: =IF(A8stdlife="n/a","n/a",IF(Q$3>(A8stdlife+$F161),('RFM input'!$L$230*(1+vanilla5)^0.5)-SUM($L161:P161),('RFM input'!$L$230*(1+vanilla5)^0.5)/A8stdlife)) -> 0
F162: 6 | N162: =IF(A8stdlife="n/a","n/a",IF(N$3>(A8stdlife+$F162),('RFM input'!$M$230*(1+vanilla6)^0.5)-SUM($M162:M162),('RFM input'!$M$230*(1+vanilla6)^0.5)/A8stdlife)) -> 0 | O162: =IF(A8stdlife="n/a","n/a",IF(O$3>(A8stdlife+$F162),('RFM input'!$M$230*(1+vanilla6)^0.5)-SUM($M162:N162),('RFM input'!$M$230*(1+vanilla6)^0.5)/A8stdlife)) -> 0 | P162: =IF(A8stdlife="n/a","n/a",IF(P$3>(A8stdlife+$F162),('RFM input'!$M$230*(1+vanilla6)^0.5)-SUM($M162:O162),('RFM input'!$M$230*(1+vanilla6)^0.5)/A8stdlife)) -> 0 | Q162: =IF(A8stdlife="n/a","n/a",IF(Q$3>(A8stdlife+$F162),('RFM input'!$M$230*(1+vanilla6)^0.5)-SUM($M162:P162),('RFM input'!$M$230*(1+vanilla6)^0.5)/A8stdlife)) -> 0
F163: 7 | O163: =IF(A8stdlife="n/a","n/a",IF(O$3>(A8stdlife+$F163),('RFM input'!$N$230*(1+vanilla7)^0.5)-SUM($N163:N163),('RFM input'!$N$230*(1+vanilla7)^0.5)/A8stdlife)) -> 0 | P163: =IF(A8stdlife="n/a","n/a",IF(P$3>(A8stdlife+$F163),('RFM input'!$N$230*(1+vanilla7)^0.5)-SUM($N163:O163),('RFM input'!$N$230*(1+vanilla7)^0.5)/A8stdlife)) -> 0 | Q163: =IF(A8stdlife="n/a","n/a",IF(Q$3>(A8stdlife+$F163),('RFM input'!$N$230*(1+vanilla7)^0.5)-SUM($N163:P163),('RFM input'!$N$230*(1+vanilla7)^0.5)/A8stdlife)) -> 0
F164: 8 | P164: =IF(A8stdlife="n/a","n/a",IF(P$3>(A8stdlife+$F164),('RFM input'!$O$230*(1+vanilla8)^0.5)-SUM($O164:O164),('RFM input'!$O$230*(1+vanilla8)^0.5)/A8stdlife)) -> 0 | Q164: =IF(A8stdlife="n/a","n/a",IF(Q$3>(A8stdlife+$F164),('RFM input'!$O$230*(1+vanilla8)^0.5)-SUM($O164:P164),('RFM input'!$O$230*(1+vanilla8)^0.5)/A8stdlife)) -> 0
F165: 9 | Q165: =IF(A8stdlife="n/a","n/a",IF(Q$3>(A8stdlife+$F165),('RFM input'!$P$230*(1+vanilla9)^0.5)-SUM($P165:P165),('RFM input'!$P$230*(1+vanilla9)^0.5)/A8stdlife)) -> 0
F166: 10
D167: =Asset8 -> Overhead High Voltage Lines Rural | H167: =IF('RFM input'!$F$293='RFM input'!$H$292,-'RFM input'!H305,-SUM(H155:H166)) -> -19.4012086 | I167: =IF('RFM input'!$F$293='RFM input'!$H$292,-'RFM input'!I305,-SUM(I155:I166)) -> -19.9598718 | J167: =IF(COUNT($H167:I167)>='RFM input'!$W$7,0,IF('RFM input'!$F$293='RFM input'!$H$292,-'RFM input'!J305,-SUM(J155:J166))) -> 0 | K167: =IF(COUNT($H167:J167)>='RFM input'!$W$7,0,IF('RFM input'!$F$293='RFM input'!$H$292,-'RFM input'!K305,-SUM(K155:K166))) -> 0 | L167: =IF(COUNT($H167:K167)>='RFM input'!$W$7,0,IF('RFM input'!$F$293='RFM input'!$H$292,-'RFM input'!L305,-SUM(L155:L166))) -> 0 | M167: =IF(COUNT($H167:L167)>='RFM input'!$W$7,0,IF('RFM input'!$F$293='RFM input'!$H$292,-'RFM input'!M305,-SUM(M155:M166))) -> 0 | N167: =IF(COUNT($H167:M167)>='RFM input'!$W$7,0,IF('RFM input'!$F$293='RFM input'!$H$292,-'RFM input'!N305,-SUM(N155:N166))) -> 0 | O167: =IF(COUNT($H167:N167)>='RFM input'!$W$7,0,IF('RFM input'!$F$293='RFM input'!$H$292,-'RFM input'!O305,-SUM(O155:O166))) -> 0 | P167: =IF(COUNT($H167:O167)>='RFM input'!$W$7,0,IF('RFM input'!$F$293='RFM input'!$H$292,-'RFM input'!P305,-SUM(P155:P166))) -> 0 | Q167: =IF(COUNT($H167:P167)>='RFM input'!$W$7,0,IF('RFM input'!$F$293='RFM input'!$H$292,-'RFM input'!Q305,-SUM(Q155:Q166))) -> 0
C168: =Asset9 -> Voltage Regulators on Distribution Feeders | E168: Opening RAB | H168: =IF(H$3>A9remlife,A9value-SUM($G168:G168),IF(A9remlife="N/A","n/a",A9value/A9remlife)) -> n/a | I168: =IF(I$3>A9remlife,A9value-SUM($G168:H168),IF(A9remlife="N/A","n/a",A9value/A9remlife)) -> n/a | J168: =IF(J$3>A9remlife,A9value-SUM($G168:I168),IF(A9remlife="N/A","n/a",A9value/A9remlife)) -> n/a | K168: =IF(K$3>A9remlife,A9value-SUM($G168:J168),IF(A9remlife="N/A","n/a",A9value/A9remlife)) -> n/a | L168: =IF(L$3>A9remlife,A9value-SUM($G168:K168),IF(A9remlife="N/A","n/a",A9value/A9remlife)) -> n/a | M168: =IF(M$3>A9remlife,A9value-SUM($G168:L168),IF(A9remlife="N/A","n/a",A9value/A9remlife)) -> n/a | N168: =IF(N$3>A9remlife,A9value-SUM($G168:M168),IF(A9remlife="N/A","n/a",A9value/A9remlife)) -> n/a | O168: =IF(O$3>A9remlife,A9value-SUM($G168:N168),IF(A9remlife="N/A","n/a",A9value/A9remlife)) -> n/a | P168: =IF(P$3>A9remlife,A9value-SUM($G168:O168),IF(A9remlife="N/A","n/a",A9value/A9remlife)) -> n/a | Q168: =IF(Q$3>A9remlife,A9value-SUM($G168:P168),IF(A9remlife="N/A","n/a",A9value/A9remlife)) -> n/a
E169: Capex in year
F170: 1 | I170: =IF(A9stdlife="n/a","n/a",IF(I$3>(A9stdlife+$F170),('RFM input'!$H$231*(1+vanilla1)^0.5)-SUM($H170:H170),('RFM input'!$H$231*(1+vanilla1)^0.5)/A9stdlife)) -> 0.04043138258 | J170: =IF(A9stdlife="n/a","n/a",IF(J$3>(A9stdlife+$F170),('RFM input'!$H$231*(1+vanilla1)^0.5)-SUM($H170:I170),('RFM input'!$H$231*(1+vanilla1)^0.5)/A9stdlife)) -> 0.04043138258 | K170: =IF(A9stdlife="n/a","n/a",IF(K$3>(A9stdlife+$F170),('RFM input'!$H$231*(1+vanilla1)^0.5)-SUM($H170:J170),('RFM input'!$H$231*(1+vanilla1)^0.5)/A9stdlife)) -> 0.04043138258 | L170: =IF(A9stdlife="n/a","n/a",IF(L$3>(A9stdlife+$F170),('RFM input'!$H$231*(1+vanilla1)^0.5)-SUM($H170:K170),('RFM input'!$H$231*(1+vanilla1)^0.5)/A9stdlife)) -> 0.04043138258 | M170: =IF(A9stdlife="n/a","n/a",IF(M$3>(A9stdlife+$F170),('RFM input'!$H$231*(1+vanilla1)^0.5)-SUM($H170:L170),('RFM input'!$H$231*(1+vanilla1)^0.5)/A9stdlife)) -> 0.04043138258 | N170: =IF(A9stdlife="n/a","n/a",IF(N$3>(A9stdlife+$F170),('RFM input'!$H$231*(1+vanilla1)^0.5)-SUM($H170:M170),('RFM input'!$H$231*(1+vanilla1)^0.5)/A9stdlife)) -> 0.04043138258 | O170: =IF(A9stdlife="n/a","n/a",IF(O$3>(A9stdlife+$F170),('RFM input'!$H$231*(1+vanilla1)^0.5)-SUM($H170:N170),('RFM input'!$H$231*(1+vanilla1)^0.5)/A9stdlife)) -> 0.04043138258 | P170: =IF(A9stdlife="n/a","n/a",IF(P$3>(A9stdlife+$F170),('RFM input'!$H$231*(1+vanilla1)^0.5)-SUM($H170:O170),('RFM input'!$H$231*(1+vanilla1)^0.5)/A9stdlife)) -> 0.04043138258 | Q170: =IF(A9stdlife="n/a","n/a",IF(Q$3>(A9stdlife+$F170),('RFM input'!$H$231*(1+vanilla1)^0.5)-SUM($H170:P170),('RFM input'!$H$231*(1+vanilla1)^0.5)/A9stdlife)) -> 0.04043138258
F171: 2 | J171: =IF(A9stdlife="n/a","n/a",IF(J$3>(A9stdlife+$F171),('RFM input'!$I$231*(1+vanilla2)^0.5)-SUM($I171:I171),('RFM input'!$I$231*(1+vanilla2)^0.5)/A9stdlife)) -> 0.02037926448 | K171: =IF(A9stdlife="n/a","n/a",IF(K$3>(A9stdlife+$F171),('RFM input'!$I$231*(1+vanilla2)^0.5)-SUM($I171:J171),('RFM input'!$I$231*(1+vanilla2)^0.5)/A9stdlife)) -> 0.02037926448 | L171: =IF(A9stdlife="n/a","n/a",IF(L$3>(A9stdlife+$F171),('RFM input'!$I$231*(1+vanilla2)^0.5)-SUM($I171:K171),('RFM input'!$I$231*(1+vanilla2)^0.5)/A9stdlife)) -> 0.02037926448 | M171: =IF(A9stdlife="n/a","n/a",IF(M$3>(A9stdlife+$F171),('RFM input'!$I$231*(1+vanilla2)^0.5)-SUM($I171:L171),('RFM input'!$I$231*(1+vanilla2)^0.5)/A9stdlife)) -> 0.02037926448 | N171: =IF(A9stdlife="n/a","n/a",IF(N$3>(A9stdlife+$F171),('RFM input'!$I$231*(1+vanilla2)^0.5)-SUM($I171:M171),('RFM input'!$I$231*(1+vanilla2)^0.5)/A9stdlife)) -> 0.02037926448 | O171: =IF(A9stdlife="n/a","n/a",IF(O$3>(A9stdlife+$F171),('RFM input'!$I$231*(1+vanilla2)^0.5)-SUM($I171:N171),('RFM input'!$I$231*(1+vanilla2)^0.5)/A9stdlife)) -> 0.02037926448 | P171: =IF(A9stdlife="n/a","n/a",IF(P$3>(A9stdlife+$F171),('RFM input'!$I$231*(1+vanilla2)^0.5)-SUM($I171:O171),('RFM input'!$I$231*(1+vanilla2)^0.5)/A9stdlife)) -> 0.02037926448 | Q171: =IF(A9stdlife="n/a","n/a",IF(Q$3>(A9stdlife+$F171),('RFM input'!$I$231*(1+vanilla2)^0.5)-SUM($I171:P171),('RFM input'!$I$231*(1+vanilla2)^0.5)/A9stdlife)) -> 0.02037926448
F172: 3 | K172: =IF(A9stdlife="n/a","n/a",IF(K$3>(A9stdlife+$F172),('RFM input'!$J$231*(1+vanilla3)^0.5)-SUM($J172:J172),('RFM input'!$J$231*(1+vanilla3)^0.5)/A9stdlife)) -> 0 | L172: =IF(A9stdlife="n/a","n/a",IF(L$3>(A9stdlife+$F172),('RFM input'!$J$231*(1+vanilla3)^0.5)-SUM($J172:K172),('RFM input'!$J$231*(1+vanilla3)^0.5)/A9stdlife)) -> 0 | M172: =IF(A9stdlife="n/a","n/a",IF(M$3>(A9stdlife+$F172),('RFM input'!$J$231*(1+vanilla3)^0.5)-SUM($J172:L172),('RFM input'!$J$231*(1+vanilla3)^0.5)/A9stdlife)) -> 0 | N172: =IF(A9stdlife="n/a","n/a",IF(N$3>(A9stdlife+$F172),('RFM input'!$J$231*(1+vanilla3)^0.5)-SUM($J172:M172),('RFM input'!$J$231*(1+vanilla3)^0.5)/A9stdlife)) -> 0 | O172: =IF(A9stdlife="n/a","n/a",IF(O$3>(A9stdlife+$F172),('RFM input'!$J$231*(1+vanilla3)^0.5)-SUM($J172:N172),('RFM input'!$J$231*(1+vanilla3)^0.5)/A9stdlife)) -> 0 | P172: =IF(A9stdlife="n/a","n/a",IF(P$3>(A9stdlife+$F172),('RFM input'!$J$231*(1+vanilla3)^0.5)-SUM($J172:O172),('RFM input'!$J$231*(1+vanilla3)^0.5)/A9stdlife)) -> 0 | Q172: =IF(A9stdlife="n/a","n/a",IF(Q$3>(A9stdlife+$F172),('RFM input'!$J$231*(1+vanilla3)^0.5)-SUM($J172:P172),('RFM input'!$J$231*(1+vanilla3)^0.5)/A9stdlife)) -> 0
F173: 4 | L173: =IF(A9stdlife="n/a","n/a",IF(L$3>(A9stdlife+$F173),('RFM input'!$K$231*(1+vanilla4)^0.5)-SUM($K173:K173),('RFM input'!$K$231*(1+vanilla4)^0.5)/A9stdlife)) -> 0 | M173: =IF(A9stdlife="n/a","n/a",IF(M$3>(A9stdlife+$F173),('RFM input'!$K$231*(1+vanilla4)^0.5)-SUM($K173:L173),('RFM input'!$K$231*(1+vanilla4)^0.5)/A9stdlife)) -> 0 | N173: =IF(A9stdlife="n/a","n/a",IF(N$3>(A9stdlife+$F173),('RFM input'!$K$231*(1+vanilla4)^0.5)-SUM($K173:M173),('RFM input'!$K$231*(1+vanilla4)^0.5)/A9stdlife)) -> 0 | O173: =IF(A9stdlife="n/a","n/a",IF(O$3>(A9stdlife+$F173),('RFM input'!$K$231*(1+vanilla4)^0.5)-SUM($K173:N173),('RFM input'!$K$231*(1+vanilla4)^0.5)/A9stdlife)) -> 0 | P173: =IF(A9stdlife="n/a","n/a",IF(P$3>(A9stdlife+$F173),('RFM input'!$K$231*(1+vanilla4)^0.5)-SUM($K173:O173),('RFM input'!$K$231*(1+vanilla4)^0.5)/A9stdlife)) -> 0 | Q173: =IF(A9stdlife="n/a","n/a",IF(Q$3>(A9stdlife+$F173),('RFM input'!$K$231*(1+vanilla4)^0.5)-SUM($K173:P173),('RFM input'!$K$231*(1+vanilla4)^0.5)/A9stdlife)) -> 0
F174: 5 | M174: =IF(A9stdlife="n/a","n/a",IF(M$3>(A9stdlife+$F174),('RFM input'!$L$231*(1+vanilla5)^0.5)-SUM($L174:L174),('RFM input'!$L$231*(1+vanilla5)^0.5)/A9stdlife)) -> 0 | N174: =IF(A9stdlife="n/a","n/a",IF(N$3>(A9stdlife+$F174),('RFM input'!$L$231*(1+vanilla5)^0.5)-SUM($L174:M174),('RFM input'!$L$231*(1+vanilla5)^0.5)/A9stdlife)) -> 0 | O174: =IF(A9stdlife="n/a","n/a",IF(O$3>(A9stdlife+$F174),('RFM input'!$L$231*(1+vanilla5)^0.5)-SUM($L174:N174),('RFM input'!$L$231*(1+vanilla5)^0.5)/A9stdlife)) -> 0 | P174: =IF(A9stdlife="n/a","n/a",IF(P$3>(A9stdlife+$F174),('RFM input'!$L$231*(1+vanilla5)^0.5)-SUM($L174:O174),('RFM input'!$L$231*(1+vanilla5)^0.5)/A9stdlife)) -> 0 | Q174: =IF(A9stdlife="n/a","n/a",IF(Q$3>(A9stdlife+$F174),('RFM input'!$L$231*(1+vanilla5)^0.5)-SUM($L174:P174),('RFM input'!$L$231*(1+vanilla5)^0.5)/A9stdlife)) -> 0
F175: 6 | N175: =IF(A9stdlife="n/a","n/a",IF(N$3>(A9stdlife+$F175),('RFM input'!$M$231*(1+vanilla6)^0.5)-SUM($M175:M175),('RFM input'!$M$231*(1+vanilla6)^0.5)/A9stdlife)) -> 0 | O175: =IF(A9stdlife="n/a","n/a",IF(O$3>(A9stdlife+$F175),('RFM input'!$M$231*(1+vanilla6)^0.5)-SUM($M175:N175),('RFM input'!$M$231*(1+vanilla6)^0.5)/A9stdlife)) -> 0 | P175: =IF(A9stdlife="n/a","n/a",IF(P$3>(A9stdlife+$F175),('RFM input'!$M$231*(1+vanilla6)^0.5)-SUM($M175:O175),('RFM input'!$M$231*(1+vanilla6)^0.5)/A9stdlife)) -> 0 | Q175: =IF(A9stdlife="n/a","n/a",IF(Q$3>(A9stdlife+$F175),('RFM input'!$M$231*(1+vanilla6)^0.5)-SUM($M175:P175),('RFM input'!$M$231*(1+vanilla6)^0.5)/A9stdlife)) -> 0
F176: 7 | O176: =IF(A9stdlife="n/a","n/a",IF(O$3>(A9stdlife+$F176),('RFM input'!$N$231*(1+vanilla7)^0.5)-SUM($N176:N176),('RFM input'!$N$231*(1+vanilla7)^0.5)/A9stdlife)) -> 0 | P176: =IF(A9stdlife="n/a","n/a",IF(P$3>(A9stdlife+$F176),('RFM input'!$N$231*(1+vanilla7)^0.5)-SUM($N176:O176),('RFM input'!$N$231*(1+vanilla7)^0.5)/A9stdlife)) -> 0 | Q176: =IF(A9stdlife="n/a","n/a",IF(Q$3>(A9stdlife+$F176),('RFM input'!$N$231*(1+vanilla7)^0.5)-SUM($N176:P176),('RFM input'!$N$231*(1+vanilla7)^0.5)/A9stdlife)) -> 0
F177: 8 | P177: =IF(A9stdlife="n/a","n/a",IF(P$3>(A9stdlife+$F177),('RFM input'!$O$231*(1+vanilla8)^0.5)-SUM($O177:O177),('RFM input'!$O$231*(1+vanilla8)^0.5)/A9stdlife)) -> 0 | Q177: =IF(A9stdlife="n/a","n/a",IF(Q$3>(A9stdlife+$F177),('RFM input'!$O$231*(1+vanilla8)^0.5)-SUM($O177:P177),('RFM input'!$O$231*(1+vanilla8)^0.5)/A9stdlife)) -> 0
F178: 9 | Q178: =IF(A9stdlife="n/a","n/a",IF(Q$3>(A9stdlife+$F178),('RFM input'!$P$231*(1+vanilla9)^0.5)-SUM($P178:P178),('RFM input'!$P$231*(1+vanilla9)^0.5)/A9stdlife)) -> 0
F179: 10
D180: =Asset9 -> Voltage Regulators on Distribution Feeders | H180: =IF('RFM input'!$F$293='RFM input'!$H$292,-'RFM input'!H306,-SUM(H168:H179)) -> -0.6224568287 | I180: =IF('RFM input'!$F$293='RFM input'!$H$292,-'RFM input'!I306,-SUM(I168:I179)) -> -0.662361458 | J180: =IF(COUNT($H180:I180)>='RFM input'!$W$7,0,IF('RFM input'!$F$293='RFM input'!$H$292,-'RFM input'!J306,-SUM(J168:J179))) -> 0 | K180: =IF(COUNT($H180:J180)>='RFM input'!$W$7,0,IF('RFM input'!$F$293='RFM input'!$H$292,-'RFM input'!K306,-SUM(K168:K179))) -> 0 | L180: =IF(COUNT($H180:K180)>='RFM input'!$W$7,0,IF('RFM input'!$F$293='RFM input'!$H$292,-'RFM input'!L306,-SUM(L168:L179))) -> 0 | M180: =IF(COUNT($H180:L180)>='RFM input'!$W$7,0,IF('RFM input'!$F$293='RFM input'!$H$292,-'RFM input'!M306,-SUM(M168:M179))) -> 0 | N180: =IF(COUNT($H180:M180)>='RFM input'!$W$7,0,IF('RFM input'!$F$293='RFM input'!$H$292,-'RFM input'!N306,-SUM(N168:N179))) -> 0 | O180: =IF(COUNT($H180:N180)>='RFM input'!$W$7,0,IF('RFM input'!$F$293='RFM input'!$H$292,-'RFM input'!O306,-SUM(O168:O179))) -> 0 | P180: =IF(COUNT($H180:O180)>='RFM input'!$W$7,0,IF('RFM input'!$F$293='RFM input'!$H$292,-'RFM input'!P306,-SUM(P168:P179))) -> 0 | Q180: =IF(COUNT($H180:P180)>='RFM input'!$W$7,0,IF('RFM input'!$F$293='RFM input'!$H$292,-'RFM input'!Q306,-SUM(Q168:Q179))) -> 0
C181: =Asset10 -> Underground High Voltage Lines | E181: Opening RAB | H181: =IF(H$3>A10remlife,A10value-SUM($G181:G181),IF(A10remlife="N/A","n/a",A10value/A10remlife)) -> n/a | I181: =IF(I$3>A10remlife,A10value-SUM($G181:H181),IF(A10remlife="N/A","n/a",A10value/A10remlife)) -> n/a | J181: =IF(J$3>A10remlife,A10value-SUM($G181:I181),IF(A10remlife="N/A","n/a",A10value/A10remlife)) -> n/a | K181: =IF(K$3>A10remlife,A10value-SUM($G181:J181),IF(A10remlife="N/A","n/a",A10value/A10remlife)) -> n/a | L181: =IF(L$3>A10remlife,A10value-SUM($G181:K181),IF(A10remlife="N/A","n/a",A10value/A10remlife)) -> n/a | M181: =IF(M$3>A10remlife,A10value-SUM($G181:L181),IF(A10remlife="N/A","n/a",A10value/A10remlife)) -> n/a | N181: =IF(N$3>A10remlife,A10value-SUM($G181:M181),IF(A10remlife="N/A","n/a",A10value/A10remlife)) -> n/a | O181: =IF(O$3>A10remlife,A10value-SUM($G181:N181),IF(A10remlife="N/A","n/a",A10value/A10remlife)) -> n/a | P181: =IF(P$3>A10remlife,A10value-SUM($G181:O181),IF(A10remlife="N/A","n/a",A10value/A10remlife)) -> n/a | Q181: =IF(Q$3>A10remlife,A10value-SUM($G181:P181),IF(A10remlife="N/A","n/a",A10value/A10remlife)) -> n/a
E182: Capex in year
F183: 1 | I183: =IF(A10stdlife="n/a","n/a",IF(I$3>(A10stdlife+$F183),('RFM input'!$H$232*(1+vanilla1)^0.5)-SUM($H183:H183),('RFM input'!$H$232*(1+vanilla1)^0.5)/A10stdlife)) -> 0.1081750727 | J183: =IF(A10stdlife="n/a","n/a",IF(J$3>(A10stdlife+$F183),('RFM input'!$H$232*(1+vanilla1)^0.5)-SUM($H183:I183),('RFM input'!$H$232*(1+vanilla1)^0.5)/A10stdlife)) -> 0.1081750727 | K183: =IF(A10stdlife="n/a","n/a",IF(K$3>(A10stdlife+$F183),('RFM input'!$H$232*(1+vanilla1)^0.5)-SUM($H183:J183),('RFM input'!$H$232*(1+vanilla1)^0.5)/A10stdlife)) -> 0.1081750727 | L183: =IF(A10stdlife="n/a","n/a",IF(L$3>(A10stdlife+$F183),('RFM input'!$H$232*(1+vanilla1)^0.5)-SUM($H183:K183),('RFM input'!$H$232*(1+vanilla1)^0.5)/A10stdlife)) -> 0.1081750727 | M183: =IF(A10stdlife="n/a","n/a",IF(M$3>(A10stdlife+$F183),('RFM input'!$H$232*(1+vanilla1)^0.5)-SUM($H183:L183),('RFM input'!$H$232*(1+vanilla1)^0.5)/A10stdlife)) -> 0.1081750727 | N183: =IF(A10stdlife="n/a","n/a",IF(N$3>(A10stdlife+$F183),('RFM input'!$H$232*(1+vanilla1)^0.5)-SUM($H183:M183),('RFM input'!$H$232*(1+vanilla1)^0.5)/A10stdlife)) -> 0.1081750727 | O183: =IF(A10stdlife="n/a","n/a",IF(O$3>(A10stdlife+$F183),('RFM input'!$H$232*(1+vanilla1)^0.5)-SUM($H183:N183),('RFM input'!$H$232*(1+vanilla1)^0.5)/A10stdlife)) -> 0.1081750727 | P183: =IF(A10stdlife="n/a","n/a",IF(P$3>(A10stdlife+$F183),('RFM input'!$H$232*(1+vanilla1)^0.5)-SUM($H183:O183),('RFM input'!$H$232*(1+vanilla1)^0.5)/A10stdlife)) -> 0.1081750727 | Q183: =IF(A10stdlife="n/a","n/a",IF(Q$3>(A10stdlife+$F183),('RFM input'!$H$232*(1+vanilla1)^0.5)-SUM($H183:P183),('RFM input'!$H$232*(1+vanilla1)^0.5)/A10stdlife)) -> 0.1081750727
F184: 2 | J184: =IF(A10stdlife="n/a","n/a",IF(J$3>(A10stdlife+$F184),('RFM input'!$I$232*(1+vanilla2)^0.5)-SUM($I184:I184),('RFM input'!$I$232*(1+vanilla2)^0.5)/A10stdlife)) -> 0.09822096043 | K184: =IF(A10stdlife="n/a","n/a",IF(K$3>(A10stdlife+$F184),('RFM input'!$I$232*(1+vanilla2)^0.5)-SUM($I184:J184),('RFM input'!$I$232*(1+vanilla2)^0.5)/A10stdlife)) -> 0.09822096043 | L184: =IF(A10stdlife="n/a","n/a",IF(L$3>(A10stdlife+$F184),('RFM input'!$I$232*(1+vanilla2)^0.5)-SUM($I184:K184),('RFM input'!$I$232*(1+vanilla2)^0.5)/A10stdlife)) -> 0.09822096043 | M184: =IF(A10stdlife="n/a","n/a",IF(M$3>(A10stdlife+$F184),('RFM input'!$I$232*(1+vanilla2)^0.5)-SUM($I184:L184),('RFM input'!$I$232*(1+vanilla2)^0.5)/A10stdlife)) -> 0.09822096043 | N184: =IF(A10stdlife="n/a","n/a",IF(N$3>(A10stdlife+$F184),('RFM input'!$I$232*(1+vanilla2)^0.5)-SUM($I184:M184),('RFM input'!$I$232*(1+vanilla2)^0.5)/A10stdlife)) -> 0.09822096043 | O184: =IF(A10stdlife="n/a","n/a",IF(O$3>(A10stdlife+$F184),('RFM input'!$I$232*(1+vanilla2)^0.5)-SUM($I184:N184),('RFM input'!$I$232*(1+vanilla2)^0.5)/A10stdlife)) -> 0.09822096043 | P184: =IF(A10stdlife="n/a","n/a",IF(P$3>(A10stdlife+$F184),('RFM input'!$I$232*(1+vanilla2)^0.5)-SUM($I184:O184),('RFM input'!$I$232*(1+vanilla2)^0.5)/A10stdlife)) -> 0.09822096043 | Q184: =IF(A10stdlife="n/a","n/a",IF(Q$3>(A10stdlife+$F184),('RFM input'!$I$232*(1+vanilla2)^0.5)-SUM($I184:P184),('RFM input'!$I$232*(1+vanilla2)^0.5)/A10stdlife)) -> 0.09822096043
F185: 3 | K185: =IF(A10stdlife="n/a","n/a",IF(K$3>(A10stdlife+$F185),('RFM input'!$J$232*(1+vanilla3)^0.5)-SUM($J185:J185),('RFM input'!$J$232*(1+vanilla3)^0.5)/A10stdlife)) -> 0 | L185: =IF(A10stdlife="n/a","n/a",IF(L$3>(A10stdlife+$F185),('RFM input'!$J$232*(1+vanilla3)^0.5)-SUM($J185:K185),('RFM input'!$J$232*(1+vanilla3)^0.5)/A10stdlife)) -> 0 | M185: =IF(A10stdlife="n/a","n/a",IF(M$3>(A10stdlife+$F185),('RFM input'!$J$232*(1+vanilla3)^0.5)-SUM($J185:L185),('RFM input'!$J$232*(1+vanilla3)^0.5)/A10stdlife)) -> 0 | N185: =IF(A10stdlife="n/a","n/a",IF(N$3>(A10stdlife+$F185),('RFM input'!$J$232*(1+vanilla3)^0.5)-SUM($J185:M185),('RFM input'!$J$232*(1+vanilla3)^0.5)/A10stdlife)) -> 0 | O185: =IF(A10stdlife="n/a","n/a",IF(O$3>(A10stdlife+$F185),('RFM input'!$J$232*(1+vanilla3)^0.5)-SUM($J185:N185),('RFM input'!$J$232*(1+vanilla3)^0.5)/A10stdlife)) -> 0 | P185: =IF(A10stdlife="n/a","n/a",IF(P$3>(A10stdlife+$F185),('RFM input'!$J$232*(1+vanilla3)^0.5)-SUM($J185:O185),('RFM input'!$J$232*(1+vanilla3)^0.5)/A10stdlife)) -> 0 | Q185: =IF(A10stdlife="n/a","n/a",IF(Q$3>(A10stdlife+$F185),('RFM input'!$J$232*(1+vanilla3)^0.5)-SUM($J185:P185),('RFM input'!$J$232*(1+vanilla3)^0.5)/A10stdlife)) -> 0
F186: 4 | L186: =IF(A10stdlife="n/a","n/a",IF(L$3>(A10stdlife+$F186),('RFM input'!$K$232*(1+vanilla4)^0.5)-SUM($K186:K186),('RFM input'!$K$232*(1+vanilla4)^0.5)/A10stdlife)) -> 0 | M186: =IF(A10stdlife="n/a","n/a",IF(M$3>(A10stdlife+$F186),('RFM input'!$K$232*(1+vanilla4)^0.5)-SUM($K186:L186),('RFM input'!$K$232*(1+vanilla4)^0.5)/A10stdlife)) -> 0 | N186: =IF(A10stdlife="n/a","n/a",IF(N$3>(A10stdlife+$F186),('RFM input'!$K$232*(1+vanilla4)^0.5)-SUM($K186:M186),('RFM input'!$K$232*(1+vanilla4)^0.5)/A10stdlife)) -> 0 | O186: =IF(A10stdlife="n/a","n/a",IF(O$3>(A10stdlife+$F186),('RFM input'!$K$232*(1+vanilla4)^0.5)-SUM($K186:N186),('RFM input'!$K$232*(1+vanilla4)^0.5)/A10stdlife)) -> 0 | P186: =IF(A10stdlife="n/a","n/a",IF(P$3>(A10stdlife+$F186),('RFM input'!$K$232*(1+vanilla4)^0.5)-SUM($K186:O186),('RFM input'!$K$232*(1+vanilla4)^0.5)/A10stdlife)) -> 0 | Q186: =IF(A10stdlife="n/a","n/a",IF(Q$3>(A10stdlife+$F186),('RFM input'!$K$232*(1+vanilla4)^0.5)-SUM($K186:P186),('RFM input'!$K$232*(1+vanilla4)^0.5)/A10stdlife)) -> 0
F187: 5 | M187: =IF(A10stdlife="n/a","n/a",IF(M$3>(A10stdlife+$F187),('RFM input'!$L$232*(1+vanilla5)^0.5)-SUM($L187:L187),('RFM input'!$L$232*(1+vanilla5)^0.5)/A10stdlife)) -> 0 | N187: =IF(A10stdlife="n/a","n/a",IF(N$3>(A10stdlife+$F187),('RFM input'!$L$232*(1+vanilla5)^0.5)-SUM($L187:M187),('RFM input'!$L$232*(1+vanilla5)^0.5)/A10stdlife)) -> 0 | O187: =IF(A10stdlife="n/a","n/a",IF(O$3>(A10stdlife+$F187),('RFM input'!$L$232*(1+vanilla5)^0.5)-SUM($L187:N187),('RFM input'!$L$232*(1+vanilla5)^0.5)/A10stdlife)) -> 0 | P187: =IF(A10stdlife="n/a","n/a",IF(P$3>(A10stdlife+$F187),('RFM input'!$L$232*(1+vanilla5)^0.5)-SUM($L187:O187),('RFM input'!$L$232*(1+vanilla5)^0.5)/A10stdlife)) -> 0 | Q187: =IF(A10stdlife="n/a","n/a",IF(Q$3>(A10stdlife+$F187),('RFM input'!$L$232*(1+vanilla5)^0.5)-SUM($L187:P187),('RFM input'!$L$232*(1+vanilla5)^0.5)/A10stdlife)) -> 0
F188: 6 | N188: =IF(A10stdlife="n/a","n/a",IF(N$3>(A10stdlife+$F188),('RFM input'!$M$232*(1+vanilla6)^0.5)-SUM($M188:M188),('RFM input'!$M$232*(1+vanilla6)^0.5)/A10stdlife)) -> 0 | O188: =IF(A10stdlife="n/a","n/a",IF(O$3>(A10stdlife+$F188),('RFM input'!$M$232*(1+vanilla6)^0.5)-SUM($M188:N188),('RFM input'!$M$232*(1+vanilla6)^0.5)/A10stdlife)) -> 0 | P188: =IF(A10stdlife="n/a","n/a",IF(P$3>(A10stdlife+$F188),('RFM input'!$M$232*(1+vanilla6)^0.5)-SUM($M188:O188),('RFM input'!$M$232*(1+vanilla6)^0.5)/A10stdlife)) -> 0 | Q188: =IF(A10stdlife="n/a","n/a",IF(Q$3>(A10stdlife+$F188),('RFM input'!$M$232*(1+vanilla6)^0.5)-SUM($M188:P188),('RFM input'!$M$232*(1+vanilla6)^0.5)/A10stdlife)) -> 0
F189: 7 | O189: =IF(A10stdlife="n/a","n/a",IF(O$3>(A10stdlife+$F189),('RFM input'!$N$232*(1+vanilla7)^0.5)-SUM($N189:N189),('RFM input'!$N$232*(1+vanilla7)^0.5)/A10stdlife)) -> 0 | P189: =IF(A10stdlife="n/a","n/a",IF(P$3>(A10stdlife+$F189),('RFM input'!$N$232*(1+vanilla7)^0.5)-SUM($N189:O189),('RFM input'!$N$232*(1+vanilla7)^0.5)/A10stdlife)) -> 0 | Q189: =IF(A10stdlife="n/a","n/a",IF(Q$3>(A10stdlife+$F189),('RFM input'!$N$232*(1+vanilla7)^0.5)-SUM($N189:P189),('RFM input'!$N$232*(1+vanilla7)^0.5)/A10stdlife)) -> 0
F190: 8 | P190: =IF(A10stdlife="n/a","n/a",IF(P$3>(A10stdlife+$F190),('RFM input'!$O$232*(1+vanilla8)^0.5)-SUM($O190:O190),('RFM input'!$O$232*(1+vanilla8)^0.5)/A10stdlife)) -> 0 | Q190: =IF(A10stdlife="n/a","n/a",IF(Q$3>(A10stdlife+$F190),('RFM input'!$O$232*(1+vanilla8)^0.5)-SUM($O190:P190),('RFM input'!$O$232*(1+vanilla8)^0.5)/A10stdlife)) -> 0
F191: 9 | Q191: =IF(A10stdlife="n/a","n/a",IF(Q$3>(A10stdlife+$F191),('RFM input'!$P$232*(1+vanilla9)^0.5)-SUM($P191:P191),('RFM input'!$P$232*(1+vanilla9)^0.5)/A10stdlife)) -> 0
F192: 10
D193: =Asset10 -> Underground High Voltage Lines | H193: =IF('RFM input'!$F$293='RFM input'!$H$292,-'RFM input'!H307,-SUM(H181:H192)) -> -6.185407381 | I193: =IF('RFM input'!$F$293='RFM input'!$H$292,-'RFM input'!I307,-SUM(I181:I192)) -> -6.292173113 | J193: =IF(COUNT($H193:I193)>='RFM input'!$W$7,0,IF('RFM input'!$F$293='RFM input'!$H$292,-'RFM input'!J307,-SUM(J181:J192))) -> 0 | K193: =IF(COUNT($H193:J193)>='RFM input'!$W$7,0,IF('RFM input'!$F$293='RFM input'!$H$292,-'RFM input'!K307,-SUM(K181:K192))) -> 0 | L193: =IF(COUNT($H193:K193)>='RFM input'!$W$7,0,IF('RFM input'!$F$293='RFM input'!$H$292,-'RFM input'!L307,-SUM(L181:L192))) -> 0 | M193: =IF(COUNT($H193:L193)>='RFM input'!$W$7,0,IF('RFM input'!$F$293='RFM input'!$H$292,-'RFM input'!M307,-SUM(M181:M192))) -> 0 | N193: =IF(COUNT($H193:M193)>='RFM input'!$W$7,0,IF('RFM input'!$F$293='RFM input'!$H$292,-'RFM input'!N307,-SUM(N181:N192))) -> 0 | O193: =IF(COUNT($H193:N193)>='RFM input'!$W$7,0,IF('RFM input'!$F$293='RFM input'!$H$292,-'RFM input'!O307,-SUM(O181:O192))) -> 0 | P193: =IF(COUNT($H193:O193)>='RFM input'!$W$7,0,IF('RFM input'!$F$293='RFM input'!$H$292,-'RFM input'!P307,-SUM(P181:P192))) -> 0 | Q193: =IF(COUNT($H193:P193)>='RFM input'!$W$7,0,IF('RFM input'!$F$293='RFM input'!$H$292,-'RFM input'!Q307,-SUM(Q181:Q192))) -> 0
C194: =Asset11 -> Underground High Voltage Lines SWER | E194: Opening RAB | H194: =IF(H$3>A11remlife,A11value-SUM($G194:G194),IF(A11remlife="N/A","n/a",A11value/A11remlife)) -> n/a | I194: =IF(I$3>A11remlife,A11value-SUM($G194:H194),IF(A11remlife="N/A","n/a",A11value/A11remlife)) -> n/a | J194: =IF(J$3>A11remlife,A11value-SUM($G194:I194),IF(A11remlife="N/A","n/a",A11value/A11remlife)) -> n/a | K194: =IF(K$3>A11remlife,A11value-SUM($G194:J194),IF(A11remlife="N/A","n/a",A11value/A11remlife)) -> n/a | L194: =IF(L$3>A11remlife,A11value-SUM($G194:K194),IF(A11remlife="N/A","n/a",A11value/A11remlife)) -> n/a | M194: =IF(M$3>A11remlife,A11value-SUM($G194:L194),IF(A11remlife="N/A","n/a",A11value/A11remlife)) -> n/a | N194: =IF(N$3>A11remlife,A11value-SUM($G194:M194),IF(A11remlife="N/A","n/a",A11value/A11remlife)) -> n/a | O194: =IF(O$3>A11remlife,A11value-SUM($G194:N194),IF(A11remlife="N/A","n/a",A11value/A11remlife)) -> n/a | P194: =IF(P$3>A11remlife,A11value-SUM($G194:O194),IF(A11remlife="N/A","n/a",A11value/A11remlife)) -> n/a | Q194: =IF(Q$3>A11remlife,A11value-SUM($G194:P194),IF(A11remlife="N/A","n/a",A11value/A11remlife)) -> n/a
E195: Capex in year
F196: 1 | I196: =IF(A11stdlife="n/a","n/a",IF(I$3>(A11stdlife+$F196),('RFM input'!$H$233*(1+vanilla1)^0.5)-SUM($H196:H196),('RFM input'!$H$233*(1+vanilla1)^0.5)/A11stdlife)) -> 0 | J196: =IF(A11stdlife="n/a","n/a",IF(J$3>(A11stdlife+$F196),('RFM input'!$H$233*(1+vanilla1)^0.5)-SUM($H196:I196),('RFM input'!$H$233*(1+vanilla1)^0.5)/A11stdlife)) -> 0 | K196: =IF(A11stdlife="n/a","n/a",IF(K$3>(A11stdlife+$F196),('RFM input'!$H$233*(1+vanilla1)^0.5)-SUM($H196:J196),('RFM input'!$H$233*(1+vanilla1)^0.5)/A11stdlife)) -> 0 | L196: =IF(A11stdlife="n/a","n/a",IF(L$3>(A11stdlife+$F196),('RFM input'!$H$233*(1+vanilla1)^0.5)-SUM($H196:K196),('RFM input'!$H$233*(1+vanilla1)^0.5)/A11stdlife)) -> 0 | M196: =IF(A11stdlife="n/a","n/a",IF(M$3>(A11stdlife+$F196),('RFM input'!$H$233*(1+vanilla1)^0.5)-SUM($H196:L196),('RFM input'!$H$233*(1+vanilla1)^0.5)/A11stdlife)) -> 0 | N196: =IF(A11stdlife="n/a","n/a",IF(N$3>(A11stdlife+$F196),('RFM input'!$H$233*(1+vanilla1)^0.5)-SUM($H196:M196),('RFM input'!$H$233*(1+vanilla1)^0.5)/A11stdlife)) -> 0 | O196: =IF(A11stdlife="n/a","n/a",IF(O$3>(A11stdlife+$F196),('RFM input'!$H$233*(1+vanilla1)^0.5)-SUM($H196:N196),('RFM input'!$H$233*(1+vanilla1)^0.5)/A11stdlife)) -> 0 | P196: =IF(A11stdlife="n/a","n/a",IF(P$3>(A11stdlife+$F196),('RFM input'!$H$233*(1+vanilla1)^0.5)-SUM($H196:O196),('RFM input'!$H$233*(1+vanilla1)^0.5)/A11stdlife)) -> 0 | Q196: =IF(A11stdlife="n/a","n/a",IF(Q$3>(A11stdlife+$F196),('RFM input'!$H$233*(1+vanilla1)^0.5)-SUM($H196:P196),('RFM input'!$H$233*(1+vanilla1)^0.5)/A11stdlife)) -> 0
F197: 2 | J197: =IF(A11stdlife="n/a","n/a",IF(J$3>(A11stdlife+$F197),('RFM input'!$I$233*(1+vanilla2)^0.5)-SUM($I197:I197),('RFM input'!$I$233*(1+vanilla2)^0.5)/A11stdlife)) -> 0 | K197: =IF(A11stdlife="n/a","n/a",IF(K$3>(A11stdlife+$F197),('RFM input'!$I$233*(1+vanilla2)^0.5)-SUM($I197:J197),('RFM input'!$I$233*(1+vanilla2)^0.5)/A11stdlife)) -> 0 | L197: =IF(A11stdlife="n/a","n/a",IF(L$3>(A11stdlife+$F197),('RFM input'!$I$233*(1+vanilla2)^0.5)-SUM($I197:K197),('RFM input'!$I$233*(1+vanilla2)^0.5)/A11stdlife)) -> 0 | M197: =IF(A11stdlife="n/a","n/a",IF(M$3>(A11stdlife+$F197),('RFM input'!$I$233*(1+vanilla2)^0.5)-SUM($I197:L197),('RFM input'!$I$233*(1+vanilla2)^0.5)/A11stdlife)) -> 0 | N197: =IF(A11stdlife="n/a","n/a",IF(N$3>(A11stdlife+$F197),('RFM input'!$I$233*(1+vanilla2)^0.5)-SUM($I197:M197),('RFM input'!$I$233*(1+vanilla2)^0.5)/A11stdlife)) -> 0 | O197: =IF(A11stdlife="n/a","n/a",IF(O$3>(A11stdlife+$F197),('RFM input'!$I$233*(1+vanilla2)^0.5)-SUM($I197:N197),('RFM input'!$I$233*(1+vanilla2)^0.5)/A11stdlife)) -> 0 | P197: =IF(A11stdlife="n/a","n/a",IF(P$3>(A11stdlife+$F197),('RFM input'!$I$233*(1+vanilla2)^0.5)-SUM($I197:O197),('RFM input'!$I$233*(1+vanilla2)^0.5)/A11stdlife)) -> 0 | Q197: =IF(A11stdlife="n/a","n/a",IF(Q$3>(A11stdlife+$F197),('RFM input'!$I$233*(1+vanilla2)^0.5)-SUM($I197:P197),('RFM input'!$I$233*(1+vanilla2)^0.5)/A11stdlife)) -> 0
F198: 3 | K198: =IF(A11stdlife="n/a","n/a",IF(K$3>(A11stdlife+$F198),('RFM input'!$J$233*(1+vanilla3)^0.5)-SUM($J198:J198),('RFM input'!$J$233*(1+vanilla3)^0.5)/A11stdlife)) -> 0 | L198: =IF(A11stdlife="n/a","n/a",IF(L$3>(A11stdlife+$F198),('RFM input'!$J$233*(1+vanilla3)^0.5)-SUM($J198:K198),('RFM input'!$J$233*(1+vanilla3)^0.5)/A11stdlife)) -> 0 | M198: =IF(A11stdlife="n/a","n/a",IF(M$3>(A11stdlife+$F198),('RFM input'!$J$233*(1+vanilla3)^0.5)-SUM($J198:L198),('RFM input'!$J$233*(1+vanilla3)^0.5)/A11stdlife)) -> 0 | N198: =IF(A11stdlife="n/a","n/a",IF(N$3>(A11stdlife+$F198),('RFM input'!$J$233*(1+vanilla3)^0.5)-SUM($J198:M198),('RFM input'!$J$233*(1+vanilla3)^0.5)/A11stdlife)) -> 0 | O198: =IF(A11stdlife="n/a","n/a",IF(O$3>(A11stdlife+$F198),('RFM input'!$J$233*(1+vanilla3)^0.5)-SUM($J198:N198),('RFM input'!$J$233*(1+vanilla3)^0.5)/A11stdlife)) -> 0 | P198: =IF(A11stdlife="n/a","n/a",IF(P$3>(A11stdlife+$F198),('RFM input'!$J$233*(1+vanilla3)^0.5)-SUM($J198:O198),('RFM input'!$J$233*(1+vanilla3)^0.5)/A11stdlife)) -> 0 | Q198: =IF(A11stdlife="n/a","n/a",IF(Q$3>(A11stdlife+$F198),('RFM input'!$J$233*(1+vanilla3)^0.5)-SUM($J198:P198),('RFM input'!$J$233*(1+vanilla3)^0.5)/A11stdlife)) -> 0
F199: 4 | L199: =IF(A11stdlife="n/a","n/a",IF(L$3>(A11stdlife+$F199),('RFM input'!$K$233*(1+vanilla4)^0.5)-SUM($K199:K199),('RFM input'!$K$233*(1+vanilla4)^0.5)/A11stdlife)) -> 0 | M199: =IF(A11stdlife="n/a","n/a",IF(M$3>(A11stdlife+$F199),('RFM input'!$K$233*(1+vanilla4)^0.5)-SUM($K199:L199),('RFM input'!$K$233*(1+vanilla4)^0.5)/A11stdlife)) -> 0 | N199: =IF(A11stdlife="n/a","n/a",IF(N$3>(A11stdlife+$F199),('RFM input'!$K$233*(1+vanilla4)^0.5)-SUM($K199:M199),('RFM input'!$K$233*(1+vanilla4)^0.5)/A11stdlife)) -> 0 | O199: =IF(A11stdlife="n/a","n/a",IF(O$3>(A11stdlife+$F199),('RFM input'!$K$233*(1+vanilla4)^0.5)-SUM($K199:N199),('RFM input'!$K$233*(1+vanilla4)^0.5)/A11stdlife)) -> 0 | P199: =IF(A11stdlife="n/a","n/a",IF(P$3>(A11stdlife+$F199),('RFM input'!$K$233*(1+vanilla4)^0.5)-SUM($K199:O199),('RFM input'!$K$233*(1+vanilla4)^0.5)/A11stdlife)) -> 0 | Q199: =IF(A11stdlife="n/a","n/a",IF(Q$3>(A11stdlife+$F199),('RFM input'!$K$233*(1+vanilla4)^0.5)-SUM($K199:P199),('RFM input'!$K$233*(1+vanilla4)^0.5)/A11stdlife)) -> 0
F200: 5 | M200: =IF(A11stdlife="n/a","n/a",IF(M$3>(A11stdlife+$F200),('RFM input'!$L$233*(1+vanilla5)^0.5)-SUM($L200:L200),('RFM input'!$L233*(1+vanilla5)^0.5)/A11stdlife)) -> 0 | N200: =IF(A11stdlife="n/a","n/a",IF(N$3>(A11stdlife+$F200),('RFM input'!$L$233*(1+vanilla5)^0.5)-SUM($L200:M200),('RFM input'!$L233*(1+vanilla5)^0.5)/A11stdlife)) -> 0 | O200: =IF(A11stdlife="n/a","n/a",IF(O$3>(A11stdlife+$F200),('RFM input'!$L$233*(1+vanilla5)^0.5)-SUM($L200:N200),('RFM input'!$L233*(1+vanilla5)^0.5)/A11stdlife)) -> 0 | P200: =IF(A11stdlife="n/a","n/a",IF(P$3>(A11stdlife+$F200),('RFM input'!$L$233*(1+vanilla5)^0.5)-SUM($L200:O200),('RFM input'!$L233*(1+vanilla5)^0.5)/A11stdlife)) -> 0 | Q200: =IF(A11stdlife="n/a","n/a",IF(Q$3>(A11stdlife+$F200),('RFM input'!$L$233*(1+vanilla5)^0.5)-SUM($L200:P200),('RFM input'!$L233*(1+vanilla5)^0.5)/A11stdlife)) -> 0
F201: 6 | N201: =IF(A11stdlife="n/a","n/a",IF(N$3>(A11stdlife+$F201),('RFM input'!$M$233*(1+vanilla6)^0.5)-SUM($M201:M201),('RFM input'!$M$233*(1+vanilla6)^0.5)/A11stdlife)) -> 0 | O201: =IF(A11stdlife="n/a","n/a",IF(O$3>(A11stdlife+$F201),('RFM input'!$M$233*(1+vanilla6)^0.5)-SUM($M201:N201),('RFM input'!$M$233*(1+vanilla6)^0.5)/A11stdlife)) -> 0 | P201: =IF(A11stdlife="n/a","n/a",IF(P$3>(A11stdlife+$F201),('RFM input'!$M$233*(1+vanilla6)^0.5)-SUM($M201:O201),('RFM input'!$M$233*(1+vanilla6)^0.5)/A11stdlife)) -> 0 | Q201: =IF(A11stdlife="n/a","n/a",IF(Q$3>(A11stdlife+$F201),('RFM input'!$M$233*(1+vanilla6)^0.5)-SUM($M201:P201),('RFM input'!$M$233*(1+vanilla6)^0.5)/A11stdlife)) -> 0
F202: 7 | O202: =IF(A11stdlife="n/a","n/a",IF(O$3>(A11stdlife+$F202),('RFM input'!$N$233*(1+vanilla7)^0.5)-SUM($N202:N202),('RFM input'!$N$233*(1+vanilla7)^0.5)/A11stdlife)) -> 0 | P202: =IF(A11stdlife="n/a","n/a",IF(P$3>(A11stdlife+$F202),('RFM input'!$N$233*(1+vanilla7)^0.5)-SUM($N202:O202),('RFM input'!$N$233*(1+vanilla7)^0.5)/A11stdlife)) -> 0 | Q202: =IF(A11stdlife="n/a","n/a",IF(Q$3>(A11stdlife+$F202),('RFM input'!$N$233*(1+vanilla7)^0.5)-SUM($N202:P202),('RFM input'!$N$233*(1+vanilla7)^0.5)/A11stdlife)) -> 0
F203: 8 | P203: =IF(A11stdlife="n/a","n/a",IF(P$3>(A11stdlife+$F203),('RFM input'!$O$233*(1+vanilla8)^0.5)-SUM($O203:O203),('RFM input'!$O$233*(1+vanilla8)^0.5)/A11stdlife)) -> 0 | Q203: =IF(A11stdlife="n/a","n/a",IF(Q$3>(A11stdlife+$F203),('RFM input'!$O$233*(1+vanilla8)^0.5)-SUM($O203:P203),('RFM input'!$O$233*(1+vanilla8)^0.5)/A11stdlife)) -> 0
F204: 9 | Q204: =IF(A11stdlife="n/a","n/a",IF(Q$3>(A11stdlife+$F204),('RFM input'!$P$233*(1+vanilla9)^0.5)-SUM($P204:P204),('RFM input'!$P$233*(1+vanilla9)^0.5)/A11stdlife)) -> 0
F205: 10
... 917 more rows

Sheet Total RAB roll forward
C2: ='DMS input'!$C$16&" - Total Asset Roll Forward"&" - DNSP RFM - version "&Intro!$M$4 -> TasNetworks - Total Asset Roll Forward - DNSP RFM - version 2
G3: 0 | H3: =G3+1 -> 1 | I3: 2 | J3: 3 | K3: 4 | L3: 5 | M3: 6
C4: Year | G4: ='RFM input'!G60 -> 2016-17 | H4: ='RFM input'!H60 -> 2017-18 | I4: ='RFM input'!I60 -> 2018-19 | J4: ='RFM input'!J60 -> 2019-20 | K4: ='RFM input'!K60 -> 2020-21 | L4: ='RFM input'!L60 -> 2021-22 | M4: ='RFM input'!M60 -> 2022-23 | N4: ='RFM input'!N60 -> 2023-24 | O4: ='RFM input'!O60 -> 2024-25 | P4: ='RFM input'!P60 -> 2025-26 | Q4: ='RFM input'!Q60 -> 2026-27
C5: Asset Values ($m Nominal)
C7: Nominal Opening Regulatory Asset Base | G7: =SUM(G8:G57) -> 1596.977112 | H7: 1615.154146 | I7: 1685.77503 | J7: 0 | K7: 0 | L7: 0 | M7: 0 | N7: 0 | O7: 0 | P7: 0 | Q7: 0
D8: =Asset1 -> Overhead Subtransmission Lines (Urban) | G8: ='RAB roll forward'!G718 -> 13.03347588 | H8: =G8+G60+G112+G164+G216+G268 -> 12.15380917 | I8: =H8+H60+H112 -> 12.10013163 | J8: =IF(COUNT($H8:I8)>='RFM input'!$W$7,0, I8+I60+I112) -> 0 | K8: =IF(COUNT($H8:J8)>='RFM input'!$W$7,0, J8+J60+J112) -> 0 | L8: =IF(COUNT($H8:K8)>='RFM input'!$W$7,0, K8+K60+K112) -> 0 | M8: =IF(COUNT($H8:L8)>='RFM input'!$W$7,0, L8+L60+L112) -> 0 | N8: =IF(COUNT($H8:M8)>='RFM input'!$W$7,0, M8+M60+M112) -> 0 | O8: =IF(COUNT($H8:N8)>='RFM input'!$W$7,0, N8+N60+N112) -> 0 | P8: =IF(COUNT($H8:O8)>='RFM input'!$W$7,0, O8+O60+O112) -> 0 | Q8: =IF(COUNT($H8:P8)>='RFM input'!$W$7,0, P8+P60+P112) -> 0
D9: =Asset2 -> Underground Subtransmission Lines (Urban) | G9: ='RAB roll forward'!G719 -> 10.54214219 | H9: 9.877080973 | I9: 9.756483686 | J9: =IF(COUNT($H9:I9)>='RFM input'!$W$7,0, I9+I61+I113) -> 0 | K9: =IF(COUNT($H9:J9)>='RFM input'!$W$7,0, J9+J61+J113) -> 0 | L9: =IF(COUNT($H9:K9)>='RFM input'!$W$7,0, K9+K61+K113) -> 0 | M9: =IF(COUNT($H9:L9)>='RFM input'!$W$7,0, L9+L61+L113) -> 0 | N9: =IF(COUNT($H9:M9)>='RFM input'!$W$7,0, M9+M61+M113) -> 0 | O9: =IF(COUNT($H9:N9)>='RFM input'!$W$7,0, N9+N61+N113) -> 0 | P9: =IF(COUNT($H9:O9)>='RFM input'!$W$7,0, O9+O61+O113) -> 0 | Q9: =IF(COUNT($H9:P9)>='RFM input'!$W$7,0, P9+P61+P113) -> 0
D10: =Asset3 -> Urban Zone Substations | G10: ='RAB roll forward'!G720 -> 50.41033036 | H10: 43.90869168 | I10: 43.95185409 | J10: =IF(COUNT($H10:I10)>='RFM input'!$W$7,0, I10+I62+I114) -> 0 | K10: =IF(COUNT($H10:J10)>='RFM input'!$W$7,0, J10+J62+J114) -> 0 | L10: =IF(COUNT($H10:K10)>='RFM input'!$W$7,0, K10+K62+K114) -> 0 | M10: =IF(COUNT($H10:L10)>='RFM input'!$W$7,0, L10+L62+L114) -> 0 | N10: =IF(COUNT($H10:M10)>='RFM input'!$W$7,0, M10+M62+M114) -> 0 | O10: =IF(COUNT($H10:N10)>='RFM input'!$W$7,0, N10+N62+N114) -> 0 | P10: =IF(COUNT($H10:O10)>='RFM input'!$W$7,0, O10+O62+O114) -> 0 | Q10: =IF(COUNT($H10:P10)>='RFM input'!$W$7,0, P10+P62+P114) -> 0
D11: =Asset4 -> Rural Zone Substations | G11: ='RAB roll forward'!G721 -> 4.258710785 | H11: 2.640703874 | I11: 3.772333249 | J11: =IF(COUNT($H11:I11)>='RFM input'!$W$7,0, I11+I63+I115) -> 0 | K11: =IF(COUNT($H11:J11)>='RFM input'!$W$7,0, J11+J63+J115) -> 0 | L11: =IF(COUNT($H11:K11)>='RFM input'!$W$7,0, K11+K63+K115) -> 0 | M11: =IF(COUNT($H11:L11)>='RFM input'!$W$7,0, L11+L63+L115) -> 0 | N11: =IF(COUNT($H11:M11)>='RFM input'!$W$7,0, M11+M63+M115) -> 0 | O11: =IF(COUNT($H11:N11)>='RFM input'!$W$7,0, N11+N63+N115) -> 0 | P11: =IF(COUNT($H11:O11)>='RFM input'!$W$7,0, O11+O63+O115) -> 0 | Q11: =IF(COUNT($H11:P11)>='RFM input'!$W$7,0, P11+P63+P115) -> 0
D12: =Asset5 -> SCADA | G12: ='RAB roll forward'!G722 -> 22.66979127 | H12: 38.8494124 | I12: 38.81895747 | J12: =IF(COUNT($H12:I12)>='RFM input'!$W$7,0, I12+I64+I116) -> 0 | K12: =IF(COUNT($H12:J12)>='RFM input'!$W$7,0, J12+J64+J116) -> 0 | L12: =IF(COUNT($H12:K12)>='RFM input'!$W$7,0, K12+K64+K116) -> 0 | M12: =IF(COUNT($H12:L12)>='RFM input'!$W$7,0, L12+L64+L116) -> 0 | N12: =IF(COUNT($H12:M12)>='RFM input'!$W$7,0, M12+M64+M116) -> 0 | O12: =IF(COUNT($H12:N12)>='RFM input'!$W$7,0, N12+N64+N116) -> 0 | P12: =IF(COUNT($H12:O12)>='RFM input'!$W$7,0, O12+O64+O116) -> 0 | Q12: =IF(COUNT($H12:P12)>='RFM input'!$W$7,0, P12+P64+P116) -> 0
D13: =Asset6 -> Distribution Switching Stations (Ground) | G13: ='RAB roll forward'!G723 -> 15.06493555 | H13: 13.41244455 | I13: 13.43874495 | J13: =IF(COUNT($H13:I13)>='RFM input'!$W$7,0, I13+I65+I117) -> 0 | K13: =IF(COUNT($H13:J13)>='RFM input'!$W$7,0, J13+J65+J117) -> 0 | L13: =IF(COUNT($H13:K13)>='RFM input'!$W$7,0, K13+K65+K117) -> 0 | M13: =IF(COUNT($H13:L13)>='RFM input'!$W$7,0, L13+L65+L117) -> 0 | N13: =IF(COUNT($H13:M13)>='RFM input'!$W$7,0, M13+M65+M117) -> 0 | O13: =IF(COUNT($H13:N13)>='RFM input'!$W$7,0, N13+N65+N117) -> 0 | P13: =IF(COUNT($H13:O13)>='RFM input'!$W$7,0, O13+O65+O117) -> 0 | Q13: =IF(COUNT($H13:P13)>='RFM input'!$W$7,0, P13+P65+P117) -> 0
D14: =Asset7 -> Overhead High Voltage Lines Urban | G14: ='RAB roll forward'!G724 -> 100.3384754 | H14: 102.2145669 | I14: 105.6649592 | J14: =IF(COUNT($H14:I14)>='RFM input'!$W$7,0, I14+I66+I118) -> 0 | K14: =IF(COUNT($H14:J14)>='RFM input'!$W$7,0, J14+J66+J118) -> 0 | L14: =IF(COUNT($H14:K14)>='RFM input'!$W$7,0, K14+K66+K118) -> 0 | M14: =IF(COUNT($H14:L14)>='RFM input'!$W$7,0, L14+L66+L118) -> 0 | N14: =IF(COUNT($H14:M14)>='RFM input'!$W$7,0, M14+M66+M118) -> 0 | O14: =IF(COUNT($H14:N14)>='RFM input'!$W$7,0, N14+N66+N118) -> 0 | P14: =IF(COUNT($H14:O14)>='RFM input'!$W$7,0, O14+O66+O118) -> 0 | Q14: =IF(COUNT($H14:P14)>='RFM input'!$W$7,0, P14+P66+P118) -> 0
D15: =Asset8 -> Overhead High Voltage Lines Rural | G15: ='RAB roll forward'!G725 -> 347.8305591 | H15: 348.1521079 | I15: 355.2174777 | J15: =IF(COUNT($H15:I15)>='RFM input'!$W$7,0, I15+I67+I119) -> 0 | K15: =IF(COUNT($H15:J15)>='RFM input'!$W$7,0, J15+J67+J119) -> 0 | L15: =IF(COUNT($H15:K15)>='RFM input'!$W$7,0, K15+K67+K119) -> 0 | M15: =IF(COUNT($H15:L15)>='RFM input'!$W$7,0, L15+L67+L119) -> 0 | N15: =IF(COUNT($H15:M15)>='RFM input'!$W$7,0, M15+M67+M119) -> 0 | O15: =IF(COUNT($H15:N15)>='RFM input'!$W$7,0, N15+N67+N119) -> 0 | P15: =IF(COUNT($H15:O15)>='RFM input'!$W$7,0, O15+O67+O119) -> 0 | Q15: =IF(COUNT($H15:P15)>='RFM input'!$W$7,0, P15+P67+P119) -> 0
D16: =Asset9 -> Voltage Regulators on Distribution Feeders | G16: ='RAB roll forward'!G726 -> 13.28225341 | H16: 12.98500761 | I16: 14.24884805 | J16: =IF(COUNT($H16:I16)>='RFM input'!$W$7,0, I16+I68+I120) -> 0 | K16: =IF(COUNT($H16:J16)>='RFM input'!$W$7,0, J16+J68+J120) -> 0 | L16: =IF(COUNT($H16:K16)>='RFM input'!$W$7,0, K16+K68+K120) -> 0 | M16: =IF(COUNT($H16:L16)>='RFM input'!$W$7,0, L16+L68+L120) -> 0 | N16: =IF(COUNT($H16:M16)>='RFM input'!$W$7,0, M16+M68+M120) -> 0 | O16: =IF(COUNT($H16:N16)>='RFM input'!$W$7,0, N16+N68+N120) -> 0 | P16: =IF(COUNT($H16:O16)>='RFM input'!$W$7,0, O16+O68+O120) -> 0 | Q16: =IF(COUNT($H16:P16)>='RFM input'!$W$7,0, P16+P68+P120) -> 0
D17: =Asset10 -> Underground High Voltage Lines | G17: ='RAB roll forward'!G727 -> 236.8940693 | H17: 233.4859536 | I17: 238.2549951 | J17: =IF(COUNT($H17:I17)>='RFM input'!$W$7,0, I17+I69+I121) -> 0 | K17: =IF(COUNT($H17:J17)>='RFM input'!$W$7,0, J17+J69+J121) -> 0 | L17: =IF(COUNT($H17:K17)>='RFM input'!$W$7,0, K17+K69+K121) -> 0 | M17: =IF(COUNT($H17:L17)>='RFM input'!$W$7,0, L17+L69+L121) -> 0 | N17: =IF(COUNT($H17:M17)>='RFM input'!$W$7,0, M17+M69+M121) -> 0 | O17: =IF(COUNT($H17:N17)>='RFM input'!$W$7,0, N17+N69+N121) -> 0 | P17: =IF(COUNT($H17:O17)>='RFM input'!$W$7,0, O17+O69+O121) -> 0 | Q17: =IF(COUNT($H17:P17)>='RFM input'!$W$7,0, P17+P69+P121) -> 0
D18: =Asset11 -> Underground High Voltage Lines SWER | G18: ='RAB roll forward'!G728 -> 0.5842175756 | H18: 0.584131384 | I18: 0.5826072527 | J18: =IF(COUNT($H18:I18)>='RFM input'!$W$7,0, I18+I70+I122) -> 0 | K18: =IF(COUNT($H18:J18)>='RFM input'!$W$7,0, J18+J70+J122) -> 0 | L18: =IF(COUNT($H18:K18)>='RFM input'!$W$7,0, K18+K70+K122) -> 0 | M18: =IF(COUNT($H18:L18)>='RFM input'!$W$7,0, L18+L70+L122) -> 0 | N18: =IF(COUNT($H18:M18)>='RFM input'!$W$7,0, M18+M70+M122) -> 0 | O18: =IF(COUNT($H18:N18)>='RFM input'!$W$7,0, N18+N70+N122) -> 0 | P18: =IF(COUNT($H18:O18)>='RFM input'!$W$7,0, O18+O70+O122) -> 0 | Q18: =IF(COUNT($H18:P18)>='RFM input'!$W$7,0, P18+P70+P122) -> 0
D19: =Asset12 -> Distribution Substations HV (Pole) | G19: ='RAB roll forward'!G729 -> 1.6299545 | H19: 1.701908685 | I19: 1.844901352 | J19: =IF(COUNT($H19:I19)>='RFM input'!$W$7,0, I19+I71+I123) -> 0 | K19: =IF(COUNT($H19:J19)>='RFM input'!$W$7,0, J19+J71+J123) -> 0 | L19: =IF(COUNT($H19:K19)>='RFM input'!$W$7,0, K19+K71+K123) -> 0 | M19: =IF(COUNT($H19:L19)>='RFM input'!$W$7,0, L19+L71+L123) -> 0 | N19: =IF(COUNT($H19:M19)>='RFM input'!$W$7,0, M19+M71+M123) -> 0 | O19: =IF(COUNT($H19:N19)>='RFM input'!$W$7,0, N19+N71+N123) -> 0 | P19: =IF(COUNT($H19:O19)>='RFM input'!$W$7,0, O19+O71+O123) -> 0 | Q19: =IF(COUNT($H19:P19)>='RFM input'!$W$7,0, P19+P71+P123) -> 0
D20: =Asset13 -> Distribution Substations HV (Ground) | G20: ='RAB roll forward'!G730 -> 24.6880909 | H20: 27.33000823 | I20: 29.95650684 | J20: =IF(COUNT($H20:I20)>='RFM input'!$W$7,0, I20+I72+I124) -> 0 | K20: =IF(COUNT($H20:J20)>='RFM input'!$W$7,0, J20+J72+J124) -> 0 | L20: =IF(COUNT($H20:K20)>='RFM input'!$W$7,0, K20+K72+K124) -> 0 | M20: =IF(COUNT($H20:L20)>='RFM input'!$W$7,0, L20+L72+L124) -> 0 | N20: =IF(COUNT($H20:M20)>='RFM input'!$W$7,0, M20+M72+M124) -> 0 | O20: =IF(COUNT($H20:N20)>='RFM input'!$W$7,0, N20+N72+N124) -> 0 | P20: =IF(COUNT($H20:O20)>='RFM input'!$W$7,0, O20+O72+O124) -> 0 | Q20: =IF(COUNT($H20:P20)>='RFM input'!$W$7,0, P20+P72+P124) -> 0
D21: =Asset14 -> Distribution Substations LV (Pole) | G21: ='RAB roll forward'!G731 -> 153.2134324 | H21: 150.0328464 | I21: 152.0918228 | J21: =IF(COUNT($H21:I21)>='RFM input'!$W$7,0, I21+I73+I125) -> 0 | K21: =IF(COUNT($H21:J21)>='RFM input'!$W$7,0, J21+J73+J125) -> 0 | L21: =IF(COUNT($H21:K21)>='RFM input'!$W$7,0, K21+K73+K125) -> 0 | M21: =IF(COUNT($H21:L21)>='RFM input'!$W$7,0, L21+L73+L125) -> 0 | N21: =IF(COUNT($H21:M21)>='RFM input'!$W$7,0, M21+M73+M125) -> 0 | O21: =IF(COUNT($H21:N21)>='RFM input'!$W$7,0, N21+N73+N125) -> 0 | P21: =IF(COUNT($H21:O21)>='RFM input'!$W$7,0, O21+O73+O125) -> 0 | Q21: =IF(COUNT($H21:P21)>='RFM input'!$W$7,0, P21+P73+P125) -> 0
D22: =Asset15 -> Distribution Substations LV (Ground) | G22: ='RAB roll forward'!G732 -> 65.04398835 | H22: 66.57658649 | I22: 70.91639096 | J22: =IF(COUNT($H22:I22)>='RFM input'!$W$7,0, I22+I74+I126) -> 0 | K22: =IF(COUNT($H22:J22)>='RFM input'!$W$7,0, J22+J74+J126) -> 0 | L22: =IF(COUNT($H22:K22)>='RFM input'!$W$7,0, K22+K74+K126) -> 0 | M22: =IF(COUNT($H22:L22)>='RFM input'!$W$7,0, L22+L74+L126) -> 0 | N22: =IF(COUNT($H22:M22)>='RFM input'!$W$7,0, M22+M74+M126) -> 0 | O22: =IF(COUNT($H22:N22)>='RFM input'!$W$7,0, N22+N74+N126) -> 0 | P22: =IF(COUNT($H22:O22)>='RFM input'!$W$7,0, O22+O74+O126) -> 0 | Q22: =IF(COUNT($H22:P22)>='RFM input'!$W$7,0, P22+P74+P126) -> 0
D23: =Asset16 -> Overhead Low Voltage Lines Underbuilt Urban | G23: ='RAB roll forward'!G733 -> 40.69789946 | H23: 42.90212372 | I23: 45.43465157 | J23: =IF(COUNT($H23:I23)>='RFM input'!$W$7,0, I23+I75+I127) -> 0 | K23: =IF(COUNT($H23:J23)>='RFM input'!$W$7,0, J23+J75+J127) -> 0 | L23: =IF(COUNT($H23:K23)>='RFM input'!$W$7,0, K23+K75+K127) -> 0 | M23: =IF(COUNT($H23:L23)>='RFM input'!$W$7,0, L23+L75+L127) -> 0 | N23: =IF(COUNT($H23:M23)>='RFM input'!$W$7,0, M23+M75+M127) -> 0 | O23: =IF(COUNT($H23:N23)>='RFM input'!$W$7,0, N23+N75+N127) -> 0 | P23: =IF(COUNT($H23:O23)>='RFM input'!$W$7,0, O23+O75+O127) -> 0 | Q23: =IF(COUNT($H23:P23)>='RFM input'!$W$7,0, P23+P75+P127) -> 0
D24: =Asset17 -> Overhead Low Voltage Lines Underbuilt Rural | G24: ='RAB roll forward'!G734 -> 45.18606087 | H24: 43.86413658 | I24: 44.8545895 | J24: =IF(COUNT($H24:I24)>='RFM input'!$W$7,0, I24+I76+I128) -> 0 | K24: =IF(COUNT($H24:J24)>='RFM input'!$W$7,0, J24+J76+J128) -> 0 | L24: =IF(COUNT($H24:K24)>='RFM input'!$W$7,0, K24+K76+K128) -> 0 | M24: =IF(COUNT($H24:L24)>='RFM input'!$W$7,0, L24+L76+L128) -> 0 | N24: =IF(COUNT($H24:M24)>='RFM input'!$W$7,0, M24+M76+M128) -> 0 | O24: =IF(COUNT($H24:N24)>='RFM input'!$W$7,0, N24+N76+N128) -> 0 | P24: =IF(COUNT($H24:O24)>='RFM input'!$W$7,0, O24+O76+O128) -> 0 | Q24: =IF(COUNT($H24:P24)>='RFM input'!$W$7,0, P24+P76+P128) -> 0
D25: =Asset18 -> Overhead Low Voltage Lines Urban | G25: ='RAB roll forward'!G735 -> 64.44143312 | H25: 66.00073452 | I25: 67.04077227 | J25: =IF(COUNT($H25:I25)>='RFM input'!$W$7,0, I25+I77+I129) -> 0 | K25: =IF(COUNT($H25:J25)>='RFM input'!$W$7,0, J25+J77+J129) -> 0 | L25: =IF(COUNT($H25:K25)>='RFM input'!$W$7,0, K25+K77+K129) -> 0 | M25: =IF(COUNT($H25:L25)>='RFM input'!$W$7,0, L25+L77+L129) -> 0 | N25: =IF(COUNT($H25:M25)>='RFM input'!$W$7,0, M25+M77+M129) -> 0 | O25: =IF(COUNT($H25:N25)>='RFM input'!$W$7,0, N25+N77+N129) -> 0 | P25: =IF(COUNT($H25:O25)>='RFM input'!$W$7,0, O25+O77+O129) -> 0 | Q25: =IF(COUNT($H25:P25)>='RFM input'!$W$7,0, P25+P77+P129) -> 0
D26: =Asset19 -> Overhead Low Voltage Lines Rural | G26: ='RAB roll forward'!G736 -> 80.14908942 | H26: 81.98341517 | I26: 86.50899378 | J26: =IF(COUNT($H26:I26)>='RFM input'!$W$7,0, I26+I78+I130) -> 0 | K26: =IF(COUNT($H26:J26)>='RFM input'!$W$7,0, J26+J78+J130) -> 0 | L26: =IF(COUNT($H26:K26)>='RFM input'!$W$7,0, K26+K78+K130) -> 0 | M26: =IF(COUNT($H26:L26)>='RFM input'!$W$7,0, L26+L78+L130) -> 0 | N26: =IF(COUNT($H26:M26)>='RFM input'!$W$7,0, M26+M78+M130) -> 0 | O26: =IF(COUNT($H26:N26)>='RFM input'!$W$7,0, N26+N78+N130) -> 0 | P26: =IF(COUNT($H26:O26)>='RFM input'!$W$7,0, O26+O78+O130) -> 0 | Q26: =IF(COUNT($H26:P26)>='RFM input'!$W$7,0, P26+P78+P130) -> 0
D27: =Asset20 -> Underground Low Voltage Lines | G27: ='RAB roll forward'!G737 -> 102.9095858 | H27: 104.3145034 | I27: 107.8740925 | J27: =IF(COUNT($H27:I27)>='RFM input'!$W$7,0, I27+I79+I131) -> 0 | K27: =IF(COUNT($H27:J27)>='RFM input'!$W$7,0, J27+J79+J131) -> 0 | L27: =IF(COUNT($H27:K27)>='RFM input'!$W$7,0, K27+K79+K131) -> 0 | M27: =IF(COUNT($H27:L27)>='RFM input'!$W$7,0, L27+L79+L131) -> 0 | N27: =IF(COUNT($H27:M27)>='RFM input'!$W$7,0, M27+M79+M131) -> 0 | O27: =IF(COUNT($H27:N27)>='RFM input'!$W$7,0, N27+N79+N131) -> 0 | P27: =IF(COUNT($H27:O27)>='RFM input'!$W$7,0, O27+O79+O131) -> 0 | Q27: =IF(COUNT($H27:P27)>='RFM input'!$W$7,0, P27+P79+P131) -> 0
D28: =Asset21 -> Underground Low Voltage Common Trench | G28: ='RAB roll forward'!G738 -> 45.41198047 | H28: 44.32538475 | I28: 45.03351998 | J28: =IF(COUNT($H28:I28)>='RFM input'!$W$7,0, I28+I80+I132) -> 0 | K28: =IF(COUNT($H28:J28)>='RFM input'!$W$7,0, J28+J80+J132) -> 0 | L28: =IF(COUNT($H28:K28)>='RFM input'!$W$7,0, K28+K80+K132) -> 0 | M28: =IF(COUNT($H28:L28)>='RFM input'!$W$7,0, L28+L80+L132) -> 0 | N28: =IF(COUNT($H28:M28)>='RFM input'!$W$7,0, M28+M80+M132) -> 0 | O28: =IF(COUNT($H28:N28)>='RFM input'!$W$7,0, N28+N80+N132) -> 0 | P28: =IF(COUNT($H28:O28)>='RFM input'!$W$7,0, O28+O80+O132) -> 0 | Q28: =IF(COUNT($H28:P28)>='RFM input'!$W$7,0, P28+P80+P132) -> 0
D29: =Asset22 -> HVST Service Connections | G29: ='RAB roll forward'!G739 -> -1.278802483e-05 | H29: -1.3059859e-05 | I29: 2.828794866e-08 | J29: =IF(COUNT($H29:I29)>='RFM input'!$W$7,0, I29+I81+I133) -> 0 | K29: =IF(COUNT($H29:J29)>='RFM input'!$W$7,0, J29+J81+J133) -> 0 | L29: =IF(COUNT($H29:K29)>='RFM input'!$W$7,0, K29+K81+K133) -> 0 | M29: =IF(COUNT($H29:L29)>='RFM input'!$W$7,0, L29+L81+L133) -> 0 | N29: =IF(COUNT($H29:M29)>='RFM input'!$W$7,0, M29+M81+M133) -> 0 | O29: =IF(COUNT($H29:N29)>='RFM input'!$W$7,0, N29+N81+N133) -> 0 | P29: =IF(COUNT($H29:O29)>='RFM input'!$W$7,0, O29+O81+O133) -> 0 | Q29: =IF(COUNT($H29:P29)>='RFM input'!$W$7,0, P29+P81+P133) -> 0
D30: =Asset23 -> HV Service Connections | G30: ='RAB roll forward'!G740 -> 2.4984824 | H30: 2.539781754 | I30: 2.567870393 | J30: =IF(COUNT($H30:I30)>='RFM input'!$W$7,0, I30+I82+I134) -> 0 | K30: =IF(COUNT($H30:J30)>='RFM input'!$W$7,0, J30+J82+J134) -> 0 | L30: =IF(COUNT($H30:K30)>='RFM input'!$W$7,0, K30+K82+K134) -> 0 | M30: =IF(COUNT($H30:L30)>='RFM input'!$W$7,0, L30+L82+L134) -> 0 | N30: =IF(COUNT($H30:M30)>='RFM input'!$W$7,0, M30+M82+M134) -> 0 | O30: =IF(COUNT($H30:N30)>='RFM input'!$W$7,0, N30+N82+N134) -> 0 | P30: =IF(COUNT($H30:O30)>='RFM input'!$W$7,0, O30+O82+O134) -> 0 | Q30: =IF(COUNT($H30:P30)>='RFM input'!$W$7,0, P30+P82+P134) -> 0
D31: =Asset24 -> HV Metering CA Service Connections | G31: ='RAB roll forward'!G741 -> 0.6181156197 | H31: 1.315029762 | I31: 1.252856072 | J31: =IF(COUNT($H31:I31)>='RFM input'!$W$7,0, I31+I83+I135) -> 0 | K31: =IF(COUNT($H31:J31)>='RFM input'!$W$7,0, J31+J83+J135) -> 0 | L31: =IF(COUNT($H31:K31)>='RFM input'!$W$7,0, K31+K83+K135) -> 0 | M31: =IF(COUNT($H31:L31)>='RFM input'!$W$7,0, L31+L83+L135) -> 0 | N31: =IF(COUNT($H31:M31)>='RFM input'!$W$7,0, M31+M83+M135) -> 0 | O31: =IF(COUNT($H31:N31)>='RFM input'!$W$7,0, N31+N83+N135) -> 0 | P31: =IF(COUNT($H31:O31)>='RFM input'!$W$7,0, O31+O83+O135) -> 0 | Q31: =IF(COUNT($H31:P31)>='RFM input'!$W$7,0, P31+P83+P135) -> 0
D32: =Asset25 -> HV/LV Service Connections | G32: ='RAB roll forward'!G742 -> 4.254946918 | H32: 4.32790165 | I32: 4.377541639 | J32: =IF(COUNT($H32:I32)>='RFM input'!$W$7,0, I32+I84+I136) -> 0 | K32: =IF(COUNT($H32:J32)>='RFM input'!$W$7,0, J32+J84+J136) -> 0 | L32: =IF(COUNT($H32:K32)>='RFM input'!$W$7,0, K32+K84+K136) -> 0 | M32: =IF(COUNT($H32:L32)>='RFM input'!$W$7,0, L32+L84+L136) -> 0 | N32: =IF(COUNT($H32:M32)>='RFM input'!$W$7,0, M32+M84+M136) -> 0 | O32: =IF(COUNT($H32:N32)>='RFM input'!$W$7,0, N32+N84+N136) -> 0 | P32: =IF(COUNT($H32:O32)>='RFM input'!$W$7,0, O32+O84+O136) -> 0 | Q32: =IF(COUNT($H32:P32)>='RFM input'!$W$7,0, P32+P84+P136) -> 0
D33: =Asset26 -> Business LV Service Connections | G33: ='RAB roll forward'!G743 -> 8.36419523 | H33: 8.179297383 | I33: 7.936136872 | J33: =IF(COUNT($H33:I33)>='RFM input'!$W$7,0, I33+I85+I137) -> 0 | K33: =IF(COUNT($H33:J33)>='RFM input'!$W$7,0, J33+J85+J137) -> 0 | L33: =IF(COUNT($H33:K33)>='RFM input'!$W$7,0, K33+K85+K137) -> 0 | M33: =IF(COUNT($H33:L33)>='RFM input'!$W$7,0, L33+L85+L137) -> 0 | N33: =IF(COUNT($H33:M33)>='RFM input'!$W$7,0, M33+M85+M137) -> 0 | O33: =IF(COUNT($H33:N33)>='RFM input'!$W$7,0, N33+N85+N137) -> 0 | P33: =IF(COUNT($H33:O33)>='RFM input'!$W$7,0, O33+O85+O137) -> 0 | Q33: =IF(COUNT($H33:P33)>='RFM input'!$W$7,0, P33+P85+P137) -> 0
D34: =Asset27 -> Business LV Metering CA Service Connections | G34: ='RAB roll forward'!G744 -> 4.704254338 | H34: 3.472015741 | I34: 2.78962714 | J34: =IF(COUNT($H34:I34)>='RFM input'!$W$7,0, I34+I86+I138) -> 0 | K34: =IF(COUNT($H34:J34)>='RFM input'!$W$7,0, J34+J86+J138) -> 0 | L34: =IF(COUNT($H34:K34)>='RFM input'!$W$7,0, K34+K86+K138) -> 0 | M34: =IF(COUNT($H34:L34)>='RFM input'!$W$7,0, L34+L86+L138) -> 0 | N34: =IF(COUNT($H34:M34)>='RFM input'!$W$7,0, M34+M86+M138) -> 0 | O34: =IF(COUNT($H34:N34)>='RFM input'!$W$7,0, N34+N86+N138) -> 0 | P34: =IF(COUNT($H34:O34)>='RFM input'!$W$7,0, O34+O86+O138) -> 0 | Q34: =IF(COUNT($H34:P34)>='RFM input'!$W$7,0, P34+P86+P138) -> 0
D35: =Asset28 -> Domestic LV Service Connections | G35: ='RAB roll forward'!G745 -> 63.72279167 | H35: 65.21448342 | I35: 66.28804311 | J35: =IF(COUNT($H35:I35)>='RFM input'!$W$7,0, I35+I87+I139) -> 0 | K35: =IF(COUNT($H35:J35)>='RFM input'!$W$7,0, J35+J87+J139) -> 0 | L35: =IF(COUNT($H35:K35)>='RFM input'!$W$7,0, K35+K87+K139) -> 0 | M35: =IF(COUNT($H35:L35)>='RFM input'!$W$7,0, L35+L87+L139) -> 0 | N35: =IF(COUNT($H35:M35)>='RFM input'!$W$7,0, M35+M87+M139) -> 0 | O35: =IF(COUNT($H35:N35)>='RFM input'!$W$7,0, N35+N87+N139) -> 0 | P35: =IF(COUNT($H35:O35)>='RFM input'!$W$7,0, O35+O87+O139) -> 0 | Q35: =IF(COUNT($H35:P35)>='RFM input'!$W$7,0, P35+P87+P139) -> 0
D36: =Asset29 -> Domestic LV Metering CA Service Connections | G36: ='RAB roll forward'!G746 -> 1.377785373 | H36: 2.427262944 | I36: 2.877370699 | J36: =IF(COUNT($H36:I36)>='RFM input'!$W$7,0, I36+I88+I140) -> 0 | K36: =IF(COUNT($H36:J36)>='RFM input'!$W$7,0, J36+J88+J140) -> 0 | L36: =IF(COUNT($H36:K36)>='RFM input'!$W$7,0, K36+K88+K140) -> 0 | M36: =IF(COUNT($H36:L36)>='RFM input'!$W$7,0, L36+L88+L140) -> 0 | N36: =IF(COUNT($H36:M36)>='RFM input'!$W$7,0, M36+M88+M140) -> 0 | O36: =IF(COUNT($H36:N36)>='RFM input'!$W$7,0, N36+N88+N140) -> 0 | P36: =IF(COUNT($H36:O36)>='RFM input'!$W$7,0, O36+O88+O140) -> 0 | Q36: =IF(COUNT($H36:P36)>='RFM input'!$W$7,0, P36+P88+P140) -> 0
D37: =Asset30 -> Wholesale Metering | G37: ='RAB roll forward'!G747 -> 0 | H37: =G37+G89+G141+G193+G245+G297 -> 0 | I37: =H37+H89+H141 -> 0 | J37: =IF(COUNT($H37:I37)>='RFM input'!$W$7,0, I37+I89+I141) -> 0 | K37: =IF(COUNT($H37:J37)>='RFM input'!$W$7,0, J37+J89+J141) -> 0 | L37: =IF(COUNT($H37:K37)>='RFM input'!$W$7,0, K37+K89+K141) -> 0 | M37: =IF(COUNT($H37:L37)>='RFM input'!$W$7,0, L37+L89+L141) -> 0 | N37: =IF(COUNT($H37:M37)>='RFM input'!$W$7,0, M37+M89+M141) -> 0 | O37: =IF(COUNT($H37:N37)>='RFM input'!$W$7,0, N37+N89+N141) -> 0 | P37: =IF(COUNT($H37:O37)>='RFM input'!$W$7,0, O37+O89+O141) -> 0 | Q37: =IF(COUNT($H37:P37)>='RFM input'!$W$7,0, P37+P89+P141) -> 0
D38: =Asset31 -> HV Metering | G38: ='RAB roll forward'!G748 -> 0 | H38: 0 | I38: 0 | J38: =IF(COUNT($H38:I38)>='RFM input'!$W$7,0, I38+I90+I142) -> 0 | K38: =IF(COUNT($H38:J38)>='RFM input'!$W$7,0, J38+J90+J142) -> 0 | L38: =IF(COUNT($H38:K38)>='RFM input'!$W$7,0, K38+K90+K142) -> 0 | M38: =IF(COUNT($H38:L38)>='RFM input'!$W$7,0, L38+L90+L142) -> 0 | N38: =IF(COUNT($H38:M38)>='RFM input'!$W$7,0, M38+M90+M142) -> 0 | O38: =IF(COUNT($H38:N38)>='RFM input'!$W$7,0, N38+N90+N142) -> 0 | P38: =IF(COUNT($H38:O38)>='RFM input'!$W$7,0, O38+O90+O142) -> 0 | Q38: =IF(COUNT($H38:P38)>='RFM input'!$W$7,0, P38+P90+P142) -> 0
D39: =Asset32 -> HV/LV Metering | G39: ='RAB roll forward'!G749 -> 0 | H39: 0 | I39: 0 | J39: =IF(COUNT($H39:I39)>='RFM input'!$W$7,0, I39+I91+I143) -> 0 | K39: =IF(COUNT($H39:J39)>='RFM input'!$W$7,0, J39+J91+J143) -> 0 | L39: =IF(COUNT($H39:K39)>='RFM input'!$W$7,0, K39+K91+K143) -> 0 | M39: =IF(COUNT($H39:L39)>='RFM input'!$W$7,0, L39+L91+L143) -> 0 | N39: =IF(COUNT($H39:M39)>='RFM input'!$W$7,0, M39+M91+M143) -> 0 | O39: =IF(COUNT($H39:N39)>='RFM input'!$W$7,0, N39+N91+N143) -> 0 | P39: =IF(COUNT($H39:O39)>='RFM input'!$W$7,0, O39+O91+O143) -> 0 | Q39: =IF(COUNT($H39:P39)>='RFM input'!$W$7,0, P39+P91+P143) -> 0
D40: =Asset33 -> Business LV Metering | G40: ='RAB roll forward'!G750 -> 0 | H40: 0 | I40: 0 | J40: =IF(COUNT($H40:I40)>='RFM input'!$W$7,0, I40+I92+I144) -> 0 | K40: =IF(COUNT($H40:J40)>='RFM input'!$W$7,0, J40+J92+J144) -> 0 | L40: =IF(COUNT($H40:K40)>='RFM input'!$W$7,0, K40+K92+K144) -> 0 | M40: =IF(COUNT($H40:L40)>='RFM input'!$W$7,0, L40+L92+L144) -> 0 | N40: =IF(COUNT($H40:M40)>='RFM input'!$W$7,0, M40+M92+M144) -> 0 | O40: =IF(COUNT($H40:N40)>='RFM input'!$W$7,0, N40+N92+N144) -> 0 | P40: =IF(COUNT($H40:O40)>='RFM input'!$W$7,0, O40+O92+O144) -> 0 | Q40: =IF(COUNT($H40:P40)>='RFM input'!$W$7,0, P40+P92+P144) -> 0
D41: =Asset34 -> Domestic LV Metering | G41: ='RAB roll forward'!G751 -> 0 | H41: 0 | I41: 0 | J41: =IF(COUNT($H41:I41)>='RFM input'!$W$7,0, I41+I93+I145) -> 0 | K41: =IF(COUNT($H41:J41)>='RFM input'!$W$7,0, J41+J93+J145) -> 0 | L41: =IF(COUNT($H41:K41)>='RFM input'!$W$7,0, K41+K93+K145) -> 0 | M41: =IF(COUNT($H41:L41)>='RFM input'!$W$7,0, L41+L93+L145) -> 0 | N41: =IF(COUNT($H41:M41)>='RFM input'!$W$7,0, M41+M93+M145) -> 0 | O41: =IF(COUNT($H41:N41)>='RFM input'!$W$7,0, N41+N93+N145) -> 0 | P41: =IF(COUNT($H41:O41)>='RFM input'!$W$7,0, O41+O93+O145) -> 0 | Q41: =IF(COUNT($H41:P41)>='RFM input'!$W$7,0, P41+P93+P145) -> 0
D42: =Asset35 -> Off Peak Metering | G42: ='RAB roll forward'!G752 -> 0 | H42: 0 | I42: 0 | J42: =IF(COUNT($H42:I42)>='RFM input'!$W$7,0, I42+I94+I146) -> 0 | K42: =IF(COUNT($H42:J42)>='RFM input'!$W$7,0, J42+J94+J146) -> 0 | L42: =IF(COUNT($H42:K42)>='RFM input'!$W$7,0, K42+K94+K146) -> 0 | M42: =IF(COUNT($H42:L42)>='RFM input'!$W$7,0, L42+L94+L146) -> 0 | N42: =IF(COUNT($H42:M42)>='RFM input'!$W$7,0, M42+M94+M146) -> 0 | O42: =IF(COUNT($H42:N42)>='RFM input'!$W$7,0, N42+N94+N146) -> 0 | P42: =IF(COUNT($H42:O42)>='RFM input'!$W$7,0, O42+O94+O146) -> 0 | Q42: =IF(COUNT($H42:P42)>='RFM input'!$W$7,0, P42+P94+P146) -> 0
D43: =Asset36 -> Emergency Network Spares | G43: ='RAB roll forward'!G753 -> 2.49147406 | H43: 2.544435154 | I43: 2.593010734 | J43: =IF(COUNT($H43:I43)>='RFM input'!$W$7,0, I43+I95+I147) -> 0 | K43: =IF(COUNT($H43:J43)>='RFM input'!$W$7,0, J43+J95+J147) -> 0 | L43: =IF(COUNT($H43:K43)>='RFM input'!$W$7,0, K43+K95+K147) -> 0 | M43: =IF(COUNT($H43:L43)>='RFM input'!$W$7,0, L43+L95+L147) -> 0 | N43: =IF(COUNT($H43:M43)>='RFM input'!$W$7,0, M43+M95+M147) -> 0 | O43: =IF(COUNT($H43:N43)>='RFM input'!$W$7,0, N43+N95+N147) -> 0 | P43: =IF(COUNT($H43:O43)>='RFM input'!$W$7,0, O43+O95+O147) -> 0 | Q43: =IF(COUNT($H43:P43)>='RFM input'!$W$7,0, P43+P95+P147) -> 0
D44: =Asset37 -> Motor Vehicles | G44: ='RAB roll forward'!G754 -> 7.363629622 | H44: -2.910421502 | I44: 7.950377068 | J44: =IF(COUNT($H44:I44)>='RFM input'!$W$7,0, I44+I96+I148) -> 0 | K44: =IF(COUNT($H44:J44)>='RFM input'!$W$7,0, J44+J96+J148) -> 0 | L44: =IF(COUNT($H44:K44)>='RFM input'!$W$7,0, K44+K96+K148) -> 0 | M44: =IF(COUNT($H44:L44)>='RFM input'!$W$7,0, L44+L96+L148) -> 0 | N44: =IF(COUNT($H44:M44)>='RFM input'!$W$7,0, M44+M96+M148) -> 0 | O44: =IF(COUNT($H44:N44)>='RFM input'!$W$7,0, N44+N96+N148) -> 0 | P44: =IF(COUNT($H44:O44)>='RFM input'!$W$7,0, O44+O96+O148) -> 0 | Q44: =IF(COUNT($H44:P44)>='RFM input'!$W$7,0, P44+P96+P148) -> 0
D45: =Asset38 -> Minor Assets | G45: ='RAB roll forward'!G755 -> 23.66105507 | H45: 25.08467153 | I45: 39.78221475 | J45: =IF(COUNT($H45:I45)>='RFM input'!$W$7,0, I45+I97+I149) -> 0 | K45: =IF(COUNT($H45:J45)>='RFM input'!$W$7,0, J45+J97+J149) -> 0 | L45: =IF(COUNT($H45:K45)>='RFM input'!$W$7,0, K45+K97+K149) -> 0 | M45: =IF(COUNT($H45:L45)>='RFM input'!$W$7,0, L45+L97+L149) -> 0 | N45: =IF(COUNT($H45:M45)>='RFM input'!$W$7,0, M45+M97+M149) -> 0 | O45: =IF(COUNT($H45:N45)>='RFM input'!$W$7,0, N45+N97+N149) -> 0 | P45: =IF(COUNT($H45:O45)>='RFM input'!$W$7,0, O45+O97+O149) -> 0 | Q45: =IF(COUNT($H45:P45)>='RFM input'!$W$7,0, P45+P97+P149) -> 0
D46: =Asset39 -> Non-System Property | G46: ='RAB roll forward'!G756 -> 12.31686254 | H46: 28.22250113 | I46: 28.50139136 | J46: =IF(COUNT($H46:I46)>='RFM input'!$W$7,0, I46+I98+I150) -> 0 | K46: =IF(COUNT($H46:J46)>='RFM input'!$W$7,0, J46+J98+J150) -> 0 | L46: =IF(COUNT($H46:K46)>='RFM input'!$W$7,0, K46+K98+K150) -> 0 | M46: =IF(COUNT($H46:L46)>='RFM input'!$W$7,0, L46+L98+L150) -> 0 | N46: =IF(COUNT($H46:M46)>='RFM input'!$W$7,0, M46+M98+M150) -> 0 | O46: =IF(COUNT($H46:N46)>='RFM input'!$W$7,0, N46+N98+N150) -> 0 | P46: =IF(COUNT($H46:O46)>='RFM input'!$W$7,0, O46+O98+O150) -> 0 | Q46: =IF(COUNT($H46:P46)>='RFM input'!$W$7,0, P46+P98+P150) -> 0
D47: =Asset40 -> Spare Parts | G47: ='RAB roll forward'!G757 -> 11.76715628 | H47: 13.25820304 | I47: 13.51131419 | J47: =IF(COUNT($H47:I47)>='RFM input'!$W$7,0, I47+I99+I151) -> 0 | K47: =IF(COUNT($H47:J47)>='RFM input'!$W$7,0, J47+J99+J151) -> 0 | L47: =IF(COUNT($H47:K47)>='RFM input'!$W$7,0, K47+K99+K151) -> 0 | M47: =IF(COUNT($H47:L47)>='RFM input'!$W$7,0, L47+L99+L151) -> 0 | N47: =IF(COUNT($H47:M47)>='RFM input'!$W$7,0, M47+M99+M151) -> 0 | O47: =IF(COUNT($H47:N47)>='RFM input'!$W$7,0, N47+N99+N151) -> 0 | P47: =IF(COUNT($H47:O47)>='RFM input'!$W$7,0, O47+O99+O151) -> 0 | Q47: =IF(COUNT($H47:P47)>='RFM input'!$W$7,0, P47+P99+P151) -> 0
D48: =Asset41 -> NEM Assets | G48: ='RAB roll forward'!G758 -> 12.87687339 | H48: 11.44746448 | I48: 3.049498633 | J48: =IF(COUNT($H48:I48)>='RFM input'!$W$7,0, I48+I100+I152) -> 0 | K48: =IF(COUNT($H48:J48)>='RFM input'!$W$7,0, J48+J100+J152) -> 0 | L48: =IF(COUNT($H48:K48)>='RFM input'!$W$7,0, K48+K100+K152) -> 0 | M48: =IF(COUNT($H48:L48)>='RFM input'!$W$7,0, L48+L100+L152) -> 0 | N48: =IF(COUNT($H48:M48)>='RFM input'!$W$7,0, M48+M100+M152) -> 0 | O48: =IF(COUNT($H48:N48)>='RFM input'!$W$7,0, N48+N100+N152) -> 0 | P48: =IF(COUNT($H48:O48)>='RFM input'!$W$7,0, O48+O100+O152) -> 0 | Q48: =IF(COUNT($H48:P48)>='RFM input'!$W$7,0, P48+P100+P152) -> 0
D49: =Asset42 -> Business Management Systems | G49: ='RAB roll forward'!G759 -> 0 | H49: 0 | I49: 11.93418142 | J49: =IF(COUNT($H49:I49)>='RFM input'!$W$7,0, I49+I101+I153) -> 0 | K49: =IF(COUNT($H49:J49)>='RFM input'!$W$7,0, J49+J101+J153) -> 0 | L49: =IF(COUNT($H49:K49)>='RFM input'!$W$7,0, K49+K101+K153) -> 0 | M49: =IF(COUNT($H49:L49)>='RFM input'!$W$7,0, L49+L101+L153) -> 0 | N49: =IF(COUNT($H49:M49)>='RFM input'!$W$7,0, M49+M101+M153) -> 0 | O49: =IF(COUNT($H49:N49)>='RFM input'!$W$7,0, N49+N101+N153) -> 0 | P49: =IF(COUNT($H49:O49)>='RFM input'!$W$7,0, O49+O101+O153) -> 0 | Q49: =IF(COUNT($H49:P49)>='RFM input'!$W$7,0, P49+P101+P153) -> 0
D50: =Asset43 -> Land | G50: ='RAB roll forward'!G760 -> 1.316238928 | H50: 1.344218129 | I50: 1.369880475 | J50: =IF(COUNT($H50:I50)>='RFM input'!$W$7,0, I50+I102+I154) -> 0 | K50: =IF(COUNT($H50:J50)>='RFM input'!$W$7,0, J50+J102+J154) -> 0 | L50: =IF(COUNT($H50:K50)>='RFM input'!$W$7,0, K50+K102+K154) -> 0 | M50: =IF(COUNT($H50:L50)>='RFM input'!$W$7,0, L50+L102+L154) -> 0 | N50: =IF(COUNT($H50:M50)>='RFM input'!$W$7,0, M50+M102+M154) -> 0 | O50: =IF(COUNT($H50:N50)>='RFM input'!$W$7,0, N50+N102+N154) -> 0 | P50: =IF(COUNT($H50:O50)>='RFM input'!$W$7,0, O50+O102+O154) -> 0 | Q50: =IF(COUNT($H50:P50)>='RFM input'!$W$7,0, P50+P102+P154) -> 0
D51: =Asset44 -> Easements | G51: ='RAB roll forward'!G761 -> 1.362787641 | H51: 1.391756325 | I51: 1.418326219 | J51: =IF(COUNT($H51:I51)>='RFM input'!$W$7,0, I51+I103+I155) -> 0 | K51: =IF(COUNT($H51:J51)>='RFM input'!$W$7,0, J51+J103+J155) -> 0 | L51: =IF(COUNT($H51:K51)>='RFM input'!$W$7,0, K51+K103+K155) -> 0 | M51: =IF(COUNT($H51:L51)>='RFM input'!$W$7,0, L51+L103+L155) -> 0 | N51: =IF(COUNT($H51:M51)>='RFM input'!$W$7,0, M51+M103+M155) -> 0 | O51: =IF(COUNT($H51:N51)>='RFM input'!$W$7,0, N51+N103+N155) -> 0 | P51: =IF(COUNT($H51:O51)>='RFM input'!$W$7,0, O51+O103+O155) -> 0 | Q51: =IF(COUNT($H51:P51)>='RFM input'!$W$7,0, P51+P103+P155) -> 0
D52: =Asset45 -> 0 | G52: ='RAB roll forward'!G762 -> 0 | H52: 0 | I52: 0 | J52: =IF(COUNT($H52:I52)>='RFM input'!$W$7,0, I52+I104+I156) -> 0 | K52: =IF(COUNT($H52:J52)>='RFM input'!$W$7,0, J52+J104+J156) -> 0 | L52: =IF(COUNT($H52:K52)>='RFM input'!$W$7,0, K52+K104+K156) -> 0 | M52: =IF(COUNT($H52:L52)>='RFM input'!$W$7,0, L52+L104+L156) -> 0 | N52: =IF(COUNT($H52:M52)>='RFM input'!$W$7,0, M52+M104+M156) -> 0 | O52: =IF(COUNT($H52:N52)>='RFM input'!$W$7,0, N52+N104+N156) -> 0 | P52: =IF(COUNT($H52:O52)>='RFM input'!$W$7,0, O52+O104+O156) -> 0 | Q52: =IF(COUNT($H52:P52)>='RFM input'!$W$7,0, P52+P104+P156) -> 0
D53: =Asset46 -> 0 | G53: ='RAB roll forward'!G763 -> 0 | H53: 0 | I53: 0 | J53: =IF(COUNT($H53:I53)>='RFM input'!$W$7,0, I53+I105+I157) -> 0 | K53: =IF(COUNT($H53:J53)>='RFM input'!$W$7,0, J53+J105+J157) -> 0 | L53: =IF(COUNT($H53:K53)>='RFM input'!$W$7,0, K53+K105+K157) -> 0 | M53: =IF(COUNT($H53:L53)>='RFM input'!$W$7,0, L53+L105+L157) -> 0 | N53: =IF(COUNT($H53:M53)>='RFM input'!$W$7,0, M53+M105+M157) -> 0 | O53: =IF(COUNT($H53:N53)>='RFM input'!$W$7,0, N53+N105+N157) -> 0 | P53: =IF(COUNT($H53:O53)>='RFM input'!$W$7,0, O53+O105+O157) -> 0 | Q53: =IF(COUNT($H53:P53)>='RFM input'!$W$7,0, P53+P105+P157) -> 0
D54: =Asset47 -> 0 | G54: ='RAB roll forward'!G764 -> 0 | H54: 0 | I54: 0 | J54: =IF(COUNT($H54:I54)>='RFM input'!$W$7,0, I54+I106+I158) -> 0 | K54: =IF(COUNT($H54:J54)>='RFM input'!$W$7,0, J54+J106+J158) -> 0 | L54: =IF(COUNT($H54:K54)>='RFM input'!$W$7,0, K54+K106+K158) -> 0 | M54: =IF(COUNT($H54:L54)>='RFM input'!$W$7,0, L54+L106+L158) -> 0 | N54: =IF(COUNT($H54:M54)>='RFM input'!$W$7,0, M54+M106+M158) -> 0 | O54: =IF(COUNT($H54:N54)>='RFM input'!$W$7,0, N54+N106+N158) -> 0 | P54: =IF(COUNT($H54:O54)>='RFM input'!$W$7,0, O54+O106+O158) -> 0 | Q54: =IF(COUNT($H54:P54)>='RFM input'!$W$7,0, P54+P106+P158) -> 0
D55: =Asset48 -> 0 | G55: ='RAB roll forward'!G765 -> 0 | H55: 0 | I55: 0 | J55: =IF(COUNT($H55:I55)>='RFM input'!$W$7,0, I55+I107+I159) -> 0 | K55: =IF(COUNT($H55:J55)>='RFM input'!$W$7,0, J55+J107+J159) -> 0 | L55: =IF(COUNT($H55:K55)>='RFM input'!$W$7,0, K55+K107+K159) -> 0 | M55: =IF(COUNT($H55:L55)>='RFM input'!$W$7,0, L55+L107+L159) -> 0 | N55: =IF(COUNT($H55:M55)>='RFM input'!$W$7,0, M55+M107+M159) -> 0 | O55: =IF(COUNT($H55:N55)>='RFM input'!$W$7,0, N55+N107+N159) -> 0 | P55: =IF(COUNT($H55:O55)>='RFM input'!$W$7,0, O55+O107+O159) -> 0 | Q55: =IF(COUNT($H55:P55)>='RFM input'!$W$7,0, P55+P107+P159) -> 0
D56: =Asset49 -> 0 | G56: ='RAB roll forward'!G766 -> 0 | H56: 0 | I56: 0 | J56: =IF(COUNT($H56:I56)>='RFM input'!$W$7,0, I56+I108+I160) -> 0 | K56: =IF(COUNT($H56:J56)>='RFM input'!$W$7,0, J56+J108+J160) -> 0 | L56: =IF(COUNT($H56:K56)>='RFM input'!$W$7,0, K56+K108+K160) -> 0 | M56: =IF(COUNT($H56:L56)>='RFM input'!$W$7,0, L56+L108+L160) -> 0 | N56: =IF(COUNT($H56:M56)>='RFM input'!$W$7,0, M56+M108+M160) -> 0 | O56: =IF(COUNT($H56:N56)>='RFM input'!$W$7,0, N56+N108+N160) -> 0 | P56: =IF(COUNT($H56:O56)>='RFM input'!$W$7,0, O56+O108+O160) -> 0 | Q56: =IF(COUNT($H56:P56)>='RFM input'!$W$7,0, P56+P108+P160) -> 0
D57: =Asset50 -> Equity raising costs | G57: ='RAB roll forward'!G767 -> 0 | H57: =G57+G109+G161+G213+G265+G317 -> 0 | I57: =H57+H109+H161 -> 0.2117554014 | J57: =IF(COUNT($H57:I57)>='RFM input'!$W$7,0, I57+I109+I161) -> 0 | K57: =IF(COUNT($H57:J57)>='RFM input'!$W$7,0, J57+J109+J161) -> 0 | L57: =IF(COUNT($H57:K57)>='RFM input'!$W$7,0, K57+K109+K161) -> 0 | M57: =IF(COUNT($H57:L57)>='RFM input'!$W$7,0, L57+L109+L161) -> 0 | N57: =IF(COUNT($H57:M57)>='RFM input'!$W$7,0, M57+M109+M161) -> 0 | O57: =IF(COUNT($H57:N57)>='RFM input'!$W$7,0, N57+N109+N161) -> 0 | P57: =IF(COUNT($H57:O57)>='RFM input'!$W$7,0, O57+O109+O161) -> 0 | Q57: =IF(COUNT($H57:P57)>='RFM input'!$W$7,0, P57+P109+P161) -> 0
C59: Nominal Actual Net Capex | G59: =SUM(G60:G109) -> 125.4206463 | H59: 117.2815008 | I59: 108.8905421 | J59: 0 | K59: 0 | L59: 0 | M59: 0 | N59: 0 | O59: 0 | P59: 0 | Q59: 0
D60: =Asset1 -> Overhead Subtransmission Lines (Urban) | G60: ='RAB roll forward'!G770 -> 0.24163424 | H60: ='RAB roll forward'!H770 -> 0.1812688096 | I60: ='RAB roll forward'!I770 -> 0.1912814618 | J60: ='RAB roll forward'!J770 -> 0 | K60: ='RAB roll forward'!K770 -> 0 | L60: ='RAB roll forward'!L770 -> 0 | M60: ='RAB roll forward'!M770 -> 0 | N60: ='RAB roll forward'!N770 -> 0 | O60: ='RAB roll forward'!O770 -> 0 | P60: ='RAB roll forward'!P770 -> 0 | Q60: ='RAB roll forward'!Q770 -> 0
D61: =Asset2 -> Underground Subtransmission Lines (Urban) | G61: ='RAB roll forward'!G771 -> 0 | H61: ='RAB roll forward'!H771 -> 0 | I61: ='RAB roll forward'!I771 -> 0 | J61: ='RAB roll forward'!J771 -> 0 | K61: ='RAB roll forward'!K771 -> 0 | L61: ='RAB roll forward'!L771 -> 0 | M61: ='RAB roll forward'!M771 -> 0 | N61: ='RAB roll forward'!N771 -> 0 | O61: ='RAB roll forward'!O771 -> 0 | P61: ='RAB roll forward'!P771 -> 0 | Q61: ='RAB roll forward'!Q771 -> 0
D62: =Asset3 -> Urban Zone Substations | G62: ='RAB roll forward'!G772 -> 0.1692395019 | H62: ='RAB roll forward'!H772 -> 0.8528351258 | I62: ='RAB roll forward'!I772 -> 4.585542726 | J62: ='RAB roll forward'!J772 -> 0 | K62: ='RAB roll forward'!K772 -> 0 | L62: ='RAB roll forward'!L772 -> 0 | M62: ='RAB roll forward'!M772 -> 0 | N62: ='RAB roll forward'!N772 -> 0 | O62: ='RAB roll forward'!O772 -> 0 | P62: ='RAB roll forward'!P772 -> 0 | Q62: ='RAB roll forward'!Q772 -> 0
D63: =Asset4 -> Rural Zone Substations | G63: ='RAB roll forward'!G773 -> 0.1549322431 | H63: ='RAB roll forward'!H773 -> 1.181200635 | I63: ='RAB roll forward'!I773 -> 2.235948386 | J63: ='RAB roll forward'!J773 -> 0 | K63: ='RAB roll forward'!K773 -> 0 | L63: ='RAB roll forward'!L773 -> 0 | M63: ='RAB roll forward'!M773 -> 0 | N63: ='RAB roll forward'!N773 -> 0 | O63: ='RAB roll forward'!O773 -> 0 | P63: ='RAB roll forward'!P773 -> 0 | Q63: ='RAB roll forward'!Q773 -> 0
D64: =Asset5 -> SCADA | G64: ='RAB roll forward'!G774 -> 18.84004945 | H64: ='RAB roll forward'!H774 -> 3.497747524 | I64: ='RAB roll forward'!I774 -> 2.212381754 | J64: ='RAB roll forward'!J774 -> 0 | K64: ='RAB roll forward'!K774 -> 0 | L64: ='RAB roll forward'!L774 -> 0 | M64: ='RAB roll forward'!M774 -> 0 | N64: ='RAB roll forward'!N774 -> 0 | O64: ='RAB roll forward'!O774 -> 0 | P64: ='RAB roll forward'!P774 -> 0 | Q64: ='RAB roll forward'!Q774 -> 0
